Workbook

Sheet Sheet1 (hidden)
C1: София | D1: Бургас | E1: Пазарджик
A2: Electricity | B2: Разходи за електроенергия | C2: =#REF! ->  | D2: =#REF! ->  | E2: =#REF! -> 
A3: Heating | B3: Разходи за топлоенергия | C3: =#REF! ->  | D3: 0 | E3: =#REF! -> 
A4: Materials | B4: Разходи за материали | C4: =#REF! ->  | D4: =#REF! ->  | E4: =#REF! -> 
A5: Hired services cleaning | B5: Външни услуги - почистване | C5: =#REF! ->  | D5: =#REF! ->  | E5: =#REF! -> 
A6: Wages and salaries | B6: Разходи за заплати | C6: =#REF! ->  | D6: =#REF! ->  | E6: =#REF! -> 
A7: Social insurace | B7: Разходи за осигуровки | C7: =#REF! ->  | D7: =#REF! ->  | E7: =#REF! -> 
C8: =SUM(C2:C7) ->  | D8: =SUM(D2:D7) ->  | E8: =SUM(E2:E7) -> 
B11: Разходи за амортизации | C11: =#REF! ->  | D11: =#REF! ->  | E11: =#REF! -> 
C19: 2013 | D19: 2014 | E19: 2015 | F19: общо
B20: =Input!D26 -> Planning/design fees | C20: =CAPEX!E5 -> 116886.44 | D20: =CAPEX!G5 -> 0 | E20: =CAPEX!I5 -> 0 | F20: =SUM(C20:E20) -> 116886.44
B21: =Input!D29 -> Building and construction | C21: =CAPEX!E8 -> 1223667.14 | D21: =CAPEX!G8 -> 4282834.99 | E21: =CAPEX!I8 -> 611833.57 | F21: =SUM(C21:E21) -> 6118335.7
B22: =Input!D32 -> Plant and machinery | C22: =CAPEX!E11 -> 39493.98 | D22: =CAPEX!G11 -> 138228.95 | E22: =CAPEX!I11 -> 19746.99 | F22: 197469.92
B23: =Input!D35 -> Contingencies | C23: =CAPEX!E14 -> 122366.71 | D23: =CAPEX!G14 -> 428283.5 | E23: =CAPEX!I14 -> 61183.36 | F23: 611833.57
B24: =Input!D38 -> Technical assistance | C24: =CAPEX!E17 -> 168266.16 | D24: =CAPEX!G17 -> 588931.55 | E24: =CAPEX!I17 -> 84133.08 | F24: 841330.79
B25: =Input!D41 -> Publicity | C25: =CAPEX!E20 -> 8180.67 | D25: =CAPEX!G20 -> 28632.35 | E25: =CAPEX!I20 -> 4090.34 | F25: 40903.36
B26: =Input!D44 -> Supervision during implementation | C26: =CAPEX!E23 -> 101489.29 | D26: =CAPEX!G23 -> 355212.52 | E26: =CAPEX!I23 -> 50744.65 | F26: 507446.46
C33: 2013 | D33: 2014 | E33: 2015
B34: =CAPEX!B5 -> Проектиране и планиране | C34: =CAPEX!E5 -> 116886.44 | D34: =CAPEX!G5 -> 0 | E34: =CAPEX!I5 -> 0 | F34: =CAPEX!J5 -> 228610
B35: =CAPEX!B8 -> Строително-монтажни работи | C35: =CAPEX!E8 -> 1223667.14 | D35: =CAPEX!G8 -> 4282834.99 | E35: =CAPEX!I8 -> 611833.57 | F35: =CAPEX!J8 -> 11966424.53
B36: =CAPEX!B11 -> Обзавеждане и оборудване | C36: =CAPEX!E11 -> 39493.98 | D36: =CAPEX!G11 -> 138228.95 | E36: =CAPEX!I11 -> 19746.99 | F36: =CAPEX!J11 -> 386217.6
B37: =CAPEX!B14 -> Непредвидени разходи | C37: =CAPEX!E14 -> 122366.71 | D37: =CAPEX!G14 -> 428283.5 | E37: =CAPEX!I14 -> 61183.36 | F37: =CAPEX!J14 -> 1196642.453
B38: =CAPEX!B17 -> Техническа помощ | C38: =CAPEX!E17 -> 168266.16 | D38: =CAPEX!G17 -> 588931.55 | E38: =CAPEX!I17 -> 84133.08 | F38: =CAPEX!J17 -> 1645500
B39: =CAPEX!B20 -> Публичност и информация | C39: =CAPEX!E20 -> 8180.67 | D39: =CAPEX!G20 -> 28632.35 | E39: =CAPEX!I20 -> 4090.34 | F39: =CAPEX!J20 -> 80000
B40: =CAPEX!B23 -> Строителен надзор | C40: =CAPEX!E23 -> 101489.29 | D40: =CAPEX!G23 -> 355212.52 | E40: =CAPEX!I23 -> 50744.65 | F40: =CAPEX!J23 -> 992479
B42: пътувания | C42: =#REF!-#REF! -> 
B43: наеми и реклама | C43: =#REF!-#REF! -> 
B45: trips | C45: =#REF! -> 
B46: rentals&adveratising | C46: =#REF! -> 
B48: Променливи разходи | C48: 16504304.43
B49: Постоянни разходи | C49: 1896279.102
B51: Variable costs | C51: 16504304.43
B52: Fixed costs | C52: 1896279.102
C57: 2010 | D57: 2011 | E57: 2012 | F57: 2013 | G57: 2014 | H57: 2015 | I57: 2016 | J57: 2017 | K57: 2018 | L57: 2019 | M57: 2020 | N57: 2021 | O57: 2022 | P57: 2023 | Q57: 2024 | R57: 2025 | S57: 2026 | T57: 2027 | U57: 2028 | V57: 2029 | W57: 2030 | X57: 2031 | Y57: 2032 | Z57: 2033 | AA57: 2034 | AB57: 2035 | AC57: 2036 | AD57: 2037 | AE57: 2038 | AF57: 2039 | AG57: 2040 | AH57: 2041 | AI57: 2042 | AJ57: 2043 | AK57: 2044
B58: Expenses O&M | C58: 0.2652512613 | D58: 0.261551148 | E58: 0.257996957 | F58: 0.3134565877 | G58: 0.3525953196 | H58: 0.3414522881 | I58: 0.3314188632 | J58: 0.3230044814 | K58: 0.3157695897 | L58: 0.312078855 | M58: 0.3062613174 | N58: 0.3047754707 | O58: 0.3032803194 | P58: 0.301776571 | Q58: 0.3002649502 | R58: 0.2987461977 | S58: 0.2972210686 | T58: 0.2956903313 | U58: 0.2941547657 | V58: 0.2926151617 | W58: 0.2910723177 | X58: 0.2903285379 | Y58: 0.2895717448 | Z58: 0.2888020034 | AA58: 0.2880193946 | AB58: 0.2872240157 | AC58: 0.286415981 | AD58: 0.2855954221 | AE58: 0.2847624879 | AF58: 0.2839173453 | AG58: 0.283060179 | AH58: 0.2801221952 | AI58: 0.2772780682 | AJ58: 0.2745247991 | AK58: 0.2718594853
B59: Revenues | C59: 0.3291294134 | D59: 0.3281912454 | E59: 0.3272900763 | F59: 0.3340718762 | G59: 0.3384075572 | H59: 0.3376041773 | I59: 0.3357839443 | J59: 0.3342574331 | K59: 0.3329449014 | L59: 0.3317797396 | M59: 0.3307481704 | N59: 0.3304846992 | O59: 0.3302195781 | P59: 0.3299529326 | Q59: 0.3296848911 | R59: 0.329415585 | S59: 0.3291451482 | T59: 0.328873717 | U59: 0.3286014296 | V59: 0.3283284261 | W59: 0.3280548481 | X59: 0.3279229606 | Y59: 0.3277887656 | Z59: 0.3276522746 | AA59: 0.327513502 | AB59: 0.3273724649 | AC59: 0.3272291837 | AD59: 0.3270836818 | AE59: 0.3269359854 | AF59: 0.3267861242 | AG59: 0.326634131 | AH59: 0.326113166 | AI59: 0.3256088437 | AJ59: 0.3251206324 | AK59: 0.3246480174
C61: 2010 | D61: =C61+1 -> 2011 | E61: =D61+1 -> 2012 | F61: 2013 | G61: 2014 | H61: 2015 | I61: 2016 | J61: 2017 | K61: 2018 | L61: 2019 | M61: 2020 | N61: 2021 | O61: 2022 | P61: 2023 | Q61: 2024 | R61: 2025 | S61: 2026 | T61: 2027 | U61: 2028 | V61: 2029 | W61: 2030 | X61: 2031 | Y61: 2032 | Z61: 2033 | AA61: 2034 | AB61: 2035 | AC61: 2036 | AD61: 2037 | AE61: 2038 | AF61: =AE61+1 -> 2039 | AG61: 2040 | AH61: 2041 | AI61: 2042 | AJ61: 2043 | AK61: 2044
B62: Разходи за Е&П | C62: =Разходи!#REF!/#REF! ->  | D62: =Разходи!#REF!/#REF! ->  | E62: =Разходи!#REF!/#REF! ->  | F62: =Разходи!#REF!/#REF! ->  | G62: =Разходи!#REF!/#REF! ->  | H62: =Разходи!#REF!/#REF! ->  | I62: =Разходи!#REF!/#REF! ->  | J62: =Разходи!#REF!/#REF! ->  | K62: =Разходи!#REF!/#REF! ->  | L62: =Разходи!#REF!/#REF! ->  | M62: =Разходи!#REF!/#REF! ->  | N62: =Разходи!#REF!/#REF! ->  | O62: =Разходи!#REF!/#REF! ->  | P62: =Разходи!#REF!/#REF! ->  | Q62: =Разходи!#REF!/#REF! ->  | R62: =Разходи!#REF!/#REF! ->  | S62: =Разходи!#REF!/#REF! ->  | T62: =Разходи!#REF!/#REF! ->  | U62: =Разходи!#REF!/#REF! ->  | V62: =Разходи!#REF!/#REF! ->  | W62: =Разходи!#REF!/#REF! ->  | X62: =Разходи!#REF!/#REF! ->  | Y62: =Разходи!#REF!/#REF! ->  | Z62: =Разходи!#REF!/#REF! ->  | AA62: =Разходи!#REF!/#REF! ->  | AB62: =Разходи!#REF!/#REF! ->  | AC62: =Разходи!#REF!/#REF! ->  | AD62: =Разходи!#REF!/#REF! ->  | AE62: =Разходи!#REF!/#REF! ->  | AF62: =Разходи!#REF!/#REF! ->  | AG62: =Разходи!#REF!/#REF! ->  | AH62: =Разходи!#REF!/#REF! ->  | AI62: =Разходи!#REF!/#REF! ->  | AJ62: =Разходи!#REF!/#REF! ->  | AK62: =Разходи!#REF!/#REF! -> 
B63: Приходи от дейността | C63: =#REF!/#REF! ->  | D63: =#REF!/#REF! ->  | E63: =#REF!/#REF! ->  | F63: =#REF!/#REF! ->  | G63: =#REF!/#REF! ->  | H63: =#REF!/#REF! ->  | I63: =#REF!/#REF! ->  | J63: =#REF!/#REF! ->  | K63: =#REF!/#REF! ->  | L63: =#REF!/#REF! ->  | M63: =#REF!/#REF! ->  | N63: =#REF!/#REF! ->  | O63: =#REF!/#REF! ->  | P63: =#REF!/#REF! ->  | Q63: =#REF!/#REF! ->  | R63: =#REF!/#REF! ->  | S63: =#REF!/#REF! ->  | T63: =#REF!/#REF! ->  | U63: =#REF!/#REF! ->  | V63: =#REF!/#REF! ->  | W63: =#REF!/#REF! ->  | X63: =#REF!/#REF! ->  | Y63: =#REF!/#REF! ->  | Z63: =#REF!/#REF! ->  | AA63: =#REF!/#REF! ->  | AB63: =#REF!/#REF! ->  | AC63: =#REF!/#REF! ->  | AD63: =#REF!/#REF! ->  | AE63: =#REF!/#REF! ->  | AF63: =#REF!/#REF! ->  | AG63: =#REF!/#REF! ->  | AH63: =#REF!/#REF! ->  | AI63: =#REF!/#REF! ->  | AJ63: =#REF!/#REF! ->  | AK63: =#REF!/#REF! -> 
C65: 2013 | D65: =C65+1 -> 2014 | E65: =D65+1 -> 2015 | F65: 2016 | G65: 2017 | H65: 2018 | I65: 2019 | J65: 2020 | K65: 2021 | L65: 2022 | M65: 2023 | N65: 2024 | O65: 2025 | P65: 2026 | Q65: 2027 | R65: 2028 | S65: 2029 | T65: 2030 | U65: 2031 | V65: 2032 | W65: 2033 | X65: 2034 | Y65: 2035 | Z65: 2036 | AA65: 2037 | AB65: 2038 | AC65: 2039 | AD65: 2040 | AE65: 2041 | AF65: 2042
A66: Net earnings after taxes | B66: финансов резултат след облагане | C66: =FinStat!I59 ->  | D66: =FinStat!J59 ->  | E66: =FinStat!K59 ->  | F66: =FinStat!L59 ->  | G66: =FinStat!M59 ->  | H66: =FinStat!N59 ->  | I66: =FinStat!O59 ->  | J66: =FinStat!P59 ->  | K66: =FinStat!Q59 ->  | L66: =FinStat!R59 ->  | M66: =FinStat!S59 ->  | N66: =FinStat!T59 ->  | O66: =FinStat!U59 ->  | P66: =FinStat!V59 ->  | Q66: =FinStat!W59 ->  | R66: =FinStat!X59 ->  | S66: =FinStat!Y59 ->  | T66: =FinStat!Z59 ->  | U66: =FinStat!AA59 ->  | V66: =FinStat!AB59 ->  | W66: =FinStat!AC59 ->  | X66: =FinStat!AD59 ->  | Y66: =FinStat!AE59 ->  | Z66: =FinStat!AF59 ->  | AA66: =FinStat!AG59 ->  | AB66: =FinStat!AH59 ->  | AC66: =FinStat!AI59 ->  | AD66: =FinStat!AJ59 ->  | AE66: =FinStat!AK59 ->  | AF66: =FinStat!AL59 -> 
A67: Operating cash-flow | B67: Оперативен паричен поток | C67: =FinStat!I48+FinStat!I49+FinStat!I52 ->  | D67: =FinStat!J48+FinStat!J49+FinStat!J52 ->  | E67: =FinStat!K48+FinStat!K49+FinStat!K52 ->  | F67: =FinStat!L48+FinStat!L49+FinStat!L52 ->  | G67: =FinStat!M48+FinStat!M49+FinStat!M52 ->  | H67: =FinStat!N48+FinStat!N49+FinStat!N52 ->  | I67: =FinStat!O48+FinStat!O49+FinStat!O52 ->  | J67: =FinStat!P48+FinStat!P49+FinStat!P52 ->  | K67: =FinStat!Q48+FinStat!Q49+FinStat!Q52 ->  | L67: =FinStat!R48+FinStat!R49+FinStat!R52 ->  | M67: =FinStat!S48+FinStat!S49+FinStat!S52 ->  | N67: =FinStat!T48+FinStat!T49+FinStat!T52 ->  | O67: =FinStat!U48+FinStat!U49+FinStat!U52 ->  | P67: =FinStat!V48+FinStat!V49+FinStat!V52 ->  | Q67: =FinStat!W48+FinStat!W49+FinStat!W52 ->  | R67: =FinStat!X48+FinStat!X49+FinStat!X52 ->  | S67: =FinStat!Y48+FinStat!Y49+FinStat!Y52 ->  | T67: =FinStat!Z48+FinStat!Z49+FinStat!Z52 ->  | U67: =FinStat!AA48+FinStat!AA49+FinStat!AA52 ->  | V67: =FinStat!AB48+FinStat!AB49+FinStat!AB52 ->  | W67: =FinStat!AC48+FinStat!AC49+FinStat!AC52 ->  | X67: =FinStat!AD48+FinStat!AD49+FinStat!AD52 ->  | Y67: =FinStat!AE48+FinStat!AE49+FinStat!AE52 ->  | Z67: =FinStat!AF48+FinStat!AF49+FinStat!AF52 ->  | AA67: =FinStat!AG48+FinStat!AG49+FinStat!AG52 ->  | AB67: =FinStat!AH48+FinStat!AH49+FinStat!AH52 ->  | AC67: =FinStat!AI48+FinStat!AI49+FinStat!AI52 ->  | AD67: =FinStat!AJ48+FinStat!AJ49+FinStat!AJ52 ->  | AE67: =FinStat!AK48+FinStat!AK49+FinStat!AK52 ->  | AF67: =FinStat!AL48+FinStat!AL49+FinStat!AL52 -> 
C69: 2012 | D69: =C69+1 -> 2013 | E69: =D69+1 -> 2014 | F69: 2015 | G69: 2016 | H69: 2017 | I69: 2018 | J69: 2019 | K69: 2020 | L69: 2021 | M69: 2022 | N69: 2023 | O69: 2024 | P69: 2025 | Q69: 2026 | R69: 2027 | S69: 2028 | T69: 2029 | U69: 2030 | V69: 2031 | W69: 2032 | X69: 2033 | Y69: 2034 | Z69: 2035 | AA69: 2036 | AB69: 2037 | AC69: 2038 | AD69: 2039 | AE69: 2040 | AF69: 2041 | AG69: 2042
A70: revenues, m2 | B70: Приходи на м2 | C70: =#REF! ->  | D70: =#REF! ->  | E70: =#REF! ->  | F70: =#REF! ->  | G70: =#REF! ->  | H70: =#REF! ->  | I70: =#REF! ->  | J70: =#REF! ->  | K70: =#REF! ->  | L70: =#REF! ->  | M70: =#REF! ->  | N70: =#REF! ->  | O70: =#REF! ->  | P70: =#REF! ->  | Q70: =#REF! ->  | R70: =#REF! ->  | S70: =#REF! ->  | T70: =#REF! ->  | U70: =#REF! ->  | V70: =#REF! ->  | W70: =#REF! ->  | X70: =#REF! ->  | Y70: =#REF! ->  | Z70: =#REF! ->  | AA70: =#REF! ->  | AB70: =#REF! ->  | AC70: =#REF! ->  | AD70: =#REF! ->  | AE70: =#REF! ->  | AF70: =#REF! ->  | AG70: =#REF! -> 
A71: expenses, m2 | B71: Разходи на м2 | C71: =Разходи!#REF! ->  | D71: =Разходи!#REF! ->  | E71: =Разходи!#REF! ->  | F71: =Разходи!#REF! ->  | G71: =Разходи!#REF! ->  | H71: =Разходи!#REF! ->  | I71: =Разходи!#REF! ->  | J71: =Разходи!#REF! ->  | K71: =Разходи!#REF! ->  | L71: =Разходи!#REF! ->  | M71: =Разходи!#REF! ->  | N71: =Разходи!#REF! ->  | O71: =Разходи!#REF! ->  | P71: =Разходи!#REF! ->  | Q71: =Разходи!#REF! ->  | R71: =Разходи!#REF! ->  | S71: =Разходи!#REF! ->  | T71: =Разходи!#REF! ->  | U71: =Разходи!#REF! ->  | V71: =Разходи!#REF! ->  | W71: =Разходи!#REF! ->  | X71: =Разходи!#REF! ->  | Y71: =Разходи!#REF! ->  | Z71: =Разходи!#REF! ->  | AA71: =Разходи!#REF! ->  | AB71: =Разходи!#REF! ->  | AC71: =Разходи!#REF! ->  | AD71: =Разходи!#REF! ->  | AE71: =Разходи!#REF! ->  | AF71: =Разходи!#REF! ->  | AG71: =Разходи!#REF! -> 
B97: Участък | C97: 2013 | D97: 2020 | E97: 2030 | F97: 2040
B98: Лот 1 | C98: =#REF! ->  | D98: =#REF! ->  | E98: =#REF! ->  | F98: =#REF! -> 
B99: Лот 2 | C99: =#REF! ->  | D99: =#REF! ->  | E99: =#REF! ->  | F99: =#REF! -> 
C101: Traffic | D101: Growth
B102: 2015 | C102: 1799278.47
B103: =B102+1 -> 2016 | C103: 3569665.614 | D103: =(C103-C102)/C102 -> 0.9839428266
B104: =B103+1 -> 2017 | C104: 5262009.736 | D104: =(C104-C103)/C103 -> 0.4740903788
B105: 2018 | C105: 6899772.815 | D105: 0.3112428825
B106: 2019 | C106: 8521560.258 | D106: 0.2350493976
B107: 2020 | C107: 10111850.5 | D107: 0.1866196088
B108: 2021 | C108: 10356547.84 | D108: 0.02419906665
B109: 2022 | C109: 10609320.2 | D109: 0.02440700902
B110: 2023 | C110: 10870434.05 | D110: 0.02461174132
B111: 2024 | C111: 11140164.65 | D111: 0.02481323194
B112: 2025 | C112: 11418796.36 | D112: 0.02501145359
B113: 2026 | C113: 11706622.92 | D113: 0.02520638328
B114: 2027 | C114: 12003947.75 | D114: 0.02539800215
B115: 2028 | C115: 12311084.3 | D115: 0.02558629543
B116: 2029 | C116: 12628356.36 | D116: 0.02577125231
B117: 2030 | C117: 12956098.4 | D117: 0.02595286578
B118: 2031 | C118: 13055594.41 | D118: 0.007679472802
B119: 2032 | C119: 13158373.78 | D119: 0.007872439221
B120: 2033 | C120: 13264544.87 | D120: 0.008068709292
B121: =B120+1 -> 2034 | C121: 13374219.61 | D121: 0.008268262493
B122: 2035 | C122: 13487513.62 | D122: 0.008471074091
B123: 2036 | C123: 13604546.32 | D123: 0.008677115051
B124: 2037 | C124: 13725441.11 | D124: 0.00888635195
B125: 2038 | C125: 13850325.42 | D125: 0.009098746897
B126: 2039 | C126: 13979330.92 | D126: 0.009314257473
B127: =B126+1 -> 2040 | C127: 14112593.6 | D127: 0.009532836674
B128: 2041 | C128: 14578310.19 | D128: 0.03300007086
B129: 2042 | C129: 15059394.39 | D129: 0.03299999774
B130: =B129+1 -> 2043 | C130: 15556354.37 | D130: 0.03299999781
B131: 2044 | C131: 16069714.04 | D131: 0.03299999788
B135: 2012 | C135: 2013 | D135: 2014
B136: 1.25 | C136: 0 | D136: 0 | E136: Проектиране и планиране
B137: 4 | C137: 0 | D137: 0 | E137: Закупуване на земя
B138: 25 | C138: 30 | D138: 29.5 | E138: Строително-монтажни работи
B139: 11.5 | C139: 11.5 | D139: 11 | E139: Ел. Мех. част, в т.ч. оборудване
B140: 2.54 | C140: 2.54 | D140: 2.545 | E140: Непредвидени разходи
B141: 0.01 | C141: 0.02 | D141: 0.02 | E141: Техническа помощ
B142: 0.02 | C142: 0.005 | D142: 0.025 | E142: Публичност и информация
B143: 0.8 | C143: 0.8 | D143: 0.9 | E143: Строителен надзор и супервизия
E146: Designing and planning
E147: Land acquisition
E148: Construction and installation works
E149: E&M part, incl. track, equipment delivery
E150: Contingencies
E151: Technical assistance
E152: Publicity and information
E153: Construction control and supervision
E154: Rolling stock
C211: =(30*6+90*20)/120 -> 16.5
A212: indoor | B212: закрити площи | C212: =#REF! -> 
A213: outdoor | B213: открити площи | C213: =#REF! -> 

Sheet SMR_SZ (hidden)
A1: № по ред | B1: НАИМЕНОВАНИЕ НА ЦЕНТРОВЕТЕ ЗА РАБОТА | C1: СТОЙНОСТ в лева без ДДС
C2: (в лева)
A3: 1 | B3: 2 | C3: 3 | D3: =C4-D4 -> 62865.45
A4: ЦР 1 | B4: Подготовка на строителството; Осигуряване на пожарна безопасност; Изпълнение на мерки за публичност съгласно изискванията на ОПТТИ и ЗУТ | C4: 180000 | D4: =[8]HS!$F$15+[8]FS!$F$24+[9]HS!$F$15+[9]PB!$F$13+[10]HS!$F$15+[10]FS!$F$15 -> 117134.55
A5: ЦР 2 | B5: Проектиране - изготвяне на Технически проект, работни чертежи и детайли преди и в процеса на изпълнение на строителството | C5: 320000
B6: Авторски надзор | C6: 100000
B7: Екзекутивни чертежи | C7: 10000
A8: ЦР 3 | B8: Изпълнение на архитектурни работи | C8: =[11]ПЗ!C8+'[11]Пост 1'!C8+'[11]Пост 2'!C8+[11]ПЗ!C16+'[11]Пост 1'!C16+'[11]Пост 2'!C16-C17-C16 -> 4978545.775
A9: ЦР 4 | B9: Изпълнение на конструктивни работи | C9: =[11]ПЗ!C9+'[11]Пост 1'!C9+'[11]Пост 2'!C9 -> 2007229.2
A10: ЦР 5 | B10: Изпълнение на работи по ВиК | C10: =[11]ПЗ!C12+'[11]Пост 1'!C12+'[11]Пост 2'!C12 -> 248274.7 | D10: =[8]rekapitulacia!$D$21+[9]rekapitulacia!$D$21+[10]rekapitulacia!$D$21 -> 9312623.729
A11: ЦР 6 | B11: Изпълнение на Електрически силнотокови инсталации и системи | C11: =[11]ПЗ!C10+'[11]Пост 1'!C10+'[11]Пост 2'!C10-C12 -> 674138.5 | D11: =SUM(C8:C17)+C4-32865 -> 9342763.925
A12: ЦР 7 | B12: Изпълнение на Електрически слаботокови инсталации и системи | C12: =[8]EL!$F$199+600 -> 161329.52
A13: ЦР 8 | B13: Изпълнение на работи по ОВК | C13: =[11]ПЗ!C11+'[11]Пост 1'!C11+'[11]Пост 2'!C11 -> 661932.59
A14: ЦР 9 | B14: Изпълнение на работи по Вертикална планировка | C14: =[11]ПЗ!C13+'[11]Пост 1'!C13+'[11]Пост 2'!C13 -> 164731.2402
A15: ЦР 10 | B15: Изпълнение на работи по Паркоустройство и благоустройство | C15: =[11]ПЗ!C15+'[11]Пост 1'!C15+'[11]Пост 2'!C15 -> 31000
A16: ЦР 11 | B16: Машини и съоръжения | C16: =[8]AR!$F$244 -> 243520
A17: ЦР 12 | B17: Изпълнение на работи по Визуална комуникация | C17: =[8]AR!$F$234+450 -> 24927.4
A18: ЦР 13 | B18: Резервни части, материали, консумативи, специални инструменти и оборудване | C18: 100000
A19: ЦР 14 | B19: Тестване, проби, въвеждане в експлоатация | C19: 50000
B21: Обща сума | C21: =SUM(C4:C19) -> 9955628.925 | D21: 10750000
B23: 10% непредвидени | C23: =C21*0.1 -> 995562.8925
B25: Обща стойност с непредвидени | C25: =C21*1.1 -> 10951191.82
B27: ДДС | C27: =C25*0.2 -> 2190238.364
B30: Стр.19 от ОЗ пише, че се демонтират всички подови покрития вкл. в подлеза, но в КСС за подлеза към площада е дадено почистване с песъкоструйка на настилка и стени
B31: Липсват тактилни ивици (плочки) - за внимание и информация. В чертежите са посочени достъпните маршрути, но в КСС и ОЗ не е записано, че те трябва да бъдат маркирани с тактилни ивици (плочки) - за внимание и информация
B33: Липсва демонтаж на асансьори
B34: Липсва обзавеждане на обществените пространства

Sheet SMR_NZ (hidden)
A2: ПРОГНОЗНА ПЛАН-СМЕТКА ЗА ОБЕКТ РЕКОНСТРУКЦИЯ НА ГАРОВ КОМПЛЕКС НОВА ЗАГОРА
A5: № | B5: ОПИСАНИЕ | C5: СТОЙНОСТ [лв.] | E5: От настоящето КСС | F5: Допълни-телни | G5: от KCC V3 - железен път | H5: От Временно строителство
A6: 1 | B6: Подготовка на строителството; Осигуряване на пожарна безопасност; Изпълнение на мерки за публичност съгласно изискванията на ОПТТИ и ЗУТ | C6: 25000 | E6: - | F6: 25000 | G6: - | H6: -
A7: 2 | B7: Проектиране - изготвяне на Технически проект, работни чертежи и детайли в процеса на изпълнение на строителството | C7: 60000 | E7: - | F7: 60000 | G7: - | H7: -
B8: Авторски надзор | C8: 10000 | E8: - | F8: 10000 | G8: - | H8: -
B9: Изготвяне на пълен комплект екзекутиви и изготвяне на проект за изменение на Кадастрална карта и кадастрални регистри | C9: 3000 | E9: - | F9: 3000 | G9: - | H9: -
A10: 3 | B10: Временно строителство | C10: =[12]Рекапитулация!$C$14+'[13]PBZ-PR'!F14 -> 233157.212 | E10: =[13]ОКС!G18 -> 12360 | F10: - | G10: - | H10: =[12]Рекапитулация!$C$14 -> 220797.212
A11: 4 | B11: Архитектурни работи | C11: ='[13]ARH-PR'!F96+20000 -> 483752.8543 | E11: =[13]ОКС!G9 -> 463752.8543 | F11: 20000 | G11: - | H11: - | I11: 20 000 лв. за ПБЗ от настоящето КСС
A12: 5 | B12: Конструктивни работи | C12: ='[13]Konstr-PR'!F41+26000 -> 282395.3808 | E12: =[13]ОКС!G10 -> 256395.3808 | F12: 26000 | I12: 26 000 лв. за ПБЗ от настоящето КСС
A13: 6 | B13: Водоснабдяване и канализация | C13: ='[13]ВиК-Приемно'!F131 -> 133326.43 | E13: =[13]ОКС!G13 -> 133326.43 | F13: - | G13: - | H13: -
A14: 7 | B14: Електрически силнотокови инсталации и системи | C14: ='[13]EL-PR-осв.силова'!F92+[14]Оптимизирана!$H$237 -> 235502.9413 | E14: =[13]ОКС!G11 -> 191027.4413 | F14: - | G14: =[14]Оптимизирана!$F$237 -> 44475.5 | H14: -
A15: 8 | B15: Електрически слаботокови инсталации и системи | C15: ='[13]ЕЛ-ПР-Контрол'!F20+'[13]ЕЛ-ПР-Видеонабл'!F23+'[13]ЕЛ-ПР-ПИС'!F38+'[13]ЕЛ-ПР-СКС'!F24 -> 80862.484 | E15: =[13]ОКС!G12 -> 80862.484 | F15: - | G15: - | H15: -
A16: 9 | B16: Отопление, вентилация и климатизация | C16: ='[13]ОВК-Приемно'!F52-C17 -> 10022.5 | E16: =[13]ОКС!G14-SMR_NZ!C17 -> 10022.5 | F16: - | G16: - | H16: -
A17: 10 | B17: Машини и съоръжения за ОВК | C17: ='[13]ОВК-Приемно'!C24 -> 32697.6 | E17: ='[13]ОВК-Приемно'!C24 -> 32697.6 | F17: - | G17: - | H17: -
A18: 11 | B18: Вертикална планировка | C18: ='[13]GD-Vert.plan.-PR'!F40 -> 114972.88 | E18: =[13]ОКС!C15 -> 114972.88 | F18: - | G18: - | H18: -
A19: 12 | B19: Перони | C19: =[14]Оптимизирана!$H$92+'[13]GD-Vert.plan.-PR'!F65 -> 386421.1475 | E19: =[13]ОКС!F15 -> 97078.64 | F19: - | G19: =[14]Оптимизирана!$F$92 -> 289342.5075 | H19: -
A20: 13 | B20: Железен път | C20: =[14]Оптимизирана!$H$177 -> 277584.098 | E20: - | F20: - | G20: =[14]Оптимизирана!$F$177 -> 277584.098 | H20: -
A21: 14 | B21: Сигнализация и телекомуникации | C21: =[14]Оптимизирана!$H$208 -> 22921.9925 | E21: - | F21: - | G21: =[14]Оптимизирана!$F$209 -> 22921.9925 | H21: -
A22: 15 | B22: Контактна мрежа | C22: =[14]Оптимизирана!$H$252 -> 17810.68 | E22: - | F22: - | G22: =[14]Оптимизирана!$F$252 -> 17810.68 | H22: -
A23: 16 | B23: Паркоустройство и благоустройство | C23: ='[13]ПР-Паркоустр.'!F17 -> 10585 | E23: =[13]ОКС!G16 -> 10585 | F23: - | G23: - | H23: -
A24: 17 | B24: Разрушаване на сгради | C24: 42000 | E24: =[13]ОКС!G19 -> 42000 | F24: - | G24: - | H24: -
A25: 18 | B25: Резервни части, материали, консумативи, специални инструменти и оборудване за Срока за съобщаване на дефекти | C25: 10000 | E25: - | F25: 10000 | G25: - | H25: -
A26: 19 | B26: Тестване, проби, въвеждане в експлоатация; Такси | C26: 5000 | E26: - | F26: 5000 | G26: - | H26: -
B28: ОБЩО БЕЗ ДДС | C28: =SUM(C6:C27) -> 2477013.2 | E28: =SUM(E6:E26) -> 1445081.21 | F28: =SUM(F6:F26) -> 159000 | G28: =SUM(G6:G26) -> 652134.778 | H28: =SUM(H6:H26) -> 220797.212
B29: НЕПРЕДВИДЕНИ РАЗХОДИ 10% | C29: =C28*0.1 -> 247701.32
B30: ВСИЧКО БЕЗ ДДС | C30: =C28*1.1 -> 2724714.52
B32: ДДС | C32: =C30*0.2 -> 544942.9041
B33: Стойност с ДДС | C33: =C30*1.2 -> 3269657.425
B35: ЗАБЕЛЕЖКИ:
B36: Към Силнотокови инст. са събрани ел.части от ПЗ + ЖП
B37: Към Перони са събрани от първи до четвърти перон
B38: Машини и съоръжения вкл. МиС от част ОВК

Sheet RAZ_SZ (hidden)
A1: О Т Ч Е Т
A2: на разходите за ТЕКУЩО ПОДДЪРЖАНЕ на гара Стара Загора по икономически елементи и поделения на ДП НКЖИ
A4: за периода 2013-2017 г.
L5: лева
A6: ОТЧЕТНА ГОДИНА | B6: ПАРАМЕТЪР | C6: Всичко разходи | D6: в това число:
D7: материали | E7: гориво за др.нужди | F7: ел.ен. за др.нужди | G7: топло- енергия | H7: външни услуги | I7: аморти- зации | J7: заплати | K7: соц. осиг. | L7: други разходи
A9: 1 | B9: 2 | C9: 3 | D9: 4 | E9: 5 | F9: 6 | G9: 7 | H9: 8 | I9: 9 | J9: 10 | K9: 11 | L9: 12
A10: 2013 г. | B10: Общо разходи за текущо поддържане в т.ч.: | C10: =SUM(D10:L10) -> 1836053 | D10: =SUM(D11:D14) -> 46315 | E10: 2228 | F10: 50181 | G10: 10383 | H10: 52372 | I10: 767832 | J10: 734037 | K10: 160629 | L10: 12076
B11: Управление движението на влаковете и капацитета | C11: 599000 | D11: 2991 | E11: 0 | F11: 20385 | G11: 10383 | H11: 49926 | I11: 64841 | J11: 371233 | K11: 74674 | L11: 4567
B12: Железен път и съоръжения | C12: 724546 | D12: 20505 | E12: 0 | F12: 0 | G12: 0 | H12: 0 | I12: 255282 | J12: 362804 | K12: 85955 | L12: 0
B13: Сигнализация и телекомуникации | C13: 363349 | D13: 17461 | E13: 37 | F13: 29796 | H13: 2175 | I13: 306371 | L13: 7509
B14: Електроразпределение | C14: 149158 | D14: 5358 | E14: 2191 | H14: 271 | I14: 141338
A15: 2014 г. | B15: Общо разходи за текущо поддържане в т.ч.: | C15: 1771944 | D15: =SUM(D16:D19) -> 38320 | E15: 435 | F15: 40845 | G15: 16743 | H15: 59844 | I15: 767201 | J15: 672687 | K15: 152161 | L15: 23708
B16: Управление движението на влаковете и капацитета | C16: 614268 | D16: 7507 | E16: 0 | F16: 16547 | G16: 16743 | H16: 57519 | I16: 61797 | J16: 365447 | K16: 77144 | L16: 11564
B17: Железен път и съоръжения | C17: 645370 | D17: 16318 | E17: 0 | F17: 0 | G17: 0 | H17: 0 | I17: 246574 | J17: 307240 | K17: 75017 | L17: 221
B18: Сигнализация и телекомуникации | C18: 364192 | D18: 8628 | E18: 30 | F18: 24298 | H18: 2185 | I18: 317128 | K18: 0 | L18: 11923
B19: Електроразпределение | C19: 148114 | D19: 5867 | E19: 405 | H19: 140 | I19: 141702
A20: 2015 г. | B20: Общо разходи за текущо поддържане в т.ч.: | C20: 1935320 | D20: =SUM(D21:D24) -> 27625 | E20: 3885 | F20: 48718 | G20: 19404 | H20: 61634 | I20: 745873 | J20: 817798 | K20: 201381 | L20: 9002
B21: Управление движението на влаковете и капацитета | C21: 711514 | D21: 3092 | E21: 0 | F21: 21293 | G21: 19404 | H21: 59636 | I21: 61384 | J21: 436971 | K21: 103006 | L21: 6728
B22: Железен път и съоръжения | C22: 729102 | D22: 7555 | E22: 0 | F22: 0 | G22: 0 | H22: 0 | I22: 241863 | J22: 380827 | K22: 98375 | L22: 482
B23: Сигнализация и телекомуникации | C23: 359270 | D23: 13268 | E23: 236 | F23: 26898 | H23: 840 | I23: 316236 | K23: 0 | L23: 1792
B24: Електроразпределение | C24: 135434 | D24: 3710 | E24: 3649 | F24: 527 | H24: 1158 | I24: 126390
A25: 2016 г. | B25: Общо разходи за текущо поддържане в т.ч.: | C25: 1922529 | D25: =SUM(D26:D29) -> 24079 | E25: 1364 | F25: 45438 | G25: 15430 | H25: 69868 | I25: 736101 | J25: 837958 | K25: 180725 | L25: 11566
B26: Управление движението на влаковете и капацитета | C26: 613278 | D26: 2351 | E26: 0 | F26: 16000 | G26: 15430 | H26: 60111 | I26: 54430 | J26: 376393 | K26: 84636 | L26: 3927
B27: Железен път и съоръжения | C27: 804339 | D27: 4626 | E27: 0 | F27: 0 | G27: 0 | H27: 0 | I27: 241907 | J27: 461565 | K27: 96089 | L27: 152
B28: Сигнализация и телекомуникации | C28: 368170 | D28: 13635 | E28: 80 | F28: 27015 | H28: 3571 | I28: 316382 | J28: 0 | K28: 0 | L28: 7487
B29: Електроразпределение | C29: 136742 | D29: 3467 | E29: 1284 | F29: 2423 | H29: 6186 | I29: 123382
A30: 2017 г. | B30: Общо разходи за текущо поддържане в т.ч.: | C30: 2990246 | D30: =SUM(D31:D34) -> 18494 | E30: 1122 | F30: 44056 | G30: 17683 | H30: 76725 | I30: 1717439 | J30: 905275 | K30: 204907 | L30: 4545
B31: Управление движението на влаковете и капацитета | C31: 716660 | D31: 796 | E31: 0 | F31: 15684 | G31: 17683 | H31: 70916 | I31: 85330 | J31: 428124 | K31: 97185 | L31: 942
B32: Железен път и съоръжения | C32: 831464 | D32: 4377 | E32: 0 | F32: 0 | G32: 0 | H32: 0 | I32: 241901 | J32: 477151 | K32: 107722 | L32: 313
B33: Сигнализация и телекомуникации | C33: 538717 | D33: 11781 | E33: 196 | F33: 27384 | G33: 0 | H33: 4917 | I33: 491149 | J33: 0 | K33: 0 | L33: 3290
B34: Електроразпределение | C34: 903405 | D34: 1540 | E34: 926 | F34: 988 | H34: 892 | I34: 899059
A36: Забележка: 1. Разходите за текущо поддържане несъдържат разходите за: издръжка и престой на ТПМ в пътните колони, ремонт, спомагателна дейност, общопроизводствени, административно управленски, социални, специален отдел и провизии.

Sheet RAZ_NZ (hidden)
A1: О Т Ч Е Т
A2: на разходите за ТЕКУЩО ПОДДЪРЖАНЕ на гара Нова Загора по икономически елементи и поделения на ДП НКЖИ
A4: за периода 2013-2017 г.
L5: лева
A6: ОТЧЕТНА ГОДИНА | B6: ПАРАМЕТЪР | C6: Всичко разходи | D6: в това число:
D7: материали | E7: гориво за др.нужди | F7: ел.ен. за др.нужди | G7: топло- енергия | H7: външни услуги | I7: аморти- зации | J7: заплати | K7: соц. осиг. | L7: други разходи
A9: 1 | B9: 2 | C9: 3 | D9: 4 | E9: 5 | F9: 6 | G9: 7 | H9: 8 | I9: 9 | J9: 10 | K9: 11 | L9: 12
A10: 2013 г. | B10: Общо разходи за текущо поддържане в т.ч.: | C10: =SUM(D10:L10) -> 900426 | D10: =SUM(D11:D14) -> 35443 | E10: 1962 | F10: 17766 | G10: 0 | H10: 13676 | I10: 413936 | J10: 339528 | K10: 75770 | L10: 2345
B11: Управление движението на влаковете и капацитета | C11: 211558 | D11: 1799 | E11: 0 | F11: 12354 | G11: 0 | H11: 9483 | I11: 7802 | J11: 147487 | K11: 30759 | L11: 1874
B12: Железен път и съоръжения | C12: 360794 | D12: 27440 | E12: 0 | F12: 0 | G12: 0 | H12: 0 | I12: 96302 | J12: 192041 | K12: 45011 | L12: 0
B13: Сигнализация и телекомуникации | C13: 277405 | D13: 3355 | E13: 15 | F13: 5412 | H13: 463 | I13: 267689 | L13: 471
B14: Електроразпределение | C14: 50669 | D14: 2849 | E14: 1947 | H14: 3730 | I14: 42143
A15: 2014 г. | B15: Общо разходи за текущо поддържане в т.ч.: | C15: 888924 | D15: =SUM(D16:D19) -> 19298 | E15: 886 | F15: 12746 | G15: 0 | H15: 11310 | I15: 412299 | J15: 342545 | K15: 81790 | L15: 8050
B16: Управление движението на влаковете и капацитета | C16: 227575 | D16: 1057 | E16: 0 | F16: 8739 | G16: 0 | H16: 10899 | I16: 7791 | J16: 156096 | K16: 36362 | L16: 6631
B17: Железен път и съоръжения | C17: 335836 | D17: 8319 | E17: 0 | F17: 0 | G17: 0 | H17: 0 | I17: 95467 | J17: 186449 | K17: 45428 | L17: 173
B18: Сигнализация и телекомуникации | C18: 276818 | D18: 3500 | E18: 55 | F18: 4007 | H18: 321 | I18: 267689 | K18: 0 | L18: 1246
B19: Електроразпределение | C19: 48695 | D19: 6422 | E19: 831 | H19: 90 | I19: 41352
A20: 2015 г. | B20: Общо разходи за текущо поддържане в т.ч.: | C20: 830824 | D20: =SUM(D21:D24) -> 15822 | E20: 2085 | F20: 21849 | G20: 0 | H20: 12226 | I20: 401865 | J20: 299355 | K20: 75275 | L20: 2347
B21: Управление движението на влаковете и капацитета | C21: 231326 | D21: 1062 | E21: 0 | F21: 10086 | G21: 0 | H21: 11569 | I21: 7763 | J21: 160150 | K21: 39179 | L21: 1517
B22: Железен път и съоръжения | C22: 283936 | D22: 12623 | E22: 0 | F22: 0 | G22: 0 | H22: 0 | I22: 95234 | J22: 139205 | K22: 36096 | L22: 778
B23: Сигнализация и телекомуникации | C23: 280357 | D23: 1718 | E23: 17 | F23: 10586 | H23: 295 | I23: 267689 | K23: 0 | L23: 52
B24: Електроразпределение | C24: 35205 | D24: 419 | E24: 2068 | F24: 1177 | H24: 362 | I24: 31179
A25: 2016 г. | B25: Общо разходи за текущо поддържане в т.ч.: | C25: 806604 | D25: =SUM(D26:D29) -> 8334 | E25: 2063 | F25: 25094 | G25: 0 | H25: 12151 | I25: 398838 | J25: 289482 | K25: 67429 | L25: 3213
B26: Управление движението на влаковете и капацитета | C26: 235436 | D26: 489 | E26: 0 | F26: 8054 | G26: 0 | H26: 10891 | I26: 7726 | J26: 167969 | K26: 38462 | L26: 1845
B27: Железен път и съоръжения | C27: 251463 | D27: 4811 | E27: 0 | F27: 0 | G27: 0 | H27: 0 | I27: 95233 | J27: 121513 | K27: 28967 | L27: 939
B28: Сигнализация и телекомуникации | C28: 283153 | D28: 1238 | E28: 0 | F28: 13130 | H28: 668 | I28: 267688 | K28: 0 | L28: 429
B29: Електроразпределение | C29: 36552 | D29: 1796 | E29: 2063 | F29: 3910 | H29: 592 | I29: 28191
A30: 2017 г. | B30: Общо разходи за текущо поддържане в т.ч.: | C30: 1497550 | D30: =SUM(D31:D34) -> 16916 | E30: 2702 | F30: 25753 | G30: 0 | H30: 13943 | I30: 1055733 | J30: 307903 | K30: 73120 | L30: 1480
B31: Управление движението на влаковете и капацитета | C31: 258551 | D31: 2246 | E31: 0 | F31: 10034 | G31: 0 | H31: 11301 | I31: 8262 | J31: 183578 | K31: 42517 | L31: 613
B32: Железен път и съоръжения | C32: 386739 | D32: 7640 | E32: 0 | F32: 0 | G32: 0 | H32: 0 | I32: 223612 | J32: 124325 | K32: 30603 | L32: 559
B33: Сигнализация и телекомуникации | C33: 384211 | D33: 4264 | E33: 0 | F33: 13889 | G33: 0 | H33: 1151 | I33: 364599 | K33: 0 | L33: 308
B34: Електроразпределение | C34: 468049 | D34: 2766 | E34: 2702 | F34: 1830 | H34: 1491 | I34: 459260
A36: Забележка: 1. Разходите за текущо поддържане несъдържат разходите за: издръжка и престой на ТПМ в пътните колони, ремонт, спомагателна дейност, общопроизводствени, административно управленски, социални, специален отдел и провизии.

Sheet NAEMI (hidden)
A1: Справка за реализирани приходи от отдадени под наем ДМА (търговски обекти и ведомствени жилища) за 2013, 2014, 2015, 2016 и 2017 г. на територията на жп гара Стара Загора, във връзка с проект "Реконструкция на гарови комплекси Стара Загора и Нова Загора"
A4: № по ред | B4: Проект | C4: Период | D4: отдадени под наем ДМА | E4: отдадени площи в жп гара Стара Загора | F4: сума, лв. | H4: дял на отдадените площи (%) по РЗП 4540 кв.м | I4: цена/кв.м (без ДДС)
F5: без ДДС | G5: с ДДС
A6: 1 | B6: "Реконструкция на гаров комплекс СТАРА ЗАГОРА" | C6: 01.01.2013 - 31.12.2013 | D6: открити площи | E6: 2186.5 | F6: 65324.16 | G6: 75630.05 | H6: 0.88 | I6: =(F6/E6)/12 -> 2.489677567
D7: закрити площи | E7: 203.84 | F7: 31727.12 | G7: 38072.54 | H7: =E7/4540*100 -> 4.489867841 | I7: =(F7/E7)/12 -> 12.97059785
D8: превозвачи | E8: 427.52 | F8: 36907.73 | G8: 44289.22 | H8: =E8/4540*100 -> 9.416740088 | I8: =(F8/E8)/12 -> 7.19415271
D9: реклама | E9: 0 | F9: 0 | G9: 0 | H9: 0 | I9: 0
D10: ведомствени жилища | E10: 0 | F10: 0 | G10: 0 | H10: 0 | I10: 0
D11: ОБЩО: | E11: =SUM(E6:E8) -> 2817.86 | F11: =SUM(F6:F8) -> 133959.01 | G11: =SUM(G6:G8) -> 157991.81 | H11: =SUM(H6:H8) -> 14.78660793 | I11: =SUM(I6:I8) -> 22.65442813
A13: 2 | B13: "Реконструкция на гаров комплекс СТАРА ЗАГОРА" | C13: 01.01.2014 - 31.12.2014 | D13: открити площи | E13: 2078.5 | F13: 60195.12 | G13: 69418.46 | H13: 0.83 | I13: =(F13/E13)/12 -> 2.413403897
D14: закрити площи | E14: 205.84 | F14: 33075.84 | G14: 39691.01 | H14: =E14/4540*100 -> 4.533920705 | I14: =(F14/E14)/12 -> 13.39059464
D15: превозвачи | E15: 427.52 | F15: 36907.68 | G15: 44289.22 | H15: =E15/4540*100 -> 9.416740088 | I15: =(F15/E15)/12 -> 7.194142964
D16: реклама | E16: 0 | F16: 0 | G16: 0 | H16: 0 | I16: 0
D17: ведомствени жилища | E17: 0 | F17: 0 | G17: 0 | H17: 0 | I17: 0
D18: ОБЩО: | E18: =SUM(E13:E15) -> 2711.86 | F18: =SUM(F13:F15) -> 130178.64 | G18: =SUM(G13:G15) -> 153398.69 | H18: =SUM(H13:H15) -> 14.78066079 | I18: =SUM(I13:I15) -> 22.9981415
A20: 3 | B20: "Реконструкция на гаров комплекс СТАРА ЗАГОРА" | C20: 01.01.2015- 31.12.2015 | D20: открити площи | E20: 2431.3 | F20: 65190.56 | G20: 75412.99 | H20: 0.97 | I20: =(F20/E20)/12 -> 2.234420543
D21: закрити площи | E21: 344.48 | F21: 33448.68 | G21: 40138.35 | H21: =E21/4540*100 -> 7.587665198 | I21: =(F21/E21)/12 -> 8.09158732
D22: превозвачи | E22: 356.52 | F22: 30602.97 | G22: 36723.56 | H22: =E22/4540*100 -> 7.852863436 | I22: =(F22/E22)/12 -> 7.153168125
D23: реклама | E23: 0 | F23: 0 | G23: 0 | H23: 0 | I23: 0
D24: ведомствени жилища | E24: 0 | F24: 0 | G24: 0 | H24: 0 | I24: 0
D25: ОБЩО: | E25: =SUM(E20:E22) -> 3132.3 | F25: =SUM(F20:F22) -> 129242.21 | G25: =SUM(G20:G22) -> 152274.9 | H25: =SUM(H20:H22) -> 16.41052863 | I25: =SUM(I20:I22) -> 17.47917599
A27: 4 | B27: "Реконструкция на гаров комплекс СТАРА ЗАГОРА" | C27: 01.01.2016 - 31.12.2016 | D27: открити площи | E27: 2350.5 | F27: 54345.97 | G27: 62399.48 | H27: 7.19 | I27: =(F27/E27)/12 -> 1.926752109
D28: закрити площи | E28: 142.7 | F28: 22190.59 | G28: 26628.64 | H28: =E28/4540*100 -> 3.143171806 | I28: =(F28/E28)/12 -> 12.95876548
D29: превозвачи | E29: 356.52 | F29: 30602.97 | G29: 36723.56 | H29: =E29/4540*100 -> 7.852863436 | I29: =(F29/E29)/12 -> 7.153168125
D30: реклама | E30: 0 | F30: 0 | G30: 0 | H30: 0 | I30: 0
D31: ведомствени жилища | E31: 0 | F31: 0 | G31: 0 | H31: 0 | I31: 0
D32: ОБЩО: | E32: =SUM(E27:E29) -> 2849.72 | F32: =SUM(F27:F29) -> 107139.53 | G32: =SUM(G27:G29) -> 125751.68 | H32: =SUM(H27:H29) -> 18.18603524 | I32: =SUM(I27:I29) -> 22.03868571
A34: 5 | B34: "Реконструкция на гаров комплекс СТАРА ЗАГОРА" | C34: 01.01.2017 - 31.12.2017 | D34: открити площи | E34: 2344.88 | F34: 42516.92 | G34: 50316.38 | H34: 8.62 | I34: =(F34/E34)/12 -> 1.510984215
D35: закрити площи | E35: 105.23 | F35: 15431.01 | G35: 18517.17 | H35: =E35/4540*100 -> 2.31784141 | I35: =(F35/E35)/12 -> 12.22006557
D36: превозвачи | E36: 356.52 | F36: 30602.97 | G36: 36723.56 | H36: =E36/4540*100 -> 7.852863436 | I36: =(F36/E36)/12 -> 7.153168125
D37: реклама | E37: 0 | F37: 0 | G37: 0 | H37: 0 | I37: 0
D38: ведомствени жилища | E38: 0 | F38: 0 | G38: 0 | H38: 0 | I38: 0
D39: ОБЩО: | E39: =SUM(E34:E36) -> 2806.63 | F39: =SUM(F34:F36) -> 88550.9 | G39: =SUM(G34:G36) -> 105557.11 | H39: =SUM(H34:H36) -> 18.79070485 | I39: =SUM(I34:I36) -> 20.88421791
D40: РЕКАПИТУЛАЦИЯ: | E40: =(E11+E18+E25+E32+E39)/5 -> 2863.674 | F40: =F11+F18+F25+F32+F39 -> 589070.29 | G40: =G11+G18+G25+G32+G39 -> 694974.19 | H40: =(H11+H18+H25+H32+H39)/5 -> 16.59090749 | I40: =(I11+I18+I25+I32+I39)/5 -> 21.21092985
A42: Справка за реализирани приходи от отдадени под наем ДМА (търговски обекти и ведомствени жилища) за 2013, 2014, 2015, 2016 и 2017 г. на територията на жп гара Нова Загора, във връзка с проект "Реконструкция на гарови комплекси Стара Загора и Нова Загора"
A45: № по ред | B45: Проект | C45: Период | D45: отдадени под наем ДМА | E45: отдадени площи в жп гара Стара Загора | F45: сума, лв. | H45: дял на отдадените площи (%) по РЗП 1010,00 кв.м | I45: цена/кв.м (без ДДС)
F46: без ДДС | G46: с ДДС
A47: 1 | B47: "Реконструкция на гаров комплекс НОВА ЗАГОРА" | C47: 01.01.2013 - 31.12.2013 | D47: открити площи | E47: 0 | F47: 0 | G47: 0 | H47: 0 | I47: 0
D48: закрити площи | E48: 2 | F48: 924.15 | G48: 1109 | H48: =E48/1010*100 -> 0.198019802 | I48: =(F48/E48)/12 -> 38.50625
D49: превозвачи | E49: 250.47 | F49: 12569.89 | G49: 15083.87 | H49: =E49/1010*100 -> 24.7990099 | I49: =(F49/E49)/12 -> 4.182100983
D50: реклама | E50: 0 | F50: 0 | G50: 0 | H50: 0 | I50: 0
D51: ведомствени жилища | E51: 0 | F51: 0 | G51: 0 | H51: 0 | I51: 0
D52: ОБЩО: | E52: =SUM(E47:E49) -> 252.47 | F52: =SUM(F47:F49) -> 13494.04 | G52: =SUM(G47:G49) -> 16192.87 | H52: =SUM(H47:H49) -> 24.9970297 | I52: =SUM(I47:I49) -> 42.68835098
A54: 2 | B54: "Реконструкция на гаров комплекс НОВА ЗАГОРА" | C54: 01.01.2014 - 31.12.2014 | D54: открити площи | E54: 0 | F54: 0 | G54: 0 | H54: 0 | I54: 0
D55: закрити площи | E55: 1 | F55: 462 | G55: 554.4 | H55: =E55/1010*100 -> 0.09900990099 | I55: =(F55/E55)/12 -> 38.5
D56: превозвачи | E56: 250.47 | F56: 12569.89 | G56: 15083.87 | H56: =E56/1010*100 -> 24.7990099 | I56: =(F56/E56)/12 -> 4.182100983
D57: реклама | E57: 0 | F57: 0 | G57: 0 | H57: 0 | I57: 0
D58: ведомствени жилища | E58: 0 | F58: 0 | G58: 0 | H58: 0 | I58: 0
D59: ОБЩО: | E59: =SUM(E54:E56) -> 251.47 | F59: =SUM(F54:F56) -> 13031.89 | G59: =SUM(G54:G56) -> 15638.27 | H59: =SUM(H54:H56) -> 24.8980198 | I59: =SUM(I54:I56) -> 42.68210098
A61: 3 | B61: "Реконструкция на гаров комплекс НОВА ЗАГОРА" | C61: 01.01.2015- 31.12.2015 | D61: открити площи | E61: 0 | F61: 0 | G61: 0 | H61: 0 | I61: 0
D62: закрити площи | E62: 1 | F62: 462 | G62: 554.4 | H62: =E62/1010*100 -> 0.09900990099 | I62: =(F62/E62)/12 -> 38.5
D63: превозвачи | E63: 209.67 | F63: 9975.01 | G63: 11970.01 | H63: =E63/1010*100 -> 20.75940594 | I63: =(F63/E63)/12 -> 3.964567336
D64: реклама | E64: 0 | F64: 0 | G64: 0 | H64: 0 | I64: 0
D65: ведомствени жилища | E65: 0 | F65: 0 | G65: 0 | H65: 0 | I65: 0
D66: ОБЩО: | E66: =SUM(E61:E63) -> 210.67 | F66: =SUM(F61:F63) -> 10437.01 | G66: =SUM(G61:G63) -> 12524.41 | H66: =SUM(H61:H63) -> 20.85841584 | I66: =SUM(I61:I63) -> 42.46456734
A68: 4 | B68: "Реконструкция на гаров комплекс НОВА ЗАГОРА" | C68: 01.01.2016 - 31.12.2016 | D68: открити площи | E68: 0 | F68: 0 | G68: 0 | H68: 0 | I68: 0
D69: закрити площи | E69: 1 | F69: 462 | G69: 554.4 | H69: =E69/1010*100 -> 0.09900990099 | I69: =(F69/E69)/12 -> 38.5
D70: превозвачи | E70: 209.67 | F70: 9975.01 | G70: 11970.01 | H70: =E70/1010*100 -> 20.75940594 | I70: =(F70/E70)/12 -> 3.964567336
D71: реклама | E71: 0 | F71: 0 | G71: 0 | H71: 0 | I71: 0
D72: ведомствени жилища | E72: 0 | F72: 0 | G72: 0 | H72: 0 | I72: 0
D73: ОБЩО: | E73: =SUM(E68:E70) -> 210.67 | F73: =SUM(F68:F70) -> 10437.01 | G73: =SUM(G68:G70) -> 12524.41 | H73: =SUM(H68:H70) -> 20.85841584 | I73: =SUM(I68:I70) -> 42.46456734
A75: 5 | B75: "Реконструкция на гаров комплекс НОВА ЗАГОРА" | C75: 01.01.2017 - 31.12.2017 | D75: открити площи | E75: 1 | F75: 792 | G75: 950.4 | H75: =E75/1010*100 -> 0.09900990099 | I75: =(F75/E75)/12 -> 66
D76: закрити площи | E76: 1 | F76: 462 | G76: 554.4 | H76: =E76/1010*100 -> 0.09900990099 | I76: =(F76/E76)/12 -> 38.5
D77: превозвачи | E77: 209.67 | F77: 9737.73 | G77: 11685.27 | H77: =E77/1010*100 -> 20.75940594 | I77: =(F77/E77)/12 -> 3.870260409
D78: реклама | E78: 0 | F78: 0 | G78: 0 | H78: 0 | I78: 0
D79: ведомствени жилища | E79: 0 | F79: 0 | G79: 0 | H79: 0 | I79: 0
D80: ОБЩО: | E80: =SUM(E75:E77) -> 211.67 | F80: =SUM(F75:F77) -> 10991.73 | G80: =SUM(G75:G77) -> 13190.07 | H80: =SUM(H75:H77) -> 20.95742574 | I80: =SUM(I75:I77) -> 108.3702604
D81: РЕКАПИТУЛАЦИЯ: | E81: =(E52+E59+E66+E73+E80)/5 -> 227.39 | F81: =F52+F59+F66+F73+F80 -> 58391.68 | G81: =G52+G59+G66+G73+G80 -> 70070.03 | H81: =(H52+H59+H66+H73+H80)/5 -> 22.51386139 | I81: =(I52+I59+I66+I73+I80)/5 -> 55.73396941

Sheet EX&REV (hidden)
C1: Гара Стара Загора
C2: Разходи | D2: 2013 | E2: 2014 | F2: 2015 | G2: 2016 | H2: =G2+1 -> 2017 | I2: =H2 -> 2017
D3: BGN | E3: BGN | F3: BGN | G3: BGN | H3: BGN | I3: EUR
C4: Брой пътници - пристигнали | D4: 48406 | E4: 48406 | F4: 48406 | G4: 48406 | H4: 43504 | I4: =H4 -> 43504
C5: Брой пътници - отпътували | D5: 144052 | E5: 144052 | F5: 144052 | G5: 144052 | H5: 117986 | I5: =H5 -> 117986
I6: 1.95583
B7: 1 | C7: Разходи за електроенергия | D7: =RAZ_SZ!F10 -> 50181 | E7: =RAZ_SZ!F15 -> 40845 | F7: =RAZ_SZ!F20 -> 48718 | G7: =RAZ_SZ!F25 -> 45438 | H7: =RAZ_SZ!F30 -> 44056 | I7: =ROUND(H7/$I$6,2) -> 22525.48
B8: =B7+1 -> 2 | C8: Разходи за топлоенергия | D8: =RAZ_SZ!G10 -> 10383 | E8: =RAZ_SZ!G15 -> 16743 | F8: =RAZ_SZ!G20 -> 19404 | G8: =RAZ_SZ!G25 -> 15430 | H8: =RAZ_SZ!G30 -> 17683 | I8: =ROUND(H8/$I$6,2) -> 9041.17
B9: =B8+1 -> 3 | C9: Разходи за вода - НКЖИ | I9: 0
B10: =B7+1 -> 2 | C10: Разходи за материали | D10: =RAZ_SZ!D10+RAZ_SZ!E10 -> 48543 | E10: =RAZ_SZ!D15+RAZ_SZ!E15 -> 38755 | F10: =RAZ_SZ!D20+RAZ_SZ!E20 -> 31510 | G10: =RAZ_SZ!D25+RAZ_SZ!E25 -> 25443 | H10: =RAZ_SZ!D30+RAZ_SZ!E30 -> 19616 | I10: 10029.5
B11: 3 | C11: Външни услуги | D11: =RAZ_SZ!H10 -> 52372 | E11: =RAZ_SZ!H15 -> 59844 | F11: =RAZ_SZ!H20 -> 61634 | G11: =RAZ_SZ!H25 -> 69868 | H11: =RAZ_SZ!H30 -> 76725 | I11: 39228.87
B12: 4 | C12: Разходи за заплати | D12: =RAZ_SZ!J10 -> 734037 | E12: =RAZ_SZ!J15 -> 672687 | F12: =RAZ_SZ!J20 -> 817798 | G12: =RAZ_SZ!J25 -> 837958 | H12: =RAZ_SZ!J30 -> 905275 | I12: 462859.76
B13: 5 | C13: Разходи за осигуровки | D13: =RAZ_SZ!K10 -> 160629 | E13: =RAZ_SZ!K15 -> 152161 | F13: =RAZ_SZ!K20 -> 201381 | G13: =RAZ_SZ!K25 -> 180725 | H13: =RAZ_SZ!K30 -> 204907 | I13: 104767.29
B14: 6 | C14: Други | D14: =RAZ_SZ!L10 -> 12076 | E14: =RAZ_SZ!L15 -> 23708 | F14: =RAZ_SZ!L20 -> 9002 | G14: =RAZ_SZ!L25 -> 11566 | H14: =RAZ_SZ!L30 -> 4545 | I14: 2323.82
C15: Общо разходи | D15: =SUM(D7:D14) -> 1068221 | E15: =SUM(E7:E14) -> 1004743 | F15: =SUM(F7:F14) -> 1189447 | G15: =SUM(G7:G14) -> 1186428 | H15: =SUM(H7:H14) -> 1272807 | I15: =I13+I8+I12+I11+I10+I7 -> 648452.07
B16: =B14+1 -> 7 | C16: Разходи за амортизации | D16: =RAZ_SZ!I10 -> 767832 | E16: =RAZ_SZ!I15 -> 767201 | F16: =RAZ_SZ!I20 -> 745873 | G16: =RAZ_SZ!I25 -> 736101 | H16: =RAZ_SZ!I30 -> 1717439 | I16: =ROUND(H16/$I$6,2) -> 878112.62
D17: =IF((D15+D16)=RAZ_SZ!$C10,(D15+D16)) -> 1836053 | E17: =IF((E15+E16)=RAZ_SZ!$C15,(E15+E16)) -> 1771944 | F17: =IF((F15+F16)=RAZ_SZ!$C20,(F15+F16)) -> 1935320 | G17: =IF((G15+G16)=RAZ_SZ!$C25,(G15+G16)) -> 1922529 | H17: =IF((H15+H16)=RAZ_SZ!$C30,(H15+H16)) -> 2990246 | I17: =I15+I16 -> 1526564.69
C18: Приходи | D18: лв. без ДДС | E18: лв. без ДДС | F18: лв. без ДДС | G18: лв. без ДДС | H18: лв. без ДДС | I18: EUR без ДДС
B19: 1 | C19: Приходи от отдадени под наем открити площи | D19: =NAEMI!$F6 -> 65324.16 | E19: =NAEMI!$F13 -> 60195.12 | F19: =NAEMI!$F20 -> 65190.56 | G19: =NAEMI!$F27 -> 54345.97 | H19: =NAEMI!$F34 -> 42516.92 | I19: =ROUND(H19/$I$6,2) -> 21738.56
B20: =B19+1 -> 2 | C20: Приходи от отдадени под наем закрити площи | D20: =NAEMI!$F7 -> 31727.12 | E20: =NAEMI!$F14 -> 33075.84 | F20: =NAEMI!$F21 -> 33448.68 | G20: =NAEMI!$F28 -> 22190.59 | H20: =NAEMI!$F35 -> 15431.01 | I20: =ROUND(H20/$I$6,2) -> 7889.75
B21: =B20+1 -> 3 | C21: Приходи от превозвачи | D21: =NAEMI!$F8 -> 36907.73 | E21: =NAEMI!$F15 -> 36907.68 | F21: =NAEMI!$F22 -> 30602.97 | G21: =NAEMI!$F29 -> 30602.97 | H21: =NAEMI!$F36 -> 30602.97 | I21: =ROUND(H21/$I$6,2) -> 15647.05
C22: Общо приходи | D22: =SUM(D19:D21) -> 133959.01 | E22: 130178.64 | F22: 129242.21 | G22: 107139.53 | H22: 88550.9 | I22: 45275.36
C23: Загуба | D23: =(D22-D15)/D22 -> -6.974237791 | E23: -6.718186332 | F23: -8.203239406 | G23: -10.07367187 | H23: -13.37373307 | I23: -13.32240561
C26: Гара Нова Загора
C27: Разходи | D27: 2013 | E27: =D27+1 -> 2014 | F27: =E27+1 -> 2015 | G27: =F27+1 -> 2016 | H27: =G27+1 -> 2017 | I27: =H27 -> 2017
D28: BGN | E28: BGN | F28: BGN | G28: BGN | H28: BGN | I28: EUR
C29: Брой пътници - пристигнали | D29: 15242 | E29: 15242 | F29: 15242 | G29: 15242 | H29: 12114 | I29: =H29 -> 12114
C30: Брой пътници - отпътували | D30: 15259 | E30: 15259 | F30: 15259 | G30: 15259 | H30: 12114 | I30: =H30 -> 12114
B32: 1 | C32: Разходи за електроенергия | D32: =RAZ_NZ!$F10 -> 17766 | E32: =RAZ_NZ!$F15 -> 12746 | F32: =RAZ_NZ!$F20 -> 21849 | G32: =RAZ_NZ!$F25 -> 25094 | H32: =RAZ_NZ!$F30 -> 25753 | I32: =H32/$I$6 -> 13167.29982
B33: =B32+1 -> 2 | C33: Разходи за топлоенергия | D33: =RAZ_NZ!$G10 -> 0 | E33: =RAZ_NZ!$G15 -> 0 | F33: =RAZ_NZ!$G20 -> 0 | G33: =RAZ_NZ!$G25 -> 0 | H33: =RAZ_NZ!$G30 -> 0 | I33: 0
B34: =B33+1 -> 3 | C34: Разходи за вода - НКЖИ
B35: =B32+1 -> 2 | C35: Разходи за материали | D35: =RAZ_NZ!$D10+RAZ_NZ!$E10 -> 37405 | E35: =RAZ_NZ!$D15+RAZ_NZ!$E15 -> 20184 | F35: =RAZ_NZ!$D20+RAZ_NZ!$E20 -> 17907 | G35: =RAZ_NZ!$D25+RAZ_NZ!$E25 -> 10397 | H35: =RAZ_NZ!$D30+RAZ_NZ!$E30 -> 19618 | I35: 10030.52413
B36: 3 | C36: Външни услуги | D36: =RAZ_NZ!$H10 -> 13676 | E36: =RAZ_NZ!$H15 -> 11310 | F36: =RAZ_NZ!$H20 -> 12226 | G36: =RAZ_NZ!$H25 -> 12151 | H36: =RAZ_NZ!$H30 -> 13943 | I36: 7128.9427
B37: 4 | C37: Разходи за заплати | D37: =RAZ_NZ!$J10 -> 339528 | E37: =RAZ_NZ!$J15 -> 342545 | F37: =RAZ_NZ!$J20 -> 299355 | G37: =RAZ_NZ!$J25 -> 289482 | H37: =RAZ_NZ!$J30 -> 307903 | I37: 157428.3041
B38: 5 | C38: Разходи за осигуровки | D38: =RAZ_NZ!$K10 -> 75770 | E38: =RAZ_NZ!$K15 -> 81790 | F38: =RAZ_NZ!$K20 -> 75275 | G38: =RAZ_NZ!$K25 -> 67429 | H38: =RAZ_NZ!$K30 -> 73120 | I38: 37385.66235
B39: 6 | C39: Други | D39: =RAZ_NZ!$L10 -> 2345 | E39: =RAZ_NZ!$L15 -> 8050 | F39: =RAZ_NZ!$L20 -> 2347 | G39: =RAZ_NZ!$L25 -> 3213 | H39: =RAZ_NZ!$L30 -> 1480 | I39: 756.7119842
C40: Общо разходи | D40: =SUM(D32:D39) -> 486490 | E40: 476625 | F40: 428959 | G40: 407766 | H40: 441817 | I40: 225897.4451
B41: 9 | C41: Разходи за амортизации | D41: =RAZ_NZ!$I10 -> 413936 | E41: =RAZ_NZ!$I15 -> 412299 | F41: =RAZ_NZ!$I20 -> 401865 | G41: =RAZ_NZ!$I25 -> 398838 | H41: =RAZ_NZ!$I30 -> 1055733 | I41: =H41/$I$6 -> 539787.7116
D42: =IF((D40+D41)=RAZ_NZ!$C10,(D40+D41)) -> 900426 | E42: =IF((E40+E41)=RAZ_NZ!$C15,(E40+E41)) -> 888924 | F42: =IF((F40+F41)=RAZ_NZ!$C20,(F40+F41)) -> 830824 | G42: =IF((G40+G41)=RAZ_NZ!$C25,(G40+G41)) -> 806604 | H42: =IF((H40+H41)=RAZ_NZ!$C30,(H40+H41)) -> 1497550 | I42: =I40+I41 -> 765685.1567
C43: Приходи | D43: лв. без ДДС | E43: лв. без ДДС | F43: лв. без ДДС | G43: лв. без ДДС | H43: лв. без ДДС | I43: EUR без ДДС
B45: 1 | C45: Приходи от отдадени под наем открити площи | D45: =NAEMI!$F47 -> 0 | E45: =NAEMI!$F54 -> 0 | F45: =NAEMI!$F61 -> 0 | G45: =NAEMI!$F68 -> 0 | H45: =NAEMI!$F75 -> 792 | I45: =ROUND(H45/$I$6,2) -> 404.94
B46: =B45+1 -> 2 | C46: Приходи от отдадени под наем закрити площи | D46: =NAEMI!$F48 -> 924.15 | E46: =NAEMI!$F55 -> 462 | F46: =NAEMI!$F62 -> 462 | G46: =NAEMI!$F69 -> 462 | H46: =NAEMI!$F76 -> 462 | I46: =ROUND(H46/$I$6,2) -> 236.22
B47: =B46+1 -> 3 | C47: Приходи от реклама | D47: =NAEMI!$F49 -> 12569.89 | E47: =NAEMI!$F56 -> 12569.89 | F47: =NAEMI!$F63 -> 9975.01 | G47: =NAEMI!$F70 -> 9975.01 | H47: =NAEMI!$F77 -> 9737.73 | I47: =ROUND(H47/$I$6,2) -> 4978.82
C48: Общо приходи | D48: =SUM(D45:D47) -> 13494.04 | E48: 13031.89 | F48: 10437.01 | G48: 10437.01 | H48: 10991.73 | I48: 5619.98
C49: Загуба | D49: =(D48-D40)/D48 -> -35.05221268 | E49: -35.57374333 | F49: -40.09979774 | G49: -38.06923535 | H49: -39.19540145 | I49: -39.19541797

Sheet BudgetNKJI (hidden)
K1: октомври 2018 г.
B2: Проектобюджет с прогнозни стойности на обществените поръчки за проекти на ЗПУИП Гарови комплекси и терминали
K3: в лева
B4: № | C4: Наименование на обекта | D4: Договор № | E4: Изпълнител | F4: БФП | G4: Стойност на договора без ДДС | H4: Непредвидени работи | I4: Общо с непредвидени | J4: ДДС | K4: Общи задължения | L4: Стара Загора | M4: Нова Загора
B5: 1 | C5: 2 | D5: 3 | E5: 4 | F5: 5 | G5: 6 | H5: 7 | I5: 8 | J5: 9 | K5: 10
B6: 1 | C6: Проект Реконструкция на гарови комплекси Стара Загора и Нова Загора | L6: =L7+L8 -> 33000 | M6: =M7+M8 -> 33000
B7: 1.1 | C7: Изготвяне на Анализ Разходи-Ползи и Формуляр за кандидатстване за проект "Реконструкция на гарови комплекси Стара Загора и Нова Загора" | D7: № 6225/ 13.09.2018 г. | E7: "Инфрапроект консулт" | F7: 48000 | G7: =F7 -> 48000 | H7: 0 | I7: =G7+H7 -> 48000 | J7: =I7*0.2 -> 9600 | K7: =I7*1.2 -> 57600 | L7: =F7/2 -> 24000 | M7: =$F$7/2 -> 24000
B8: 1.2 | C8: Актуализиран финансов анализ във връзка приключването на проекта | F8: 18000 | G8: =F8 -> 18000 | H8: 0 | I8: =G8+H8 -> 18000 | J8: =I8*0.2 -> 3600 | K8: =I8*1.2 -> 21600 | L8: =$F$8/2 -> 9000 | M8: =$F$8/2 -> 9000
B9: 1.3 | C9: Проучване и идеен проект | L9: =L10+L11 -> 117340 | M9: =M10+M11 -> 45270
B10: 1.3.1 | C10: Проучване, конструктивна експертиза, изготвяне на технически паспорти, идеен проект, документи за преценка необходимостта от ОВОС и технически спецификации за възлагане на инженеринг на обект „Реконструкция на гаров комплекс Стара Загора“ | D10: № 5864/ 11.09.2017г. | E10: "КИГ-ИПС-ЕКА" | F10: 117340 | G10: =F10 -> 117340 | H10: 0 | I10: =G10+H10 -> 117340 | J10: =I10*0.2 -> 23468 | K10: =I10*1.2 -> 140808 | L10: =F10 -> 117340
B11: 1.3.2 | C11: Проучване, конструктивна експертиза, изготвяне на технически паспорти, идеен проект, документи за преценка необходимостта от ОВОС и технически спецификации за възлагане на инженеринг на обект „Реконструкция на гаров комплекс Стара Загора“ | D11: №5939 / 08.12.2017 г. | E11: Обединение Урбан архитекти | F11: 45270 | G11: =F11 -> 45270 | H11: 0 | I11: =G11+H11 -> 45270 | J11: =I11*0.2 -> 9054 | K11: =I11*1.2 -> 54324 | M11: =F11 -> 45270
B12: 1.4 | C12: Проектиране и строителство (инженеринг) | L12: =L13+L14 -> 9955628.925 | M12: =M13+M14 -> 2477013.2
B13: 1.4.1 | C13: Реконструкция на гаров комплекс Стара Загора – проектиране, строителство и авторски надзор | F13: =G13 -> 9955628.925 | G13: 9955628.925 | H13: =G13*0.1 -> 995562.8925 | I13: =G13+H13 -> 10951191.82 | J13: =I13*0.2 -> 2190238.364 | K13: =I13*1.2 -> 13141430.18 | L13: =F13 -> 9955628.925
B14: 1.4.2 | C14: Реконструкция на гаров комплекс Нова Загора – проектиране, строителство и авторски надзор | F14: 2477013.2 | G14: 2477013.2 | H14: =G14*0.1 -> 247701.32 | I14: =G14+H14 -> 2724714.52 | J14: =I14*0.2 -> 544942.904 | K14: =I14*1.2 -> 3269657.424 | M14: =F14 -> 2477013.2
B15: 1.5 | C15: Оценка на съответствието с основните изисквания към строежите съгласно ЗУТ, извършване на строителен надзор и управление изпълнението на договорите за „Реконструкция на гарови комплекси Стара Загора и Нова Загора“ по две обособени позиции | L15: =L16+L17 -> 533279 | M15: =M16+M17 -> 124200
B16: 1.5.1 | C16: Обособена позиция 1 "Оценка на съответствието с основните изисквания към строежите съгласно ЗУТ, извършване на строителен надзор и управление изпълнението на договора за обект „Проектиране и строителство за реконструкция на гаров комплекс Стара Загора“ | F16: 533279 | G16: 533279 | H16: 0 | I16: =G16+H16 -> 533279 | J16: =I16*0.2 -> 106655.8 | K16: =I16*1.2 -> 639934.8 | L16: =F16 -> 533279
B17: 1.5.2 | C17: Обособена позиция 2 "Оценка на съответствието с основните изисквания към строежите съгласно ЗУТ, извършване на строителен надзор и управление изпълнението на договора за обект „Проектиране и строителство за реконструкция на гаров комплекс Нова Загора“ | F17: 124200 | G17: 124200 | H17: 0 | I17: =G17+H17 -> 124200 | J17: =I17*0.2 -> 24840 | K17: =I17*1.2 -> 149040 | L17: 0 | M17: =F17 -> 124200
B18: 1.6 | C18: „Оценка на съответствието с изискванията за оперативна съвместимост и независима оценка на пригодността на прилагането на процедурата за управление на риска на проекти за реконструкция на гарови комплекси по девет обособени позиции“ | L18: =L19+L20+L21+L22 -> 270000 | M18: =M19+M20+M21+M22 -> 65000
B19: 1.6.1 | C19: Обособена позиция № 4 „Оценка на съответствието с изискванията за оперативна съвместимост на проект за реконструкция на гаров комплекс Стара Загора“ | F19: 250000 | G19: 250000 | H19: 0 | I19: =G19+H19 -> 250000 | J19: =I19*0.2 -> 50000 | K19: =I19*1.2 -> 300000 | L19: =F19 -> 250000
B20: 1.6.2 | C20: Обособена позиция № 5 „Оценка на съответствието с изискванията за оперативна съвместимост на проект за реконструкция на гаров комплекс Нова Загора“ | F20: 45000 | G20: 45000 | H20: 0 | I20: =G20+H20 -> 45000 | J20: =I20*0.2 -> 9000 | K20: =I20*1.2 -> 54000 | M20: =F20 -> 45000
B21: 1.6.3 | C21: Обособена позиция № 7 „Независима оценка на пригодността на прилагането на процедурата за управление на риска на проект за реконструкция на гаров комплекс Стара Загора“ | F21: 20000 | G21: 20000 | H21: 0 | I21: =G21+H21 -> 20000 | J21: =I21*0.2 -> 4000 | K21: =I21*1.2 -> 24000 | L21: =F21 -> 20000
B22: 1.6.4 | C22: □ Обособена позиция № 8 „Независима оценка на пригодността на прилагането на процедурата за управление на риска на проект за реконструкция на гаров комплекс Нова Загора“ | F22: 20000 | G22: 20000 | H22: 0 | I22: =G22+H22 -> 20000 | J22: =I22*0.2 -> 4000 | K22: =I22*1.2 -> 24000 | M22: =F22 -> 20000
B23: 1.7 | C23: Комуникационни дейности - информация и публичност (към договора за строителство) | H23: 0 | I23: =G23+H23 -> 0 | J23: =I23*0.2 -> 0 | K23: =I23*1.2 -> 0 | L23: 0 | M23: 0
B24: 1.8 | C24: Техническа помощ ЗПУИП | F24: до 10 % от общите | G24: до 10 % от общите | L24: 1320500 | M24: 330000 | N24: =(L24+M24)/(L26+M26) -> 0.09804181165 | O24: =L24/L26 -> 0.09815856817
C25: ОБЩО Стара Загора и Нова Загора: | F25: =SUM(F7:F24) -> 13653731.13 | G25: =SUM(G7:G24) -> 13653731.13 | H25: =SUM(H7:H24) -> 1243264.213 | I25: =SUM(I7:I24) -> 14896995.34 | J25: =I25*0.2 -> 2979399.068 | K25: =I25*1.2 -> 17876394.41 | L25: =L24+L23+L18+L15+L12+L9+L6 -> 12229747.93 | M25: =M24+M23+M18+M15+M12+M9+M6 -> 3074483.2 | O25: =M24/M26 -> 0.09757737496 | P25: =L25+M25 -> 15304231.13
C26: 0.1 | L26: =L25*(1+$C$26) -> 13452722.72 | M26: =M25*(1+$C$26) -> 3381931.52 | N26: =(L26+M26)*0.1 -> 1683465.424
L27: 13335204.21 | M27: 3352689.392
L28: =+L6+L9+L12+L15+L18+L23 -> 10909247.93 | M28: =+M6+M9+M12+M15+M18+M23 -> 2744483.2 | P28: =M25/P25 -> 0.2008910591
L29: =ROUND(L28*0.1,2) -> 1090924.79 | M29: =ROUND(M28*0.1,2) -> 274448.32 | P29: =L25/P25 -> 0.7991089409
L31: =L27*0.0999 -> 1332186.9 | M31: =M27*0.1 -> 335268.9392

Sheet CAPEX (hidden)
B3: Инвестиции общо | C3: по години | D3: 2019 | F3: =D3+1 -> 2020 | H3: =F3+1 -> 2021 | J3: Общо | M3: =1.95583 -> 1.95583 | N3: 0.2 | O3: 0.7 | P3: 0.1
D4: BGN | E4: EUR | F4: BGN | G4: EUR | H4: BGN | I4: EUR | J4: BGN | K4: EUR
A5: 1 | B5: Проектиране и планиране | C5: =SUM(C6:C7) -> 228610 | D5: =D6+D7 -> 228610 | E5: =ROUND(D5/1.95583,2) -> 116886.44 | F5: =F6+F7 -> 0 | G5: =ROUND(F5/1.95583,2) -> 0 | H5: =H6+H7 -> 0 | I5: =ROUND(H5/1.95583,2) -> 0 | J5: =D5+F5+H5 -> 228610 | K5: =+E5+G5+I5 -> 116886.44 | L5: =IF(K5=ROUND(J5/1.95583,2),K5,0) -> 116886.44 | M5: =K5/$K$26 -> 0.01385861771 | R5: =J5+J8+J11 -> 12581252.13 | T5: =J9+J12 -> 9895628.925
B6: Гара Стара Загора | C6: 150340 | D6: =C6 -> 150340 | E6: 76867.62 | J6: =+D6+F6+H6 -> 150340 | K6: =+E6+G6+I6 -> 76867.62 | L6: 76867.62 | R6: =J6+J9+J12 -> 10045968.93
B7: Гара Нова Загора | C7: 78270 | D7: =C7 -> 78270 | E7: 40018.82 | J7: =D7+F7+H7 -> 78270 | K7: =ROUND(J7/$M$3,2) -> 40018.82 | L7: 40018.82 | Q7: =J9+J12 -> 9895628.925
A8: 2 | B8: Строително-монтажни работи | C8: =SUM(C9:C10) -> 11966424.53 | D8: =D9+D10 -> 2393284.905 | E8: 1223667.14 | F8: =F9+F10 -> 8376497.168 | G8: =ROUND(F8/1.95583,2) -> 4282834.99 | H8: =H9+H10 -> 1196642.453 | I8: =ROUND(H8/1.95583,2) -> 611833.57 | J8: =D8+F8+H8 -> 11966424.53 | K8: =SUM(K9:K10) -> 6118335.71 | L8: 6118335.71 | M8: =K8/$K$26 -> 0.7254192672 | R8: =J9+J12+J21 -> 9955628.925
B9: Гара Стара Загора | C9: 9552108.925 | D9: =$C9*N$3 -> 1910421.785 | E9: 976783.15 | F9: =$C9*O$3 -> 6686476.248 | G9: 3418741.02 | H9: =$C9*P$3 -> 955210.8925 | I9: 488391.57 | J9: 9552108.925 | K9: =ROUND(J9/$M$3,2) -> 4883915.74 | L9: 4883915.74 | Q9: =J10+J13 -> 2457013.2
B10: Гара Нова Загора | C10: 2414315.6 | D10: =$C10*N$3 -> 482863.1201 | E10: 246883.99 | F10: =$C10*O$3 -> 1690020.92 | G10: 864093.98 | H10: =$C10*P$3 -> 241431.56 | I10: 123442 | J10: 2414315.6 | K10: =ROUND(J10/$M$3,2) -> 1234419.97 | L10: 1234419.97
A11: 3 | B11: Обзавеждане и оборудване | C11: =SUM(C12:C13) -> 386217.6 | D11: =D12+D13 -> 77243.52 | E11: 39493.98 | F11: =F12+F13 -> 270352.32 | G11: 138228.95 | H11: =H12+H13 -> 38621.76 | I11: 19746.99 | J11: 386217.6 | K11: =SUM(K12:K13) -> 197469.93 | L11: 0 | M11: =K11/$K$26 -> 0.02341298332
B12: Гара Стара Загора | C12: 343520 | D12: =$C12*N$3 -> 68704 | E12: 35127.8 | F12: =$C12*O$3 -> 240464 | G12: 122947.29 | H12: =$C12*P$3 -> 34352 | I12: 17563.9 | J12: 343520 | K12: =ROUND(J12/$M$3,2) -> 175638.99 | L12: 175638.99
B13: Гара Нова Загора | C13: 42697.6 | D13: =$C13*N$3 -> 8539.52 | E13: 4366.19 | F13: =$C13*O$3 -> 29888.32 | G13: 15281.66 | H13: =$C13*P$3 -> 4269.76 | I13: 2183.09 | J13: 42697.6 | K13: =ROUND(J13/$M$3,2) -> 21830.94 | L13: 21830.94
A14: 4 | B14: Непредвидени разходи | C14: =SUM(C15:C16) -> 1196642.453 | D14: =D15+D16 -> 239328.4905 | E14: 122366.71 | F14: =F15+F16 -> 837649.7168 | G14: 428283.5 | H14: =H15+H16 -> 119664.2453 | I14: 61183.36 | J14: 1196642.453 | K14: =SUM(K15:K16) -> 611833.57 | L14: 611833.57 | M14: =K14/$K$26 -> 0.0725419266
B15: Гара Стара Загора | C15: 955210.8925 | D15: =$C15*N$3 -> 191042.1785 | E15: 97678.31 | F15: =$C15*O$3 -> 668647.6248 | G15: 341874.1 | H15: =$C15*P$3 -> 95521.08925 | I15: 48839.16 | J15: 955210.8925 | K15: =ROUND(J15/$M$3,2) -> 488391.57 | L15: 488391.57
B16: Гара Нова Загора | C16: 241431.56 | D16: =$C16*N$3 -> 48286.31201 | E16: 24688.4 | F16: =$C16*O$3 -> 169002.092 | G16: 86409.4 | H16: =$C16*P$3 -> 24143.156 | I16: 12344.2 | J16: 241431.56 | K16: =ROUND(J16/$M$3,2) -> 123442 | L16: 123442
A17: =A14+1 -> 5 | B17: Техническа помощ | C17: =SUM(C18:C19) -> 1645500 | D17: =D18+D19 -> 329100 | E17: 168266.16 | F17: =F18+F19 -> 1151850 | G17: 588931.55 | H17: =H18+H19 -> 164550 | I17: 84133.08 | J17: 1645500 | K17: =SUM(K18:K19) -> 841330.79 | L17: 841330.79 | M17: =K17/$K$26 -> 0.09975221924
B18: Гара Стара Загора | C18: 1315500 | D18: =$C18*N$3 -> 263100 | E18: 134520.89 | F18: =$C18*O$3 -> 920850 | G18: 470823.13 | H18: =$C18*P$3 -> 131550 | I18: 67260.45 | J18: 1315500 | K18: =ROUND(J18/$M$3,2) -> 672604.47 | L18: 672604.47 | N18: =K18/K33 -> 0.09981063057
B19: Гара Нова Загора | C19: 330000 | D19: =$C19*N$3 -> 66000 | E19: 33745.26 | F19: =$C19*O$3 -> 231000 | G19: 118108.42 | H19: =$C19*P$3 -> 33000 | I19: 16872.63 | J19: 330000 | K19: =ROUND(J19/$M$3,2) -> 168726.32 | L19: 168726.32 | N19: =K19/K34 -> 0.0995200487
A20: 6 | B20: Публичност и информация | C20: =SUM(C21:C22) -> 80000 | D20: =D21+D22 -> 16000 | E20: 8180.67 | F20: =F21+F22 -> 56000 | G20: 28632.35 | H20: =H21+H22 -> 8000 | I20: 4090.34 | J20: 80000 | K20: =SUM(K21:K22) -> 40903.35 | L20: 40903.35 | M20: =K20/$K$26 -> 0.004849697628 | N20: 0,2% Dog SMR
B21: Гара Стара Загора | C21: 60000 | D21: =$C21*N$3 -> 12000 | E21: 6135.5 | F21: =$C21*O$3 -> 42000 | G21: 21474.26 | H21: =$C21*P$3 -> 6000 | I21: 3067.75 | J21: 60000 | K21: =ROUND(J21/$M$3,2) -> 30677.51 | L21: 30677.51
B22: Гара Нова Загора | C22: 20000 | D22: =$C22*N$3 -> 4000 | E22: 2045.17 | F22: =$C22*O$3 -> 14000 | G22: 7158.09 | H22: =$C22*P$3 -> 2000 | I22: 1022.58 | J22: 20000 | K22: =ROUND(J22/$M$3,2) -> 10225.84 | L22: 10225.84
A23: 7 | B23: Строителен надзор | C23: =SUM(C24:C25) -> 992479 | D23: =D24+D25 -> 198495.8 | E23: 101489.29 | F23: =F24+F25 -> 694735.3 | G23: 355212.52 | H23: =H24+H25 -> 99247.9 | I23: 50744.65 | J23: 992479 | K23: =SUM(K24:K25) -> 507446.45 | L23: 507446.45 | M23: =K23/$K$26 -> 0.0601652883 | N23: =J23/(J8+J11) -> 0.08034548317
B24: Гара Стара Загора | C24: 803279 | D24: =$C24*N$3 -> 160655.8 | E24: 82142.01 | F24: =$C24*O$3 -> 562295.3 | G24: 287497.02 | H24: =$C24*P$3 -> 80327.9 | I24: 41071 | J24: 803279 | K24: =ROUND(J24/$M$3,2) -> 410710.03 | L24: 410710.03 | R24: =J7+J10+J13+J25+J16 -> 2965914.76 | S24: =R24*1.95583 -> 5800825.066
B25: Гара Нова Загора | C25: 189200 | D25: =$C25*N$3 -> 37840 | E25: 19347.28 | F25: =$C25*O$3 -> 132440 | G25: 67715.5 | H25: =$C25*P$3 -> 18920 | I25: 9673.64 | J25: 189200 | K25: =ROUND(J25/$M$3,2) -> 96736.42 | L25: 96736.42
B26: Общо: | C26: =C5+C8+C11+C17+C20+C23+C14 -> 16495873.58 | D26: 3482062.716 | E26: 1780350.39 | F26: 11387084.5 | G26: 5822123.86 | H26: 1626726.358 | I26: 831731.99 | J26: 16495873.58 | K26: =+E26+G26+I26 -> 8434206.24 | L26: =IF(K26=ROUND(J26/1.95583,2),K26,ROUND(J26/1.95583,2)) -> 8434206.23 | M26: =J26/$J$26 -> 1 | N26: 52338000
B27: ДДС | C27: =C26*0.2 -> 3299174.716 | D27: =D26*0.2 -> 696412.5431 | E27: 356070.078 | F27: 2277416.901 | G27: 1164424.772 | H27: 325345.2716 | I27: 166346.398 | J27: 3299174.716 | K27: 1686841.248
B28: ОБЩО с ДДС | C28: =IF((C26+C27)=C26*1.2,C26*1.2,0) -> 19795048.29 | D28: =IF((D26+D27)=D26*1.2,D26*1.2,0) -> 4178475.259 | E28: 2136420.468 | F28: 13664501.41 | G28: 6986548.632 | H28: 1952071.629 | I28: 998078.388 | J28: 19795048.29 | K28: 10121047.49
M29: =J26-J14 -> 15299231.13
J32: BGN | K32: EUR
B33: Гара Стара Загора | E33: =E6+E9+E12+E15+E18+E21+E24 -> 1409255.28 | G33: =G6+G9+G12+G15+G18+G21+G24 -> 4663356.82 | I33: =I6+I9+I12+I15+I18+I21+I24 -> 666193.83 | J33: =J6+J9+J12+J15+J18+J21+J24 -> 13179958.82 | K33: =J33/1.95583 -> 6738805.938
B34: Гара Нова Загора | E34: =E7+E10+E13+E16+E19+E22+E25 -> 371095.11 | G34: =G7+G10+G13+G16+G19+G22+G25 -> 1158767.05 | I34: =I7+I10+I13+I16+I19+I22+I25 -> 165538.14 | J34: =J7+J10+J13+J16+J19+J22+J25 -> 3315914.76 | K34: =J34/1.95583 -> 1695400.296
J35: =SUM(J33:J34) -> 16495873.58 | K35: =SUM(K33:K34) -> 8434206.234
B38: =B5 -> Проектиране и планиране | C38: =J5 -> 228610
B39: =B8 -> Строително-монтажни работи | C39: =J8 -> 11966424.53
B40: =B11 -> Обзавеждане и оборудване | C40: =J11 -> 386217.6
B41: =B14 -> Непредвидени разходи | C41: =J14 -> 1196642.453
B42: =B17 -> Техническа помощ | C42: =J17 -> 1645500
B43: =B20 -> Публичност и информация | C43: =J20 -> 80000
B44: =B23 -> Строителен надзор | C44: =J23 -> 992479
C45: =SUM(C38:C44) -> 16495873.58

Sheet E_SAV (hidden)
A1: ЕСМ Стара Загора - Вариант 2
A3: № | B3: ЕСМ | C3: Базов разход на Е | D3: Икономия | H3: Общо | J3: Намаление на Е-потреблението
D4: От ел. Е | E4: От дърва | F4: От въглища | G4: От ПГ
C5: kWh/а | D5: kWh/а | E5: kWh/а | F5: kWh/а | G5: kWh/а | H5: kWh/а | I5: % | J5: Ел. Е | K5: Отопл.
A6: В1 | B6: Подмяна дограма | C6: 2520142 | D6: 177536.23 | E6: 0 | F6: 0 | G6: 133169 | H6: =SUM(D6:G6) -> 310705.23 | I6: =H6/(C6-1) -> 0.1232888279 | J6: =D6/(C6-1) -> 0.07044694325 | K6: =I6-J6 -> 0.05284188464
A7: В2 | B7: Топлоизолация стени | C7: 2520142 | D7: 23081.94 | E7: 0 | F7: 0 | G7: 37435 | H7: =SUM(D7:G7) -> 60516.94 | I7: =H7/(C7-1) -> 0.02401331513 | J7: =D7/(C7-1) -> 0.009158987533 | K7: =I7-J7 -> 0.0148543276
A8: В3 | B8: Топлоизолация покрив | C8: 2520142 | D8: 28534.31 | E8: 0 | F8: 0 | G8: 36897 | H8: 65431.31 | I8: =H8/(C8-1) -> 0.02596335284 | J8: 0.01132250537 | K8: 0.01464084748
A9: В4 | B9: Топлоизолация под | C9: 2520142 | D9: 28188.51 | E9: 0 | F9: 0 | G9: 35921 | H9: 64109.51 | I9: 0.02543885838 | J9: 0.01118529082 | K9: 0.01425356756
A10: С1 | B10: Подмяна ВОИ | C10: 2520142 | D10: 139725.59 | E10: 0 | F10: 0 | G10: 97499.52 | H10: 237225.11 | I10: 0.09413168152 | J10: 0.0554435605 | K10: 0.03868812102
A11: С2 | B11: Подмяна вентилационна с-ма | C11: 2520142 | D11: 42629 | E11: 0 | F11: 0 | G11: 648949 | H11: 691578 | I11: 0.2744203598 | J11: 0.01691532339 | K11: 0.2575050364
A12: С3 | B12: Подмяна осветителна инст-я | C12: 2520142 | D12: 149446 | E12: 0 | F12: 0 | G12: 0 | H12: 149446 | I12: 0.05930065024 | J12: 0.05930065024 | K12: 0
A13: С4 | B13: Слънчеви колектори за БГВ | C13: 2520142 | D13: 1892.16 | E13: 0 | F13: 0 | G13: 0 | H13: 1892.16 | I13: 0.000750815133 | J13: 0.000750815133 | K13: 0
A14: С5 | B14: Нови климатизатори | C14: 2520142 | D14: 128610 | E14: 0 | F14: 0 | G14: 0 | H14: 128610 | I14: 0.05103285888 | J14: 0.05103285888 | K14: 0
A15: С6 | B15: ФЕЦ 30 kW | C15: 2520142 | D15: 39754 | E15: 0 | F15: 0 | G15: 0 | H15: 39754 | I15: =H15/(C15-1) -> 0.0157745142 | J15: 0.0157745142 | K15: 0
B16: Общо пакет ЕСМ | C16: 2520142 | D16: =SUM(D6:D15) -> 759397.74 | E16: =SUM(E6:E15) -> 0 | F16: 0 | G16: 989870.52 | H16: 1749268.26 | I16: 0.694115234 | J16: 0.3013314493 | K16: 0.3927837847
A18: Нова Загора - сравнение СП и БП
A20: № | B20: Енергопотребление | C20: Базов разход на Е (БП) | D20: След ЕСМ (СП) | E20: Икономия
C22: kWh/а | D22: kWh/а | E22: kWh/а
A23: 1 | B23: Отопление | C23: 100921 | D23: 4114 | E23: =C23-D23 -> 96807
A24: 2 | B24: Вентилация | C24: 0 | D24: 2954 | E24: =C24-D24 -> -2954
A25: 3 | B25: БГВ | C25: 115 | D25: 3132 | E25: -3017
A26: 4 | B26: Помпи | C26: 0 | D26: 0 | E26: 0
A27: 5 | B27: Осветление | C27: 4276 | D27: 6246 | E27: -1970
A28: 6 | B28: Други | C28: 3354 | D28: 13622 | E28: -10268
B29: Общо пакет ЕСМ | C29: 108666 | D29: =SUM(D23:D28) -> 30068 | E29: =SUM(E23:E28) -> 78598
E30: =E29/(C29-1) -> 0.7233055722

Sheet Допускания
D2: Основни Допускания
D4: Цялостна предварителна оценка на въздействието на предложения за изменение и допълнение на ЗООС
E5: Мярка | F5: Стойност | G5: Източник
D6: Параметри на модела
D7: Базова година | E7: година | F7: 2019
D8: Първа година от проекта | E8: година | F8: 2020
D9: Период на проекта | E9: години | F9: 10
D10: Валута | E10: символ | F10: BGN
D11: Дисконтов процент | E11: % | F11: 0.05
D13: Макроикономически данни
D14: Корпоративен данък | E14: % | F14: 0.1 | G14: НАП
D15: Инфлация, България 2019 | E15: % | F15: 0.018 | G15: Средносречна бюджетна прогноза 2020-2022 - Април 2018
D16: Реален ръст на БВП, България 2019г. | E16: % | F16: 0.034 | G16: Средносречна бюджетна прогноза 2020-2022 - Април 2019
D17: Ниво на безработица 2019 | E17: % | F17: 0.046 | G17: Средносречна бюджетна прогноза 2020-2022 - Април 2020
D18: Ниво на заетост 2019 | E18: % | F18: 0.004 | G18: Средносречна бюджетна прогноза 2020-2022 - Април 2021
D19: Заетост в сектор околна среда2018 г. - администрация и неспец. персонал | E19: брой | F19: =32.879*1000 -> 32879 | G19: https://www.nsi.bg/bg/content/7703/%D0%B1%D1%80%D0%BE%D0%B9-%D0%BD%D0%B0-%D0%B7%D0%B0%D0%B5%D1%82%D0%B8%D1%82%D0%B5-%D0%BB%D0%B8%D1%86%D0%B0
D20: Часова ставка в сектор околна среда - частен | E20: лв/ч | F20: 8.64 | G20: https://www.nsi.bg
D21: Часова ставка в сектор околна среда - обществен | E21: лв/ч | F21: 8.36
D22: Брой организации | E22: брой | F22: 281 | G22: 16 броя РИОСВ и МОСВ
D23: Брой Уведомления по чл.4, ал.1 от Наредбата за условията и реда за извършване на оценка на въздействието върху околната среда (ОВОС) за инвестиционни предложения | E23: брой | F23: =ROUND((1866+1684+1354)/3,0) -> 1635 | G23: данни на МОСВ
D24: Уведомление за ИП - Приложение №5 към чл.4, ал.1 | E24: час | F24: 8
D25: Документи, доказващи обявяване на инвестиционното предложение на интернет страницата на възложителя, ако има такава, и чрез средствата за масово осведомяване или по друг подходящ начин съгласно изискванията на чл. 95, ал. 1 от ЗООС | E25: час | F25: 0.5
D26: Документи, удостоверяващи по реда на специален закон, нормативен или административен акт права за иницииране или кандидатстване за одобряване на инвестиционно предложение | E26: час | F26: 0.5
D27: Други документи по преценка на уведомителя | E27: час | F27: 0.5
D28: Цена за публикация на ИПв средствата за масово осведомяване | E28: лв. | F28: 75 | G28: данни от попълнен въпросник
D29: Време за изготвяне на копие на доказателствен документ | E29: час | F29: =10/60 -> 0.1666666667 | G29: експертна преценка
D30: Среден брой ангажирани служители за изпълнение на процедури по регулацията | E30: брой | F30: 2 | G30: експертна преценка
D31: Брой допълнително ангажирани лица за осигуряване на съответствие на работните процеси в засегнатите администрации | E31: брой | F31: 1 | G31: данни на МОСВ
D32: Време за изпълнение на дейностите по регулация в засегнатите администрации | E32: час | F32: 1 | G32: експертна преценка
D33: Среден брой лица, заети с дейности по изготвяне на Уведомление за извършената класификация за 1 организация | E33: брой | F33: 2 | G33: експертна преценка
D34: Общ брой засегнати организации - средногодишен брой ИП | E34: брой | F34: 4 | G34: данни на МОСВ
D35: Брой предприятия с ОВОС | E35: брой | F35: 33 | G35: данни на МОСВ (осреднени)

Sheet Адм тежест ЗООС-АДМИН
D2: Администратвна тежест
D4: Административна тежест Вариант 0 "Без действие"
D5: Вид задължение | E5: Часова ставка (лв) | F5: Време за дейността (ч) | G5: Цена на дейността (лв) | H5: Честота | I5: Брой организации | J5: Общ брой дейности | K5: Административна тежест
D6: Осигуряване на съответствие на работните процеси в засегнатите администрации | E6: =Допускания!$F$21 -> 8.36 | F6: =Допускания!F30*Допускания!F32 -> 2 | G6: =E6*F6 -> 16.72 | H6: =(Допускания!F34+Допускания!F35)/I6 -> 0.1316725979 | I6: =264+17 -> 281 | J6: =I6*H6 -> 37 | K6: =G6*J6 -> 618.64
D9: ОБЩА АДМИНИСТРАТИВНА ТЕЖЕСТ | K9: =K6 -> 618.64
D13: Административна тежест Вариант 1 "Съществена регулаторна намеса"
D14: Вид задължение | E14: Часова ставка (лв) | F14: Време за дейността (ч) | G14: Цена на дейността (лв) | H14: Честота | I14: Брой организации | J14: Общ брой дейности | K14: Административна тежест
D15: =D6 -> Осигуряване на съответствие на работните процеси в засегнатите администрации | E15: =Допускания!$F$21 -> 8.36 | F15: =F6+Допускания!F31*Допускания!F32 -> 3 | G15: =E15*F15 -> 25.08 | H15: =H6 -> 0.1316725979 | I15: =264+17 -> 281 | J15: =I15*H15 -> 37 | K15: =G15*J15 -> 927.96
D17: ОБЩА АДМИНИСТРАТИВНА ТЕЖЕСТ | K17: =K15 -> 927.96
D21: Възникване на допълнителна административна тежест в следствие от необходимост от пренасочване на човешки ресурс и/или ангажиране на допълнителен човешки ресурс за осигуряване на съответствие на работните процеси в засегнатите администрации | K21: =K17-K9 -> 309.32
K22: =(K17/$K$9-1) -> 0.5
D26: Административна тежест Вариант 2 "Промени в правоприлагането"
D27: Вид задължение | E27: Часова ставка (лв) | F27: Време за дейността (ч) | G27: Цена на дейността (лв) | H27: Честота | I27: Брой организации | J27: Общ брой дейности | K27: Административна тежест
D28: =D6 -> Осигуряване на съответствие на работните процеси в засегнатите администрации | E28: =Допускания!$F$21 -> 8.36 | F28: =F15 -> 3 | G28: =E28*F28 -> 25.08 | H28: =H15 -> 0.1316725979 | I28: =I15 -> 281 | J28: =I28*H28 -> 37 | K28: =G28*J28 -> 927.96
D30: ОБЩА АДМИНИСТРАТИВНА ТЕЖЕСТ | K30: =K28 -> 927.96
D34: Възникване на допълнителна административна тежест в следствие от необходимост от пренасочване на човешки ресурс и/или ангажиране на допълнителен човешки ресурс за осигуряване на съответствие на работните процеси в засегнатите администрации | K34: =K30-K22 -> 927.46
K35: =(K30/$K$9-1) -> 0.5

Sheet Адм тежест ЗООС-бизнес
D2: Администратвна тежест
D4: Цялостна предварителна оценка на въздействието на предложения за изменение и допълнение на ЗООС
D6: Административна тежест Вариант 0 "Без действие"
D7: Вид задължение | E7: Часова ставка (лв) | F7: Време за дейността (ч) | G7: Цена на дейността (лв) | H7: Честота (год) | I7: Брой организации | J7: Общ брой дейности | K7: Административна тежест | N7: Честота на дейностите за 10-годишен период
D8: Превозвачи | K8: =SUM(K9:K10) -> 0
D9: Издаване на лиценз/разрешение | E9: 0 | F9: 0 | G9: =E9*F9 -> 0 | H9: 0 | I9: 0 | J9: =I9*H9 -> 0 | K9: =G9*J9 -> 0 | N9: 10 | O9: =E9*8*21 -> 0
D10: Промяна, продължаване, преиздаване на лиценз или разрешение | E10: 0 | F10: 0 | G10: =E10*F10 -> 0 | H10: 0 | I10: 0 | J10: =I10*H10 -> 0 | K10: =G10*J10 -> 0 | N10: 5
E11: 0 | F11: 0 | H11: 0 | I11: 0
D12: Таксиметрови превози | E12: 0 | F12: 0 | H12: 0 | I12: 0 | K12: =SUM(K13:K13) -> 0
D13: Разрешение | E13: 0 | F13: 0 | G13: =E13*F13 -> 0 | H13: 0 | I13: 0 | J13: =I13*H13 -> 0 | K13: =G13*J13 -> 0 | N13: 3
D14: Промяна, преиздаване на разрешение | E14: 0 | F14: 0 | G14: =E14*F14 -> 0 | H14: 0 | I14: 0 | J14: =I14*H14 -> 0 | K14: =G14*J14 -> 0 | N14: 2
E15: 0 | F15: 0 | H15: 0 | I15: 0
D16: Курсове за повишаване квалификацията | E16: 0 | F16: 0 | H16: 0 | I16: 0 | K16: =K17 -> 0
D17: Регистрация | E17: 0 | F17: 0 | G17: =E17*F17 -> 0 | H17: 0 | I17: 0 | J17: =I17*H17 -> 0 | K17: =G17*J17 -> 0 | N17: 3
D18: Промяна, пререгистрация | E18: 0 | F18: 0 | G18: =E18*F18 -> 0 | H18: 0 | I18: 0 | J18: =I18*H18 -> 0 | K18: =G18*J18 -> 0 | N18: 1
E19: 0 | F19: 0 | H19: 0 | I19: 0
D20: Курсове за водачи на МПС опасни товари | E20: 0 | F20: 0 | H20: 0 | I20: 0 | K20: =K21 -> 0
D21: Разрешение | E21: 0 | F21: 0 | G21: =E21*F21 -> 0 | H21: 0 | I21: 0 | J21: =I21*H21 -> 0 | K21: =G21*J21 -> 0 | N21: 3
D22: Промяна, преиздаване на разрешение | E22: 0 | F22: 0 | G22: =E22*F22 -> 0 | H22: 0 | I22: 0 | J22: =I22*H22 -> 0 | K22: =G22*J22 -> 0 | N22: 1
F23: 0 | H23: 0 | I23: 0
D24: Монтаж, проверка и ремонт на тахографи | F24: 0 | H24: 0 | I24: 0 | K24: =K25 -> 0
D25: Регистрация | E25: 0 | F25: 0 | G25: =E25*F25 -> 0 | H25: 0 | I25: 0 | J25: =I25*H25 -> 0 | K25: =G25*J25 -> 0 | N25: 1
D26: Промяна, преристрация | E26: 0 | F26: 0 | G26: =E26*F26 -> 0 | H26: 0 | I26: 0 | J26: =I26*H26 -> 0 | K26: =G26*J26 -> 0 | N26: 1
D28: ОБЩА АДМИНИСТРАТИВНА ТЕЖЕСТ БП | K28: =K8+K12+K16+K20+K24 -> 0
D31: Административна тежест Вариант 0 "Без действие"
D32: Вид задължение | E32: Часова ставка (лв) | F32: Време за дейността (ч) | G32: Цена на дейността (лв) | H32: Честота (год) | I32: Брой организации | J32: Общ брой дейности | K32: Административна тежест | P32: =SUM(P34:P53) -> 3523
D33: =Допускания!$D$24 -> Уведомление за ИП - Приложение №5 към чл.4, ал.1 | E33: =Допускания!$F$20 -> 8.64 | F33: =Допускания!$F$24 -> 8 | G33: =E33*F33 -> 69.12 | H33: =J33/I33 -> 0.4640931025 | I33: =$P$32 -> 3523 | J33: =Допускания!$F$23 -> 1635 | K33: =G33*J33 -> 113011.2
D34: =Допускания!$D$25 -> Документи, доказващи обявяване на инвестиционното предложение на интернет страницата на възложителя, ако има такава, и чрез средствата за масово осведомяване или по друг подходящ начин съгласно изискванията на чл. 95, ал. 1 от ЗООС | E34: =Допускания!$F$20 -> 8.64 | F34: =Допускания!$F$25 -> 0.5 | G34: =E34*F34 -> 4.32 | H34: =J34/I34 -> 0.4640931025 | I34: =$P$32 -> 3523 | J34: =Допускания!$F$23 -> 1635 | K34: =G34*J34 -> 7063.2 | P34: 272 | Q34: 16 броя РИОСВ и МОСВ
D35: =Допускания!$D$26 -> Документи, удостоверяващи по реда на специален закон, нормативен или административен акт права за иницииране или кандидатстване за одобряване на инвестиционно предложение | E35: =Допускания!$F$20 -> 8.64 | F35: =Допускания!$F$26 -> 0.5 | G35: =E35*F35 -> 4.32 | H35: 0.4640931025 | I35: =$P$32 -> 3523 | J35: =Допускания!$F$23 -> 1635 | K35: =G35*J35 -> 7063.2
D36: =Допускания!$D$27 -> Други документи по преценка на уведомителя | E36: =Допускания!$F$20 -> 8.64 | F36: =Допускания!$F$27 -> 0.5 | G36: 4.32 | H36: 0.4640931025 | I36: 3523 | J36: =Допускания!$F$23 -> 1635 | K36: 7063.2
P38: 259
D39: ОБЩА АДМИНИСТРАТИВНА ТЕЖЕСТ | K39: =SUM(K33:K38) -> 134200.8 | P39: 221
P40: 482
D41: Административна тежест Вариант 1 "Съществена регулаторна намеса" | P41: 41
D42: Вид задължение | E42: Часова ставка (лв) | F42: Време за дейността (ч) | G42: Цена на дейността (лв) | H42: Честота (год) | I42: Брой организации | J42: Общ брой дейности | K42: Административна тежест | P42: 101
D43: =Допускания!$D$24 -> Уведомление за ИП - Приложение №5 към чл.4, ал.1 | E43: =Допускания!$F$20 -> 8.64 | F43: =Допускания!$F$24 -> 8 | G43: =E43*F43 -> 69.12 | H43: =J43/I43 -> 0.4640931025 | I43: =$P$32 -> 3523 | J43: =Допускания!$F$23 -> 1635 | K43: =G43*J43 -> 113011.2 | P43: 214
D44: Документи, доказващи обявяване на инвестиционното предложение на интернет страницата на възложителя, ако има такава, или по друг подходящ начин съгласно изискванията на чл. 95, ал. 1 от ЗООС | E44: =Допускания!$F$20 -> 8.64 | F44: =Допускания!$F$25-Допускания!$F$29 -> 0.3333333333 | G44: =E44*F44 -> 2.88 | H44: =J44/I44 -> 0.4640931025 | I44: =$P$32 -> 3523 | J44: =Допускания!$F$23 -> 1635 | K44: 4708.8 | P44: 317
D45: =Допускания!$D$26 -> Документи, удостоверяващи по реда на специален закон, нормативен или административен акт права за иницииране или кандидатстване за одобряване на инвестиционно предложение | E45: =Допускания!$F$20 -> 8.64 | F45: =Допускания!$F$26 -> 0.5 | G45: =E45*F45 -> 4.32 | H45: 0.4640931025 | I45: =$P$32 -> 3523 | J45: =Допускания!$F$23 -> 1635 | K45: 7063.2 | P45: 232
D46: =Допускания!$D$27 -> Други документи по преценка на уведомителя | E46: =Допускания!$F$20 -> 8.64 | F46: =Допускания!$F$27 -> 0.5 | G46: 4.32 | H46: 0.4640931025 | I46: 3523 | J46: =Допускания!$F$23 -> 1635 | K46: 7063.2 | P46: 169
P47: 145
P48: 275
D49: ОБЩА АДМИНИСТРАТИВНА ТЕЖЕСТ | K49: =SUM(K43:K48) -> 131846.4 | P49: 6
P50: 113
D51: Промяна на административната тежест | K51: =K49-$K$39 -> -2354.4 | P51: 270
K52: =(K49/$K$39-1) -> -0.01754385965 | P52: 240
P53: 166
D55: Административна тежест Вариант 2 "Промени в правоприлагането"
D56: Вид задължение | E56: Часова ставка (лв) | F56: Време за дейността (ч) | G56: Цена на дейността (лв) | H56: Честота (год) | I56: Брой организации | J56: Общ брой дейности | K56: Административна тежест
D57: =Допускания!$D$24 -> Уведомление за ИП - Приложение №5 към чл.4, ал.1 | E57: =Допускания!$F$20 -> 8.64 | F57: =Допускания!$F$24 -> 8 | G57: =E57*F57 -> 69.12 | H57: =J57/I57 -> 0.4640931025 | I57: =$P$32 -> 3523 | J57: =Допускания!$F$23 -> 1635 | K57: =G57*J57 -> 113011.2
D58: =Допускания!$D$25 -> Документи, доказващи обявяване на инвестиционното предложение на интернет страницата на възложителя, ако има такава, и чрез средствата за масово осведомяване или по друг подходящ начин съгласно изискванията на чл. 95, ал. 1 от ЗООС | E58: =Допускания!$F$20 -> 8.64 | F58: =Допускания!$F$25 -> 0.5 | G58: =E58*F58 -> 4.32 | H58: =J58/I58 -> 0.4640931025 | I58: =$P$32 -> 3523 | J58: =Допускания!$F$23 -> 1635 | K58: 7063.2
D59: =Допускания!$D$26 -> Документи, удостоверяващи по реда на специален закон, нормативен или административен акт права за иницииране или кандидатстване за одобряване на инвестиционно предложение | E59: =Допускания!$F$20 -> 8.64 | F59: =Допускания!$F$26 -> 0.5 | G59: =E59*F59 -> 4.32 | H59: 0.4640931025 | I59: =$P$32 -> 3523 | J59: =Допускания!$F$23 -> 1635 | K59: 7063.2
D60: =Допускания!$D$27 -> Други документи по преценка на уведомителя | E60: =Допускания!$F$20 -> 8.64 | F60: =Допускания!$F$27 -> 0.5 | G60: 4.32 | H60: 0.4640931025 | I60: 3523 | J60: =Допускания!$F$23 -> 1635 | K60: 7063.2
D63: ОБЩА АДМИНИСТРАТИВНА ТЕЖЕСТ | K63: =SUM(K57:K62) -> 134200.8
D65: Промяна на административната тежест | K65: =K63-$K$39 -> 0
K66: =(K63/$K$39-1) -> 0

Sheet Ползи и Разходи ЗООС
D2: Прогноза за приходите
G4: ▼▼▼Historical data▼▼▼ | H4: ►►► Projection ►►►
D5: =Допускания!D4 -> Цялостна предварителна оценка на въздействието на предложения за изменение и допълнение на ЗООС | E5: Мярка | G5: =F11 -> 2019 | H5: =G5+1 -> 2020 | I5: 2021 | J5: 2022 | K5: 2023 | L5: 2024 | M5: 2025 | N5: 2026 | O5: 2027 | P5: 2028 | Q5: 2029
G6: 0 | H6: 1 | I6: =H6+1 -> 2 | J6: 3 | K6: 4 | L6: 5 | M6: 6 | N6: 7 | O6: 8 | P6: 9 | Q6: 10
D8: Основни параметри
D10: Параметри на модела
D11: Базова година | E11: година | F11: =Допускания!F7 -> 2019
D12: Период на проекта | E12: години | F12: =Допускания!F9 -> 10
D13: Местна валута | E13: символ | F13: =Допускания!F10 -> BGN
D14: Макроикономически допускания
D15: Инфлация, България | E15: % | G15: =Допускания!$F$15 -> 0.018 | H15: 0.025 | I15: 0.023 | J15: 0.022 | K15: =J15 -> 0.022 | L15: =K15 -> 0.022 | M15: 0.022 | N15: 0.022 | O15: 0.022 | P15: 0.022 | Q15: 0.022
D16: Инфлационен индекс, България | E16: коефициент | G16: 1 | H16: =+G16*(1+I15) -> 1.023 | I16: =+H16*(1+J15) -> 1.045506 | J16: =+I16*(1+K15) -> 1.068507132 | K16: =+J16*(1+L15) -> 1.092014289 | L16: =+K16*(1+L15) -> 1.116038603 | M16: 1.140591453 | N16: 1.165684464 | O16: 1.191329523 | P16: 1.217538772 | Q16: 1.244324625
D17: Реален ръст на БВП | E17: % | G17: =Допускания!$F$16 -> 0.034 | H17: 0.033 | I17: 0.033 | J17: 0.033 | K17: =J17 -> 0.033 | L17: =K17 -> 0.033 | M17: 0.033 | N17: 0.033 | O17: 0.033 | P17: 0.033 | Q17: 0.033
D18: БВП коефициент на нарастване | G18: 1 | H18: =G18*(1+H17) -> 1.033 | I18: =H18*(1+I17) -> 1.067089 | J18: =I18*(1+J17) -> 1.102302937 | K18: =J18*(1+K17) -> 1.138678934 | L18: =K18*(1+L17) -> 1.176255339 | M18: =L18*(1+M17) -> 1.215071765 | N18: =M18*(1+N17) -> 1.255169133 | O18: 1.296589715 | P18: 1.339377175 | Q18: 1.383576622
D20: Вариант 0 Без действие
D22: Ползи
D28: Общо приходи Вариант 0 | E28: лева | G28: 0 | H28: 0 | I28: 0 | J28: 0 | K28: 0 | L28: 0 | M28: 0 | N28: 0 | O28: 0 | P28: 0 | Q28: 0
D30: Разходи
D31: Разходи за публикация на ИП в средствата за масово осведомяване | E31: лева | G31: =Допускания!F28*Допускания!F23 -> 122625 | H31: =G31 -> 122625 | I31: =H31*I$18 -> 130851.7886 | J31: =I31*J$18 -> 144238.3109 | K31: 164241.1261 | L31: 193189.5014 | M31: 234739.1085 | N31: 294637.2833 | O31: 382023.671 | P31: 511673.7853 | Q31: 707939.8874
D32: Разходи за подготовка и подаване на Уведомление за инвестиционно предложение | E32: лева | G32: ='Адм тежест ЗООС-бизнес'!$K$39 -> 134200.8 | H32: =G32 -> 134200.8 | I32: =H32*I$18 -> 143204.1975 | J32: =I32*J$18 -> 157854.4075 | K32: 179745.4884 | L32: 211426.5904 | M32: 256898.4803 | N32: 322451.0428 | O32: 418086.7056 | P32: 559975.7907 | Q32: 774769.4128
D33: Разходи за Администрацията | G33: ='Адм тежест ЗООС-АДМИН'!K9 -> 618.64 | H33: =G33 -> 618.64 | I33: =H33*I$18 -> 660.143939 | J33: =I33*J$18 -> 727.6786028 | K33: =J33*K$18 -> 828.5922956 | L33: =K33*L$18 -> 974.6361114 | M33: =L33*M$18 -> 1184.25282 | N33: =M33*N$18 -> 1486.437586 | O33: =N33*O$18 -> 1927.299685 | P33: =O33*P$18 -> 2581.381207 | Q33: =P33*Q$18 -> 3571.538691
D34: Общо разходи Вариант 0 | E34: лева | G34: =SUM(G31:G33) -> 257444.44 | H34: =SUM(H31:H33) -> 257444.44 | I34: 274716.13 | J34: 302820.397 | K34: 344815.2068 | L34: 405590.7279 | M34: 492821.8416 | N34: 618574.7637 | O34: 802037.6763 | P34: 1074230.957 | Q34: 1486280.839 | S34: =AVERAGE(G34:Q34) -> 574252.4927
D36: Вариант 1 Съществена регулаторна намеса
D38: Ползи
D44: Общо приходи Вариант 0 | E44: лева | G44: 0 | H44: 0 | I44: 0 | J44: 0 | K44: 0 | L44: 0 | M44: 0 | N44: 0 | O44: 0 | P44: 0 | Q44: 0
D46: Разходи
D47: =D31 -> Разходи за публикация на ИП в средствата за масово осведомяване | E47: лева | G47: =G31 -> 122625 | H47: 0 | I47: =H47*I$18 -> 0 | J47: =I47*J$18 -> 0 | K47: =J47*K$18 -> 0 | L47: =K47*L$18 -> 0 | M47: =L47*M$18 -> 0 | N47: =M47*N$18 -> 0 | O47: =N47*O$18 -> 0 | P47: =O47*P$18 -> 0 | Q47: =P47*Q$18 -> 0
D48: =D32 -> Разходи за подготовка и подаване на Уведомление за инвестиционно предложение | E48: лева | G48: =G32 -> 134200.8 | H48: ='Адм тежест ЗООС-бизнес'!K49 -> 131846.4 | I48: =H48*I$18 -> 140691.8431 | J48: 155085.0319 | K48: 176592.0588 | L48: 207717.3519 | M48: 252391.4894 | N48: 316794.007 | O48: 410751.8511 | P48: 550151.654 | Q48: 761176.967
D49: Разходи за Администрацията | G49: =G33 -> 618.64 | H49: ='Адм тежест ЗООС-АДМИН'!K17 -> 927.96 | I49: =H49*I$18 -> 990.2159084 | J49: 1091.517904 | K49: 1242.888443 | L49: 1461.954167 | M49: 1776.37923 | N49: 2229.656378 | O49: 2890.949527 | P49: 3872.071811 | Q49: 5357.308036
D50: Общо разходи Вариант 0 | E50: лева | G50: =SUM(G47:G49) -> 257444.44 | H50: =SUM(H47:H49) -> 132774.36 | I50: =SUM(I47:I49) -> 141682.059 | J50: =SUM(J47:J49) -> 156176.5498 | K50: =SUM(K47:K49) -> 177834.9472 | L50: =SUM(L47:L49) -> 209179.3061 | M50: =SUM(M47:M49) -> 254167.8686 | N50: =SUM(N47:N49) -> 319023.6634 | O50: =SUM(O47:O49) -> 413642.8006 | P50: =SUM(P47:P49) -> 554023.7258 | Q50: =SUM(Q47:Q49) -> 766534.275 | S50: =AVERAGE(G50:Q50) -> 307498.545
D52: Ползи (икономии на разходи)
D53: Публикация на ИП в средствата за масово осведомяване | E53: лева | G53: =-(G47-G31) -> 0 | H53: =-(H47-H31) -> 122625 | I53: 130851.7886 | J53: 144238.3109 | K53: 164241.1261 | L53: 193189.5014 | M53: 234739.1085 | N53: 294637.2833 | O53: 382023.671 | P53: 511673.7853 | Q53: 707939.8874
D54: Разходи по Уведомление за инвестиционно предложение | E54: лева | G54: =-(G48-G32) -> 0 | H54: =-(H48-H32) -> 2354.4 | I54: 2512.354342 | J54: 2769.37557 | K54: 3153.429621 | L54: 3709.238427 | M54: 4506.990882 | N54: 5657.035839 | O54: 7334.854484 | P54: 9824.136678 | Q54: 13592.44584
D55: Разходи (увеличение на разходи)
D56: Разходи за Администрацията | G56: =-(G49-G33) -> 0 | H56: =-(H49-H33) -> -309.32 | I56: -330.0719695 | J56: -363.8393014 | K56: -414.2961478 | L56: -487.3180557 | M56: -592.12641 | N56: -743.2187928 | O56: -963.6498424 | P56: -1290.690604 | Q56: -1785.769345
D57: НЕТЕН ПАРИЧЕН ПОТОК | E57: лева | G57: =SUM(G53:G56) -> 0 | H57: 124670.08 | I57: 133034.071 | J57: 146643.8472 | K57: 166980.2596 | L57: 196411.4218 | M57: 238653.9729 | N57: 299551.1003 | O57: 388394.8757 | P57: 520207.2314 | Q57: 719746.5639
D59: НЕТЕН ПАРИЧЕН ПОТОК | E59: лева | G59: =(#REF!-#REF!)-(G28-G34) ->  | H59: =(#REF!-#REF!)-(H28-H34) ->  | I59: =(#REF!-#REF!)-(I28-I34) ->  | J59: =(#REF!-#REF!)-(J28-J34) ->  | K59: =(#REF!-#REF!)-(K28-K34) ->  | L59: =(#REF!-#REF!)-(L28-L34) ->  | M59: =(#REF!-#REF!)-(M28-M34) ->  | N59: =(#REF!-#REF!)-(N28-N34) ->  | O59: =(#REF!-#REF!)-(O28-O34) ->  | P59: =(#REF!-#REF!)-(P28-P34) ->  | Q59: =(#REF!-#REF!)-(Q28-Q34) -> 
D60: Норма на дисконтиране | E60: % | F60: =[3]Допускания!$D$10 -> 0.05
D61: Нетна настояща стойност | E61: =NPV($F$60,G57:Q57) -> 1988942.877
D62: ННС | E62: =NPV($F$60,G59:Q59) -> 
D63: Отношение Ползи/Разходи | E63: =NPV(F60,#REF!)/NPV(F60,G34:Q34) -> 
D64: Норма на възвращаемост | E64: =IRR(G59:Q59,F60) -> 
D67: Вариант 2 Промени в правоприлагането
D69: Разходи
D70: =D31 -> Разходи за публикация на ИП в средствата за масово осведомяване | E70: лева | G70: =G31 -> 122625 | H70: =H31 -> 122625 | I70: 130851.7886 | J70: 144238.3109 | K70: 164241.1261 | L70: 193189.5014 | M70: 234739.1085 | N70: 294637.2833 | O70: 382023.671 | P70: 511673.7853 | Q70: 707939.8874
D71: =D32 -> Разходи за подготовка и подаване на Уведомление за инвестиционно предложение | E71: лева | G71: =G32 -> 134200.8 | H71: =H32 -> 134200.8 | I71: 143204.1975 | J71: 157854.4075 | K71: 179745.4884 | L71: 211426.5904 | M71: 256898.4803 | N71: 322451.0428 | O71: 418086.7056 | P71: 559975.7907 | Q71: 774769.4128
D72: Разходи за Администрацията | G72: =G49 -> 618.64 | H72: =H49 -> 927.96 | I72: 990.2159084 | J72: 1091.517904 | K72: 1242.888443 | L72: 1461.954167 | M72: 1776.37923 | N72: 2229.656378 | O72: 2890.949527 | P72: 3872.071811 | Q72: 5357.308036
D73: Общо разходи Вариант 0 | E73: лева | G73: =SUM(G70:G72) -> 257444.44 | H73: =SUM(H70:H72) -> 257753.76 | I73: =SUM(I70:I72) -> 275046.202 | J73: =SUM(J70:J72) -> 303184.2363 | K73: =SUM(K70:K72) -> 345229.5029 | L73: =SUM(L70:L72) -> 406078.0459 | M73: =SUM(M70:M72) -> 493413.968 | N73: =SUM(N70:N72) -> 619317.9825 | O73: =SUM(O70:O72) -> 803001.3261 | P73: =SUM(P70:P72) -> 1075521.648 | Q73: =SUM(Q70:Q72) -> 1488066.608 | S73: =AVERAGE(G73:Q73) -> 574914.3382
D75: Ползи (икономии на разходи)
D76: Публикация на ИП в средствата за масово осведомяване | E76: лева | G76: =-(G70-G31) -> 0 | H76: =-(H70-H31) -> 0 | I76: 0 | J76: 0 | K76: 0 | L76: 0 | M76: 0 | N76: 0 | O76: 0 | P76: 0 | Q76: 0
D77: Разходи по Уведомление за инвестиционно предложение | E77: лева | G77: =-(G71-G32) -> 0 | H77: =-(H71-H32) -> 0 | I77: 0 | J77: 0 | K77: 0 | L77: 0 | M77: 0 | N77: 0 | O77: 0 | P77: 0 | Q77: 0
D78: Разходи (увеличение на разходи)
D79: Разходи за Администрацията | G79: =-(G72-G33) -> 0 | H79: =-(H72-H33) -> -309.32 | I79: -330.0719695 | J79: -363.8393014 | K79: -414.2961478 | L79: -487.3180557 | M79: -592.12641 | N79: -743.2187928 | O79: -963.6498424 | P79: -1290.690604 | Q79: -1785.769345
D80: НЕТЕН ПАРИЧЕН ПОТОК | E80: лева | G80: =SUM(G76:G79) -> 0 | H80: -309.32 | I80: -330.0719695 | J80: -363.8393014 | K80: -414.2961478 | L80: -487.3180557 | M80: -592.12641 | N80: -743.2187928 | O80: -963.6498424 | P80: -1290.690604 | Q80: -1785.769345
D82: НЕТЕН ПАРИЧЕН ПОТОК | E82: лева | G82: =(#REF!-#REF!)-(G51-G57) ->  | H82: =(#REF!-#REF!)-(H51-H57) ->  | I82: =(#REF!-#REF!)-(I51-I57) ->  | J82: =(#REF!-#REF!)-(J51-J57) ->  | K82: =(#REF!-#REF!)-(K51-K57) ->  | L82: =(#REF!-#REF!)-(L51-L57) ->  | M82: =(#REF!-#REF!)-(M51-M57) ->  | N82: =(#REF!-#REF!)-(N51-N57) ->  | O82: =(#REF!-#REF!)-(O51-O57) ->  | P82: =(#REF!-#REF!)-(P51-P57) ->  | Q82: =(#REF!-#REF!)-(Q51-Q57) -> 
D83: Норма на дисконтиране | E83: % | F83: =[3]Допускания!$D$10 -> 0.05
D84: Нетна настояща стойност | E84: =NPV($F$60,G80:Q80) -> -4934.783156
I87: =#REF!-#REF! ->  | J87: =#REF!-#REF! ->  | K87: =#REF!-#REF! ->  | L87: =#REF!-#REF! ->  | M87: =#REF!-#REF! ->  | N87: =#REF!-#REF! ->  | O87: =#REF!-#REF! ->  | P87: =#REF!-#REF! ->  | Q87: =#REF!-#REF! -> 
H89: =NPV($F$60,I87:Q87) -> 
H90: =NPV(F60,#REF!)/NPV(F60,#REF!) -> 

Sheet MKA ЗООС
B3: № | C3: Заложен критерий | D3: Тежест | E3: Брой точки Вариант 0 | F3: Оценка Вариант 0 „Без действие“ | G3: Брой точки Вариант 1 | H3: Оценка Вариант 1 „Съществена регулаторна намеса" | I3: Брой точки Вариант 2 | J3: Оценка Вариант 1 „Промени в правоприла-гането"
B4: 1 | C4: Ефективност на административното обслужване, регулиране и контрол | D4: 0.3 | E4: 0 | F4: =E4*$D4 -> 0 | G4: 2 | H4: =G4*$D4 -> 0.6 | I4: 1 | J4: =I4*$D4 -> 0.3
B5: 2 | C5: Наличие на финансова тежест за гражданите, бизнеса в процедурата по оценка на въздействието върху околната среда на инвестиционни предложения | D5: 0.35 | E5: 0 | F5: =E5*$D5 -> 0 | G5: 1 | H5: =G5*$D5 -> 0.35 | I5: 0 | J5: =I5*$D5 -> 0
B6: 3 | C6: Привеждане на процедурите по ОВОС и издаването на комплексни разрешителни в съответствие с принципите и изискванията на европейското законодателство | D6: 0.2 | E6: 0 | F6: =E6*$D6 -> 0 | G6: 1 | H6: =G6*$D6 -> 0.2 | I6: 0 | J6: 0
B7: 4 | C7: Осигуряване на единство и непротиворечивост на правната уредбата със свързаното национално законодателство | D7: 0.15 | E7: 0 | F7: 0 | G7: 1 | H7: 0.15 | I7: 0 | J7: 0
C8: Краен резултат (сбор от претеглените спрямо тежестта на критериите точки) | D8: =SUM(D4:D7) -> 1 | F8: =SUM(F4:F7) -> 0 | H8: =SUM(H4:H7) -> 1.3 | J8: =SUM(J4:J7) -> 0.3

Sheet Въздействия (hidden)
D2: Количествена оценка на въздействията
D3: Проект | G3: ▼▼▼Historical data▼▼▼ | H3: ►►► Projection ►►►
D4: =Допускания!D4 -> Цялостна предварителна оценка на въздействието на предложения за изменение и допълнение на ЗООС | E4: Мярка | G4: =Допускания!$F$7 -> 2019 | H4: =G4+1 -> 2020 | I4: 2021 | J4: 2022 | K4: 2023 | L4: 2024 | M4: 2025 | N4: 2026 | O4: 2027 | P4: 2028 | Q4: 2029
G5: 0 | H5: 1 | I5: =H5+1 -> 2 | J5: 3 | K5: 4 | L5: 5 | M5: 6 | N5: 7 | O5: 8 | P5: 9 | Q5: 10
D8: Основни параметри
D10: Параметри на модела
D11: Базова година | E11: година | F11: =Допускания!$F$7 -> 2019
D12: Период на проекта | E12: години | F12: =Допускания!$F$9 -> 10
D13: Местна валута | E13: символ | F13: =Допускания!$F$10 -> BGN
D14: Макроикономически допускания
D15: Инфлация, България | E15: % | G15: =Допускания!$F$15 -> 0.018 | H15: 0.025 | I15: 0.023 | J15: 0.022 | K15: =J15 -> 0.022 | L15: =K15 -> 0.022 | M15: 0.022 | N15: 0.022 | O15: 0.022 | P15: 0.022 | Q15: 0.022
D16: Инфлационен индекс, България | E16: коефициент | G16: 1 | H16: =+G16*(1+I15) -> 1.023 | I16: =+H16*(1+J15) -> 1.045506 | J16: =+I16*(1+K15) -> 1.068507132 | K16: =+J16*(1+L15) -> 1.092014289 | L16: =+K16*(1+L15) -> 1.116038603 | M16: 1.140591453 | N16: 1.165684464 | O16: 1.191329523 | P16: 1.217538772 | Q16: 1.244324625
D17: Реален ръст на БВП | E17: % | G17: =Допускания!$F$16 -> 0.034 | H17: 0.033 | I17: 0.033 | J17: 0.033 | K17: =J17 -> 0.033 | L17: =K17 -> 0.033 | M17: 0.033 | N17: 0.033 | O17: 0.033 | P17: 0.033 | Q17: 0.033
D18: БВП коефициент на нарастване | G18: 1 | H18: =G18*(1+H17) -> 1.033 | I18: =H18*(1+I17) -> 1.067089 | J18: =I18*(1+J17) -> 1.102302937 | K18: =J18*(1+K17) -> 1.138678934 | L18: =K18*(1+L17) -> 1.176255339 | M18: =L18*(1+M17) -> 1.215071765 | N18: =M18*(1+N17) -> 1.255169133 | O18: 1.296589715 | P18: 1.339377175 | Q18: 1.383576622
D20: Вариант 0 Базов вариант
D22: Ползи | H22: =H23 -> 0 | I22: 0 | J22: 0 | K22: 0 | L22: 0 | M22: 0 | N22: 0 | O22: 0 | P22: 0 | Q22: 0
H23: =G23 -> 0 | I23: =H23*I$16 -> 0 | J23: =I23*J$16 -> 0 | K23: 0 | L23: 0 | M23: 0 | N23: 0 | O23: 0 | P23: 0 | Q23: 0
D25: Разходи | G25: =SUM(G26:G29) ->  | H25: =SUM(H26:H29) -> 
D26: Разходи на организациите за | G26: =#REF! ->  | H26: =G26 ->  | I26: =H26*I$16 ->  | J26: =I26*J$16 ->  | K26: =J26*K$16 ->  | L26: =K26*L$16 ->  | M26: =L26*M$16 ->  | N26: =M26*N$16 ->  | O26: =N26*O$16 ->  | P26: =O26*P$16 ->  | Q26: =P26*Q$16 -> 
D27: Административни разходи
D28: Административни разходи | G28: =#REF! ->  | H28: =G28 ->  | I28: =H28*I$16 ->  | J28: =I28*J$16 -> 
D31: НЕТЕН ПАРИЧЕН ПОТОК НА ВАРИАНТ 0 | E31: лева | G31: =G25 -> 
D32: Норма на дисконтиране | E32: % | F32: =Допускания!$F$11 -> 0.05
D33: ННС | E33: =NPV($F$60,G28:Q28) -> 
D34: Отношение Ползи/Разходи | E34: =NPV(F32,G22:Q22)/NPV(F32,G25:Q25) -> 
D37: Вариант 1 Регулаторна намеса
D39: Ползи | G39: =G44 ->  | H39: =H44 -> 
D40: Увеличаване на заетостта в държавния сектор | H40: =G40 -> 0 | I40: =H40*I16 -> 0 | J40: 0 | K40: 0 | L40: 0 | M40: 0 | N40: 0 | O40: 0 | P40: 0 | Q40: 0
D42: Разходи | G42: =G43+G44+G45 ->  | H42: =H43+H44+H45 -> 
D43: Намаляване на времето за административно обслужване | H43: =G43 -> 0 | I43: =H43*I$16 -> 0 | J43: =I43*J$16 -> 0 | K43: 0 | L43: 0 | M43: 0 | N43: 0 | O43: 0 | P43: 0 | Q43: 0
D44: Намаляване на административната тежест | G44: =#REF! ->  | H44: =G44 ->  | I44: =H44*I$16 -> 
D45: Намаляване на заетостта в частния сектор | H45: =G45 -> 0 | I45: =H45*I$16 -> 0 | J45: =I45*J$16 -> 0 | K45: 0 | L45: 0 | M45: 0 | N45: 0 | O45: 0 | P45: 0 | Q45: 0
D47: НЕТЕН ПАРИЧЕН ПОТОК НА ВАРИАНТ 0 | E47: лева | G47: =G44 ->  | H47: =H44 -> 
D48: Норма на дисконтиране | E48: % | F48: =Допускания!$F$11 -> 0.05
D49: ННС | E49: =NPV($F$60,G47:Q47) -> 
D50: Отношение Ползи/Разходи | E50: =NPV(F48,G44:Q44)/NPV(F48,G28:Q28) -> 

Sheet Input (hidden)
D1: Annex 5 | E1: Приложение 3
D2: Project | E2: Проект | K2: Blue cells contain NON-MONETARY input data
D3: Rehabilitation of Railway Station Complexes Sofia, Bourgas and Pazardzhik | E3: РЕКОНСТРУКЦИЯ НА ГАРОВИ КОМПЛЕКСИ „СТАРА ЗАГОРА“ И „НОВА ЗАГОРА“ | K3: Green cells contain MONETARY input data in current terms
K4: Yelow cells contain MONETARY input data in real terms of base year
K5: White cells contain calculated data
D9: General parameters | E9: Основни парамерти
D11: First year of projection | E11: Първа година от проекта | F11: Year | G11: година | H11: =Допускания!F8 -> 2020
D12: Implementation period | E12: Период на изграждане/строителство | F12: Years | G12: години | H12: 3
D13: Reference period | E13: Период на проекта | F13: Years | G13: години | H13: =Допускания!F9 -> 10
D14: Annual inflation rate of EURO during implementation period | E14: Годишен инфлация в Еврозоната в периода на изграждане | F14: % | G14: % | H14: =Допускания!#REF! -> 
D15: Financial discount rate (real) | E15: Финансова сконтова норма | F15: % | G15: % | H15: 0.04
D16: Social discount rate (real) | E16: Социална сконтова норма | F16: % | G16: % | H16: 0.05
D17: Tax rate | E17: Корпоративен данък | F17: % | G17: % | H17: =Допускания!F14 -> 0.1
D18: Maximum co-funding rate for the priority axis | E18: Максимално съфинансиране от ЕС по приоритетната ос | F18: % | G18: % | H18: 0.85
D19: Magnitude of units for local currency | E19: Единици на валутата | F19: coeficient | G19: коеф. | H19: 1000
D22: Investment cost | E22: Инвестиционни разходи - евро | T22: Инвестиционни разходи - лева
D24: =+"Project cost during implementation ("&H11&"-"&TEXT(H11+H12-1,"0")&")"&" " -> Project cost during implementation (2020-2022) | E24: Проектни разходи по време на строителството | I24: E l i g i b l e | M24: N o n - e l i g i b l e | W24: Д о п у с т и м и | AA24: Н е д о п у с т и м и
H25: TOTAL | I25: Eligible | J25: =Допускания!F8 -> 2020 | K25: =+J25+1 -> 2021 | L25: =+K25+1 -> 2022 | M25: Non-eligible | N25: =J25 -> 2020 | O25: =+N25+1 -> 2021 | P25: =+O25+1 -> 2022 | V25: ОБЩО | W25: Допустими | X25: =J25 -> 2020 | Y25: =+X25+1 -> 2021 | Z25: =+Y25+1 -> 2022 | AA25: Недопустими | AB25: =X25 -> 2020 | AC25: =+AB25+1 -> 2021 | AD25: =+AC25+1 -> 2022
D26: Planning/design fees | E26: Разходи за планиране и проектиране | F26: EUR | G26: евро | H26: =+M26+I26 ->  | I26: =SUM(OFFSET(J26,0,0,1,H$12)) ->  | J26: =SUM(J27:J28) ->  | K26: =SUM(K27:K28) ->  | L26: =SUM(L27:L28) ->  | M26: 0 | T26: Разходи за планиране и проектиране | U26: лева | V26: =+AA26+W26 ->  | W26: =SUM(OFFSET(X26,0,0,1,H$12)) ->  | X26: =SUM(X27:X28) ->  | Y26: =SUM(Y27:Y28) ->  | Z26: =SUM(Z27:Z28) ->  | AA26: 0
D27: Sofia | E27: Стара Загора | H27: =+M27+I27 ->  | I27: =SUM(OFFSET(J27,0,0,1,H$12)) ->  | J27: =ROUND(CAPEX!D6/Допускания!#REF!,2) ->  | K27: =ROUND(CAPEX!F6/Допускания!#REF!,2) ->  | L27: =ROUND(CAPEX!H6/Допускания!#REF!,2) ->  | T27: Стара Загора | V27: =W27+AA27 ->  | X27: =ROUND(J27*1.95583,2) -> 
D28: Pazardzhik | E28: Нова Загора | H28: =+M28+I28 ->  | J28: =ROUND(CAPEX!D7/Допускания!#REF!,2) ->  | K28: =ROUND(CAPEX!F7/Допускания!#REF!,2) ->  | L28: =ROUND(CAPEX!H7/Допускания!#REF!,2) ->  | T28: Нова Загора | V28: =W28+AA28 -> 
D29: Building and construction | E29: Строително-монтажни работи | F29: EUR | G29: евро | H29: =+M29+I29 ->  | I29: =SUM(OFFSET(J29,0,0,1,H$12)) ->  | J29: =SUM(J30:J31) ->  | K29: =SUM(K30:K31) ->  | L29: =SUM(L30:L31) ->  | M29: =SUM(OFFSET(N29,0,0,1,H$12)) -> 0 | T29: Строително-монтажни работи | U29: лева | V29: =+AA29+W29 ->  | X29: =SUM(X30:X31) ->  | Y29: =SUM(Y30:Y31) ->  | Z29: =SUM(Z30:Z31) ->  | AA29: =ROUND(M29*1.95583,2) -> 0
D30: Sofia | E30: Стара Загора | H30: =+M30+I30 ->  | I30: =SUM(OFFSET(J30,0,0,1,H$12)) ->  | J30: =ROUND(CAPEX!D9/Допускания!#REF!,2) ->  | K30: =ROUND(CAPEX!F9/Допускания!#REF!,2) ->  | L30: =ROUND(CAPEX!H9/Допускания!#REF!,2) ->  | T30: Стара Загора | V30: =W30+AA30 ->  | X30: =ROUND(J30*1.95583,2) -> 
D31: Pazardzhik | E31: Нова Загора | J31: =ROUND(CAPEX!D10/Допускания!#REF!,2) ->  | K31: =ROUND(CAPEX!F10/Допускания!#REF!,2) ->  | L31: =ROUND(CAPEX!H10/Допускания!#REF!,2) ->  | T31: Нова Загора
D32: Plant and machinery | E32: Машини и съоръжения | F32: EUR | G32: евро | H32: =+M32+I32 ->  | I32: =SUM(OFFSET(J32,0,0,1,H$12)) ->  | J32: =SUM(J33:J34) ->  | K32: =SUM(K33:K34) ->  | L32: =SUM(L33:L34) ->  | M32: =SUM(OFFSET(N32,0,0,1,H$12)) -> 0 | T32: Машини и съоръжения | U32: лева | V32: =+AA32+W32 ->  | X32: =SUM(X33:X34) ->  | Y32: =SUM(Y33:Y34) ->  | Z32: =SUM(Z33:Z34) ->  | AA32: =ROUND(M32*1.95583,2) -> 0
D33: Sofia | E33: Стара Загора | H33: =+M33+I33 ->  | I33: =SUM(OFFSET(J33,0,0,1,H$12)) ->  | J33: =ROUND(CAPEX!D12/Допускания!#REF!,2) ->  | K33: =ROUND(CAPEX!F12/Допускания!#REF!,2) ->  | L33: =ROUND(CAPEX!H12/Допускания!#REF!,2) ->  | T33: Стара Загора | V33: =W33+AA33 ->  | X33: =ROUND(J33*1.95583,2) -> 
D34: Pazardzhik | E34: Нова Загора | J34: =ROUND(CAPEX!D13/Допускания!#REF!,2) ->  | K34: =ROUND(CAPEX!F13/Допускания!#REF!,2) ->  | L34: =ROUND(CAPEX!H13/Допускания!#REF!,2) ->  | T34: Нова Загора
D35: Contingencies | E35: Непредвидени разходи | F35: EUR | G35: евро | H35: =+M35+I35 ->  | I35: =SUM(OFFSET(J35,0,0,1,H$12)) ->  | J35: =SUM(J36:J37) ->  | K35: =SUM(K36:K37) ->  | L35: =SUM(L36:L37) ->  | M35: =SUM(OFFSET(N35,0,0,1,H$12)) -> 0 | T35: Непредвидени разходи | U35: лева | V35: =+AA35+W35 ->  | X35: =SUM(X36:X37) ->  | Y35: =SUM(Y36:Y37) ->  | Z35: =SUM(Z36:Z37) ->  | AA35: =ROUND(M35*1.95583,2) -> 0
D36: Sofia | E36: Стара Загора | H36: =+M36+I36 ->  | I36: =SUM(OFFSET(J36,0,0,1,H$12)) ->  | J36: =ROUND(CAPEX!D15/Допускания!#REF!,2) ->  | K36: =ROUND(CAPEX!F15/Допускания!#REF!,2) ->  | L36: =ROUND(CAPEX!H15/Допускания!#REF!,2) ->  | T36: Стара Загора | V36: =W36+AA36 ->  | X36: =ROUND(J36*1.95583,2) -> 
D37: Pazardzhik | E37: Нова Загора | J37: =ROUND(CAPEX!D16/Допускания!#REF!,2) ->  | K37: =ROUND(CAPEX!F16/Допускания!#REF!,2) ->  | L37: =ROUND(CAPEX!H16/Допускания!#REF!,2) ->  | T37: Нова Загора
D38: Technical assistance | E38: Организация и управление | F38: EUR | G38: евро | H38: =+M38+I38 ->  | I38: =SUM(OFFSET(J38,0,0,1,H$12)) ->  | J38: =SUM(J39:J40) ->  | K38: =SUM(K39:K40) ->  | L38: =SUM(L39:L40) ->  | M38: =SUM(OFFSET(N38,0,0,1,H$12)) -> 0 | T38: Организация и управление | U38: лева | V38: =+AA38+W38 ->  | X38: =SUM(X39:X40) ->  | Y38: =SUM(Y39:Y40) ->  | Z38: =SUM(Z39:Z40) ->  | AA38: =ROUND(M38*1.95583,2) -> 0
D39: Sofia | E39: Стара Загора | H39: =+M39+I39 ->  | I39: =SUM(OFFSET(J39,0,0,1,H$12)) ->  | J39: =ROUND(CAPEX!D18/Допускания!#REF!,2) ->  | K39: =ROUND(CAPEX!F18/Допускания!#REF!,2) ->  | L39: =ROUND(CAPEX!H18/Допускания!#REF!,2) ->  | T39: Стара Загора | V39: =W39+AA39 ->  | X39: =ROUND(J39*1.95583,2) -> 
D40: Pazardzhik | E40: Нова Загора | J40: =ROUND(CAPEX!D19/Допускания!#REF!,2) ->  | K40: =ROUND(CAPEX!F19/Допускания!#REF!,2) ->  | L40: =ROUND(CAPEX!H19/Допускания!#REF!,2) ->  | T40: Нова Загора
D41: Publicity | E41: Публичност | F41: EUR | G41: евро | H41: =+M41+I41 ->  | I41: =SUM(OFFSET(J41,0,0,1,H$12)) ->  | J41: =SUM(J42:J43) ->  | K41: =SUM(K42:K43) ->  | L41: =SUM(L42:L43) ->  | M41: =SUM(OFFSET(N41,0,0,1,H$12)) -> 0 | T41: Публичност | U41: лева | V41: =+AA41+W41 ->  | X41: =SUM(X42:X43) ->  | Y41: =SUM(Y42:Y43) ->  | Z41: =SUM(Z42:Z43) ->  | AA41: =ROUND(M41*1.95583,2) -> 0
D42: Sofia | E42: Стара Загора | H42: =+M42+I42 ->  | I42: =SUM(OFFSET(J42,0,0,1,H$12)) ->  | J42: =ROUND(CAPEX!D21/Допускания!#REF!,2) ->  | K42: =ROUND(CAPEX!F21/Допускания!#REF!,2) ->  | L42: =ROUND(CAPEX!H21/Допускания!#REF!,2) ->  | T42: Стара Загора | V42: =W42+AA42 ->  | X42: =ROUND(J42*1.95583,2) -> 
D43: Pazardzhik | E43: Нова Загора | J43: =ROUND(CAPEX!D22/Допускания!#REF!,2) ->  | K43: =ROUND(CAPEX!F22/Допускания!#REF!,2) ->  | L43: =ROUND(CAPEX!H22/Допускания!#REF!,2) ->  | T43: Нова Загора
D44: Supervision during implementation | E44: Строителен надзор | F44: EUR | G44: евро | H44: =+M44+I44 ->  | I44: =SUM(OFFSET(J44,0,0,1,H$12)) ->  | J44: =SUM(J45:J46) ->  | K44: =SUM(K45:K46) ->  | L44: =SUM(L45:L46) ->  | M44: =SUM(M26:M41) -> 0 | T44: Строителен надзор | U44: лева | V44: =+AA44+W44 ->  | X44: =SUM(X45:X46) ->  | Y44: =SUM(Y45:Y46) ->  | Z44: =SUM(Z45:Z46) ->  | AA44: =ROUND(M44*1.95583,2) -> 0
D45: Sofia | E45: Стара Загора | H45: =+M45+I45 ->  | I45: =SUM(OFFSET(J45,0,0,1,H$12)) ->  | J45: =ROUND(CAPEX!D24/Допускания!#REF!,2) ->  | K45: =ROUND(CAPEX!F24/Допускания!#REF!,2) ->  | L45: =ROUND(CAPEX!H24/Допускания!#REF!,2) ->  | T45: Стара Загора | V45: =W45+AA45 ->  | X45: =ROUND(J45*1.95583,2) -> 
D46: Pazardzhik | E46: Нова Загора | J46: =ROUND(CAPEX!D25/Допускания!#REF!,2) ->  | K46: =ROUND(CAPEX!F25/Допускания!#REF!,2) ->  | L46: =ROUND(CAPEX!H25/Допускания!#REF!,2) ->  | T46: Нова Загора
D47: Sub-TOTAL | E47: Общо без ДДС | F47: EUR | G47: евро | H47: =H26+H29+H32+H35+H38+H41+H44 ->  | I47: =SUM(OFFSET(J47,0,0,1,H$12)) ->  | J47: =J26+J29+J32+J35+J38+J41+J44 ->  | M47: =SUM(N47:P47) -> 0 | N47: =N26+N29+N32+N35+N38+N41+N44 -> 0 | O47: =O26+O29+O32+O35+O38+O41+O44 -> 0 | P47: =P26+P29+P32+P35+P38+P41+P44 -> 0 | T47: Общо без ДДС | U47: лева | V47: =V26+V29+V32+V35+V38+V41+V44 ->  | X47: =X26+X29+X32+X35+X38+X41+X44 ->  | Y47: =Y26+Y29+Y32+Y35+Y38+Y41+Y44 ->  | Z47: =Z26+Z29+Z32+Z35+Z38+Z41+Z44 ->  | AA47: =SUM(AB47:AD47) -> 0 | AB47: =AB26+AB29+AB32+AB35+AB38+AB41+AB44 -> 0 | AC47: =AC26+AC29+AC32+AC35+AC38+AC41+AC44 -> 0 | AD47: =AD26+AD29+AD32+AD35+AD38+AD41+AD44 -> 0
D48: Sofia | E48: Стара Загора | H48: =H27+H30+H33+H36+H39+H42+H45 ->  | I48: =SUM(OFFSET(J48,0,0,1,H$12)) ->  | T48: Стара Загора | V48: =W48+AA48 ->  | X48: =ROUND(J48*1.95583,2) -> 
D49: Pazardzhik | E49: Нова Загора | H49: =H28+H31+H34+H37+H40+H43+H46 ->  | I49: =SUM(OFFSET(J49,0,0,1,H$12)) ->  | T49: Нова Загора
D50: VAT, 20% | E50: ДДС, 20% | F50: EUR | G50: евро | H50: =+M50+I50 ->  | I50: =SUM(J50:L50) -> 0 | M50: =SUM(N50:P50) ->  | N50: =(J26+J29+J32+J35+J41+J44)*20% ->  | T50: ДДС, 20% | U50: лева | V50: =+AA50+W50 ->  | W50: =SUM(X50:Y50) -> 0 | AA50: =SUM(AB50:AD50) ->  | AB50: =(X44+X41+X35+X32+X29+X26)*20% -> 
E51: Стара Загора | H51: =+M51+I51 ->  | M51: =SUM(N51:P51) ->  | T51: Стара Загора | V51: =+W51+AA51 ->  | AA51: =SUM(AB51:AD51) -> 
E52: Нова Загора | H52: =+M52+I52 ->  | T52: Нова Загора | V52: =+W52+AA52 -> 
D53: TOTAL | E53: ОБЩО | F53: EUR | G53: евро | H53: =+H47+H50 ->  | I53: =SUM(J53:L53) ->  | J53: =+J47+J50 ->  | M53: =M50+M47 ->  | N53: =N50+N47 ->  | O53: =O50+O47 ->  | P53: =P50+P47 ->  | T53: ОБЩО | U53: лева | V53: =+V47+V50 ->  | W53: =SUM(X53:Z53) ->  | X53: =+X47+X50 ->  | Y53: =+Y47+Y50 ->  | Z53: =+Z47+Z50 ->  | AA53: =AA50+AA47 ->  | AB53: =AB50+AB47 ->  | AC53: =AC50+AC47 -> 
D54: TOTAL | E54: Стара Загора | F54: EUR | G54: евро | H54: =+H48+H51 ->  | I54: =SUM(J54:L54) ->  | M54: =M51+M48 ->  | N54: =N51+N48 ->  | T54: Стара Загора | U54: лева | V54: =+V48+V51 ->  | W54: =SUM(X54:Z54) ->  | X54: =+X48+X51 ->  | Y54: =+Y48+Y51 ->  | AA54: =+AA48+AA51 ->  | AB54: =AB51+AB48 -> 
D55: TOTAL | E55: Нова Загора | F55: EUR | G55: евро | H55: =+H49+H52 ->  | I55: =SUM(J55:L55) ->  | J55: =J49+J52 ->  | K55: =K49+K52 ->  | L55: =L49+L52 ->  | N55: =N52+N49 ->  | T55: Нова Загора | U55: лева | V55: =+V49+V52 ->  | X55: =+X49+X52 ->  | Y55: =+Y49+Y52 ->  | AA55: =+AA52+AA49 -> 
H56: % | J56: =J53/$I$53 ->  | K56: =K53/$I$53 ->  | L56: =L53/$I$53 ->  | N56: =J53+N53 ->  | O56: =K53+O53 ->  | P56: =L53+P53 -> 
D57: Economic life of project assets
D59: Building and construction | E59: Сгради и конструкции | F59: Years | G59: години | H59: 25 | J59: =H26/H29 -> 
D60: Plant and machinery | E60: Машини и съоръжения | F60: Years | G60: години | H60: 10
D61: Intangible assets | E61: Нематериални активи | F61: Years | G61: години | H61: 10
D65: Project revenues and costs | E65: Проектни приходи и разходи
J67: =+H11 -> 2020 | K67: =+J67+1 -> 2021 | L67: =+K67+1 -> 2022 | M67: 2023 | N67: 2024 | O67: 2025 | P67: 2026 | Q67: 2027 | R67: 2028 | S67: 2029 | T67: 2030 | U67: 2031 | V67: 2032 | W67: 2033 | X67: 2034 | Y67: 2035 | Z67: 2036 | AA67: 2037 | AB67: 2038 | AC67: 2039 | AD67: 2040 | AE67: 2041 | AF67: 2042 | AG67: 2043 | AH67: 2044 | AI67: 2045 | AJ67: 2046 | AK67: 2047 | AL67: 2048 | AM67: =+AL67+1 -> 2049
D68: Revenues from operation | E68: Приходи от експлоатация | F68: EUR | G68: евро | J68: =#REF! ->  | K68: =#REF! ->  | L68: =#REF! ->  | M68: =#REF! ->  | N68: =#REF! ->  | O68: =#REF! ->  | P68: =#REF! ->  | Q68: =#REF! ->  | R68: =#REF! ->  | S68: =#REF! ->  | T68: =#REF! ->  | U68: =#REF! ->  | V68: =#REF! ->  | W68: =#REF! ->  | X68: =#REF! ->  | Y68: =#REF! ->  | Z68: =#REF! ->  | AA68: =#REF! ->  | AB68: =#REF! ->  | AC68: =#REF! ->  | AD68: =#REF! ->  | AE68: =#REF! ->  | AF68: =#REF! ->  | AG68: =#REF! ->  | AH68: =#REF! ->  | AI68: =#REF! ->  | AJ68: =#REF! ->  | AK68: =#REF! ->  | AL68: =#REF! ->  | AM68: =#REF! -> 
D69: Costs for Operattion, Maintenance and rehabilitaion | E69: Разходи за експлоатация, поддръжка и рехабилитация | F69: EUR | G69: евро | J69: =Разходи!I36 ->  | K69: =Разходи!J36 ->  | L69: =Разходи!K36 ->  | M69: =Разходи!L36 ->  | N69: =Разходи!M36 ->  | O69: =Разходи!N36 ->  | P69: =Разходи!O36 ->  | Q69: =Разходи!P36 ->  | R69: =Разходи!Q36 ->  | S69: =Разходи!#REF! ->  | T69: =Разходи!#REF! ->  | U69: =Разходи!#REF! ->  | V69: =Разходи!#REF! ->  | W69: =Разходи!#REF! ->  | X69: =Разходи!#REF! ->  | Y69: =Разходи!#REF! ->  | Z69: =Разходи!#REF! ->  | AA69: =Разходи!#REF! ->  | AB69: =Разходи!#REF! ->  | AC69: =Разходи!#REF! ->  | AD69: =Разходи!#REF! ->  | AE69: =Разходи!#REF! ->  | AF69: =Разходи!#REF! ->  | AG69: =Разходи!#REF! ->  | AH69: =Разходи!#REF! ->  | AI69: =Разходи!#REF! ->  | AJ69: =Разходи!#REF! ->  | AK69: =Разходи!#REF! ->  | AL69: =Разходи!#REF! ->  | AM69: =Разходи!#REF! -> 
D73: Risk analysis | E73: Анализ на риска
D75: Range of variation of variables as % of the base case | E75: Граници на отклонения на промеливите като % от базовия случай | H75: Lower | I75: Upper
D76: Project investment cost | E76: Проектни инвестиционни разходи | F76: % | G76: % | H76: -0.1 | I76: 0.1
D77: Revenues | E77: Приходи | F77: % | G77: % | H77: -0.05 | I77: 0.25
D78: O&M costs | E78: Разходи за експлоатация и поддръжка | F78: % | G78: % | H78: -0.15 | I78: 0.1
D79: Economic benefits | E79: Икономически ползи | F79: % | G79: % | H79: -0.1 | I79: 0.1
D80: Economic cost (Investment) | E80: Икономически разходи (Инвестиции) | F80: % | G80: % | H80: =lowerInvestment -> -0.1 | I80: =upperInvestment -> 0.1
D81: Economic cost (O&M) | E81: Икономически разходи (Експлоатация и поддръжка ) | F81: % | G81: % | H81: =lowerOandM -> -0.15 | I81: =upperOandM -> 0.1
D83: Number of iterations (max 25,000) | E83: Брой на итерациите (макс. 25 000) | F83: # | G83: брой | H83: 25000

Sheet Разходи (hidden)
D2: Прогноза за разходите
D3: Проект | G3: ▼▼▼Historical data▼▼▼ | H3: ►►► Projection ►►►
D4: =Допускания!D4 -> Цялостна предварителна оценка на въздействието на предложения за изменение и допълнение на ЗООС | E4: Мярка | G4: =F11 -> 2019 | H4: =G4+1 -> 2020 | I4: 2021 | J4: 2022 | K4: 2023 | L4: 2024 | M4: 2025 | N4: 2026 | O4: 2027 | P4: 2028 | Q4: 2029
G5: 0 | H5: 1 | I5: =H5+1 -> 2 | J5: 3 | K5: 4 | L5: 5 | M5: 6 | N5: 7 | O5: 8 | P5: 9 | Q5: 10
D8: Основни параметри
D10: Параметри на модела
D11: Базова година | E11: година | F11: =Допускания!$F$7 -> 2019
D12: Период на проекта | E12: години | F12: =Допускания!$F$9 -> 10
D13: Местна валута | E13: символ | F13: =Допускания!$F$10 -> BGN
D14: Макроикономически допускания
D15: Инфлация, България | E15: % | G15: =Допускания!$F$15 -> 0.018 | H15: 0.018 | I15: 0.02 | J15: 0.021 | K15: =J15 -> 0.021 | L15: =K15 -> 0.021 | M15: 0.021 | N15: 0.021 | O15: 0.021 | P15: 0.021 | Q15: 0.021
D16: Инфлационен индекс, България | E16: коефициент | G16: 1 | H16: =+G16*(1+I15) -> 1.02 | I16: =+H16*(1+J15) -> 1.04142 | J16: =+I16*(1+K15) -> 1.06328982 | K16: =+J16*(1+L15) -> 1.085618906 | L16: =+K16*(1+L15) -> 1.108416903 | M16: 1.131693658 | N16: 1.155459225 | O16: 1.179723869 | P16: 1.20449807 | Q16: 1.229792529
D17: Реален ръст на БВП | E17: % | G17: =Допускания!$F$16 -> 0.034 | H17: 0.039 | I17: 0.038 | J17: 0.037 | K17: =J17 -> 0.037 | L17: =K17 -> 0.037 | M17: 0.037 | N17: 0.037 | O17: 0.037 | P17: 0.037 | Q17: 0.037
D18: БВП коефициент на нарастване | G18: 1 | H18: =G18*(1+H17) -> 1.039 | I18: 1.078482 | J18: 1.118385834 | K18: 1.15976611 | L18: 1.202677456 | M18: 1.247176522 | N18: 1.293322053 | O18: 1.341174969 | P18: 1.390798443 | Q18: 1.442257985
D21: Разходи без Проекта (БП)
D23: Разходи ИААА | E23: лева | G23: =Допускания!#REF!*Допускания!#REF! ->  | H23: =G23 ->  | I23: =H23 -> 
D24: Разходи ДАМТН | E24: лева | G24: =Допускания!#REF!*Допускания!#REF! ->  | H24: =G24 ->  | I24: =H24 -> 
D25: Разходи на бизнеса | E25: лева | G25: =SUM((Допускания!#REF!+Допускания!#REF!)*Допускания!#REF!,Допускания!#REF!*Допускания!#REF!,Допускания!#REF!*Допускания!#REF!,Допускания!#REF!*Допускания!#REF!,Допускания!#REF!*Допускания!#REF!)*Допускания!#REF! ->  | H25: =SUM((Допускания!#REF!+Допускания!#REF!)*Допускания!#REF!,Допускания!#REF!*Допускания!#REF!,Допускания!#REF!*Допускания!#REF!,Допускания!#REF!*Допускания!#REF!,Допускания!#REF!*Допускания!#REF!)*Допускания!#REF! ->  | I25: =SUM((Допускания!#REF!+Допускания!#REF!)*Допускания!#REF!,Допускания!#REF!*Допускания!#REF!,Допускания!#REF!*Допускания!#REF!,Допускания!#REF!*Допускания!#REF!,Допускания!#REF!*Допускания!#REF!)*Допускания!#REF! ->  | J25: =SUM((Допускания!#REF!+Допускания!#REF!)*Допускания!#REF!,Допускания!#REF!*Допускания!#REF!,Допускания!#REF!*Допускания!#REF!,Допускания!#REF!*Допускания!#REF!,Допускания!#REF!*Допускания!#REF!)*Допускания!#REF! ->  | K25: =SUM((Допускания!#REF!+Допускания!#REF!)*Допускания!#REF!,Допускания!#REF!*Допускания!#REF!,Допускания!#REF!*Допускания!#REF!,Допускания!#REF!*Допускания!#REF!,Допускания!#REF!*Допускания!#REF!)*Допускания!#REF! ->  | L25: =SUM((Допускания!#REF!+Допускания!#REF!)*Допускания!#REF!,Допускания!#REF!*Допускания!#REF!,Допускания!#REF!*Допускания!#REF!,Допускания!#REF!*Допускания!#REF!,Допускания!#REF!*Допускания!#REF!)*Допускания!#REF! ->  | M25: =SUM((Допускания!#REF!+Допускания!#REF!)*Допускания!#REF!,Допускания!#REF!*Допускания!#REF!,Допускания!#REF!*Допускания!#REF!,Допускания!#REF!*Допускания!#REF!,Допускания!#REF!*Допускания!#REF!)*Допускания!#REF! ->  | N25: =SUM((Допускания!#REF!+Допускания!#REF!)*Допускания!#REF!,Допускания!#REF!*Допускания!#REF!,Допускания!#REF!*Допускания!#REF!,Допускания!#REF!*Допускания!#REF!,Допускания!#REF!*Допускания!#REF!)*Допускания!#REF! ->  | O25: =SUM((Допускания!#REF!+Допускания!#REF!)*Допускания!#REF!,Допускания!#REF!*Допускания!#REF!,Допускания!#REF!*Допускания!#REF!,Допускания!#REF!*Допускания!#REF!,Допускания!#REF!*Допускания!#REF!)*Допускания!#REF! ->  | P25: =SUM((Допускания!#REF!+Допускания!#REF!)*Допускания!#REF!,Допускания!#REF!*Допускания!#REF!,Допускания!#REF!*Допускания!#REF!,Допускания!#REF!*Допускания!#REF!,Допускания!#REF!*Допускания!#REF!)*Допускания!#REF! ->  | Q25: =SUM((Допускания!#REF!+Допускания!#REF!)*Допускания!#REF!,Допускания!#REF!*Допускания!#REF!,Допускания!#REF!*Допускания!#REF!,Допускания!#REF!*Допускания!#REF!,Допускания!#REF!*Допускания!#REF!)*Допускания!#REF! -> 
D26: Общо разходи БП | E26: лева | G26: =SUM(G23:G25) ->  | H26: =SUM(H23:H25) -> 
D29: Разходи с Проекта (СП)
D31: Разходи ИААА | E31: лева | G31: =Допускания!#REF!*Допускания!#REF! ->  | H31: =G31 ->  | I31: =H31 -> 
D32: Разходи ДАМТН | E32: лева | G32: =Допускания!#REF!*Допускания!#REF! ->  | H32: =G32 ->  | I32: =H32 -> 
D33: Разходи на бизнеса | G33: =SUM((Допускания!#REF!+Допускания!#REF!)*Допускания!#REF!,Допускания!#REF!*Допускания!#REF!,Допускания!#REF!*Допускания!#REF!,Допускания!#REF!*Допускания!#REF!,Допускания!#REF!*Допускания!#REF!)*Допускания!#REF! ->  | H33: =G33 ->  | I33: =H33/(1-#REF!) ->  | J33: =I33 -> 
D34: Общо разходи СП | E34: лева | G34: =SUM(G31:G33) ->  | H34: =SUM(H31:H33) ->  | I34: =SUM(I31:I33) ->  | J34: =SUM(J31:J33) ->  | K34: =SUM(K31:K33) ->  | L34: =SUM(L31:L33) ->  | M34: =SUM(M31:M33) ->  | N34: =SUM(N31:N33) ->  | O34: =SUM(O31:O33) ->  | P34: =SUM(P31:P33) ->  | Q34: =SUM(Q31:Q33) -> 
K35: .
D36: Инкрементални разходи | E36: лева | G36: =G34-G26 ->  | H36: =H34-H26 -> 

Sheet Резултати (hidden)
D2: Прогноза за приходите и разходите
D3: Проект | G3: ▼▼▼Historical data▼▼▼ | H3: ►►► Projection ►►►
D4: =Допускания!D4 -> Цялостна предварителна оценка на въздействието на предложения за изменение и допълнение на ЗООС | E4: Мярка | G4: =Допускания!F7 -> 2019 | H4: =G4+1 -> 2020 | I4: 2021 | J4: 2022 | K4: 2023 | L4: 2024 | M4: 2025 | N4: 2026 | O4: 2027 | P4: =O4+1 -> 2028 | Q4: =P4+1 -> 2029
H5: =G5+1 -> 1 | I5: =H5+1 -> 2 | J5: 3 | K5: 4 | L5: 5 | M5: 6 | N5: 7 | O5: 8 | P5: 9 | Q5: 10
D9: Инкрементални ползи и разходи
D11: Инкрементални приходи | E11: лева | G11: =#REF! ->  | H11: =#REF! ->  | I11: =#REF! ->  | J11: =#REF! ->  | K11: =#REF! ->  | L11: =#REF! ->  | M11: =#REF! ->  | N11: =#REF! ->  | O11: =#REF! ->  | P11: =#REF! ->  | Q11: =#REF! -> 
D12: Инкрементални разходи | E12: лева | G12: =Разходи!G36 ->  | H12: =Разходи!H36 ->  | I12: =Разходи!I36 ->  | J12: =Разходи!J36 ->  | K12: =Разходи!K36 ->  | L12: =Разходи!L36 ->  | M12: =Разходи!M36 ->  | N12: =Разходи!N36 ->  | O12: =Разходи!O36 ->  | P12: =Разходи!P36 ->  | Q12: =Разходи!Q36 -> 
D17: Показатели без проект
D19: Норма на дисконтиране | E19: % | F19: 0.05
D20: Нетен паричен поток | E20: лева | G20: =#REF!-Разходи!G26 ->  | H20: =#REF!-Разходи!H26 ->  | I20: =#REF!-Разходи!I26 ->  | J20: =#REF!-Разходи!J26 ->  | K20: =#REF!-Разходи!K26 ->  | L20: =#REF!-Разходи!L26 ->  | M20: =#REF!-Разходи!M26 ->  | N20: =#REF!-Разходи!N26 ->  | O20: =#REF!-Разходи!O26 ->  | P20: =#REF!-Разходи!P26 ->  | Q20: =#REF!-Разходи!Q26 -> 
D21: ННС | E21: =NPV(F19,G20:Q20) -> 
D22: Отношение Ползи/Разходи | E22: =NPV(F19,#REF!)/NPV(F19,Разходи!G26:Q26) -> 
D26: Показатели с проект
D28: Норма на дисконтиране | E28: % | F28: 0.05
D29: Нетен паричен поток | E29: лева | G29: =#REF!-Разходи!G34 ->  | H29: =#REF!-Разходи!H34 ->  | I29: =#REF!-Разходи!I34 ->  | J29: =#REF!-Разходи!J34 ->  | K29: =#REF!-Разходи!K34 ->  | L29: =#REF!-Разходи!L34 ->  | M29: =#REF!-Разходи!M34 ->  | N29: =#REF!-Разходи!N34 ->  | O29: =#REF!-Разходи!O34 ->  | P29: =#REF!-Разходи!P34 ->  | Q29: =#REF!-Разходи!Q34 -> 
D30: ННС | E30: =NPV(F28,G29:Q29) -> 
D31: Отношение Ползи/Разходи | E31: =NPV(F28,#REF!)/NPV(F28,Разходи!G34:Q34) -> 

Sheet FinSust (hidden)
D1: Annex 7 | E1: Приложение 5
D2: Project | E2: Проект | H2: ►►► Projection ►►►
D3: =Разходи!#REF! ->  | E3: =Разходи!#REF! ->  | F3: Unit | G3: мярка | H3: 2019 | I3: =H3+1 -> 2020 | J3: =I3+1 -> 2021 | K3: 2022 | L3: 2023 | M3: 2024 | N3: 2025 | O3: 2026 | P3: 2027 | Q3: 2028 | R3: 2029 | S3: 2030 | T3: 2031 | U3: 2032 | V3: 2033 | W3: 2034 | X3: 2035 | Y3: 2036 | Z3: 2037 | AA3: 2038 | AB3: 2039 | AC3: 2040 | AD3: 2041 | AE3: 2042 | AF3: 2043 | AG3: 2044 | AH3: 2045 | AI3: 2046 | AJ3: 2047 | AK3: 2048
D7: SOURCES OF FINANCING in nominal terms | E7: ИЗТОЧНИЦИ НА ФИНАНСИРАНЕ в текущи цени
D12: Community assistance | E12: Помощ от Общността | F12: =+IF(Разходи!#REF!=1, +Разходи!$F$13,IF(Разходи!#REF!=1000, +"Th "&Разходи!$F$13, IF(Разходи!#REF!=1000000, +"M "&Разходи!$F$13, "ERROR"))) ->  | G12: хил.евро | H12: =Calculation!$J$68/1000*Input!J56 ->  | I12: =Calculation!$J$68/1000*Input!K56 ->  | J12: =Calculation!$J$68/1000*Input!L56 -> 
D13: Local level | E13: Местно финансиране | F13: =+IF(Разходи!#REF!=1, +Разходи!$F$13,IF(Разходи!#REF!=1000, +"Th "&Разходи!$F$13, IF(Разходи!#REF!=1000000, +"M "&Разходи!$F$13, "ERROR"))) ->  | G13: хил.евро | H13: =H14+H15 ->  | I13: =I14+I15 ->  | J13: =J14+J15 -> 
D14: NCRI - cofinancing | E14: НК "ЖИ" - съфинансиране | F14: =+IF(Разходи!#REF!=1, +Разходи!$F$13,IF(Разходи!#REF!=1000, +"Th "&Разходи!$F$13, IF(Разходи!#REF!=1000000, +"M "&Разходи!$F$13, "ERROR"))) ->  | G14: хил.евро | H14: =(Input!N47)/1000+Input!J47/1000-FinSust!H17-FinSust!H12 ->  | I14: =Input!K47/1000-FinSust!I12-FinSust!I17 ->  | J14: =Input!L47/1000-FinSust!J12-FinSust!J17 -> 
D15: NCRI - VAT | E15: НК "ЖИ" - ДДС | F15: =+IF(Разходи!#REF!=1, +Разходи!$F$13,IF(Разходи!#REF!=1000, +"Th "&Разходи!$F$13, IF(Разходи!#REF!=1000000, +"M "&Разходи!$F$13, "ERROR"))) ->  | G15: хил.евро | H15: =Input!N50/1000 ->  | I15: =Input!O50/1000 ->  | J15: =Input!P50/1000 -> 
D16: Regional level | E16: Регионално ниво | F16: =+IF(Разходи!#REF!=1, +Разходи!$F$13,IF(Разходи!#REF!=1000, +"Th "&Разходи!$F$13, IF(Разходи!#REF!=1000000, +"M "&Разходи!$F$13, "ERROR"))) ->  | G16: хил.евро
D17: Central level | E17: Централно ниво | F17: =+IF(Разходи!#REF!=1, +Разходи!$F$13,IF(Разходи!#REF!=1000, +"Th "&Разходи!$F$13, IF(Разходи!#REF!=1000000, +"M "&Разходи!$F$13, "ERROR"))) ->  | G17: хил.евро | H17: =(Calculation!$J$66-Calculation!$J$68)/1000*Input!J56 ->  | I17: =(Calculation!$J$66-Calculation!$J$68)/1000*Input!K56 ->  | J17: =(Calculation!$J$66-Calculation!$J$68)/1000*Input!L56 -> 
D18: National public contribution | E18: Национален обществен принос | F18: =+IF(Разходи!#REF!=1, +Разходи!$F$13,IF(Разходи!#REF!=1000, +"Th "&Разходи!$F$13, IF(Разходи!#REF!=1000000, +"M "&Разходи!$F$13, "ERROR"))) ->  | G18: хил.евро | H18: =SUM(H13:H17)-H14-H15 ->  | I18: =SUM(I13:I17)-I14-I15 ->  | J18: =SUM(J13:J17)-J14-J15 -> 
D19: National private capital | E19: Национален частен капитал | F19: =+IF(Разходи!#REF!=1, +Разходи!$F$13,IF(Разходи!#REF!=1000, +"Th "&Разходи!$F$13, IF(Разходи!#REF!=1000000, +"M "&Разходи!$F$13, "ERROR"))) ->  | G19: хил.евро | H19: 0 | I19: 0 | J19: 0
D20: EIB loan | E20: Заем от ЕИБ | F20: =+IF(Разходи!#REF!=1, +Разходи!$F$13,IF(Разходи!#REF!=1000, +"Th "&Разходи!$F$13, IF(Разходи!#REF!=1000000, +"M "&Разходи!$F$13, "ERROR"))) ->  | G20: хил.евро
D21: Other loans | E21: Други заеми | F21: =+IF(Разходи!#REF!=1, +Разходи!$F$13,IF(Разходи!#REF!=1000, +"Th "&Разходи!$F$13, IF(Разходи!#REF!=1000000, +"M "&Разходи!$F$13, "ERROR"))) ->  | G21: хил.евро | H21: 0 | I21: 0 | J21: 0
D22: Other resources | E22: Други източници | F22: =+IF(Разходи!#REF!=1, +Разходи!$F$13,IF(Разходи!#REF!=1000, +"Th "&Разходи!$F$13, IF(Разходи!#REF!=1000000, +"M "&Разходи!$F$13, "ERROR"))) ->  | G22: хил.евро | H22: =SUM(H19:H21) -> 0 | I22: =SUM(I19:I21) -> 0 | J22: =SUM(J19:J21) -> 0
D23: TOTAL FINANCIAL RESOURCES | E23: Общо финансови източници | F23: =+IF(Разходи!#REF!=1, +Разходи!$F$13,IF(Разходи!#REF!=1000, +"Th "&Разходи!$F$13, IF(Разходи!#REF!=1000000, +"M "&Разходи!$F$13, "ERROR"))) ->  | G23: хил.евро | H23: =+H18+H12 ->  | I23: =+I18+I12 ->  | J23: =+J18+J12 -> 
X24: =X23/Разходи!#REF! ->  | Y24: =Y23/Разходи!#REF! ->  | Z24: =Y24+X24 -> 
D26: FINANCIAL SUSTAINABILITY in nominal terms | E26: ФИНАНСОВА УСТОЙЧИВОСТ в текущи цени
E30: Наименование | G30: мярка | H30: =H3 -> 2019 | I30: 2020 | J30: 2021 | K30: 2022 | L30: 2023 | M30: 2024 | N30: 2025 | O30: 2026 | P30: 2027 | Q30: 2028 | R30: 2029 | S30: 2030 | T30: 2031 | U30: 2032 | V30: 2033 | W30: 2034 | X30: 2035 | Y30: 2036 | Z30: 2037 | AA30: 2038 | AB30: 2039 | AC30: 2040 | AD30: 2041 | AE30: 2042 | AF30: 2043 | AG30: 2044 | AH30: 2045 | AI30: 2046 | AJ30: 2047 | AK30: 2048
D31: Total finanical resources | E31: Общо финансови източници | F31: =+IF(Разходи!#REF!=1, +Разходи!$F$13,IF(Разходи!#REF!=1000, +"Th "&Разходи!$F$13, IF(Разходи!#REF!=1000000, +"M "&Разходи!$F$13, "ERROR"))) ->  | G31: хил.евро | H31: =H23 ->  | I31: =I23 ->  | K31: 0 | L31: 0 | M31: 0 | N31: 0 | O31: 0 | P31: 0 | Q31: 0 | R31: 0 | S31: 0 | T31: 0 | U31: 0 | V31: 0 | W31: 0 | X31: 0 | Y31: 0 | Z31: 0 | AA31: 0 | AB31: 0 | AC31: 0 | AD31: 0 | AE31: 0 | AF31: 0 | AG31: 0 | AH31: 0 | AI31: 0 | AJ31: 0 | AK31: 0
D32: Revenues indoor areas | E32: Приходи от отдаване на закрити площи | F32: =+IF(Разходи!#REF!=1, +Разходи!$F$13,IF(Разходи!#REF!=1000, +"Th "&Разходи!$F$13, IF(Разходи!#REF!=1000000, +"M "&Разходи!$F$13, "ERROR"))) ->  | G32: хил.евро | H32: =FinStat!I48/1000 ->  | I32: =FinStat!J48/1000 ->  | J32: =FinStat!K48/1000 ->  | K32: =FinStat!L48/1000 ->  | L32: =FinStat!M48/1000 ->  | M32: =FinStat!N48/1000 ->  | N32: =FinStat!O48/1000 ->  | O32: =FinStat!P48/1000 ->  | P32: =FinStat!Q48/1000 ->  | Q32: =FinStat!R48/1000 ->  | R32: =FinStat!S48/1000 ->  | S32: =FinStat!T48/1000 ->  | T32: =FinStat!U48/1000 ->  | U32: =FinStat!V48/1000 ->  | V32: =FinStat!W48/1000 ->  | W32: =FinStat!X48/1000 ->  | X32: =FinStat!Y48/1000 ->  | Y32: =FinStat!Z48/1000 ->  | Z32: =FinStat!AA48/1000 ->  | AA32: =FinStat!AB48/1000 ->  | AB32: =FinStat!AC48/1000 ->  | AC32: =FinStat!AD48/1000 ->  | AD32: =FinStat!AE48/1000 ->  | AE32: =FinStat!AF48/1000 ->  | AF32: =FinStat!AG48/1000 ->  | AG32: =FinStat!AH48/1000 ->  | AH32: =FinStat!AI48/1000 ->  | AI32: =FinStat!AJ48/1000 ->  | AJ32: =FinStat!AK48/1000 ->  | AK32: =FinStat!AL48/1000 -> 
D33: Revenues outdoor areas | E33: Приходи от отдаване на открити площи | F33: =+IF(Разходи!#REF!=1, +Разходи!$F$13,IF(Разходи!#REF!=1000, +"Th "&Разходи!$F$13, IF(Разходи!#REF!=1000000, +"M "&Разходи!$F$13, "ERROR"))) ->  | G33: хил.евро | H33: =FinStat!I49/1000 ->  | I33: =FinStat!J49/1000 ->  | J33: =FinStat!K49/1000 ->  | K33: =FinStat!L49/1000 ->  | L33: =FinStat!M49/1000 ->  | M33: =FinStat!N49/1000 ->  | N33: =FinStat!O49/1000 ->  | O33: =FinStat!P49/1000 ->  | P33: =FinStat!Q49/1000 ->  | Q33: =FinStat!R49/1000 ->  | R33: =FinStat!S49/1000 ->  | S33: =FinStat!T49/1000 ->  | T33: =FinStat!U49/1000 ->  | U33: =FinStat!V49/1000 ->  | V33: =FinStat!W49/1000 ->  | W33: =FinStat!X49/1000 ->  | X33: =FinStat!Y49/1000 ->  | Y33: =FinStat!Z49/1000 ->  | Z33: =FinStat!AA49/1000 ->  | AA33: =FinStat!AB49/1000 ->  | AB33: =FinStat!AC49/1000 ->  | AC33: =FinStat!AD49/1000 ->  | AD33: =FinStat!AE49/1000 ->  | AE33: =FinStat!AF49/1000 ->  | AF33: =FinStat!AG49/1000 ->  | AG33: =FinStat!AH49/1000 ->  | AH33: =FinStat!AI49/1000 ->  | AI33: =FinStat!AJ49/1000 ->  | AJ33: =FinStat!AK49/1000 ->  | AK33: =FinStat!AL49/1000 -> 
D34: Subsidies during Constuction | E34: Субсидии НКЖИ | F34: =+IF(Разходи!#REF!=1, +Разходи!$F$13,IF(Разходи!#REF!=1000, +"Th "&Разходи!$F$13, IF(Разходи!#REF!=1000000, +"M "&Разходи!$F$13, "ERROR"))) ->  | G34: хил.евро | H34: =(Разходи!$H$34+Разходи!#REF!)/1000*Разходи!H16 ->  | I34: =(Разходи!$H$34+Разходи!#REF!)/1000*Разходи!I16 ->  | J34: =(Разходи!$H$34+Разходи!#REF!)/1000*Разходи!J16 ->  | K34: =(Разходи!$H$34+Разходи!#REF!)/1000*Разходи!K16 ->  | L34: =(Разходи!$H$34+Разходи!#REF!)/1000*Разходи!L16 ->  | M34: =(Разходи!$H$34+Разходи!#REF!)/1000*Разходи!M16 ->  | N34: =(Разходи!$H$34+Разходи!#REF!)/1000*Разходи!N16 ->  | O34: =(Разходи!$H$34+Разходи!#REF!)/1000*Разходи!O16 ->  | P34: =(Разходи!$H$34+Разходи!#REF!)/1000*Разходи!P16 ->  | Q34: =(Разходи!$H$34+Разходи!#REF!)/1000*Разходи!Q16 ->  | R34: =(Разходи!$H$34+Разходи!#REF!)/1000*Разходи!#REF! ->  | S34: =(Разходи!$H$34+Разходи!#REF!)/1000*Разходи!#REF! ->  | T34: =(Разходи!$H$34+Разходи!#REF!)/1000*Разходи!#REF! ->  | U34: =(Разходи!$H$34+Разходи!#REF!)/1000*Разходи!#REF! ->  | V34: =(Разходи!$H$34+Разходи!#REF!)/1000*Разходи!#REF! ->  | W34: =(Разходи!$H$34+Разходи!#REF!)/1000*Разходи!#REF! ->  | X34: =(Разходи!$H$34+Разходи!#REF!)/1000*Разходи!#REF! ->  | Y34: =(Разходи!$H$34+Разходи!#REF!)/1000*Разходи!#REF! ->  | Z34: =(Разходи!$H$34+Разходи!#REF!)/1000*Разходи!#REF! ->  | AA34: =(Разходи!$H$34+Разходи!#REF!)/1000*Разходи!#REF! ->  | AB34: =(Разходи!$H$34+Разходи!#REF!)/1000*Разходи!#REF! ->  | AC34: =(Разходи!$H$34+Разходи!#REF!)/1000*Разходи!#REF! ->  | AD34: =(Разходи!$H$34+Разходи!#REF!)/1000*Разходи!#REF! ->  | AE34: =(Разходи!$H$34+Разходи!#REF!)/1000*Разходи!#REF! ->  | AF34: =(Разходи!$H$34+Разходи!#REF!)/1000*Разходи!#REF! ->  | AG34: =(Разходи!$H$34+Разходи!#REF!)/1000*Разходи!#REF! ->  | AH34: =(Разходи!$H$34+Разходи!#REF!)/1000*Разходи!#REF! ->  | AI34: =(Разходи!$H$34+Разходи!#REF!)/1000*Разходи!#REF! ->  | AJ34: =(Разходи!$H$34+Разходи!#REF!)/1000*Разходи!#REF! ->  | AK34: =(Разходи!$H$34+Разходи!#REF!)/1000*Разходи!#REF! -> 
D35: TOTAL INFLOWS | E35: ОБЩО ВХОДЯЩ ПАРИЧЕН ПОТОК | F35: =+IF(Разходи!#REF!=1, +Разходи!$F$13,IF(Разходи!#REF!=1000, +"Th "&Разходи!$F$13, IF(Разходи!#REF!=1000000, +"M "&Разходи!$F$13, "ERROR"))) ->  | G35: хил.евро | H35: =SUM(H31:H34) ->  | I35: =SUM(I31:I34) -> 
D36: Total operating costs | E36: Общо експлоатационни разходи | F36: =+IF(Разходи!#REF!=1, +Разходи!$F$13,IF(Разходи!#REF!=1000, +"Th "&Разходи!$F$13, IF(Разходи!#REF!=1000000, +"M "&Разходи!$F$13, "ERROR"))) ->  | G36: хил.евро | H36: =-Разходи!I31*Разходи!#REF!/1000 ->  | I36: =-Разходи!J31*Разходи!#REF!/1000 ->  | J36: =-Разходи!K31*Разходи!#REF!/1000 ->  | K36: =-Разходи!L31*Разходи!#REF!/1000 ->  | L36: =-Разходи!M31*Разходи!#REF!/1000 ->  | M36: =-Разходи!N31*Разходи!#REF!/1000 ->  | N36: =-Разходи!O31*Разходи!#REF!/1000 ->  | O36: =-Разходи!P31*Разходи!#REF!/1000 ->  | P36: =-Разходи!Q31*Разходи!#REF!/1000 ->  | Q36: =-Разходи!#REF!*Разходи!#REF!/1000 ->  | R36: =-Разходи!#REF!*Разходи!#REF!/1000 ->  | S36: =-Разходи!#REF!*Разходи!#REF!/1000 ->  | T36: =-Разходи!#REF!*Разходи!#REF!/1000 ->  | U36: =-Разходи!#REF!*Разходи!#REF!/1000 ->  | V36: =-Разходи!#REF!*Разходи!#REF!/1000 ->  | W36: =-Разходи!#REF!*Разходи!#REF!/1000 ->  | X36: =-Разходи!#REF!*Разходи!#REF!/1000 ->  | Y36: =-Разходи!#REF!*Разходи!#REF!/1000 ->  | Z36: =-Разходи!#REF!*Разходи!#REF!/1000 ->  | AA36: =-Разходи!#REF!*Разходи!#REF!/1000 ->  | AB36: =-Разходи!#REF!*Разходи!#REF!/1000 ->  | AC36: =-Разходи!#REF!*Разходи!#REF!/1000 ->  | AD36: =-Разходи!#REF!*Разходи!#REF!/1000 ->  | AE36: =-Разходи!#REF!*Разходи!#REF!/1000 ->  | AF36: =-Разходи!#REF!*Разходи!#REF!/1000 ->  | AG36: =-Разходи!#REF!*Разходи!#REF!/1000 ->  | AH36: =-Разходи!#REF!*Разходи!#REF!/1000 ->  | AI36: =-Разходи!#REF!*Разходи!#REF!/1000 ->  | AJ36: =-Разходи!#REF!*Разходи!#REF!/1000 ->  | AK36: =-Разходи!#REF!*Разходи!#REF!/1000 -> 
D37: Total heavy maintenance costs | E37: Общо разходи за основен ремонт | F37: =+IF(Разходи!#REF!=1, +Разходи!$F$13,IF(Разходи!#REF!=1000, +"Th "&Разходи!$F$13, IF(Разходи!#REF!=1000000, +"M "&Разходи!$F$13, "ERROR"))) ->  | G37: хил.евро | H37: =-Разходи!#REF!*Разходи!#REF!/1000 ->  | I37: =-Разходи!#REF!*Разходи!#REF!/1000 ->  | J37: =-Разходи!#REF!*Разходи!#REF!/1000 ->  | K37: =-Разходи!#REF!*Разходи!#REF!/1000 ->  | L37: =-Разходи!#REF!*Разходи!#REF!/1000 ->  | M37: =-Разходи!#REF!*Разходи!#REF!/1000 ->  | N37: =-Разходи!#REF!*Разходи!#REF!/1000 ->  | O37: =-Разходи!#REF!*Разходи!#REF!/1000 ->  | P37: =-Разходи!#REF!*Разходи!#REF!/1000 ->  | Q37: =-Разходи!#REF!*Разходи!#REF!/1000 ->  | R37: =-Разходи!#REF!*Разходи!#REF!/1000 ->  | S37: =-Разходи!#REF!*Разходи!#REF!/1000 ->  | T37: =-Разходи!#REF!*Разходи!#REF!/1000 ->  | U37: =-Разходи!#REF!*Разходи!#REF!/1000 ->  | V37: =-Разходи!#REF!*Разходи!#REF!/1000 ->  | W37: =-Разходи!#REF!*Разходи!#REF!/1000 ->  | X37: =-Разходи!#REF!*Разходи!#REF!/1000 ->  | Y37: =-Разходи!#REF!*Разходи!#REF!/1000 ->  | Z37: =-Разходи!#REF!*Разходи!#REF!/1000 ->  | AA37: =-Разходи!#REF!*Разходи!#REF!/1000 ->  | AB37: =-Разходи!#REF!*Разходи!#REF!/1000 ->  | AC37: =-Разходи!#REF!*Разходи!#REF!/1000 ->  | AD37: =-Разходи!#REF!*Разходи!#REF!/1000 ->  | AE37: =-Разходи!#REF!*Разходи!#REF!/1000 ->  | AF37: =-Разходи!#REF!*Разходи!#REF!/1000 ->  | AG37: =-Разходи!#REF!*Разходи!#REF!/1000 ->  | AH37: =-Разходи!#REF!*Разходи!#REF!/1000 ->  | AI37: =-Разходи!#REF!*Разходи!#REF!/1000 ->  | AJ37: =-Разходи!#REF!*Разходи!#REF!/1000 ->  | AK37: =-Разходи!#REF!*Разходи!#REF!/1000 -> 
D38: Total investment costs | E38: Общо инвестиционни разходи | F38: =+IF(Разходи!#REF!=1, +Разходи!$F$13,IF(Разходи!#REF!=1000, +"Th "&Разходи!$F$13, IF(Разходи!#REF!=1000000, +"M "&Разходи!$F$13, "ERROR"))) ->  | G38: хил.евро | H38: =-(Input!N53+Input!J53)/1000 ->  | I38: =-(Input!O53+Input!K53)/1000 ->  | J38: =-(Input!P53+Input!L53)/1000 -> 
D39: Increase (decrease) of WC | E39: Увеличение (намаление) на ОК | F39: =+IF(Разходи!#REF!=1, +Разходи!$F$13,IF(Разходи!#REF!=1000, +"Th "&Разходи!$F$13, IF(Разходи!#REF!=1000000, +"M "&Разходи!$F$13, "ERROR"))) ->  | G39: хил.евро | H39: =-FinStat!I77*(1+Input!$H$14)^(FinSust!H3-Input!$H$11)/1000 ->  | I39: =-FinStat!J77*(1+Input!$H$14)^(FinSust!I3-Input!$H$11)/1000 ->  | J39: =-FinStat!K77*(1+Input!$H$14)^(FinSust!J3-Input!$H$11)/1000 ->  | K39: =-FinStat!L77*(1+Input!$H$14)^(FinSust!K3-Input!$H$11)/1000 ->  | L39: =-FinStat!M77*(1+Input!$H$14)^(FinSust!L3-Input!$H$11)/1000 ->  | M39: =-FinStat!N77*(1+Input!$H$14)^(FinSust!M3-Input!$H$11)/1000 ->  | N39: =-FinStat!O77*(1+Input!$H$14)^(FinSust!N3-Input!$H$11)/1000 ->  | O39: =-FinStat!P77*(1+Input!$H$14)^(FinSust!O3-Input!$H$11)/1000 ->  | P39: =-FinStat!Q77*(1+Input!$H$14)^(FinSust!P3-Input!$H$11)/1000 ->  | Q39: =-FinStat!R77*(1+Input!$H$14)^(FinSust!Q3-Input!$H$11)/1000 ->  | R39: =-FinStat!S77*(1+Input!$H$14)^(FinSust!R3-Input!$H$11)/1000 ->  | S39: =-FinStat!T77*(1+Input!$H$14)^(FinSust!S3-Input!$H$11)/1000 ->  | T39: =-FinStat!U77*(1+Input!$H$14)^(FinSust!T3-Input!$H$11)/1000 ->  | U39: =-FinStat!V77*(1+Input!$H$14)^(FinSust!U3-Input!$H$11)/1000 ->  | V39: =-FinStat!W77*(1+Input!$H$14)^(FinSust!V3-Input!$H$11)/1000 ->  | W39: =-FinStat!X77*(1+Input!$H$14)^(FinSust!W3-Input!$H$11)/1000 ->  | X39: =-FinStat!Y77*(1+Input!$H$14)^(FinSust!X3-Input!$H$11)/1000 ->  | Y39: =-FinStat!Z77*(1+Input!$H$14)^(FinSust!Y3-Input!$H$11)/1000 ->  | Z39: =-FinStat!AA77*(1+Input!$H$14)^(FinSust!Z3-Input!$H$11)/1000 ->  | AA39: =-FinStat!AB77*(1+Input!$H$14)^(FinSust!AA3-Input!$H$11)/1000 ->  | AB39: =-FinStat!AC77*(1+Input!$H$14)^(FinSust!AB3-Input!$H$11)/1000 ->  | AC39: =-FinStat!AD77*(1+Input!$H$14)^(FinSust!AC3-Input!$H$11)/1000 ->  | AD39: =-FinStat!AE77*(1+Input!$H$14)^(FinSust!AD3-Input!$H$11)/1000 ->  | AE39: =-FinStat!AF77*(1+Input!$H$14)^(FinSust!AE3-Input!$H$11)/1000 ->  | AF39: =-FinStat!AG77*(1+Input!$H$14)^(FinSust!AF3-Input!$H$11)/1000 ->  | AG39: =-FinStat!AH77*(1+Input!$H$14)^(FinSust!AG3-Input!$H$11)/1000 ->  | AH39: =-FinStat!AI77*(1+Input!$H$14)^(FinSust!AH3-Input!$H$11)/1000 ->  | AI39: =-FinStat!AJ77*(1+Input!$H$14)^(FinSust!AI3-Input!$H$11)/1000 ->  | AJ39: =-FinStat!AK77*(1+Input!$H$14)^(FinSust!AJ3-Input!$H$11)/1000 ->  | AK39: =-FinStat!AL77*(1+Input!$H$14)^(FinSust!AK3-Input!$H$11)/1000 -> 
D40: Taxes | E40: Данъци | F40: =+IF(Разходи!#REF!=1, +Разходи!$F$13,IF(Разходи!#REF!=1000, +"Th "&Разходи!$F$13, IF(Разходи!#REF!=1000000, +"M "&Разходи!$F$13, "ERROR"))) ->  | G40: хил.евро | H40: =FinStat!I58/1000 ->  | I40: =FinStat!J58/1000 ->  | J40: =FinStat!K58/1000 ->  | K40: =FinStat!L58/1000 ->  | L40: =FinStat!M58/1000 ->  | M40: =FinStat!N58/1000 ->  | N40: =FinStat!O58/1000 ->  | O40: =FinStat!P58/1000 ->  | P40: =FinStat!Q58/1000 ->  | Q40: =FinStat!R58/1000 ->  | R40: =FinStat!S58/1000 ->  | S40: =FinStat!T58/1000 ->  | T40: =FinStat!U58/1000 ->  | U40: =FinStat!V58/1000 ->  | V40: =FinStat!W58/1000 ->  | W40: =FinStat!X58/1000 ->  | X40: =FinStat!Y58/1000 ->  | Y40: =FinStat!Z58/1000 ->  | Z40: =FinStat!AA58/1000 ->  | AA40: =FinStat!AB58/1000 ->  | AB40: =FinStat!AC58/1000 ->  | AC40: =FinStat!AD58/1000 ->  | AD40: =FinStat!AE58/1000 ->  | AE40: =FinStat!AF58/1000 ->  | AF40: =FinStat!AG58/1000 ->  | AG40: =FinStat!AH58/1000 ->  | AH40: =FinStat!AI58/1000 ->  | AI40: =FinStat!AJ58/1000 ->  | AJ40: =FinStat!AK58/1000 ->  | AK40: =FinStat!AL58/1000 -> 
D41: TOTAL OUTFLOWS | E41: ОБЩ ИЗХОДЯЩ ПАРИЧЕН ПОТОК | F41: =+IF(Разходи!#REF!=1, +Разходи!$F$13,IF(Разходи!#REF!=1000, +"Th "&Разходи!$F$13, IF(Разходи!#REF!=1000000, +"M "&Разходи!$F$13, "ERROR"))) ->  | G41: хил.евро | H41: =SUM(H36:H40) ->  | AC41: =SUM(AC36:AC40) -> 
D42: TOTAL CASH FLOW | E42: ОБЩ ПАРИЧЕН ПОТОК | F42: =+IF(Разходи!#REF!=1, +Разходи!$F$13,IF(Разходи!#REF!=1000, +"Th "&Разходи!$F$13, IF(Разходи!#REF!=1000000, +"M "&Разходи!$F$13, "ERROR"))) ->  | G42: хил.евро | H42: =H41+H35 ->  | I42: =I41+I35 ->  | O42: =O41+O35 ->  | AC42: =AC41+AC35 -> 
D43: CUMULATED NET CASH FLOW | E43: АКУМУЛИРАН НЕТЕН ПАРИЧЕН ПОТОК | F43: =+IF(Разходи!#REF!=1, +Разходи!$F$13,IF(Разходи!#REF!=1000, +"Th "&Разходи!$F$13, IF(Разходи!#REF!=1000000, +"M "&Разходи!$F$13, "ERROR"))) ->  | G43: хил.евро | H43: =H42 ->  | I43: =H43+I42 ->  | J43: =I43+J42 ->  | K43: =J43+K42 ->  | N43: =M43+N42 -> 

Sheet FinStat (hidden)
D1: Annex 8 | E1: Приложение 6
D2: Project | E2: Проект
D3: =+Input!D3 -> Rehabilitation of Railway Station Complexes Sofia, Bourgas and Pazardzhik | E3: =+Input!E3 -> РЕКОНСТРУКЦИЯ НА ГАРОВИ КОМПЛЕКСИ „СТАРА ЗАГОРА“ И „НОВА ЗАГОРА“ | F3: Unit | G3: Мярка | I3: =+Input!H11 -> 2020 | J3: =+I3+1 -> 2021 | K3: 2022 | L3: 2023 | M3: 2024 | N3: 2025 | O3: 2026 | P3: 2027 | Q3: 2028 | R3: 2029 | S3: 2030 | T3: 2031 | U3: 2032 | V3: 2033 | W3: 2034 | X3: 2035 | Y3: 2036 | Z3: 2037 | AA3: 2038 | AB3: 2039 | AC3: 2040 | AD3: 2041 | AE3: 2042 | AF3: 2043 | AG3: 2044 | AH3: 2045 | AI3: 2046 | AJ3: 2047 | AK3: 2048 | AL3: 2049
I4: =IF((I3-Input!$H$11+1)<=Input!$H$12,"Construction",IF(I3-Input!$H$11+1<=Input!$H$12+Input!$H$13,"Operation","-")) -> Construction | J4: =IF((J3-Input!$H$11+1)<=Input!$H$12,"Construction",IF(J3-Input!$H$11+1<=Input!$H$12+Input!$H$13,"Operation","-")) -> Construction | K4: =IF((K3-Input!$H$11+1)<=Input!$H$12,"Construction",IF(K3-Input!$H$11+1<=Input!$H$12+Input!$H$13,"Operation","-")) -> Construction | L4: =IF((L3-Input!$H$11+1)<=Input!$H$12,"Construction",IF(L3-Input!$H$11+1<=Input!$H$12+Input!$H$13,"Operation","-")) -> Operation | M4: =IF((M3-Input!$H$11+1)<=Input!$H$12,"Construction",IF(M3-Input!$H$11+1<=Input!$H$12+Input!$H$13,"Operation","-")) -> Operation | N4: =IF((N3-Input!$H$11+1)<=Input!$H$12,"Construction",IF(N3-Input!$H$11+1<=Input!$H$12+Input!$H$13,"Operation","-")) -> Operation | O4: =IF((O3-Input!$H$11+1)<=Input!$H$12,"Construction",IF(O3-Input!$H$11+1<=Input!$H$12+Input!$H$13,"Operation","-")) -> Operation | P4: =IF((P3-Input!$H$11+1)<=Input!$H$12,"Construction",IF(P3-Input!$H$11+1<=Input!$H$12+Input!$H$13,"Operation","-")) -> Operation | Q4: =IF((Q3-Input!$H$11+1)<=Input!$H$12,"Construction",IF(Q3-Input!$H$11+1<=Input!$H$12+Input!$H$13,"Operation","-")) -> Operation | R4: =IF((R3-Input!$H$11+1)<=Input!$H$12,"Construction",IF(R3-Input!$H$11+1<=Input!$H$12+Input!$H$13,"Operation","-")) -> Operation | S4: =IF((S3-Input!$H$11+1)<=Input!$H$12,"Construction",IF(S3-Input!$H$11+1<=Input!$H$12+Input!$H$13,"Operation","-")) -> Operation | T4: =IF((T3-Input!$H$11+1)<=Input!$H$12,"Construction",IF(T3-Input!$H$11+1<=Input!$H$12+Input!$H$13,"Operation","-")) -> Operation | U4: =IF((U3-Input!$H$11+1)<=Input!$H$12,"Construction",IF(U3-Input!$H$11+1<=Input!$H$12+Input!$H$13,"Operation","-")) -> Operation | V4: =IF((V3-Input!$H$11+1)<=Input!$H$12,"Construction",IF(V3-Input!$H$11+1<=Input!$H$12+Input!$H$13,"Operation","-")) -> - | W4: =IF((W3-Input!$H$11+1)<=Input!$H$12,"Construction",IF(W3-Input!$H$11+1<=Input!$H$12+Input!$H$13,"Operation","-")) -> - | X4: =IF((X3-Input!$H$11+1)<=Input!$H$12,"Construction",IF(X3-Input!$H$11+1<=Input!$H$12+Input!$H$13,"Operation","-")) -> - | Y4: =IF((Y3-Input!$H$11+1)<=Input!$H$12,"Construction",IF(Y3-Input!$H$11+1<=Input!$H$12+Input!$H$13,"Operation","-")) -> - | Z4: =IF((Z3-Input!$H$11+1)<=Input!$H$12,"Construction",IF(Z3-Input!$H$11+1<=Input!$H$12+Input!$H$13,"Operation","-")) -> - | AA4: =IF((AA3-Input!$H$11+1)<=Input!$H$12,"Construction",IF(AA3-Input!$H$11+1<=Input!$H$12+Input!$H$13,"Operation","-")) -> - | AB4: =IF((AB3-Input!$H$11+1)<=Input!$H$12,"Construction",IF(AB3-Input!$H$11+1<=Input!$H$12+Input!$H$13,"Operation","-")) -> - | AC4: =IF((AC3-Input!$H$11+1)<=Input!$H$12,"Construction",IF(AC3-Input!$H$11+1<=Input!$H$12+Input!$H$13,"Operation","-")) -> - | AD4: =IF((AD3-Input!$H$11+1)<=Input!$H$12,"Construction",IF(AD3-Input!$H$11+1<=Input!$H$12+Input!$H$13,"Operation","-")) -> - | AE4: =IF((AE3-Input!$H$11+1)<=Input!$H$12,"Construction",IF(AE3-Input!$H$11+1<=Input!$H$12+Input!$H$13,"Operation","-")) -> - | AF4: =IF((AF3-Input!$H$11+1)<=Input!$H$12,"Construction",IF(AF3-Input!$H$11+1<=Input!$H$12+Input!$H$13,"Operation","-")) -> - | AG4: =IF((AG3-Input!$H$11+1)<=Input!$H$12,"Construction",IF(AG3-Input!$H$11+1<=Input!$H$12+Input!$H$13,"Operation","-")) -> - | AH4: =IF((AH3-Input!$H$11+1)<=Input!$H$12,"Construction",IF(AH3-Input!$H$11+1<=Input!$H$12+Input!$H$13,"Operation","-")) -> - | AI4: =IF((AI3-Input!$H$11+1)<=Input!$H$12,"Construction",IF(AI3-Input!$H$11+1<=Input!$H$12+Input!$H$13,"Operation","-")) -> - | AJ4: =IF((AJ3-Input!$H$11+1)<=Input!$H$12,"Construction",IF(AJ3-Input!$H$11+1<=Input!$H$12+Input!$H$13,"Operation","-")) -> - | AK4: =IF((AK3-Input!$H$11+1)<=Input!$H$12,"Construction",IF(AK3-Input!$H$11+1<=Input!$H$12+Input!$H$13,"Operation","-")) -> - | AL4: =IF((AL3-Input!$H$11+1)<=Input!$H$12,"Construction",IF(AL3-Input!$H$11+1<=Input!$H$12+Input!$H$13,"Operation","-")) -> -
D7: PROJECT INVESTMENT COST in nominal terms | E7: Инвестиционни разходи в текущи цени
D11: Asset values - building and construction | E11: Стойност на активите - сгради и конструкции | H11: =+TEXT($I$3,"0")&"-"&TEXT($I$3+Input!$H$12-1,"0") -> 2020-2022
D12: Annual investment | E12: Годишна инвестиция | F12: Current EUR | G12: Настоящи евро | H12: =SUM(OFFSET(I12,0,0,1,Input!$H$12)) ->  | I12: =IF(I$4="Construction",+(Input!J29),0) ->  | J12: =IF(J$4="Construction",+(Input!K29),0) ->  | K12: =IF(K$4="Construction",+(Input!L29),0) ->  | L12: =IF(L$4="Construction",+(Input!#REF!),0) -> 0 | M12: =IF(M$4="Construction",+(Input!#REF!),0) -> 0 | N12: =IF(N$4="Construction",+(Input!#REF!),0) -> 0 | O12: =IF(O$4="Construction",+(Input!M29),0) -> 0 | P12: =IF(P$4="Construction",+(Input!N29),0) -> 0 | Q12: =IF(Q$4="Construction",+(Input!O29),0) -> 0 | R12: =IF(R$4="Construction",+(Input!P29),0) -> 0 | S12: =IF(S$4="Construction",+(Input!#REF!),0) -> 0 | T12: =IF(T$4="Construction",+(Input!#REF!),0) -> 0 | U12: =IF(U$4="Construction",+(Input!#REF!),0) -> 0 | V12: =IF(V$4="Construction",+(Input!#REF!),0) -> 0 | W12: =IF(W$4="Construction",+(Input!Q29),0) -> 0 | X12: =IF(X$4="Construction",+(Input!T29),0) -> 0 | Y12: =IF(Y$4="Construction",+(Input!U29),0) -> 0 | Z12: =IF(Z$4="Construction",+(Input!V29),0) -> 0 | AA12: =IF(AA$4="Construction",+(Input!W29),0) -> 0 | AB12: =IF(AB$4="Construction",+(Input!X29),0) -> 0 | AC12: =IF(AC$4="Construction",+(Input!Y29),0) -> 0 | AD12: =IF(AD$4="Construction",+(Input!Z29),0) -> 0 | AE12: =IF(AE$4="Construction",+(Input!AA29),0) -> 0 | AF12: =IF(AF$4="Construction",+(Input!AB29),0) -> 0 | AG12: =IF(AG$4="Construction",+(Input!AC29),0) -> 0 | AH12: =IF(AH$4="Construction",+(Input!AD29),0) -> 0 | AI12: =IF(AI$4="Construction",+(Input!#REF!),0) -> 0 | AJ12: =IF(AJ$4="Construction",+(Input!#REF!),0) -> 0 | AK12: =IF(AK$4="Construction",+(Input!#REF!),0) -> 0 | AL12: =IF(AL$4="Construction",+(Input!#REF!),0) -> 0
D13: Cumulative value | E13: Кумулативна стойност | F13: Current EUR | G13: Настоящи евро | I13: =+I12 ->  | J13: =IF(OR(J$4="Construction",J$4="Operation"),(J12+I13),0) ->  | K13: =IF(OR(K4="Construction",K4="Operation"),(K12+J13),0) ->  | V13: 0 | W13: 0 | X13: 0 | Y13: 0 | Z13: 0 | AA13: 0 | AB13: 0 | AC13: 0 | AD13: 0 | AE13: 0 | AF13: 0 | AG13: 0 | AH13: 0 | AI13: 0 | AJ13: 0 | AK13: 0 | AL13: 0
D14: Annual depreciation | E14: Годишна амортизация | F14: Current EUR | G14: Настоящи евро | I14: =CHOOSE(IF(I$4="Construction",1,IF(I$4="Operation",2,3)),0,IF((I$3-Input!$H$11-Input!$H$12)<Input!$H$59,I13/Input!$H$59,(I13-OFFSET(I13,0,-Input!$H$59))/Input!$H$59),0) -> 0 | J14: =CHOOSE(IF(J$4="Construction",1,IF(J$4="Operation",2,3)),0,IF((J$3-Input!$H$11-Input!$H$12)<Input!$H$59,J13/Input!$H$59,(J13-OFFSET(J13,0,-Input!$H$59))/Input!$H$59),0) -> 0 | K14: =CHOOSE(IF(K$4="Construction",1,IF(K$4="Operation",2,3)),0,IF((K$3-Input!$H$11-Input!$H$12)<Input!$H$59,K13/Input!$H$59,(K13-OFFSET(K13,0,-Input!$H$59))/Input!$H$59),0) -> 0 | L14: =CHOOSE(IF(L$4="Construction",1,IF(L$4="Operation",2,3)),0,IF((L$3-Input!$H$11-Input!$H$12)<Input!$H$59,L13/Input!$H$59,(L13-OFFSET(L13,0,-Input!$H$59))/Input!$H$59),0) ->  | M14: =CHOOSE(IF(M$4="Construction",1,IF(M$4="Operation",2,3)),0,IF((M$3-Input!$H$11-Input!$H$12)<Input!$H$59,M13/Input!$H$59,(M13-OFFSET(M13,0,-Input!$H$59))/Input!$H$59),0) ->  | N14: =CHOOSE(IF(N$4="Construction",1,IF(N$4="Operation",2,3)),0,IF((N$3-Input!$H$11-Input!$H$12)<Input!$H$59,N13/Input!$H$59,(N13-OFFSET(N13,0,-Input!$H$59))/Input!$H$59),0) ->  | O14: =CHOOSE(IF(O$4="Construction",1,IF(O$4="Operation",2,3)),0,IF((O$3-Input!$H$11-Input!$H$12)<Input!$H$59,O13/Input!$H$59,(O13-OFFSET(O13,0,-Input!$H$59))/Input!$H$59),0) ->  | P14: =CHOOSE(IF(P$4="Construction",1,IF(P$4="Operation",2,3)),0,IF((P$3-Input!$H$11-Input!$H$12)<Input!$H$59,P13/Input!$H$59,(P13-OFFSET(P13,0,-Input!$H$59))/Input!$H$59),0) ->  | Q14: =CHOOSE(IF(Q$4="Construction",1,IF(Q$4="Operation",2,3)),0,IF((Q$3-Input!$H$11-Input!$H$12)<Input!$H$59,Q13/Input!$H$59,(Q13-OFFSET(Q13,0,-Input!$H$59))/Input!$H$59),0) ->  | R14: =CHOOSE(IF(R$4="Construction",1,IF(R$4="Operation",2,3)),0,IF((R$3-Input!$H$11-Input!$H$12)<Input!$H$59,R13/Input!$H$59,(R13-OFFSET(R13,0,-Input!$H$59))/Input!$H$59),0) ->  | S14: =CHOOSE(IF(S$4="Construction",1,IF(S$4="Operation",2,3)),0,IF((S$3-Input!$H$11-Input!$H$12)<Input!$H$59,S13/Input!$H$59,(S13-OFFSET(S13,0,-Input!$H$59))/Input!$H$59),0) ->  | T14: =CHOOSE(IF(T$4="Construction",1,IF(T$4="Operation",2,3)),0,IF((T$3-Input!$H$11-Input!$H$12)<Input!$H$59,T13/Input!$H$59,(T13-OFFSET(T13,0,-Input!$H$59))/Input!$H$59),0) ->  | U14: =CHOOSE(IF(U$4="Construction",1,IF(U$4="Operation",2,3)),0,IF((U$3-Input!$H$11-Input!$H$12)<Input!$H$59,U13/Input!$H$59,(U13-OFFSET(U13,0,-Input!$H$59))/Input!$H$59),0) ->  | V14: =CHOOSE(IF(V$4="Construction",1,IF(V$4="Operation",2,3)),0,IF((V$3-Input!$H$11-Input!$H$12)<Input!$H$59,V13/Input!$H$59,(V13-OFFSET(V13,0,-Input!$H$59))/Input!$H$59),0) -> 0 | W14: =CHOOSE(IF(W$4="Construction",1,IF(W$4="Operation",2,3)),0,IF((W$3-Input!$H$11-Input!$H$12)<Input!$H$59,W13/Input!$H$59,(W13-OFFSET(W13,0,-Input!$H$59))/Input!$H$59),0) -> 0 | X14: =CHOOSE(IF(X$4="Construction",1,IF(X$4="Operation",2,3)),0,IF((X$3-Input!$H$11-Input!$H$12)<Input!$H$59,X13/Input!$H$59,(X13-OFFSET(X13,0,-Input!$H$59))/Input!$H$59),0) -> 0 | Y14: =CHOOSE(IF(Y$4="Construction",1,IF(Y$4="Operation",2,3)),0,IF((Y$3-Input!$H$11-Input!$H$12)<Input!$H$59,Y13/Input!$H$59,(Y13-OFFSET(Y13,0,-Input!$H$59))/Input!$H$59),0) -> 0 | Z14: =CHOOSE(IF(Z$4="Construction",1,IF(Z$4="Operation",2,3)),0,IF((Z$3-Input!$H$11-Input!$H$12)<Input!$H$59,Z13/Input!$H$59,(Z13-OFFSET(Z13,0,-Input!$H$59))/Input!$H$59),0) -> 0 | AA14: =CHOOSE(IF(AA$4="Construction",1,IF(AA$4="Operation",2,3)),0,IF((AA$3-Input!$H$11-Input!$H$12)<Input!$H$59,AA13/Input!$H$59,(AA13-OFFSET(AA13,0,-Input!$H$59))/Input!$H$59),0) -> 0 | AB14: =CHOOSE(IF(AB$4="Construction",1,IF(AB$4="Operation",2,3)),0,IF((AB$3-Input!$H$11-Input!$H$12)<Input!$H$59,AB13/Input!$H$59,(AB13-OFFSET(AB13,0,-Input!$H$59))/Input!$H$59),0) -> 0 | AC14: =CHOOSE(IF(AC$4="Construction",1,IF(AC$4="Operation",2,3)),0,IF((AC$3-Input!$H$11-Input!$H$12)<Input!$H$59,AC13/Input!$H$59,(AC13-OFFSET(AC13,0,-Input!$H$59))/Input!$H$59),0) -> 0 | AD14: =CHOOSE(IF(AD$4="Construction",1,IF(AD$4="Operation",2,3)),0,IF((AD$3-Input!$H$11-Input!$H$12)<Input!$H$59,AD13/Input!$H$59,(AD13-OFFSET(AD13,0,-Input!$H$59))/Input!$H$59),0) -> 0 | AE14: =CHOOSE(IF(AE$4="Construction",1,IF(AE$4="Operation",2,3)),0,IF((AE$3-Input!$H$11-Input!$H$12)<Input!$H$59,AE13/Input!$H$59,(AE13-OFFSET(AE13,0,-Input!$H$59))/Input!$H$59),0) -> 0 | AF14: =CHOOSE(IF(AF$4="Construction",1,IF(AF$4="Operation",2,3)),0,IF((AF$3-Input!$H$11-Input!$H$12)<Input!$H$59,AF13/Input!$H$59,(AF13-OFFSET(AF13,0,-Input!$H$59))/Input!$H$59),0) -> 0 | AG14: =CHOOSE(IF(AG$4="Construction",1,IF(AG$4="Operation",2,3)),0,IF((AG$3-Input!$H$11-Input!$H$12)<Input!$H$59,AG13/Input!$H$59,(AG13-OFFSET(AG13,0,-Input!$H$59))/Input!$H$59),0) -> 0 | AH14: =CHOOSE(IF(AH$4="Construction",1,IF(AH$4="Operation",2,3)),0,IF((AH$3-Input!$H$11-Input!$H$12)<Input!$H$59,AH13/Input!$H$59,(AH13-OFFSET(AH13,0,-Input!$H$59))/Input!$H$59),0) -> 0 | AI14: =CHOOSE(IF(AI$4="Construction",1,IF(AI$4="Operation",2,3)),0,IF((AI$3-Input!$H$11-Input!$H$12)<Input!$H$59,AI13/Input!$H$59,(AI13-OFFSET(AI13,0,-Input!$H$59))/Input!$H$59),0) -> 0 | AJ14: =CHOOSE(IF(AJ$4="Construction",1,IF(AJ$4="Operation",2,3)),0,IF((AJ$3-Input!$H$11-Input!$H$12)<Input!$H$59,AJ13/Input!$H$59,(AJ13-OFFSET(AJ13,0,-Input!$H$59))/Input!$H$59),0) -> 0 | AK14: =CHOOSE(IF(AK$4="Construction",1,IF(AK$4="Operation",2,3)),0,IF((AK$3-Input!$H$11-Input!$H$12)<Input!$H$59,AK13/Input!$H$59,(AK13-OFFSET(AK13,0,-Input!$H$59))/Input!$H$59),0) -> 0 | AL14: =CHOOSE(IF(AL$4="Construction",1,IF(AL$4="Operation",2,3)),0,IF((AL$3-Input!$H$11-Input!$H$12)<Input!$H$59,AL13/Input!$H$59,(AL13-OFFSET(AL13,0,-Input!$H$59))/Input!$H$59),0) -> 0
D15: Cumulative depreciation | E15: Кумулативна амортизация | F15: Current EUR | G15: Настоящи евро | I15: =+I14 -> 0 | J15: =IF(OR(J4="Construction",J4="Operation"),(I15+J14),0) -> 0 | K15: 0 | V15: 0 | W15: 0 | X15: 0 | Y15: 0 | Z15: 0 | AA15: 0 | AB15: 0 | AC15: 0 | AD15: 0 | AE15: 0 | AF15: 0 | AG15: 0 | AH15: 0 | AI15: 0 | AJ15: 0 | AK15: 0 | AL15: 0
D16: Book value | E16: Балансова стойност | F16: Current EUR | G16: Настоящи евро | I16: =+I13-I15 ->  | J16: =+J13-J15 ->  | K16: =+K13-K15 ->  | L16: =+L13-L15 ->  | V16: 0 | W16: 0 | X16: 0 | Y16: 0 | Z16: 0 | AA16: 0 | AB16: 0 | AC16: 0 | AD16: 0 | AE16: 0 | AF16: 0 | AG16: 0 | AH16: 0 | AI16: 0 | AJ16: 0 | AK16: 0 | AL16: 0
D18: Asset values - plant and machinery | E18: Стойност на активите - обзавеждане и оборудване | H18: =+TEXT($I$3,"0")&"-"&TEXT($I$3+Input!$H$12-1,"0") -> 2020-2022
D19: Annual investment | E19: Годишна инвестиция | F19: Current EUR | G19: Настоящи евро | H19: =SUM(OFFSET(I19,0,0,1,Input!$H$12)) ->  | I19: =IF(I$4="Construction",+(Input!J32+Input!N32),0) ->  | J19: =IF(J$4="Construction",+(Input!K32+Input!O32),0) ->  | K19: =IF(K$4="Construction",+(Input!L32+Input!P32),0) ->  | L19: =IF(L$4="Construction",+(Input!N32+Input!#REF!),0) -> 0 | M19: =IF(M$4="Construction",+(Input!O32+Input!#REF!),0) -> 0 | N19: =IF(N$4="Construction",+(Input!P32+Input!#REF!),0) -> 0 | O19: =IF(O$4="Construction",+(Input!#REF!+Input!#REF!),0) -> 0 | P19: =IF(P$4="Construction",+(Input!#REF!+Input!Q32),0) -> 0 | Q19: =IF(Q$4="Construction",+(Input!#REF!+Input!T32),0) -> 0 | R19: =IF(R$4="Construction",+(Input!#REF!+Input!U32),0) -> 0 | S19: =IF(S$4="Construction",+(Input!Q32+Input!V32),0) -> 0 | T19: =IF(T$4="Construction",+(Input!T32+Input!W32),0) -> 0 | U19: =IF(U$4="Construction",+(Input!U32+Input!X32),0) -> 0 | V19: =IF(V$4="Construction",+(Input!V32+Input!Y32),0) -> 0 | W19: =IF(W$4="Construction",+(Input!W32+Input!Z32),0) -> 0 | X19: =IF(X$4="Construction",+(Input!X32+Input!AA32),0) -> 0 | Y19: =IF(Y$4="Construction",+(Input!Y32+Input!AB32),0) -> 0 | Z19: =IF(Z$4="Construction",+(Input!Z32+Input!AC32),0) -> 0 | AA19: =IF(AA$4="Construction",+(Input!AA32+Input!AD32),0) -> 0 | AB19: =IF(AB$4="Construction",+(Input!AB32+Input!#REF!),0) -> 0 | AC19: =IF(AC$4="Construction",+(Input!AC32+Input!#REF!),0) -> 0 | AD19: =IF(AD$4="Construction",+(Input!AD32+Input!#REF!),0) -> 0 | AE19: =IF(AE$4="Construction",+(Input!#REF!+Input!#REF!),0) -> 0 | AF19: =IF(AF$4="Construction",+(Input!#REF!+Input!#REF!),0) -> 0 | AG19: =IF(AG$4="Construction",+(Input!#REF!+Input!AE32),0) -> 0 | AH19: =IF(AH$4="Construction",+(Input!#REF!+Input!#REF!),0) -> 0 | AI19: =IF(AI$4="Construction",+(Input!#REF!+Input!#REF!),0) -> 0 | AJ19: =IF(AJ$4="Construction",+(Input!AE32+Input!#REF!),0) -> 0 | AK19: =IF(AK$4="Construction",+(Input!#REF!+Input!#REF!),0) -> 0 | AL19: =IF(AL$4="Construction",+(Input!#REF!+Input!#REF!),0) -> 0
D20: Cumulative value | E20: Кумулативна стойност | F20: Current EUR | G20: Настоящи евро | I20: =+I19 ->  | J20: =IF(OR(J$4="Construction",J$4="Operation"),(J19+I20),0) ->  | K20: =IF(OR(K$4="Construction",K$4="Operation"),(K19+J20),0) ->  | V20: 0 | W20: 0 | X20: 0 | Y20: 0 | Z20: 0 | AA20: 0 | AB20: 0 | AC20: 0 | AD20: 0 | AE20: 0 | AF20: 0 | AG20: 0 | AH20: 0 | AI20: 0 | AJ20: 0 | AK20: 0 | AL20: 0
D21: Annual depreciation | E21: Годишна амортизация | F21: Current EUR | G21: Настоящи евро | I21: =CHOOSE(IF(I$4="Construction",1,IF(I$4="Operation",2,3)),0,IF((I$3-Input!$H$11-Input!$H$12)<Input!$H$60,I20/Input!$H$60,(I20-OFFSET(I20,0,-Input!$H$60))/Input!$H$60),0) -> 0 | J21: =CHOOSE(IF(J$4="Construction",1,IF(J$4="Operation",2,3)),0,IF((J$3-Input!$H$11-Input!$H$12)<Input!$H$60,J20/Input!$H$60,(J20-OFFSET(J20,0,-Input!$H$60))/Input!$H$60),0) -> 0 | K21: =CHOOSE(IF(K$4="Construction",1,IF(K$4="Operation",2,3)),0,IF((K$3-Input!$H$11-Input!$H$12)<Input!$H$60,K20/Input!$H$60,(K20-OFFSET(K20,0,-Input!$H$60))/Input!$H$60),0) -> 0 | L21: =CHOOSE(IF(L$4="Construction",1,IF(L$4="Operation",2,3)),0,IF((L$3-Input!$H$11-Input!$H$12)<Input!$H$60,L20/Input!$H$60,(L20-OFFSET(L20,0,-Input!$H$60))/Input!$H$60),0) ->  | M21: =CHOOSE(IF(M$4="Construction",1,IF(M$4="Operation",2,3)),0,IF((M$3-Input!$H$11-Input!$H$12)<Input!$H$60,M20/Input!$H$60,(M20-OFFSET(M20,0,-Input!$H$60))/Input!$H$60),0) ->  | N21: =CHOOSE(IF(N$4="Construction",1,IF(N$4="Operation",2,3)),0,IF((N$3-Input!$H$11-Input!$H$12)<Input!$H$60,N20/Input!$H$60,(N20-OFFSET(N20,0,-Input!$H$60))/Input!$H$60),0) ->  | O21: =CHOOSE(IF(O$4="Construction",1,IF(O$4="Operation",2,3)),0,IF((O$3-Input!$H$11-Input!$H$12)<Input!$H$60,O20/Input!$H$60,(O20-OFFSET(O20,0,-Input!$H$60))/Input!$H$60),0) ->  | P21: =CHOOSE(IF(P$4="Construction",1,IF(P$4="Operation",2,3)),0,IF((P$3-Input!$H$11-Input!$H$12)<Input!$H$60,P20/Input!$H$60,(P20-OFFSET(P20,0,-Input!$H$60))/Input!$H$60),0) ->  | Q21: =CHOOSE(IF(Q$4="Construction",1,IF(Q$4="Operation",2,3)),0,IF((Q$3-Input!$H$11-Input!$H$12)<Input!$H$60,Q20/Input!$H$60,(Q20-OFFSET(Q20,0,-Input!$H$60))/Input!$H$60),0) ->  | R21: =CHOOSE(IF(R$4="Construction",1,IF(R$4="Operation",2,3)),0,IF((R$3-Input!$H$11-Input!$H$12)<Input!$H$60,R20/Input!$H$60,(R20-OFFSET(R20,0,-Input!$H$60))/Input!$H$60),0) ->  | S21: =CHOOSE(IF(S$4="Construction",1,IF(S$4="Operation",2,3)),0,IF((S$3-Input!$H$11-Input!$H$12)<Input!$H$60,S20/Input!$H$60,(S20-OFFSET(S20,0,-Input!$H$60))/Input!$H$60),0) ->  | T21: =CHOOSE(IF(T$4="Construction",1,IF(T$4="Operation",2,3)),0,IF((T$3-Input!$H$11-Input!$H$12)<Input!$H$60,T20/Input!$H$60,(T20-OFFSET(T20,0,-Input!$H$60))/Input!$H$60),0) ->  | U21: =CHOOSE(IF(U$4="Construction",1,IF(U$4="Operation",2,3)),0,IF((U$3-Input!$H$11-Input!$H$12)<Input!$H$60,U20/Input!$H$60,(U20-OFFSET(U20,0,-Input!$H$60))/Input!$H$60),0) ->  | V21: =CHOOSE(IF(V$4="Construction",1,IF(V$4="Operation",2,3)),0,IF((V$3-Input!$H$11-Input!$H$12)<Input!$H$60,V20/Input!$H$60,(V20-OFFSET(V20,0,-Input!$H$60))/Input!$H$60),0) -> 0 | W21: =CHOOSE(IF(W$4="Construction",1,IF(W$4="Operation",2,3)),0,IF((W$3-Input!$H$11-Input!$H$12)<Input!$H$60,W20/Input!$H$60,(W20-OFFSET(W20,0,-Input!$H$60))/Input!$H$60),0) -> 0 | X21: =CHOOSE(IF(X$4="Construction",1,IF(X$4="Operation",2,3)),0,IF((X$3-Input!$H$11-Input!$H$12)<Input!$H$60,X20/Input!$H$60,(X20-OFFSET(X20,0,-Input!$H$60))/Input!$H$60),0) -> 0 | Y21: =CHOOSE(IF(Y$4="Construction",1,IF(Y$4="Operation",2,3)),0,IF((Y$3-Input!$H$11-Input!$H$12)<Input!$H$60,Y20/Input!$H$60,(Y20-OFFSET(Y20,0,-Input!$H$60))/Input!$H$60),0) -> 0 | Z21: =CHOOSE(IF(Z$4="Construction",1,IF(Z$4="Operation",2,3)),0,IF((Z$3-Input!$H$11-Input!$H$12)<Input!$H$60,Z20/Input!$H$60,(Z20-OFFSET(Z20,0,-Input!$H$60))/Input!$H$60),0) -> 0 | AA21: =CHOOSE(IF(AA$4="Construction",1,IF(AA$4="Operation",2,3)),0,IF((AA$3-Input!$H$11-Input!$H$12)<Input!$H$60,AA20/Input!$H$60,(AA20-OFFSET(AA20,0,-Input!$H$60))/Input!$H$60),0) -> 0 | AB21: =CHOOSE(IF(AB$4="Construction",1,IF(AB$4="Operation",2,3)),0,IF((AB$3-Input!$H$11-Input!$H$12)<Input!$H$60,AB20/Input!$H$60,(AB20-OFFSET(AB20,0,-Input!$H$60))/Input!$H$60),0) -> 0 | AC21: =CHOOSE(IF(AC$4="Construction",1,IF(AC$4="Operation",2,3)),0,IF((AC$3-Input!$H$11-Input!$H$12)<Input!$H$60,AC20/Input!$H$60,(AC20-OFFSET(AC20,0,-Input!$H$60))/Input!$H$60),0) -> 0 | AD21: =CHOOSE(IF(AD$4="Construction",1,IF(AD$4="Operation",2,3)),0,IF((AD$3-Input!$H$11-Input!$H$12)<Input!$H$60,AD20/Input!$H$60,(AD20-OFFSET(AD20,0,-Input!$H$60))/Input!$H$60),0) -> 0 | AE21: =CHOOSE(IF(AE$4="Construction",1,IF(AE$4="Operation",2,3)),0,IF((AE$3-Input!$H$11-Input!$H$12)<Input!$H$60,AE20/Input!$H$60,(AE20-OFFSET(AE20,0,-Input!$H$60))/Input!$H$60),0) -> 0 | AF21: =CHOOSE(IF(AF$4="Construction",1,IF(AF$4="Operation",2,3)),0,IF((AF$3-Input!$H$11-Input!$H$12)<Input!$H$60,AF20/Input!$H$60,(AF20-OFFSET(AF20,0,-Input!$H$60))/Input!$H$60),0) -> 0 | AG21: =CHOOSE(IF(AG$4="Construction",1,IF(AG$4="Operation",2,3)),0,IF((AG$3-Input!$H$11-Input!$H$12)<Input!$H$60,AG20/Input!$H$60,(AG20-OFFSET(AG20,0,-Input!$H$60))/Input!$H$60),0) -> 0 | AH21: =CHOOSE(IF(AH$4="Construction",1,IF(AH$4="Operation",2,3)),0,IF((AH$3-Input!$H$11-Input!$H$12)<Input!$H$60,AH20/Input!$H$60,(AH20-OFFSET(AH20,0,-Input!$H$60))/Input!$H$60),0) -> 0 | AI21: =CHOOSE(IF(AI$4="Construction",1,IF(AI$4="Operation",2,3)),0,IF((AI$3-Input!$H$11-Input!$H$12)<Input!$H$60,AI20/Input!$H$60,(AI20-OFFSET(AI20,0,-Input!$H$60))/Input!$H$60),0) -> 0 | AJ21: =CHOOSE(IF(AJ$4="Construction",1,IF(AJ$4="Operation",2,3)),0,IF((AJ$3-Input!$H$11-Input!$H$12)<Input!$H$60,AJ20/Input!$H$60,(AJ20-OFFSET(AJ20,0,-Input!$H$60))/Input!$H$60),0) -> 0 | AK21: =CHOOSE(IF(AK$4="Construction",1,IF(AK$4="Operation",2,3)),0,IF((AK$3-Input!$H$11-Input!$H$12)<Input!$H$60,AK20/Input!$H$60,(AK20-OFFSET(AK20,0,-Input!$H$60))/Input!$H$60),0) -> 0 | AL21: =CHOOSE(IF(AL$4="Construction",1,IF(AL$4="Operation",2,3)),0,IF((AL$3-Input!$H$11-Input!$H$12)<Input!$H$60,AL20/Input!$H$60,(AL20-OFFSET(AL20,0,-Input!$H$60))/Input!$H$60),0) -> 0
D22: Cumulative depreciation | E22: Кумулативна амортизация | F22: Current EUR | G22: Настоящи евро | I22: =+I21 -> 0 | J22: =IF(OR(J4="Construction",J4="Operation"),(I22+J21),0) -> 0 | K22: 0 | V22: 0 | W22: 0 | X22: 0 | Y22: 0 | Z22: 0 | AA22: 0 | AB22: 0 | AC22: 0 | AD22: 0 | AE22: 0 | AF22: 0 | AG22: 0 | AH22: 0 | AI22: 0 | AJ22: 0 | AK22: 0 | AL22: 0
D23: Book value | E23: Балансова стойност | F23: Current EUR | G23: Настоящи евро | I23: =+I20-I22 ->  | V23: 0 | W23: 0 | X23: 0 | Y23: 0 | Z23: 0 | AA23: 0 | AB23: 0 | AC23: 0 | AD23: 0 | AE23: 0 | AF23: 0 | AG23: 0 | AH23: 0 | AI23: 0 | AJ23: 0 | AK23: 0 | AL23: 0
D25: Asset values - intangible assets (*) | E25: Стойност на активите - нематериални активи (*) | H25: =+TEXT($I$3,"0")&"-"&TEXT($I$3+Input!$H$12-1,"0") -> 2020-2022
D26: Annual investment | E26: Годишна инвестиция | F26: Current EUR | G26: Настоящи евро | H26: =SUM(OFFSET(I26,0,0,1,Input!$H$12)) ->  | I26: =IF(I$4="Construction",+(Input!J26+Input!J35+Input!J38+Input!J41+Input!J44+Input!J50),0) ->  | J26: =IF(J$4="Construction",+(Input!K26+Input!K35+Input!K38+Input!K41+Input!K44+Input!K50),0) ->  | K26: =IF(K$4="Construction",+(Input!L26+Input!L35+Input!L38+Input!L41+Input!L44+Input!L50),0) ->  | L26: =IF(L$4="Construction",+(Input!#REF!+Input!#REF!+Input!#REF!+Input!#REF!+Input!#REF!),0) -> 0 | M26: =IF(M$4="Construction",+(Input!#REF!+Input!#REF!+Input!#REF!+Input!#REF!+Input!#REF!),0) -> 0 | N26: =IF(N$4="Construction",+(Input!#REF!+Input!#REF!+Input!#REF!+Input!#REF!+Input!#REF!),0) -> 0 | O26: =IF(O$4="Construction",+(Input!M26+Input!M38+Input!M41+Input!M44+Input!M50),0) -> 0 | P26: =IF(P$4="Construction",+(Input!N26+Input!N38+Input!N41+Input!N44+Input!N50),0) -> 0 | Q26: =IF(Q$4="Construction",+(Input!O26+Input!O38+Input!O41+Input!O44+Input!O50),0) -> 0 | R26: =IF(R$4="Construction",+(Input!P26+Input!P38+Input!P41+Input!P44+Input!P50),0) -> 0 | S26: =IF(S$4="Construction",+(Input!#REF!+Input!#REF!+Input!#REF!+Input!#REF!+Input!#REF!),0) -> 0 | T26: =IF(T$4="Construction",+(Input!#REF!+Input!#REF!+Input!#REF!+Input!#REF!+Input!#REF!),0) -> 0 | U26: =IF(U$4="Construction",+(Input!#REF!+Input!#REF!+Input!#REF!+Input!#REF!+Input!#REF!),0) -> 0 | V26: =IF(V$4="Construction",+(Input!#REF!+Input!#REF!+Input!#REF!+Input!#REF!+Input!#REF!),0) -> 0 | W26: =IF(W$4="Construction",+(Input!Q26+Input!Q38+Input!Q41+Input!Q44+Input!Q50),0) -> 0 | X26: =IF(X$4="Construction",+(Input!T26+Input!T38+Input!T41+Input!T44+Input!T50),0) -> 0 | Y26: =IF(Y$4="Construction",+(Input!U26+Input!U38+Input!U41+Input!U44+Input!U50),0) -> 0 | Z26: =IF(Z$4="Construction",+(Input!V26+Input!V38+Input!V41+Input!V44+Input!V50),0) -> 0 | AA26: =IF(AA$4="Construction",+(Input!W26+Input!W38+Input!W41+Input!W44+Input!W50),0) -> 0 | AB26: =IF(AB$4="Construction",+(Input!X26+Input!X38+Input!X41+Input!X44+Input!X50),0) -> 0 | AC26: =IF(AC$4="Construction",+(Input!Y26+Input!Y38+Input!Y41+Input!Y44+Input!Y50),0) -> 0 | AD26: =IF(AD$4="Construction",+(Input!Z26+Input!Z38+Input!Z41+Input!Z44+Input!Z50),0) -> 0 | AE26: =IF(AE$4="Construction",+(Input!AA26+Input!AA38+Input!AA41+Input!AA44+Input!AA50),0) -> 0 | AF26: =IF(AF$4="Construction",+(Input!AB26+Input!AB38+Input!AB41+Input!AB44+Input!AB50),0) -> 0 | AG26: =IF(AG$4="Construction",+(Input!AC26+Input!AC38+Input!AC41+Input!AC44+Input!AC50),0) -> 0 | AH26: =IF(AH$4="Construction",+(Input!AD26+Input!AD38+Input!AD41+Input!AD44+Input!AD50),0) -> 0 | AI26: =IF(AI$4="Construction",+(Input!#REF!+Input!#REF!+Input!#REF!+Input!#REF!+Input!#REF!),0) -> 0 | AJ26: =IF(AJ$4="Construction",+(Input!#REF!+Input!#REF!+Input!#REF!+Input!#REF!+Input!#REF!),0) -> 0 | AK26: =IF(AK$4="Construction",+(Input!#REF!+Input!#REF!+Input!#REF!+Input!#REF!+Input!#REF!),0) -> 0 | AL26: =IF(AL$4="Construction",+(Input!#REF!+Input!#REF!+Input!#REF!+Input!#REF!+Input!#REF!),0) -> 0
D27: Cumulative value | E27: Кумулативна стойност | F27: Current EUR | G27: Настоящи евро | I27: =+I26 ->  | J27: =IF(OR(J$4="Construction",J$4="Operation"),(J26+I27),0) ->  | K27: =IF(OR(K$4="Construction",K$4="Operation"),(K26+J27),0) ->  | V27: 0 | W27: 0 | X27: 0 | Y27: 0 | Z27: 0 | AA27: 0 | AB27: 0 | AC27: 0 | AD27: 0 | AE27: 0 | AF27: 0 | AG27: 0 | AH27: 0 | AI27: 0 | AJ27: 0 | AK27: 0 | AL27: 0
D28: Annual amortization | E28: Годишна амортизация | F28: Current EUR | G28: Настоящи евро | I28: =CHOOSE(IF(I$4="Construction",1,IF(I$4="Operation",2,3)),0,IF((I$3-Input!$H$11-Input!$H$12)<Input!$H$61,I27/Input!$H$61,(I27-OFFSET(I27,0,-Input!$H$61))/Input!$H$61),0) -> 0 | J28: =CHOOSE(IF(J$4="Construction",1,IF(J$4="Operation",2,3)),0,IF((J$3-Input!$H$11-Input!$H$12)<Input!$H$61,J27/Input!$H$61,(J27-OFFSET(J27,0,-Input!$H$61))/Input!$H$61),0) -> 0 | K28: =CHOOSE(IF(K$4="Construction",1,IF(K$4="Operation",2,3)),0,IF((K$3-Input!$H$11-Input!$H$12)<Input!$H$61,K27/Input!$H$61,(K27-OFFSET(K27,0,-Input!$H$61))/Input!$H$61),0) -> 0 | L28: =CHOOSE(IF(L$4="Construction",1,IF(L$4="Operation",2,3)),0,IF((L$3-Input!$H$11-Input!$H$12)<Input!$H$61,L27/Input!$H$61,(L27-OFFSET(L27,0,-Input!$H$61))/Input!$H$61),0) ->  | M28: =CHOOSE(IF(M$4="Construction",1,IF(M$4="Operation",2,3)),0,IF((M$3-Input!$H$11-Input!$H$12)<Input!$H$61,M27/Input!$H$61,(M27-OFFSET(M27,0,-Input!$H$61))/Input!$H$61),0) ->  | N28: =CHOOSE(IF(N$4="Construction",1,IF(N$4="Operation",2,3)),0,IF((N$3-Input!$H$11-Input!$H$12)<Input!$H$61,N27/Input!$H$61,(N27-OFFSET(N27,0,-Input!$H$61))/Input!$H$61),0) ->  | O28: =CHOOSE(IF(O$4="Construction",1,IF(O$4="Operation",2,3)),0,IF((O$3-Input!$H$11-Input!$H$12)<Input!$H$61,O27/Input!$H$61,(O27-OFFSET(O27,0,-Input!$H$61))/Input!$H$61),0) ->  | P28: =CHOOSE(IF(P$4="Construction",1,IF(P$4="Operation",2,3)),0,IF((P$3-Input!$H$11-Input!$H$12)<Input!$H$61,P27/Input!$H$61,(P27-OFFSET(P27,0,-Input!$H$61))/Input!$H$61),0) ->  | Q28: =CHOOSE(IF(Q$4="Construction",1,IF(Q$4="Operation",2,3)),0,IF((Q$3-Input!$H$11-Input!$H$12)<Input!$H$61,Q27/Input!$H$61,(Q27-OFFSET(Q27,0,-Input!$H$61))/Input!$H$61),0) ->  | R28: =CHOOSE(IF(R$4="Construction",1,IF(R$4="Operation",2,3)),0,IF((R$3-Input!$H$11-Input!$H$12)<Input!$H$61,R27/Input!$H$61,(R27-OFFSET(R27,0,-Input!$H$61))/Input!$H$61),0) ->  | S28: =CHOOSE(IF(S$4="Construction",1,IF(S$4="Operation",2,3)),0,IF((S$3-Input!$H$11-Input!$H$12)<Input!$H$61,S27/Input!$H$61,(S27-OFFSET(S27,0,-Input!$H$61))/Input!$H$61),0) ->  | T28: =CHOOSE(IF(T$4="Construction",1,IF(T$4="Operation",2,3)),0,IF((T$3-Input!$H$11-Input!$H$12)<Input!$H$61,T27/Input!$H$61,(T27-OFFSET(T27,0,-Input!$H$61))/Input!$H$61),0) ->  | U28: =CHOOSE(IF(U$4="Construction",1,IF(U$4="Operation",2,3)),0,IF((U$3-Input!$H$11-Input!$H$12)<Input!$H$61,U27/Input!$H$61,(U27-OFFSET(U27,0,-Input!$H$61))/Input!$H$61),0) ->  | V28: =CHOOSE(IF(V$4="Construction",1,IF(V$4="Operation",2,3)),0,IF((V$3-Input!$H$11-Input!$H$12)<Input!$H$61,V27/Input!$H$61,(V27-OFFSET(V27,0,-Input!$H$61))/Input!$H$61),0) -> 0 | W28: =CHOOSE(IF(W$4="Construction",1,IF(W$4="Operation",2,3)),0,IF((W$3-Input!$H$11-Input!$H$12)<Input!$H$61,W27/Input!$H$61,(W27-OFFSET(W27,0,-Input!$H$61))/Input!$H$61),0) -> 0 | X28: =CHOOSE(IF(X$4="Construction",1,IF(X$4="Operation",2,3)),0,IF((X$3-Input!$H$11-Input!$H$12)<Input!$H$61,X27/Input!$H$61,(X27-OFFSET(X27,0,-Input!$H$61))/Input!$H$61),0) -> 0 | Y28: =CHOOSE(IF(Y$4="Construction",1,IF(Y$4="Operation",2,3)),0,IF((Y$3-Input!$H$11-Input!$H$12)<Input!$H$61,Y27/Input!$H$61,(Y27-OFFSET(Y27,0,-Input!$H$61))/Input!$H$61),0) -> 0 | Z28: =CHOOSE(IF(Z$4="Construction",1,IF(Z$4="Operation",2,3)),0,IF((Z$3-Input!$H$11-Input!$H$12)<Input!$H$61,Z27/Input!$H$61,(Z27-OFFSET(Z27,0,-Input!$H$61))/Input!$H$61),0) -> 0 | AA28: =CHOOSE(IF(AA$4="Construction",1,IF(AA$4="Operation",2,3)),0,IF((AA$3-Input!$H$11-Input!$H$12)<Input!$H$61,AA27/Input!$H$61,(AA27-OFFSET(AA27,0,-Input!$H$61))/Input!$H$61),0) -> 0 | AB28: =CHOOSE(IF(AB$4="Construction",1,IF(AB$4="Operation",2,3)),0,IF((AB$3-Input!$H$11-Input!$H$12)<Input!$H$61,AB27/Input!$H$61,(AB27-OFFSET(AB27,0,-Input!$H$61))/Input!$H$61),0) -> 0 | AC28: =CHOOSE(IF(AC$4="Construction",1,IF(AC$4="Operation",2,3)),0,IF((AC$3-Input!$H$11-Input!$H$12)<Input!$H$61,AC27/Input!$H$61,(AC27-OFFSET(AC27,0,-Input!$H$61))/Input!$H$61),0) -> 0 | AD28: =CHOOSE(IF(AD$4="Construction",1,IF(AD$4="Operation",2,3)),0,IF((AD$3-Input!$H$11-Input!$H$12)<Input!$H$61,AD27/Input!$H$61,(AD27-OFFSET(AD27,0,-Input!$H$61))/Input!$H$61),0) -> 0 | AE28: =CHOOSE(IF(AE$4="Construction",1,IF(AE$4="Operation",2,3)),0,IF((AE$3-Input!$H$11-Input!$H$12)<Input!$H$61,AE27/Input!$H$61,(AE27-OFFSET(AE27,0,-Input!$H$61))/Input!$H$61),0) -> 0 | AF28: =CHOOSE(IF(AF$4="Construction",1,IF(AF$4="Operation",2,3)),0,IF((AF$3-Input!$H$11-Input!$H$12)<Input!$H$61,AF27/Input!$H$61,(AF27-OFFSET(AF27,0,-Input!$H$61))/Input!$H$61),0) -> 0 | AG28: =CHOOSE(IF(AG$4="Construction",1,IF(AG$4="Operation",2,3)),0,IF((AG$3-Input!$H$11-Input!$H$12)<Input!$H$61,AG27/Input!$H$61,(AG27-OFFSET(AG27,0,-Input!$H$61))/Input!$H$61),0) -> 0 | AH28: =CHOOSE(IF(AH$4="Construction",1,IF(AH$4="Operation",2,3)),0,IF((AH$3-Input!$H$11-Input!$H$12)<Input!$H$61,AH27/Input!$H$61,(AH27-OFFSET(AH27,0,-Input!$H$61))/Input!$H$61),0) -> 0 | AI28: =CHOOSE(IF(AI$4="Construction",1,IF(AI$4="Operation",2,3)),0,IF((AI$3-Input!$H$11-Input!$H$12)<Input!$H$61,AI27/Input!$H$61,(AI27-OFFSET(AI27,0,-Input!$H$61))/Input!$H$61),0) -> 0 | AJ28: =CHOOSE(IF(AJ$4="Construction",1,IF(AJ$4="Operation",2,3)),0,IF((AJ$3-Input!$H$11-Input!$H$12)<Input!$H$61,AJ27/Input!$H$61,(AJ27-OFFSET(AJ27,0,-Input!$H$61))/Input!$H$61),0) -> 0 | AK28: =CHOOSE(IF(AK$4="Construction",1,IF(AK$4="Operation",2,3)),0,IF((AK$3-Input!$H$11-Input!$H$12)<Input!$H$61,AK27/Input!$H$61,(AK27-OFFSET(AK27,0,-Input!$H$61))/Input!$H$61),0) -> 0 | AL28: =CHOOSE(IF(AL$4="Construction",1,IF(AL$4="Operation",2,3)),0,IF((AL$3-Input!$H$11-Input!$H$12)<Input!$H$61,AL27/Input!$H$61,(AL27-OFFSET(AL27,0,-Input!$H$61))/Input!$H$61),0) -> 0
D29: Book value | E29: Балансова стойност | F29: Current EUR | G29: Настоящи евро | I29: =+I27-I28 ->  | J29: =+I29+J26-J28 ->  | K29: =+J29+K26-K28 -> 
D31: Asset values - non-depreciating assets | E31: Стойност на активите - неамотризируеми активи | H31: =+TEXT($I$3,"0")&"-"&TEXT($I$3+Input!$H$12-1,"0") -> 2020-2022
D32: Annual investment | E32: Годишна инвестиция | F32: Current EUR | G32: Настоящи евро | H32: =SUM(OFFSET(I32,0,0,1,Input!$H$12)) -> 0 | I32: 0 | J32: 0 | K32: 0 | L32: =IF(L$4="Construction",+(Input!#REF!+Input!#REF!),0) -> 0 | M32: =IF(M$4="Construction",+(Input!#REF!+Input!#REF!),0) -> 0 | N32: =IF(N$4="Construction",+(Input!#REF!+Input!#REF!),0) -> 0 | O32: =IF(O$4="Construction",+(Input!#REF!+Input!#REF!),0) -> 0 | P32: =IF(P$4="Construction",+(Input!#REF!+Input!#REF!),0) -> 0 | Q32: =IF(Q$4="Construction",+(Input!#REF!+Input!#REF!),0) -> 0 | R32: =IF(R$4="Construction",+(Input!#REF!+Input!#REF!),0) -> 0 | S32: =IF(S$4="Construction",+(Input!#REF!+Input!#REF!),0) -> 0 | T32: =IF(T$4="Construction",+(Input!#REF!+Input!#REF!),0) -> 0 | U32: =IF(U$4="Construction",+(Input!#REF!+Input!#REF!),0) -> 0 | V32: =IF(V$4="Construction",+(Input!#REF!+Input!#REF!),0) -> 0 | W32: =IF(W$4="Construction",+(Input!#REF!+Input!#REF!),0) -> 0 | X32: =IF(X$4="Construction",+(Input!#REF!+Input!#REF!),0) -> 0 | Y32: =IF(Y$4="Construction",+(Input!#REF!+Input!#REF!),0) -> 0 | Z32: =IF(Z$4="Construction",+(Input!#REF!+Input!#REF!),0) -> 0 | AA32: =IF(AA$4="Construction",+(Input!#REF!+Input!#REF!),0) -> 0 | AB32: =IF(AB$4="Construction",+(Input!#REF!+Input!#REF!),0) -> 0 | AC32: =IF(AC$4="Construction",+(Input!#REF!+Input!#REF!),0) -> 0 | AD32: =IF(AD$4="Construction",+(Input!#REF!+Input!#REF!),0) -> 0 | AE32: =IF(AE$4="Construction",+(Input!#REF!+Input!#REF!),0) -> 0 | AF32: =IF(AF$4="Construction",+(Input!#REF!+Input!#REF!),0) -> 0 | AG32: =IF(AG$4="Construction",+(Input!#REF!+Input!#REF!),0) -> 0 | AH32: =IF(AH$4="Construction",+(Input!#REF!+Input!#REF!),0) -> 0 | AI32: =IF(AI$4="Construction",+(Input!#REF!+Input!#REF!),0) -> 0 | AJ32: =IF(AJ$4="Construction",+(Input!#REF!+Input!#REF!),0) -> 0 | AK32: =IF(AK$4="Construction",+(Input!#REF!+Input!#REF!),0) -> 0 | AL32: =IF(AL$4="Construction",+(Input!#REF!+Input!#REF!),0) -> 0
D33: Cumulative value | E33: Кумулативна стойност | F33: Current EUR | G33: Настоящи евро | I33: =+I32 -> 0 | J33: =IF(OR(J$4="Construction",J$4="Operation"),(J32+I33),0) -> 0 | K33: =IF(OR(K$4="Construction",K$4="Operation"),(K32+J33),0) -> 0 | L33: 0 | M33: 0 | N33: 0 | O33: 0 | P33: 0 | Q33: 0 | R33: 0 | S33: 0 | T33: 0 | U33: 0 | V33: 0 | W33: 0 | X33: 0 | Y33: 0 | Z33: 0 | AA33: 0 | AB33: 0 | AC33: 0 | AD33: 0 | AE33: 0 | AF33: 0 | AG33: 0 | AH33: 0 | AI33: 0 | AJ33: 0 | AK33: 0 | AL33: 0
D34: Book value | E34: Балансова стойност | F34: Current EUR | G34: Настоящи евро | I34: =+I33 -> 0 | J34: =+J33 -> 0 | K34: 0 | L34: 0 | M34: 0 | N34: 0 | O34: 0 | P34: 0 | Q34: 0 | R34: 0 | S34: 0 | T34: 0 | U34: 0 | V34: 0 | W34: 0 | X34: 0 | Y34: 0 | Z34: 0 | AA34: 0 | AB34: 0 | AC34: 0 | AD34: 0 | AE34: 0 | AF34: 0 | AG34: 0 | AH34: 0 | AI34: 0 | AJ34: 0 | AK34: 0 | AL34: 0
D36: TOTAL INVESTMENT | E36: ОБЩА ИНВЕСТИЦИЯ | H36: =+TEXT($I$3,"0")&"-"&TEXT($I$3+Input!$H$12-1,"0") -> 2020-2022
D37: Total investment | E37: Обща инвестиция | F37: Current EUR | G37: Настоящи евро | H37: =SUM(OFFSET(I37,0,0,1,Input!$H$12)) ->  | I37: =+I12+I19+I26+I32 ->  | J37: =+J12+J19+J26+J32 ->  | K37: =+K12+K19+K26+K32 ->  | L37: 0 | M37: 0 | N37: 0 | O37: 0 | P37: 0 | Q37: 0 | R37: 0 | S37: 0 | T37: 0 | U37: 0 | V37: 0 | W37: 0 | X37: 0 | Y37: 0 | Z37: 0 | AA37: 0 | AB37: 0 | AC37: 0 | AD37: 0 | AE37: 0 | AF37: 0 | AG37: 0 | AH37: 0 | AI37: 0 | AJ37: 0 | AK37: 0 | AL37: 0
D38: of which contingencies | E38: от които непредвидени | F38: Current EUR | G38: Настоящи евро | I38: =IF(I$4="Construction",+(Input!J35+Input!N35),IF(I$4="Operation",0)) ->  | J38: =IF(J$4="Construction",+(Input!K35+Input!O35),IF(J$4="Operation",0)) ->  | K38: =IF(K$4="Construction",+(Input!L35+Input!P35),IF(K$4="Operation",0)) ->  | L38: =IF(L$4="Construction",+(Input!M35+Input!#REF!),IF(L$4="Operation",0)) -> 0 | M38: =IF(M$4="Construction",+(Input!N35+Input!#REF!),IF(M$4="Operation",0)) -> 0 | N38: =IF(N$4="Construction",+(Input!O35+Input!#REF!),IF(N$4="Operation",0)) -> 0 | O38: =IF(O$4="Construction",+(Input!P35+Input!#REF!),IF(O$4="Operation",0)) -> 0 | P38: =IF(P$4="Construction",+(Input!#REF!+Input!Q35),IF(P$4="Operation",0)) -> 0 | Q38: =IF(Q$4="Construction",+(Input!#REF!+Input!T35),IF(Q$4="Operation",0)) -> 0 | R38: =IF(R$4="Construction",+(Input!#REF!+Input!U35),IF(R$4="Operation",0)) -> 0 | S38: =IF(S$4="Construction",+(Input!#REF!+Input!V35),IF(S$4="Operation",0)) -> 0 | T38: =IF(T$4="Construction",+(Input!Q35+Input!W35),IF(T$4="Operation",0)) -> 0 | U38: =IF(U$4="Construction",+(Input!T35+Input!X35),IF(U$4="Operation",0)) -> 0 | V38: =IF(V$4="Construction",+(Input!U35+Input!Y35),IF(V$4="Operation",0)) -> FALSE | W38: =IF(W$4="Construction",+(Input!V35+Input!Z35),IF(W$4="Operation",0)) -> FALSE | X38: =IF(X$4="Construction",+(Input!W35+Input!AA35),IF(X$4="Operation",0)) -> FALSE | Y38: =IF(Y$4="Construction",+(Input!X35+Input!AB35),IF(Y$4="Operation",0)) -> FALSE | Z38: =IF(Z$4="Construction",+(Input!Y35+Input!AC35),IF(Z$4="Operation",0)) -> FALSE | AA38: =IF(AA$4="Construction",+(Input!Z35+Input!AD35),IF(AA$4="Operation",0)) -> FALSE | AB38: =IF(AB$4="Construction",+(Input!AA35+Input!#REF!),IF(AB$4="Operation",0)) -> FALSE | AC38: =IF(AC$4="Construction",+(Input!AB35+Input!#REF!),IF(AC$4="Operation",0)) -> FALSE | AD38: =IF(AD$4="Construction",+(Input!AC35+Input!#REF!),IF(AD$4="Operation",0)) -> FALSE | AE38: =IF(AE$4="Construction",+(Input!AD35+Input!#REF!),IF(AE$4="Operation",0)) -> FALSE | AF38: =IF(AF$4="Construction",+(Input!#REF!+Input!#REF!),IF(AF$4="Operation",0)) -> FALSE | AG38: =IF(AG$4="Construction",+(Input!#REF!+Input!AE35),IF(AG$4="Operation",0)) -> FALSE | AH38: =IF(AH$4="Construction",+(Input!#REF!+Input!#REF!),IF(AH$4="Operation",0)) -> FALSE | AI38: =IF(AI$4="Construction",+(Input!#REF!+Input!AF35),IF(AI$4="Operation",0)) -> FALSE | AJ38: =IF(AJ$4="Construction",+(Input!#REF!+Input!#REF!),IF(AJ$4="Operation",0)) -> FALSE | AK38: =IF(AK$4="Construction",+(Input!AE35+Input!AG35),IF(AK$4="Operation",0)) -> FALSE | AL38: =IF(AL$4="Construction",+(Input!#REF!+Input!AH35),IF(AL$4="Operation",0)) -> FALSE
D39: Total depreciation and amortization | E39: Общо амортизации | F39: Current EUR | G39: Настоящи евро | I39: =+I14+I21+I28 -> 0 | J39: =+J14+J21+J28 -> 0 | K39: 0 | L39: =+L14+L21+L28 ->  | O39: =+O14+O21+O28 ->  | V39: 0 | W39: 0 | X39: 0 | Y39: 0 | Z39: 0 | AA39: 0 | AB39: 0 | AC39: 0 | AD39: 0 | AE39: 0 | AF39: 0 | AG39: 0 | AH39: 0 | AI39: 0 | AJ39: 0 | AK39: 0 | AL39: 0
D40: Book value | E40: Балансова стойност | F40: Current EUR | G40: Настоящи евро | I40: =I34+I29+I23+I16 ->  | J40: =J34+J29+J23+J16 -> 
D41: Note:* VAT is not included | E41: Забележка: * ДДС не е включен
D44: PROFITS AND LOSSES in nominal terms | E44: ПРИХОДИ И РАЗХОДИ в текущи цени
D48: Revenues from renting indoor areas | E48: Приходи от отдаване на закрити площи | F48: Current EUR | G48: Настоящи евро | I48: =#REF!*Разходи!#REF! ->  | J48: =#REF!*Разходи!#REF! ->  | K48: =#REF!*Разходи!#REF! ->  | L48: =#REF!*Разходи!#REF! ->  | M48: =#REF!*Разходи!#REF! ->  | N48: =#REF!*Разходи!#REF! ->  | O48: =#REF!*Разходи!#REF! ->  | P48: =#REF!*Разходи!#REF! ->  | Q48: =#REF!*Разходи!#REF! ->  | R48: =#REF!*Разходи!#REF! ->  | S48: =#REF!*Разходи!#REF! ->  | T48: =#REF!*Разходи!#REF! ->  | U48: =#REF!*Разходи!#REF! ->  | V48: =#REF!*Разходи!#REF! ->  | W48: =#REF!*Разходи!#REF! ->  | X48: =#REF!*Разходи!#REF! ->  | Y48: =#REF!*Разходи!#REF! ->  | Z48: =#REF!*Разходи!#REF! ->  | AA48: =#REF!*Разходи!#REF! ->  | AB48: =#REF!*Разходи!#REF! ->  | AC48: =#REF!*Разходи!#REF! ->  | AD48: =#REF!*Разходи!#REF! ->  | AE48: =#REF!*Разходи!#REF! ->  | AF48: =#REF!*Разходи!#REF! ->  | AG48: =#REF!*Разходи!#REF! ->  | AH48: =#REF!*Разходи!#REF! ->  | AI48: =#REF!*Разходи!#REF! ->  | AJ48: =#REF!*Разходи!#REF! ->  | AK48: =#REF!*Разходи!#REF! ->  | AL48: =#REF!*Разходи!#REF! -> 
D49: Revenues from renting outdoor areas | E49: Приходи от отдаване на открити площи | F49: Current EUR | G49: Настоящи евро | I49: =#REF!*Разходи!#REF! ->  | J49: =#REF!*Разходи!#REF! ->  | K49: =#REF!*Разходи!#REF! ->  | L49: =#REF!*Разходи!#REF! ->  | M49: =#REF!*Разходи!#REF! ->  | N49: =#REF!*Разходи!#REF! ->  | O49: =#REF!*Разходи!#REF! ->  | P49: =#REF!*Разходи!#REF! ->  | Q49: =#REF!*Разходи!#REF! ->  | R49: =#REF!*Разходи!#REF! ->  | S49: =#REF!*Разходи!#REF! ->  | T49: =#REF!*Разходи!#REF! ->  | U49: =#REF!*Разходи!#REF! ->  | V49: =#REF!*Разходи!#REF! ->  | W49: =#REF!*Разходи!#REF! ->  | X49: =#REF!*Разходи!#REF! ->  | Y49: =#REF!*Разходи!#REF! ->  | Z49: =#REF!*Разходи!#REF! ->  | AA49: =#REF!*Разходи!#REF! ->  | AB49: =#REF!*Разходи!#REF! ->  | AC49: =#REF!*Разходи!#REF! ->  | AD49: =#REF!*Разходи!#REF! ->  | AE49: =#REF!*Разходи!#REF! ->  | AF49: =#REF!*Разходи!#REF! ->  | AG49: =#REF!*Разходи!#REF! ->  | AH49: =#REF!*Разходи!#REF! ->  | AI49: =#REF!*Разходи!#REF! ->  | AJ49: =#REF!*Разходи!#REF! ->  | AK49: =#REF!*Разходи!#REF! ->  | AL49: =#REF!*Разходи!#REF! -> 
D50: Subsidies during Constuction | E50: Субсидии по време на строителството | F50: Current EUR | G50: Настоящи евро | I50: =FinSust!H34*1000*Разходи!#REF! ->  | J50: =FinSust!I34*1000*Разходи!#REF! ->  | K50: =FinSust!J34*1000*Разходи!#REF! ->  | L50: =FinSust!K34*1000*Разходи!#REF! ->  | M50: =FinSust!L34*1000*Разходи!#REF! ->  | N50: =FinSust!M34*1000*Разходи!#REF! ->  | O50: =FinSust!N34*1000*Разходи!#REF! ->  | P50: =FinSust!O34*1000*Разходи!#REF! ->  | Q50: =FinSust!P34*1000*Разходи!#REF! ->  | R50: =FinSust!Q34*1000*Разходи!#REF! ->  | S50: =FinSust!R34*1000*Разходи!#REF! ->  | T50: =FinSust!S34*1000*Разходи!#REF! ->  | U50: =FinSust!T34*1000*Разходи!#REF! ->  | V50: =FinSust!U34*1000*Разходи!#REF! ->  | W50: =FinSust!V34*1000*Разходи!#REF! ->  | X50: =FinSust!W34*1000*Разходи!#REF! ->  | Y50: =FinSust!X34*1000*Разходи!#REF! ->  | Z50: =FinSust!Y34*1000*Разходи!#REF! ->  | AA50: =FinSust!Z34*1000*Разходи!#REF! ->  | AB50: =FinSust!AA34*1000*Разходи!#REF! ->  | AC50: =FinSust!AB34*1000*Разходи!#REF! ->  | AD50: =FinSust!AC34*1000*Разходи!#REF! ->  | AE50: =FinSust!AD34*1000*Разходи!#REF! ->  | AF50: =FinSust!AE34*1000*Разходи!#REF! ->  | AG50: =FinSust!AF34*1000*Разходи!#REF! ->  | AH50: =FinSust!AG34*1000*Разходи!#REF! ->  | AI50: =FinSust!AH34*1000*Разходи!#REF! ->  | AJ50: =FinSust!AI34*1000*Разходи!#REF! ->  | AK50: =FinSust!AJ34*1000*Разходи!#REF! ->  | AL50: =FinSust!AK34*1000*Разходи!#REF! -> 
D51: Total Revenues | E51: Общо приходи | F51: Current EUR | G51: Настоящи евро | I51: =SUM(I48:I50) ->  | J51: =SUM(J48:J50) -> 
D52: Operation costs | E52: Разходи за дейността | F52: Current EUR | G52: Настоящи евро | I52: =-Разходи!I31*Разходи!#REF! ->  | J52: =-Разходи!J31*Разходи!#REF! ->  | K52: =-Разходи!K31*Разходи!#REF! ->  | L52: =-Разходи!L31*Разходи!#REF! ->  | M52: =-Разходи!M31*Разходи!#REF! ->  | N52: =-Разходи!N31*Разходи!#REF! ->  | O52: =-Разходи!O31*Разходи!#REF! ->  | P52: =-Разходи!P31*Разходи!#REF! ->  | Q52: =-Разходи!Q31*Разходи!#REF! ->  | R52: =-Разходи!#REF!*Разходи!#REF! ->  | S52: =-Разходи!#REF!*Разходи!#REF! ->  | T52: =-Разходи!#REF!*Разходи!#REF! ->  | U52: =-Разходи!#REF!*Разходи!#REF! ->  | V52: =-Разходи!#REF!*Разходи!#REF! ->  | W52: =-Разходи!#REF!*Разходи!#REF! ->  | X52: =-Разходи!#REF!*Разходи!#REF! ->  | Y52: =-Разходи!#REF!*Разходи!#REF! ->  | Z52: =-Разходи!#REF!*Разходи!#REF! ->  | AA52: =-Разходи!#REF!*Разходи!#REF! ->  | AB52: =-Разходи!#REF!*Разходи!#REF! ->  | AC52: =-Разходи!#REF!*Разходи!#REF! ->  | AD52: =-Разходи!#REF!*Разходи!#REF! ->  | AE52: =-Разходи!#REF!*Разходи!#REF! ->  | AF52: =-Разходи!#REF!*Разходи!#REF! ->  | AG52: =-Разходи!#REF!*Разходи!#REF! ->  | AH52: =-Разходи!#REF!*Разходи!#REF! ->  | AI52: =-Разходи!#REF!*Разходи!#REF! ->  | AJ52: =-Разходи!#REF!*Разходи!#REF! ->  | AK52: =-Разходи!#REF!*Разходи!#REF! ->  | AL52: =-Разходи!#REF!*Разходи!#REF! -> 
D53: Heavy mantenance costs | E53: Разходи за основен ремонт | F53: Current EUR | G53: Настоящи евро | I53: =-Разходи!#REF!*Разходи!#REF! ->  | J53: =-Разходи!#REF!*Разходи!#REF! ->  | K53: =-Разходи!#REF!*Разходи!#REF! ->  | L53: =-Разходи!#REF!*Разходи!#REF! ->  | M53: =-Разходи!#REF!*Разходи!#REF! ->  | N53: =-Разходи!#REF!*Разходи!#REF! ->  | O53: =-Разходи!#REF!*Разходи!#REF! ->  | P53: =-Разходи!#REF!*Разходи!#REF! ->  | Q53: =-Разходи!#REF!*Разходи!#REF! ->  | R53: =-Разходи!#REF!*Разходи!#REF! ->  | S53: =-Разходи!#REF!*Разходи!#REF! ->  | T53: =-Разходи!#REF!*Разходи!#REF! ->  | U53: =-Разходи!#REF!*Разходи!#REF! ->  | V53: =-Разходи!#REF!*Разходи!#REF! ->  | W53: =-Разходи!#REF!*Разходи!#REF! ->  | X53: =-Разходи!#REF!*Разходи!#REF! ->  | Y53: =-Разходи!#REF!*Разходи!#REF! ->  | Z53: =-Разходи!#REF!*Разходи!#REF! ->  | AA53: =-Разходи!#REF!*Разходи!#REF! ->  | AB53: =-Разходи!#REF!*Разходи!#REF! ->  | AC53: =-Разходи!#REF!*Разходи!#REF! ->  | AD53: =-Разходи!#REF!*Разходи!#REF! ->  | AE53: =-Разходи!#REF!*Разходи!#REF! ->  | AF53: =-Разходи!#REF!*Разходи!#REF! ->  | AG53: =-Разходи!#REF!*Разходи!#REF! ->  | AH53: =-Разходи!#REF!*Разходи!#REF! ->  | AI53: =-Разходи!#REF!*Разходи!#REF! ->  | AJ53: =-Разходи!#REF!*Разходи!#REF! ->  | AK53: =-Разходи!#REF!*Разходи!#REF! ->  | AL53: =-Разходи!#REF!*Разходи!#REF! -> 
D54: Depreciation of project assets | E54: Амортизации нови активи | F54: Current EUR | G54: Настоящи евро | I54: =-I39 -> 0 | J54: =-J39 -> 0 | K54: 0 | V54: 0 | W54: 0 | X54: 0 | Y54: 0 | Z54: 0 | AA54: 0 | AB54: 0 | AC54: 0 | AD54: 0 | AE54: 0 | AF54: 0 | AG54: 0 | AH54: 0 | AI54: 0 | AJ54: 0 | AK54: 0 | AL54: 0
D55: Interests | E55: Лихви | F55: Current EUR | G55: Настоящи евро
D56: Total Costs | E56: Общо разходи | F56: Current EUR | G56: Настоящи евро | I56: =SUM(I52:I55) ->  | J56: =SUM(J52:J55) -> 
D57: Earnings before Taxes | E57: Финансов резултат преди данъци | F57: Current EUR | G57: Настоящи евро | I57: =I56+I51 ->  | J57: =J56+J51 -> 
D58: Taxes | E58: Данъци | F58: Current EUR | G58: Настоящи евро | I58: =-IF(I57<0,0,I57*Допускания!$F$14) ->  | J58: =-IF(J57<0,0,J57*Допускания!$F$14) ->  | K58: =-IF(K57<0,0,K57*Допускания!$F$14) ->  | L58: =-IF(L57<0,0,L57*Допускания!$F$14) ->  | M58: =-IF(M57<0,0,M57*Допускания!$F$14) ->  | N58: =-IF(N57<0,0,N57*Допускания!$F$14) ->  | O58: =-IF(O57<0,0,O57*Допускания!$F$14) ->  | P58: =-IF(P57<0,0,P57*Допускания!$F$14) ->  | Q58: =-IF(Q57<0,0,Q57*Допускания!$F$14) ->  | R58: =-IF(R57<0,0,R57*Допускания!$F$14) ->  | S58: =-IF(S57<0,0,S57*Допускания!$F$14) ->  | T58: =-IF(T57<0,0,T57*Допускания!$F$14) ->  | U58: =-IF(U57<0,0,U57*Допускания!$F$14) ->  | V58: =-IF(V57<0,0,V57*Допускания!$F$14) ->  | W58: =-IF(W57<0,0,W57*Допускания!$F$14) ->  | X58: =-IF(X57<0,0,X57*Допускания!$F$14) ->  | Y58: =-IF(Y57<0,0,Y57*Допускания!$F$14) ->  | Z58: =-IF(Z57<0,0,Z57*Допускания!$F$14) ->  | AA58: =-IF(AA57<0,0,AA57*Допускания!$F$14) ->  | AB58: =-IF(AB57<0,0,AB57*Допускания!$F$14) ->  | AC58: =-IF(AC57<0,0,AC57*Допускания!$F$14) ->  | AD58: =-IF(AD57<0,0,AD57*Допускания!$F$14) ->  | AE58: =-IF(AE57<0,0,AE57*Допускания!$F$14) ->  | AF58: =-IF(AF57<0,0,AF57*Допускания!$F$14) ->  | AG58: =-IF(AG57<0,0,AG57*Допускания!$F$14) ->  | AH58: =-IF(AH57<0,0,AH57*Допускания!$F$14) ->  | AI58: =-IF(AI57<0,0,AI57*Допускания!$F$14) ->  | AJ58: =-IF(AJ57<0,0,AJ57*Допускания!$F$14) ->  | AK58: =-IF(AK57<0,0,AK57*Допускания!$F$14) ->  | AL58: =-IF(AL57<0,0,AL57*Допускания!$F$14) -> 
D59: Net earning (losses) after taxes | E59: Печалба (загуба) след облагане | F59: Current EUR | G59: Настоящи евро | I59: =I57+I58 ->  | J59: =J57+J58 -> 
D60: Net earning (losses) after taxes/Total costs | E60: Печалба (загуба) след облагане | F60: % | G60: % | I60: =I59/-I56 ->  | J60: =J59/-J56 -> 
D64: NON CASH WORKING CAPITAL in real terms (incremental) | E64: ОБОРОТЕН КАПИТАЛ в постоянни цени (инкрементален)
D68: Short-term receivables and materials on stock | E68: Краткосрочни вземания и материални запаси
D69: Receivables | E69: Вземания | F69: Constant EUR | G69: евро | I69: =(#REF!-#REF!)/365*Допускания!#REF! ->  | J69: =(#REF!-#REF!)/365*Допускания!#REF! ->  | K69: =(#REF!-#REF!)/365*Допускания!#REF! ->  | L69: =(#REF!-#REF!)/365*Допускания!#REF! ->  | M69: =(#REF!-#REF!)/365*Допускания!#REF! ->  | N69: =(#REF!-#REF!)/365*Допускания!#REF! ->  | O69: =(#REF!-#REF!)/365*Допускания!#REF! ->  | P69: =(#REF!-#REF!)/365*Допускания!#REF! ->  | Q69: =(#REF!-#REF!)/365*Допускания!#REF! ->  | R69: =(#REF!-#REF!)/365*Допускания!#REF! ->  | S69: =(#REF!-#REF!)/365*Допускания!#REF! ->  | T69: =(#REF!-#REF!)/365*Допускания!#REF! ->  | U69: =(#REF!-#REF!)/365*Допускания!#REF! ->  | V69: =(#REF!-#REF!)/365*Допускания!#REF! ->  | W69: =(#REF!-#REF!)/365*Допускания!#REF! ->  | X69: =(#REF!-#REF!)/365*Допускания!#REF! ->  | Y69: =(#REF!-#REF!)/365*Допускания!#REF! ->  | Z69: =(#REF!-#REF!)/365*Допускания!#REF! ->  | AA69: =(#REF!-#REF!)/365*Допускания!#REF! ->  | AB69: =(#REF!-#REF!)/365*Допускания!#REF! ->  | AC69: =(#REF!-#REF!)/365*Допускания!#REF! ->  | AD69: =(#REF!-#REF!)/365*Допускания!#REF! ->  | AE69: =(#REF!-#REF!)/365*Допускания!#REF! ->  | AF69: =(#REF!-#REF!)/365*Допускания!#REF! ->  | AG69: =(#REF!-#REF!)/365*Допускания!#REF! ->  | AH69: =(#REF!-#REF!)/365*Допускания!#REF! ->  | AI69: =(#REF!-#REF!)/365*Допускания!#REF! ->  | AJ69: =(#REF!-#REF!)/365*Допускания!#REF! ->  | AK69: =(#REF!-#REF!)/365*Допускания!#REF! ->  | AL69: =(#REF!-#REF!)/365*Допускания!#REF! -> 
D70: Materials on stock | E70: Материални запаси | F70: Constant EUR | G70: евро | I70: =(((Разходи!#REF!-Разходи!#REF!)/365*Допускания!#REF!)) ->  | J70: =(((Разходи!#REF!-Разходи!#REF!)/365*Допускания!#REF!)) ->  | K70: =(((Разходи!#REF!-Разходи!#REF!)/365*Допускания!#REF!)) ->  | L70: =(((Разходи!#REF!-Разходи!#REF!)/365*Допускания!#REF!)) ->  | M70: =(((Разходи!#REF!-Разходи!#REF!)/365*Допускания!#REF!)) ->  | N70: =(((Разходи!#REF!-Разходи!#REF!)/365*Допускания!#REF!)) ->  | O70: =(((Разходи!#REF!-Разходи!#REF!)/365*Допускания!#REF!)) ->  | P70: =(((Разходи!#REF!-Разходи!#REF!)/365*Допускания!#REF!)) ->  | Q70: =(((Разходи!#REF!-Разходи!#REF!)/365*Допускания!#REF!)) ->  | R70: =(((Разходи!#REF!-Разходи!#REF!)/365*Допускания!#REF!)) ->  | S70: =(((Разходи!#REF!-Разходи!#REF!)/365*Допускания!#REF!)) ->  | T70: =(((Разходи!#REF!-Разходи!#REF!)/365*Допускания!#REF!)) ->  | U70: =(((Разходи!#REF!-Разходи!#REF!)/365*Допускания!#REF!)) ->  | V70: =(((Разходи!#REF!-Разходи!#REF!)/365*Допускания!#REF!)) ->  | W70: =(((Разходи!#REF!-Разходи!#REF!)/365*Допускания!#REF!)) ->  | X70: =(((Разходи!#REF!-Разходи!#REF!)/365*Допускания!#REF!)) ->  | Y70: =(((Разходи!#REF!-Разходи!#REF!)/365*Допускания!#REF!)) ->  | Z70: =(((Разходи!#REF!-Разходи!#REF!)/365*Допускания!#REF!)) ->  | AA70: =(((Разходи!#REF!-Разходи!#REF!)/365*Допускания!#REF!)) ->  | AB70: =(((Разходи!#REF!-Разходи!#REF!)/365*Допускания!#REF!)) ->  | AC70: =(((Разходи!#REF!-Разходи!#REF!)/365*Допускания!#REF!)) ->  | AD70: =(((Разходи!#REF!-Разходи!#REF!)/365*Допускания!#REF!)) ->  | AE70: =(((Разходи!#REF!-Разходи!#REF!)/365*Допускания!#REF!)) ->  | AF70: =(((Разходи!#REF!-Разходи!#REF!)/365*Допускания!#REF!)) ->  | AG70: =(((Разходи!#REF!-Разходи!#REF!)/365*Допускания!#REF!)) ->  | AH70: =(((Разходи!#REF!-Разходи!#REF!)/365*Допускания!#REF!)) ->  | AI70: =(((Разходи!#REF!-Разходи!#REF!)/365*Допускания!#REF!)) ->  | AJ70: =(((Разходи!#REF!-Разходи!#REF!)/365*Допускания!#REF!)) ->  | AK70: =(((Разходи!#REF!-Разходи!#REF!)/365*Допускания!#REF!)) ->  | AL70: =(((Разходи!#REF!-Разходи!#REF!)/365*Допускания!#REF!)) -> 
D71: TOTAL | E71: ОБЩО | F71: Constant EUR | G71: евро | I71: =I70+I69 ->  | J71: =J70+J69 -> 
D72: Short term liabilities | E72: Краткосрочни задължения
D73: Liabilities to suppliers | E73: Задължения към доставчици | F73: Constant EUR | G73: евро | I73: =((Разходи!G32+Разходи!G33-Разходи!#REF!-Разходи!#REF!)/365*Допускания!#REF!) ->  | J73: =((Разходи!H32+Разходи!H33-Разходи!#REF!-Разходи!#REF!)/365*Допускания!#REF!) ->  | K73: =((Разходи!I32+Разходи!I33-Разходи!#REF!-Разходи!#REF!)/365*Допускания!#REF!) ->  | L73: =((Разходи!J32+Разходи!J33-Разходи!#REF!-Разходи!#REF!)/365*Допускания!#REF!) ->  | M73: =((Разходи!K32+Разходи!K33-Разходи!#REF!-Разходи!#REF!)/365*Допускания!#REF!) ->  | N73: =((Разходи!L32+Разходи!L33-Разходи!#REF!-Разходи!#REF!)/365*Допускания!#REF!) ->  | O73: =((Разходи!M32+Разходи!M33-Разходи!#REF!-Разходи!#REF!)/365*Допускания!#REF!) ->  | P73: =((Разходи!N32+Разходи!N33-Разходи!#REF!-Разходи!#REF!)/365*Допускания!#REF!) ->  | Q73: =((Разходи!O32+Разходи!O33-Разходи!#REF!-Разходи!#REF!)/365*Допускания!#REF!) ->  | R73: =((Разходи!P32+Разходи!P33-Разходи!#REF!-Разходи!#REF!)/365*Допускания!#REF!) ->  | S73: =((Разходи!Q32+Разходи!Q33-Разходи!#REF!-Разходи!#REF!)/365*Допускания!#REF!) ->  | T73: =((Разходи!#REF!+Разходи!#REF!-Разходи!#REF!-Разходи!#REF!)/365*Допускания!#REF!) ->  | U73: =((Разходи!#REF!+Разходи!#REF!-Разходи!#REF!-Разходи!#REF!)/365*Допускания!#REF!) ->  | V73: =((Разходи!#REF!+Разходи!#REF!-Разходи!#REF!-Разходи!#REF!)/365*Допускания!#REF!) ->  | W73: =((Разходи!#REF!+Разходи!#REF!-Разходи!#REF!-Разходи!#REF!)/365*Допускания!#REF!) ->  | X73: =((Разходи!#REF!+Разходи!#REF!-Разходи!#REF!-Разходи!#REF!)/365*Допускания!#REF!) ->  | Y73: =((Разходи!#REF!+Разходи!#REF!-Разходи!#REF!-Разходи!#REF!)/365*Допускания!#REF!) ->  | Z73: =((Разходи!#REF!+Разходи!#REF!-Разходи!#REF!-Разходи!#REF!)/365*Допускания!#REF!) ->  | AA73: =((Разходи!#REF!+Разходи!#REF!-Разходи!#REF!-Разходи!#REF!)/365*Допускания!#REF!) ->  | AB73: =((Разходи!#REF!+Разходи!#REF!-Разходи!#REF!-Разходи!#REF!)/365*Допускания!#REF!) ->  | AC73: =((Разходи!#REF!+Разходи!#REF!-Разходи!#REF!-Разходи!#REF!)/365*Допускания!#REF!) ->  | AD73: =((Разходи!#REF!+Разходи!#REF!-Разходи!#REF!-Разходи!#REF!)/365*Допускания!#REF!) ->  | AE73: =((Разходи!#REF!+Разходи!#REF!-Разходи!#REF!-Разходи!#REF!)/365*Допускания!#REF!) ->  | AF73: =((Разходи!#REF!+Разходи!#REF!-Разходи!#REF!-Разходи!#REF!)/365*Допускания!#REF!) ->  | AG73: =((Разходи!#REF!+Разходи!#REF!-Разходи!#REF!-Разходи!#REF!)/365*Допускания!#REF!) ->  | AH73: =((Разходи!#REF!+Разходи!#REF!-Разходи!#REF!-Разходи!#REF!)/365*Допускания!#REF!) ->  | AI73: =((Разходи!#REF!+Разходи!#REF!-Разходи!#REF!-Разходи!#REF!)/365*Допускания!#REF!) ->  | AJ73: =((Разходи!#REF!+Разходи!#REF!-Разходи!#REF!-Разходи!#REF!)/365*Допускания!#REF!) ->  | AK73: =((Разходи!#REF!+Разходи!#REF!-Разходи!#REF!-Разходи!#REF!)/365*Допускания!#REF!) ->  | AL73: =((Разходи!#REF!+Разходи!#REF!-Разходи!#REF!-Разходи!#REF!)/365*Допускания!#REF!) -> 
D74: Other short-term liabilities (personnel and others) | E74: Други кратк.задължения (към персонала и други) | F74: Constant EUR | G74: евро | I74: =((Разходи!I34+Разходи!#REF!-Разходи!#REF!-Разходи!#REF!))/365*Допускания!#REF! ->  | J74: =((Разходи!J34+Разходи!#REF!-Разходи!#REF!-Разходи!#REF!))/365*Допускания!#REF! ->  | K74: =((Разходи!K34+Разходи!#REF!-Разходи!#REF!-Разходи!#REF!))/365*Допускания!#REF! ->  | L74: =((Разходи!L34+Разходи!#REF!-Разходи!#REF!-Разходи!#REF!))/365*Допускания!#REF! ->  | M74: =((Разходи!M34+Разходи!#REF!-Разходи!#REF!-Разходи!#REF!))/365*Допускания!#REF! ->  | N74: =((Разходи!N34+Разходи!#REF!-Разходи!#REF!-Разходи!#REF!))/365*Допускания!#REF! ->  | O74: =((Разходи!O34+Разходи!#REF!-Разходи!#REF!-Разходи!#REF!))/365*Допускания!#REF! ->  | P74: =((Разходи!P34+Разходи!#REF!-Разходи!#REF!-Разходи!#REF!))/365*Допускания!#REF! ->  | Q74: =((Разходи!Q34+Разходи!#REF!-Разходи!#REF!-Разходи!#REF!))/365*Допускания!#REF! ->  | R74: =((Разходи!#REF!+Разходи!#REF!-Разходи!#REF!-Разходи!#REF!))/365*Допускания!#REF! ->  | S74: =((Разходи!#REF!+Разходи!#REF!-Разходи!#REF!-Разходи!#REF!))/365*Допускания!#REF! ->  | T74: =((Разходи!#REF!+Разходи!#REF!-Разходи!#REF!-Разходи!#REF!))/365*Допускания!#REF! ->  | U74: =((Разходи!#REF!+Разходи!#REF!-Разходи!#REF!-Разходи!#REF!))/365*Допускания!#REF! ->  | V74: =((Разходи!#REF!+Разходи!#REF!-Разходи!#REF!-Разходи!#REF!))/365*Допускания!#REF! ->  | W74: =((Разходи!#REF!+Разходи!#REF!-Разходи!#REF!-Разходи!#REF!))/365*Допускания!#REF! ->  | X74: =((Разходи!#REF!+Разходи!#REF!-Разходи!#REF!-Разходи!#REF!))/365*Допускания!#REF! ->  | Y74: =((Разходи!#REF!+Разходи!#REF!-Разходи!#REF!-Разходи!#REF!))/365*Допускания!#REF! ->  | Z74: =((Разходи!#REF!+Разходи!#REF!-Разходи!#REF!-Разходи!#REF!))/365*Допускания!#REF! ->  | AA74: =((Разходи!#REF!+Разходи!#REF!-Разходи!#REF!-Разходи!#REF!))/365*Допускания!#REF! ->  | AB74: =((Разходи!#REF!+Разходи!#REF!-Разходи!#REF!-Разходи!#REF!))/365*Допускания!#REF! ->  | AC74: =((Разходи!#REF!+Разходи!#REF!-Разходи!#REF!-Разходи!#REF!))/365*Допускания!#REF! ->  | AD74: =((Разходи!#REF!+Разходи!#REF!-Разходи!#REF!-Разходи!#REF!))/365*Допускания!#REF! ->  | AE74: =((Разходи!#REF!+Разходи!#REF!-Разходи!#REF!-Разходи!#REF!))/365*Допускания!#REF! ->  | AF74: =((Разходи!#REF!+Разходи!#REF!-Разходи!#REF!-Разходи!#REF!))/365*Допускания!#REF! ->  | AG74: =((Разходи!#REF!+Разходи!#REF!-Разходи!#REF!-Разходи!#REF!))/365*Допускания!#REF! ->  | AH74: =((Разходи!#REF!+Разходи!#REF!-Разходи!#REF!-Разходи!#REF!))/365*Допускания!#REF! ->  | AI74: =((Разходи!#REF!+Разходи!#REF!-Разходи!#REF!-Разходи!#REF!))/365*Допускания!#REF! ->  | AJ74: =((Разходи!#REF!+Разходи!#REF!-Разходи!#REF!-Разходи!#REF!))/365*Допускания!#REF! ->  | AK74: =((Разходи!#REF!+Разходи!#REF!-Разходи!#REF!-Разходи!#REF!))/365*Допускания!#REF! ->  | AL74: =((Разходи!#REF!+Разходи!#REF!-Разходи!#REF!-Разходи!#REF!))/365*Допускания!#REF! -> 
D75: TOTAL | E75: ОБЩО | F75: Constant EUR | G75: евро | I75: =I74+I73 ->  | J75: =J74+J73 -> 
D76: NON-CASH WORKING CAPITAL | E76: ОБОРОТЕН КАПИТАЛ | F76: Constant EUR | G76: евро | I76: =I71-I75 ->  | J76: =J71-J75 ->  | K76: =K71-K75 ->  | L76: =L71-L75 -> 
D77: Increase (decrease) of WC | E77: Увеличение (намаление) на ОК | F77: Constant EUR | G77: евро | I77: =I76 ->  | J77: =J76-I76 ->  | K77: =K76-J76 ->  | L77: =L76-K76 -> 

Sheet Calculation (hidden)
D1: Annex 9 | E1: Приложение 7
D2: Project | E2: Проект
D3: =+Input!D3 -> Rehabilitation of Railway Station Complexes Sofia, Bourgas and Pazardzhik | E3: =+Input!E3 -> РЕКОНСТРУКЦИЯ НА ГАРОВИ КОМПЛЕКСИ „СТАРА ЗАГОРА“ И „НОВА ЗАГОРА“ | F3: Unit | G3: Мярка | J3: =+Input!H11 -> 2020 | K3: =+J3+1 -> 2021 | L3: 2022 | M3: 2023 | N3: 2024 | O3: 2025 | P3: 2026 | Q3: 2027 | R3: 2028 | S3: 2029 | T3: 2030 | U3: 2031 | V3: 2032 | W3: 2033 | X3: 2034 | Y3: 2035 | Z3: 2036 | AA3: 2037 | AB3: 2038 | AC3: 2039 | AD3: 2040 | AE3: 2041 | AF3: 2042 | AG3: 2043 | AH3: 2044 | AI3: 2045 | AJ3: 2046 | AK3: 2047 | AL3: 2048 | AM3: 2049
J4: =IF((J3-Input!$H$11+1)<=Input!$H$12,"Construction",IF(J3-Input!$H$11+1<=Input!$H$12+Input!$H$13,"Operation","-")) -> Construction | K4: =IF((K3-Input!$H$11+1)<=Input!$H$12,"Construction",IF(K3-Input!$H$11+1<=Input!$H$12+Input!$H$13,"Operation","-")) -> Construction | L4: =IF((L3-Input!$H$11+1)<=Input!$H$12,"Construction",IF(L3-Input!$H$11+1<=Input!$H$12+Input!$H$13,"Operation","-")) -> Construction | M4: =IF((M3-Input!$H$11+1)<=Input!$H$12,"Construction",IF(M3-Input!$H$11+1<=Input!$H$12+Input!$H$13,"Operation","-")) -> Operation | N4: =IF((N3-Input!$H$11+1)<=Input!$H$12,"Construction",IF(N3-Input!$H$11+1<=Input!$H$12+Input!$H$13,"Operation","-")) -> Operation | O4: =IF((O3-Input!$H$11+1)<=Input!$H$12,"Construction",IF(O3-Input!$H$11+1<=Input!$H$12+Input!$H$13,"Operation","-")) -> Operation | P4: =IF((P3-Input!$H$11+1)<=Input!$H$12,"Construction",IF(P3-Input!$H$11+1<=Input!$H$12+Input!$H$13,"Operation","-")) -> Operation | Q4: =IF((Q3-Input!$H$11+1)<=Input!$H$12,"Construction",IF(Q3-Input!$H$11+1<=Input!$H$12+Input!$H$13,"Operation","-")) -> Operation | R4: =IF((R3-Input!$H$11+1)<=Input!$H$12,"Construction",IF(R3-Input!$H$11+1<=Input!$H$12+Input!$H$13,"Operation","-")) -> Operation | S4: =IF((S3-Input!$H$11+1)<=Input!$H$12,"Construction",IF(S3-Input!$H$11+1<=Input!$H$12+Input!$H$13,"Operation","-")) -> Operation | T4: =IF((T3-Input!$H$11+1)<=Input!$H$12,"Construction",IF(T3-Input!$H$11+1<=Input!$H$12+Input!$H$13,"Operation","-")) -> Operation | U4: =IF((U3-Input!$H$11+1)<=Input!$H$12,"Construction",IF(U3-Input!$H$11+1<=Input!$H$12+Input!$H$13,"Operation","-")) -> Operation | V4: =IF((V3-Input!$H$11+1)<=Input!$H$12,"Construction",IF(V3-Input!$H$11+1<=Input!$H$12+Input!$H$13,"Operation","-")) -> Operation | W4: =IF((W3-Input!$H$11+1)<=Input!$H$12,"Construction",IF(W3-Input!$H$11+1<=Input!$H$12+Input!$H$13,"Operation","-")) -> - | X4: =IF((X3-Input!$H$11+1)<=Input!$H$12,"Construction",IF(X3-Input!$H$11+1<=Input!$H$12+Input!$H$13,"Operation","-")) -> - | Y4: =IF((Y3-Input!$H$11+1)<=Input!$H$12,"Construction",IF(Y3-Input!$H$11+1<=Input!$H$12+Input!$H$13,"Operation","-")) -> - | Z4: =IF((Z3-Input!$H$11+1)<=Input!$H$12,"Construction",IF(Z3-Input!$H$11+1<=Input!$H$12+Input!$H$13,"Operation","-")) -> - | AA4: =IF((AA3-Input!$H$11+1)<=Input!$H$12,"Construction",IF(AA3-Input!$H$11+1<=Input!$H$12+Input!$H$13,"Operation","-")) -> - | AB4: =IF((AB3-Input!$H$11+1)<=Input!$H$12,"Construction",IF(AB3-Input!$H$11+1<=Input!$H$12+Input!$H$13,"Operation","-")) -> - | AC4: =IF((AC3-Input!$H$11+1)<=Input!$H$12,"Construction",IF(AC3-Input!$H$11+1<=Input!$H$12+Input!$H$13,"Operation","-")) -> - | AD4: =IF((AD3-Input!$H$11+1)<=Input!$H$12,"Construction",IF(AD3-Input!$H$11+1<=Input!$H$12+Input!$H$13,"Operation","-")) -> - | AE4: =IF((AE3-Input!$H$11+1)<=Input!$H$12,"Construction",IF(AE3-Input!$H$11+1<=Input!$H$12+Input!$H$13,"Operation","-")) -> - | AF4: =IF((AF3-Input!$H$11+1)<=Input!$H$12,"Construction",IF(AF3-Input!$H$11+1<=Input!$H$12+Input!$H$13,"Operation","-")) -> - | AG4: =IF((AG3-Input!$H$11+1)<=Input!$H$12,"Construction",IF(AG3-Input!$H$11+1<=Input!$H$12+Input!$H$13,"Operation","-")) -> - | AH4: =IF((AH3-Input!$H$11+1)<=Input!$H$12,"Construction",IF(AH3-Input!$H$11+1<=Input!$H$12+Input!$H$13,"Operation","-")) -> - | AI4: =IF((AI3-Input!$H$11+1)<=Input!$H$12,"Construction",IF(AI3-Input!$H$11+1<=Input!$H$12+Input!$H$13,"Operation","-")) -> - | AJ4: =IF((AJ3-Input!$H$11+1)<=Input!$H$12,"Construction",IF(AJ3-Input!$H$11+1<=Input!$H$12+Input!$H$13,"Operation","-")) -> - | AK4: =IF((AK3-Input!$H$11+1)<=Input!$H$12,"Construction",IF(AK3-Input!$H$11+1<=Input!$H$12+Input!$H$13,"Operation","-")) -> - | AL4: =IF((AL3-Input!$H$11+1)<=Input!$H$12,"Construction",IF(AL3-Input!$H$11+1<=Input!$H$12+Input!$H$13,"Operation","-")) -> - | AM4: =IF((AM3-Input!$H$11+1)<=Input!$H$12,"Construction",IF(AM3-Input!$H$11+1<=Input!$H$12+Input!$H$13,"Operation","-")) -> -
D6: Model output
D8: INVESTMENT COST | E8: Инвестиционни разходи
D12: Asset values - building and construction (*) | E12: Стойност на активите - сгради и конструкции (*) | I12: =+TEXT($J$3,"0")&"-"&TEXT($J$3+Input!$H$12-1,"0") -> 2020-2022
D13: Annual investment | E13: Годишна инвестиция | F13: Constant EUR | G13: Постоянни евро | I13: =SUM(OFFSET(J13,0,0,1,Input!$H$12)) ->  | J13: =IF(J$4="Construction",+(Input!J29+Input!N29)/(1+Input!$H$14)^(J3-(Input!$H$11)),0) ->  | K13: =IF(K$4="Construction",+(Input!K29+Input!O29)/(1+Input!$H$14)^(K3-(Input!$H$11)),0) ->  | L13: =IF(L$4="Construction",+(Input!L29+Input!P29)/(1+Input!$H$14)^(L3-(Input!$H$11)),0) ->  | M13: =IF(M$4="Construction",+(Input!J29+Input!#REF!)/(1+Input!$H$14)^(M3-(Input!$H$11)),0) -> 0 | N13: =IF(N$4="Construction",+(Input!K29+Input!#REF!)/(1+Input!$H$14)^(N3-(Input!$H$11)),0) -> 0 | O13: =IF(O$4="Construction",+(Input!L29+Input!#REF!)/(1+Input!$H$14)^(O3-(Input!$H$11)),0) -> 0 | P13: =IF(P$4="Construction",+(Input!M29+Input!#REF!)/(1+Input!$H$14)^(P3-(Input!$H$11)),0) -> 0 | Q13: =IF(Q$4="Construction",+(Input!N29+Input!Q29)/(1+Input!$H$14)^(Q3-(Input!$H$11)),0) -> 0 | R13: =IF(R$4="Construction",+(Input!O29+Input!T29)/(1+Input!$H$14)^(R3-(Input!$H$11)),0) -> 0 | S13: =IF(S$4="Construction",+(Input!P29+Input!U29)/(1+Input!$H$14)^(S3-(Input!$H$11)),0) -> 0 | T13: =IF(T$4="Construction",+(Input!#REF!+Input!V29)/(1+Input!$H$14)^(T3-(Input!$H$11)),0) -> 0 | U13: =IF(U$4="Construction",+(Input!#REF!+Input!W29)/(1+Input!$H$14)^(U3-(Input!$H$11)),0) -> 0 | V13: =IF(V$4="Construction",+(Input!#REF!+Input!X29)/(1+Input!$H$14)^(V3-(Input!$H$11)),0) -> 0 | W13: =IF(W$4="Construction",+(Input!#REF!+Input!Y29)/(1+Input!$H$14)^(W3-(Input!$H$11)),0) -> 0 | X13: =IF(X$4="Construction",+(Input!Q29+Input!Z29)/(1+Input!$H$14)^(X3-(Input!$H$11)),0) -> 0 | Y13: =IF(Y$4="Construction",+(Input!T29+Input!AA29)/(1+Input!$H$14)^(Y3-(Input!$H$11)),0) -> 0 | Z13: =IF(Z$4="Construction",+(Input!U29+Input!AB29)/(1+Input!$H$14)^(Z3-(Input!$H$11)),0) -> 0 | AA13: =IF(AA$4="Construction",+(Input!V29+Input!AC29)/(1+Input!$H$14)^(AA3-(Input!$H$11)),0) -> 0 | AB13: =IF(AB$4="Construction",+(Input!W29+Input!AD29)/(1+Input!$H$14)^(AB3-(Input!$H$11)),0) -> 0 | AC13: =IF(AC$4="Construction",+(Input!X29+Input!#REF!)/(1+Input!$H$14)^(AC3-(Input!$H$11)),0) -> 0 | AD13: =IF(AD$4="Construction",+(Input!Y29+Input!#REF!)/(1+Input!$H$14)^(AD3-(Input!$H$11)),0) -> 0 | AE13: =IF(AE$4="Construction",+(Input!Z29+Input!#REF!)/(1+Input!$H$14)^(AE3-(Input!$H$11)),0) -> 0 | AF13: =IF(AF$4="Construction",+(Input!AA29+Input!#REF!)/(1+Input!$H$14)^(AF3-(Input!$H$11)),0) -> 0 | AG13: =IF(AG$4="Construction",+(Input!AB29+Input!#REF!)/(1+Input!$H$14)^(AG3-(Input!$H$11)),0) -> 0 | AH13: =IF(AH$4="Construction",+(Input!AC29+Input!AE29)/(1+Input!$H$14)^(AH3-(Input!$H$11)),0) -> 0 | AI13: =IF(AI$4="Construction",+(Input!AD29+Input!#REF!)/(1+Input!$H$14)^(AI3-(Input!$H$11)),0) -> 0 | AJ13: =IF(AJ$4="Construction",+(Input!#REF!+Input!AF29)/(1+Input!$H$14)^(AJ3-(Input!$H$11)),0) -> 0 | AK13: =IF(AK$4="Construction",+(Input!#REF!+Input!#REF!)/(1+Input!$H$14)^(AK3-(Input!$H$11)),0) -> 0 | AL13: =IF(AL$4="Construction",+(Input!#REF!+Input!AG29)/(1+Input!$H$14)^(AL3-(Input!$H$11)),0) -> 0 | AM13: =IF(AM$4="Construction",+(Input!#REF!+Input!AH29)/(1+Input!$H$14)^(AM3-(Input!$H$11)),0) -> 0
D14: Cumulative value | E14: Кумулативна стойност | F14: Constant EUR | G14: Постоянни евро | J14: =+J13 ->  | K14: =IF(OR(K$4="Construction",K$4="Operation"),(K13+J14),0) ->  | L14: =IF(OR(L4="Construction",L4="Operation"),(L13+K14),0) ->  | M14: =IF(OR(M4="Construction",M4="Operation"),(M13+L14),0) ->  | N14: =IF(OR(N4="Construction",N4="Operation"),(N13+M14),0) ->  | O14: =IF(OR(O4="Construction",O4="Operation"),(O13+N14),0) ->  | P14: =IF(OR(P4="Construction",P4="Operation"),(P13+O14),0) ->  | Q14: =IF(OR(Q4="Construction",Q4="Operation"),(Q13+P14),0) ->  | W14: 0 | X14: 0 | Y14: 0 | Z14: 0 | AA14: 0 | AB14: 0 | AC14: 0 | AD14: 0 | AE14: 0 | AF14: 0 | AG14: 0 | AH14: 0 | AI14: 0 | AJ14: 0 | AK14: 0 | AL14: 0 | AM14: =IF(OR(AM4="Construction",AM4="Operation"),(AM13+AL14),0) -> 0
D15: Annual depreciation | E15: Годишна амортизация | F15: Constant EUR | G15: Постоянни евро | J15: =CHOOSE(IF(J$4="Construction",1,IF(J$4="Operation",2,3)),0,IF((J$3-Input!$H$11-Input!$H$12)<Input!$H$59,J14/Input!$H$59,(J14-OFFSET(J14,0,-Input!$H$59))/Input!$H$59),0) -> 0 | K15: =CHOOSE(IF(K$4="Construction",1,IF(K$4="Operation",2,3)),0,IF((K$3-Input!$H$11-Input!$H$12)<Input!$H$59,K14/Input!$H$59,(K14-OFFSET(K14,0,-Input!$H$59))/Input!$H$59),0) -> 0 | L15: =CHOOSE(IF(L$4="Construction",1,IF(L$4="Operation",2,3)),0,IF((L$3-Input!$H$11-Input!$H$12)<Input!$H$59,L14/Input!$H$59,(L14-OFFSET(L14,0,-Input!$H$59))/Input!$H$59),0) -> 0 | M15: =CHOOSE(IF(M$4="Construction",1,IF(M$4="Operation",2,3)),0,IF((M$3-Input!$H$11-Input!$H$12)<Input!$H$59,M14/Input!$H$59,(M14-OFFSET(M14,0,-Input!$H$59))/Input!$H$59),0) ->  | N15: =CHOOSE(IF(N$4="Construction",1,IF(N$4="Operation",2,3)),0,IF((N$3-Input!$H$11-Input!$H$12)<Input!$H$59,N14/Input!$H$59,(N14-OFFSET(N14,0,-Input!$H$59))/Input!$H$59),0) ->  | O15: =CHOOSE(IF(O$4="Construction",1,IF(O$4="Operation",2,3)),0,IF((O$3-Input!$H$11-Input!$H$12)<Input!$H$59,O14/Input!$H$59,(O14-OFFSET(O14,0,-Input!$H$59))/Input!$H$59),0) ->  | P15: =CHOOSE(IF(P$4="Construction",1,IF(P$4="Operation",2,3)),0,IF((P$3-Input!$H$11-Input!$H$12)<Input!$H$59,P14/Input!$H$59,(P14-OFFSET(P14,0,-Input!$H$59))/Input!$H$59),0) ->  | Q15: =CHOOSE(IF(Q$4="Construction",1,IF(Q$4="Operation",2,3)),0,IF((Q$3-Input!$H$11-Input!$H$12)<Input!$H$59,Q14/Input!$H$59,(Q14-OFFSET(Q14,0,-Input!$H$59))/Input!$H$59),0) ->  | R15: =CHOOSE(IF(R$4="Construction",1,IF(R$4="Operation",2,3)),0,IF((R$3-Input!$H$11-Input!$H$12)<Input!$H$59,R14/Input!$H$59,(R14-OFFSET(R14,0,-Input!$H$59))/Input!$H$59),0) ->  | S15: =CHOOSE(IF(S$4="Construction",1,IF(S$4="Operation",2,3)),0,IF((S$3-Input!$H$11-Input!$H$12)<Input!$H$59,S14/Input!$H$59,(S14-OFFSET(S14,0,-Input!$H$59))/Input!$H$59),0) ->  | T15: =CHOOSE(IF(T$4="Construction",1,IF(T$4="Operation",2,3)),0,IF((T$3-Input!$H$11-Input!$H$12)<Input!$H$59,T14/Input!$H$59,(T14-OFFSET(T14,0,-Input!$H$59))/Input!$H$59),0) ->  | U15: =CHOOSE(IF(U$4="Construction",1,IF(U$4="Operation",2,3)),0,IF((U$3-Input!$H$11-Input!$H$12)<Input!$H$59,U14/Input!$H$59,(U14-OFFSET(U14,0,-Input!$H$59))/Input!$H$59),0) ->  | V15: =CHOOSE(IF(V$4="Construction",1,IF(V$4="Operation",2,3)),0,IF((V$3-Input!$H$11-Input!$H$12)<Input!$H$59,V14/Input!$H$59,(V14-OFFSET(V14,0,-Input!$H$59))/Input!$H$59),0) ->  | W15: =CHOOSE(IF(W$4="Construction",1,IF(W$4="Operation",2,3)),0,IF((W$3-Input!$H$11-Input!$H$12)<Input!$H$59,W14/Input!$H$59,(W14-OFFSET(W14,0,-Input!$H$59))/Input!$H$59),0) -> 0 | X15: =CHOOSE(IF(X$4="Construction",1,IF(X$4="Operation",2,3)),0,IF((X$3-Input!$H$11-Input!$H$12)<Input!$H$59,X14/Input!$H$59,(X14-OFFSET(X14,0,-Input!$H$59))/Input!$H$59),0) -> 0 | Y15: =CHOOSE(IF(Y$4="Construction",1,IF(Y$4="Operation",2,3)),0,IF((Y$3-Input!$H$11-Input!$H$12)<Input!$H$59,Y14/Input!$H$59,(Y14-OFFSET(Y14,0,-Input!$H$59))/Input!$H$59),0) -> 0 | Z15: =CHOOSE(IF(Z$4="Construction",1,IF(Z$4="Operation",2,3)),0,IF((Z$3-Input!$H$11-Input!$H$12)<Input!$H$59,Z14/Input!$H$59,(Z14-OFFSET(Z14,0,-Input!$H$59))/Input!$H$59),0) -> 0 | AA15: =CHOOSE(IF(AA$4="Construction",1,IF(AA$4="Operation",2,3)),0,IF((AA$3-Input!$H$11-Input!$H$12)<Input!$H$59,AA14/Input!$H$59,(AA14-OFFSET(AA14,0,-Input!$H$59))/Input!$H$59),0) -> 0 | AB15: =CHOOSE(IF(AB$4="Construction",1,IF(AB$4="Operation",2,3)),0,IF((AB$3-Input!$H$11-Input!$H$12)<Input!$H$59,AB14/Input!$H$59,(AB14-OFFSET(AB14,0,-Input!$H$59))/Input!$H$59),0) -> 0 | AC15: =CHOOSE(IF(AC$4="Construction",1,IF(AC$4="Operation",2,3)),0,IF((AC$3-Input!$H$11-Input!$H$12)<Input!$H$59,AC14/Input!$H$59,(AC14-OFFSET(AC14,0,-Input!$H$59))/Input!$H$59),0) -> 0 | AD15: =CHOOSE(IF(AD$4="Construction",1,IF(AD$4="Operation",2,3)),0,IF((AD$3-Input!$H$11-Input!$H$12)<Input!$H$59,AD14/Input!$H$59,(AD14-OFFSET(AD14,0,-Input!$H$59))/Input!$H$59),0) -> 0 | AE15: =CHOOSE(IF(AE$4="Construction",1,IF(AE$4="Operation",2,3)),0,IF((AE$3-Input!$H$11-Input!$H$12)<Input!$H$59,AE14/Input!$H$59,(AE14-OFFSET(AE14,0,-Input!$H$59))/Input!$H$59),0) -> 0 | AF15: =CHOOSE(IF(AF$4="Construction",1,IF(AF$4="Operation",2,3)),0,IF((AF$3-Input!$H$11-Input!$H$12)<Input!$H$59,AF14/Input!$H$59,(AF14-OFFSET(AF14,0,-Input!$H$59))/Input!$H$59),0) -> 0 | AG15: =CHOOSE(IF(AG$4="Construction",1,IF(AG$4="Operation",2,3)),0,IF((AG$3-Input!$H$11-Input!$H$12)<Input!$H$59,AG14/Input!$H$59,(AG14-OFFSET(AG14,0,-Input!$H$59))/Input!$H$59),0) -> 0 | AH15: =CHOOSE(IF(AH$4="Construction",1,IF(AH$4="Operation",2,3)),0,IF((AH$3-Input!$H$11-Input!$H$12)<Input!$H$59,AH14/Input!$H$59,(AH14-OFFSET(AH14,0,-Input!$H$59))/Input!$H$59),0) -> 0 | AI15: =CHOOSE(IF(AI$4="Construction",1,IF(AI$4="Operation",2,3)),0,IF((AI$3-Input!$H$11-Input!$H$12)<Input!$H$59,AI14/Input!$H$59,(AI14-OFFSET(AI14,0,-Input!$H$59))/Input!$H$59),0) -> 0 | AJ15: =CHOOSE(IF(AJ$4="Construction",1,IF(AJ$4="Operation",2,3)),0,IF((AJ$3-Input!$H$11-Input!$H$12)<Input!$H$59,AJ14/Input!$H$59,(AJ14-OFFSET(AJ14,0,-Input!$H$59))/Input!$H$59),0) -> 0 | AK15: =CHOOSE(IF(AK$4="Construction",1,IF(AK$4="Operation",2,3)),0,IF((AK$3-Input!$H$11-Input!$H$12)<Input!$H$59,AK14/Input!$H$59,(AK14-OFFSET(AK14,0,-Input!$H$59))/Input!$H$59),0) -> 0 | AL15: =CHOOSE(IF(AL$4="Construction",1,IF(AL$4="Operation",2,3)),0,IF((AL$3-Input!$H$11-Input!$H$12)<Input!$H$59,AL14/Input!$H$59,(AL14-OFFSET(AL14,0,-Input!$H$59))/Input!$H$59),0) -> 0 | AM15: =CHOOSE(IF(AM$4="Construction",1,IF(AM$4="Operation",2,3)),0,IF((AM$3-Input!$H$11-Input!$H$12)<Input!$H$59,AM14/Input!$H$59,(AM14-OFFSET(AM14,0,-Input!$H$59))/Input!$H$59),0) -> 0
D16: Cumulative depreciation | E16: Кумулативна амортизация | F16: Constant EUR | G16: Постоянни евро | J16: =+J15 -> 0 | K16: =IF(OR(K4="Construction",K4="Operation"),(J16+K15),0) -> 0 | L16: 0 | W16: 0 | X16: 0 | Y16: 0 | Z16: 0 | AA16: 0 | AB16: 0 | AC16: 0 | AD16: 0 | AE16: 0 | AF16: 0 | AG16: 0 | AH16: 0 | AI16: 0 | AJ16: 0 | AK16: 0 | AL16: 0 | AM16: 0
D17: Book value | E17: Балансова стойност | F17: Constant EUR | G17: Постоянни евро | J17: =+J14-J16 ->  | W17: 0 | X17: 0 | Y17: 0 | Z17: 0 | AA17: 0 | AB17: 0 | AC17: =+AC14-AC16 -> 0 | AD17: 0 | AE17: 0 | AF17: 0 | AG17: 0 | AH17: 0 | AI17: 0 | AJ17: 0 | AK17: 0 | AL17: 0 | AM17: 0
D19: Asset values - plant and machinery (*) | E19: Стойност на активите - машини и съоръжения (*) | I19: =+TEXT($J$3,"0")&"-"&TEXT($J$3+Input!$H$12-1,"0") -> 2020-2022
D20: Annual investment | E20: Годишна инвестиция | F20: Constant EUR | G20: Постоянни евро | I20: =SUM(OFFSET(J20,0,0,1,Input!$H$12)) ->  | J20: =IF(J$4="Construction",+(Input!J32+Input!N32)/(1+Input!$H$14)^(J3-(Input!$H$11)),0) ->  | K20: =IF(K$4="Construction",+(Input!K32+Input!O32)/(1+Input!$H$14)^(K3-(Input!$H$11)),0) ->  | L20: =IF(L$4="Construction",+(Input!L32+Input!P32)/(1+Input!$H$14)^(L3-(Input!$H$11)),0) ->  | M20: =IF(M$4="Construction",+(Input!M32+Input!#REF!)/(1+Input!$H$14)^(M3-(Input!$H$11)),0) -> 0 | N20: =IF(N$4="Construction",+(Input!N32+Input!#REF!)/(1+Input!$H$14)^(N3-(Input!$H$11)),0) -> 0 | O20: =IF(O$4="Construction",+(Input!O32+Input!#REF!)/(1+Input!$H$14)^(O3-(Input!$H$11)),0) -> 0 | P20: =IF(P$4="Construction",+(Input!P32+Input!#REF!)/(1+Input!$H$14)^(P3-(Input!$H$11)),0) -> 0 | Q20: =IF(Q$4="Construction",+(Input!#REF!+Input!Q32)/(1+Input!$H$14)^(Q3-(Input!$H$11)),0) -> 0 | R20: =IF(R$4="Construction",+(Input!#REF!+Input!T32)/(1+Input!$H$14)^(R3-(Input!$H$11)),0) -> 0 | S20: =IF(S$4="Construction",+(Input!#REF!+Input!U32)/(1+Input!$H$14)^(S3-(Input!$H$11)),0) -> 0 | T20: =IF(T$4="Construction",+(Input!#REF!+Input!V32)/(1+Input!$H$14)^(T3-(Input!$H$11)),0) -> 0 | U20: =IF(U$4="Construction",+(Input!Q32+Input!W32)/(1+Input!$H$14)^(U3-(Input!$H$11)),0) -> 0 | V20: =IF(V$4="Construction",+(Input!T32+Input!X32)/(1+Input!$H$14)^(V3-(Input!$H$11)),0) -> 0 | W20: =IF(W$4="Construction",+(Input!U32+Input!Y32)/(1+Input!$H$14)^(W3-(Input!$H$11)),0) -> 0 | X20: =IF(X$4="Construction",+(Input!V32+Input!Z32)/(1+Input!$H$14)^(X3-(Input!$H$11)),0) -> 0 | Y20: =IF(Y$4="Construction",+(Input!W32+Input!AA32)/(1+Input!$H$14)^(Y3-(Input!$H$11)),0) -> 0 | Z20: =IF(Z$4="Construction",+(Input!X32+Input!AB32)/(1+Input!$H$14)^(Z3-(Input!$H$11)),0) -> 0 | AA20: =IF(AA$4="Construction",+(Input!Y32+Input!AC32)/(1+Input!$H$14)^(AA3-(Input!$H$11)),0) -> 0 | AB20: =IF(AB$4="Construction",+(Input!Z32+Input!AD32)/(1+Input!$H$14)^(AB3-(Input!$H$11)),0) -> 0 | AC20: =IF(AC$4="Construction",+(Input!AA32+Input!#REF!)/(1+Input!$H$14)^(AC3-(Input!$H$11)),0) -> 0 | AD20: =IF(AD$4="Construction",+(Input!AB32+Input!#REF!)/(1+Input!$H$14)^(AD3-(Input!$H$11)),0) -> 0 | AE20: =IF(AE$4="Construction",+(Input!AC32+Input!#REF!)/(1+Input!$H$14)^(AE3-(Input!$H$11)),0) -> 0 | AF20: =IF(AF$4="Construction",+(Input!AD32+Input!#REF!)/(1+Input!$H$14)^(AF3-(Input!$H$11)),0) -> 0 | AG20: =IF(AG$4="Construction",+(Input!#REF!+Input!#REF!)/(1+Input!$H$14)^(AG3-(Input!$H$11)),0) -> 0 | AH20: =IF(AH$4="Construction",+(Input!#REF!+Input!AE32)/(1+Input!$H$14)^(AH3-(Input!$H$11)),0) -> 0 | AI20: =IF(AI$4="Construction",+(Input!#REF!+Input!#REF!)/(1+Input!$H$14)^(AI3-(Input!$H$11)),0) -> 0 | AJ20: =IF(AJ$4="Construction",+(Input!#REF!+Input!AF32)/(1+Input!$H$14)^(AJ3-(Input!$H$11)),0) -> 0 | AK20: =IF(AK$4="Construction",+(Input!#REF!+Input!#REF!)/(1+Input!$H$14)^(AK3-(Input!$H$11)),0) -> 0 | AL20: =IF(AL$4="Construction",+(Input!AE32+Input!AG32)/(1+Input!$H$14)^(AL3-(Input!$H$11)),0) -> 0 | AM20: =IF(AM$4="Construction",+(Input!#REF!+Input!AH32)/(1+Input!$H$14)^(AM3-(Input!$H$11)),0) -> 0
D21: Cumulative value | E21: Кумулативна стойност | F21: Constant EUR | G21: Постоянни евро | J21: =+J20 ->  | K21: =IF(OR(K$4="Construction",K$4="Operation"),(K20+J21),0) ->  | L21: =IF(OR(L$4="Construction",L$4="Operation"),(L20+K21),0) ->  | W21: 0 | X21: 0 | Y21: 0 | Z21: 0 | AA21: 0 | AB21: 0 | AC21: 0 | AD21: 0 | AE21: 0 | AF21: 0 | AG21: 0 | AH21: 0 | AI21: 0 | AJ21: 0 | AK21: 0 | AL21: 0 | AM21: =IF(OR(AM$4="Construction",AM$4="Operation"),(AM20+AL21),0) -> 0
D22: Annual depreciation | E22: Годишна амортизация | F22: Constant EUR | G22: Постоянни евро | J22: =CHOOSE(IF(J$4="Construction",1,IF(J$4="Operation",2,3)),0,IF((J$3-Input!$H$11-Input!$H$12)<Input!$H$60,J21/Input!$H$60,(J21-OFFSET(J21,0,-Input!$H$60))/Input!$H$60),0) -> 0 | K22: =CHOOSE(IF(K$4="Construction",1,IF(K$4="Operation",2,3)),0,IF((K$3-Input!$H$11-Input!$H$12)<Input!$H$60,K21/Input!$H$60,(K21-OFFSET(K21,0,-Input!$H$60))/Input!$H$60),0) -> 0 | L22: =CHOOSE(IF(L$4="Construction",1,IF(L$4="Operation",2,3)),0,IF((L$3-Input!$H$11-Input!$H$12)<Input!$H$60,L21/Input!$H$60,(L21-OFFSET(L21,0,-Input!$H$60))/Input!$H$60),0) -> 0 | M22: =CHOOSE(IF(M$4="Construction",1,IF(M$4="Operation",2,3)),0,IF((M$3-Input!$H$11-Input!$H$12)<Input!$H$60,M21/Input!$H$60,(M21-OFFSET(M21,0,-Input!$H$60))/Input!$H$60),0) ->  | N22: =CHOOSE(IF(N$4="Construction",1,IF(N$4="Operation",2,3)),0,IF((N$3-Input!$H$11-Input!$H$12)<Input!$H$60,N21/Input!$H$60,(N21-OFFSET(N21,0,-Input!$H$60))/Input!$H$60),0) ->  | O22: =CHOOSE(IF(O$4="Construction",1,IF(O$4="Operation",2,3)),0,IF((O$3-Input!$H$11-Input!$H$12)<Input!$H$60,O21/Input!$H$60,(O21-OFFSET(O21,0,-Input!$H$60))/Input!$H$60),0) ->  | P22: =CHOOSE(IF(P$4="Construction",1,IF(P$4="Operation",2,3)),0,IF((P$3-Input!$H$11-Input!$H$12)<Input!$H$60,P21/Input!$H$60,(P21-OFFSET(P21,0,-Input!$H$60))/Input!$H$60),0) ->  | Q22: =CHOOSE(IF(Q$4="Construction",1,IF(Q$4="Operation",2,3)),0,IF((Q$3-Input!$H$11-Input!$H$12)<Input!$H$60,Q21/Input!$H$60,(Q21-OFFSET(Q21,0,-Input!$H$60))/Input!$H$60),0) ->  | R22: =CHOOSE(IF(R$4="Construction",1,IF(R$4="Operation",2,3)),0,IF((R$3-Input!$H$11-Input!$H$12)<Input!$H$60,R21/Input!$H$60,(R21-OFFSET(R21,0,-Input!$H$60))/Input!$H$60),0) ->  | S22: =CHOOSE(IF(S$4="Construction",1,IF(S$4="Operation",2,3)),0,IF((S$3-Input!$H$11-Input!$H$12)<Input!$H$60,S21/Input!$H$60,(S21-OFFSET(S21,0,-Input!$H$60))/Input!$H$60),0) ->  | T22: =CHOOSE(IF(T$4="Construction",1,IF(T$4="Operation",2,3)),0,IF((T$3-Input!$H$11-Input!$H$12)<Input!$H$60,T21/Input!$H$60,(T21-OFFSET(T21,0,-Input!$H$60))/Input!$H$60),0) ->  | U22: =CHOOSE(IF(U$4="Construction",1,IF(U$4="Operation",2,3)),0,IF((U$3-Input!$H$11-Input!$H$12)<Input!$H$60,U21/Input!$H$60,(U21-OFFSET(U21,0,-Input!$H$60))/Input!$H$60),0) ->  | V22: =CHOOSE(IF(V$4="Construction",1,IF(V$4="Operation",2,3)),0,IF((V$3-Input!$H$11-Input!$H$12)<Input!$H$60,V21/Input!$H$60,(V21-OFFSET(V21,0,-Input!$H$60))/Input!$H$60),0) ->  | W22: =CHOOSE(IF(W$4="Construction",1,IF(W$4="Operation",2,3)),0,IF((W$3-Input!$H$11-Input!$H$12)<Input!$H$60,W21/Input!$H$60,(W21-OFFSET(W21,0,-Input!$H$60))/Input!$H$60),0) -> 0 | X22: =CHOOSE(IF(X$4="Construction",1,IF(X$4="Operation",2,3)),0,IF((X$3-Input!$H$11-Input!$H$12)<Input!$H$60,X21/Input!$H$60,(X21-OFFSET(X21,0,-Input!$H$60))/Input!$H$60),0) -> 0 | Y22: =CHOOSE(IF(Y$4="Construction",1,IF(Y$4="Operation",2,3)),0,IF((Y$3-Input!$H$11-Input!$H$12)<Input!$H$60,Y21/Input!$H$60,(Y21-OFFSET(Y21,0,-Input!$H$60))/Input!$H$60),0) -> 0 | Z22: =CHOOSE(IF(Z$4="Construction",1,IF(Z$4="Operation",2,3)),0,IF((Z$3-Input!$H$11-Input!$H$12)<Input!$H$60,Z21/Input!$H$60,(Z21-OFFSET(Z21,0,-Input!$H$60))/Input!$H$60),0) -> 0 | AA22: =CHOOSE(IF(AA$4="Construction",1,IF(AA$4="Operation",2,3)),0,IF((AA$3-Input!$H$11-Input!$H$12)<Input!$H$60,AA21/Input!$H$60,(AA21-OFFSET(AA21,0,-Input!$H$60))/Input!$H$60),0) -> 0 | AB22: =CHOOSE(IF(AB$4="Construction",1,IF(AB$4="Operation",2,3)),0,IF((AB$3-Input!$H$11-Input!$H$12)<Input!$H$60,AB21/Input!$H$60,(AB21-OFFSET(AB21,0,-Input!$H$60))/Input!$H$60),0) -> 0 | AC22: =CHOOSE(IF(AC$4="Construction",1,IF(AC$4="Operation",2,3)),0,IF((AC$3-Input!$H$11-Input!$H$12)<Input!$H$60,AC21/Input!$H$60,(AC21-OFFSET(AC21,0,-Input!$H$60))/Input!$H$60),0) -> 0 | AD22: =CHOOSE(IF(AD$4="Construction",1,IF(AD$4="Operation",2,3)),0,IF((AD$3-Input!$H$11-Input!$H$12)<Input!$H$60,AD21/Input!$H$60,(AD21-OFFSET(AD21,0,-Input!$H$60))/Input!$H$60),0) -> 0 | AE22: =CHOOSE(IF(AE$4="Construction",1,IF(AE$4="Operation",2,3)),0,IF((AE$3-Input!$H$11-Input!$H$12)<Input!$H$60,AE21/Input!$H$60,(AE21-OFFSET(AE21,0,-Input!$H$60))/Input!$H$60),0) -> 0 | AF22: =CHOOSE(IF(AF$4="Construction",1,IF(AF$4="Operation",2,3)),0,IF((AF$3-Input!$H$11-Input!$H$12)<Input!$H$60,AF21/Input!$H$60,(AF21-OFFSET(AF21,0,-Input!$H$60))/Input!$H$60),0) -> 0 | AG22: =CHOOSE(IF(AG$4="Construction",1,IF(AG$4="Operation",2,3)),0,IF((AG$3-Input!$H$11-Input!$H$12)<Input!$H$60,AG21/Input!$H$60,(AG21-OFFSET(AG21,0,-Input!$H$60))/Input!$H$60),0) -> 0 | AH22: =CHOOSE(IF(AH$4="Construction",1,IF(AH$4="Operation",2,3)),0,IF((AH$3-Input!$H$11-Input!$H$12)<Input!$H$60,AH21/Input!$H$60,(AH21-OFFSET(AH21,0,-Input!$H$60))/Input!$H$60),0) -> 0 | AI22: =CHOOSE(IF(AI$4="Construction",1,IF(AI$4="Operation",2,3)),0,IF((AI$3-Input!$H$11-Input!$H$12)<Input!$H$60,AI21/Input!$H$60,(AI21-OFFSET(AI21,0,-Input!$H$60))/Input!$H$60),0) -> 0 | AJ22: =CHOOSE(IF(AJ$4="Construction",1,IF(AJ$4="Operation",2,3)),0,IF((AJ$3-Input!$H$11-Input!$H$12)<Input!$H$60,AJ21/Input!$H$60,(AJ21-OFFSET(AJ21,0,-Input!$H$60))/Input!$H$60),0) -> 0 | AK22: =CHOOSE(IF(AK$4="Construction",1,IF(AK$4="Operation",2,3)),0,IF((AK$3-Input!$H$11-Input!$H$12)<Input!$H$60,AK21/Input!$H$60,(AK21-OFFSET(AK21,0,-Input!$H$60))/Input!$H$60),0) -> 0 | AL22: =CHOOSE(IF(AL$4="Construction",1,IF(AL$4="Operation",2,3)),0,IF((AL$3-Input!$H$11-Input!$H$12)<Input!$H$60,AL21/Input!$H$60,(AL21-OFFSET(AL21,0,-Input!$H$60))/Input!$H$60),0) -> 0 | AM22: =CHOOSE(IF(AM$4="Construction",1,IF(AM$4="Operation",2,3)),0,IF((AM$3-Input!$H$11-Input!$H$12)<Input!$H$60,AM21/Input!$H$60,(AM21-OFFSET(AM21,0,-Input!$H$60))/Input!$H$60),0) -> 0
D23: Cumulative depreciation | E23: Кумулативна амортизация | F23: Constant EUR | G23: Постоянни евро | J23: =+J22 -> 0 | K23: =IF(OR(K4="Construction",K4="Operation"),(J23+K22),0) -> 0 | L23: 0 | W23: 0 | X23: 0 | Y23: 0 | Z23: 0 | AA23: 0 | AB23: 0 | AC23: 0 | AD23: 0 | AE23: 0 | AF23: 0 | AG23: 0 | AH23: 0 | AI23: 0 | AJ23: 0 | AK23: 0 | AL23: 0 | AM23: 0
D24: Book value | E24: Балансова стойност | F24: Constant EUR | G24: Постоянни евро | J24: =+J21-J23 ->  | W24: 0 | X24: 0 | Y24: 0 | Z24: 0 | AA24: 0 | AB24: 0 | AC24: 0 | AD24: 0 | AE24: 0 | AF24: 0 | AG24: 0 | AH24: 0 | AI24: 0 | AJ24: 0 | AK24: 0 | AL24: 0 | AM24: 0
D26: Asset values - intangible assets (*) | E26: Стойност на активите - нематериални активи (*) | I26: =+TEXT($J$3,"0")&"-"&TEXT($J$3+Input!$H$12-1,"0") -> 2020-2022
D27: Annual investment | E27: Годишна инвестиция | F27: Constant EUR | G27: Постоянни евро | I27: =SUM(OFFSET(J27,0,0,1,Input!$H$12)) ->  | J27: =IF(J$4="Construction",+((Input!J26+Input!J35+Input!J38+Input!J41+Input!J44)+(Input!N26+Input!N38+Input!N41+Input!N44))/(1+Input!$H$14)^(J3-(Input!$H$11)),0) ->  | K27: =IF(K$4="Construction",+((Input!K26+Input!K35+Input!K38+Input!K41+Input!K44)+(Input!O26+Input!O38+Input!O41+Input!O44))/(1+Input!$H$14)^(K3-(Input!$H$11)),0) ->  | L27: =IF(L$4="Construction",+((Input!L26+Input!L35+Input!L38+Input!L41+Input!L44)+(Input!P26+Input!P38+Input!P41+Input!P44))/(1+Input!$H$14)^(L3-(Input!$H$11)),0) ->  | M27: =IF(M$4="Construction",+((Input!M26+Input!M35+Input!M38+Input!M41+Input!M44)+(Input!#REF!+Input!#REF!+Input!#REF!+Input!#REF!))/(1+Input!$H$14)^(M3-(Input!$H$11)),0) -> 0 | N27: =IF(N$4="Construction",+((Input!N26+Input!N35+Input!N38+Input!N41+Input!N44)+(Input!#REF!+Input!#REF!+Input!#REF!+Input!#REF!))/(1+Input!$H$14)^(N3-(Input!$H$11)),0) -> 0 | O27: =IF(O$4="Construction",+((Input!O26+Input!O35+Input!O38+Input!O41+Input!O44)+(Input!#REF!+Input!#REF!+Input!#REF!+Input!#REF!))/(1+Input!$H$14)^(O3-(Input!$H$11)),0) -> 0 | P27: =IF(P$4="Construction",+((Input!P26+Input!P35+Input!P38+Input!P41+Input!P44)+(Input!#REF!+Input!#REF!+Input!#REF!+Input!#REF!))/(1+Input!$H$14)^(P3-(Input!$H$11)),0) -> 0 | Q27: =IF(Q$4="Construction",+((Input!#REF!+Input!#REF!+Input!#REF!+Input!#REF!+Input!#REF!)+(Input!Q26+Input!Q38+Input!Q41+Input!Q44))/(1+Input!$H$14)^(Q3-(Input!$H$11)),0) -> 0 | R27: =IF(R$4="Construction",+((Input!#REF!+Input!#REF!+Input!#REF!+Input!#REF!+Input!#REF!)+(Input!T26+Input!T38+Input!T41+Input!T44))/(1+Input!$H$14)^(R3-(Input!$H$11)),0) -> 0 | S27: =IF(S$4="Construction",+((Input!#REF!+Input!#REF!+Input!#REF!+Input!#REF!+Input!#REF!)+(Input!U26+Input!U38+Input!U41+Input!U44))/(1+Input!$H$14)^(S3-(Input!$H$11)),0) -> 0 | T27: =IF(T$4="Construction",+((Input!#REF!+Input!#REF!+Input!#REF!+Input!#REF!+Input!#REF!)+(Input!V26+Input!V38+Input!V41+Input!V44))/(1+Input!$H$14)^(T3-(Input!$H$11)),0) -> 0 | U27: =IF(U$4="Construction",+((Input!Q26+Input!Q35+Input!Q38+Input!Q41+Input!Q44)+(Input!W26+Input!W38+Input!W41+Input!W44))/(1+Input!$H$14)^(U3-(Input!$H$11)),0) -> 0 | V27: =IF(V$4="Construction",+((Input!T26+Input!T35+Input!T38+Input!T41+Input!T44)+(Input!X26+Input!X38+Input!X41+Input!X44))/(1+Input!$H$14)^(V3-(Input!$H$11)),0) -> 0 | W27: =IF(W$4="Construction",+((Input!U26+Input!U35+Input!U38+Input!U41+Input!U44)+(Input!Y26+Input!Y38+Input!Y41+Input!Y44))/(1+Input!$H$14)^(W3-(Input!$H$11)),0) -> 0 | X27: =IF(X$4="Construction",+((Input!V26+Input!V35+Input!V38+Input!V41+Input!V44)+(Input!Z26+Input!Z38+Input!Z41+Input!Z44))/(1+Input!$H$14)^(X3-(Input!$H$11)),0) -> 0 | Y27: =IF(Y$4="Construction",+((Input!W26+Input!W35+Input!W38+Input!W41+Input!W44)+(Input!AA26+Input!AA38+Input!AA41+Input!AA44))/(1+Input!$H$14)^(Y3-(Input!$H$11)),0) -> 0 | Z27: =IF(Z$4="Construction",+((Input!X26+Input!X35+Input!X38+Input!X41+Input!X44)+(Input!AB26+Input!AB38+Input!AB41+Input!AB44))/(1+Input!$H$14)^(Z3-(Input!$H$11)),0) -> 0 | AA27: =IF(AA$4="Construction",+((Input!Y26+Input!Y35+Input!Y38+Input!Y41+Input!Y44)+(Input!AC26+Input!AC38+Input!AC41+Input!AC44))/(1+Input!$H$14)^(AA3-(Input!$H$11)),0) -> 0 | AB27: =IF(AB$4="Construction",+((Input!Z26+Input!Z35+Input!Z38+Input!Z41+Input!Z44)+(Input!AD26+Input!AD38+Input!AD41+Input!AD44))/(1+Input!$H$14)^(AB3-(Input!$H$11)),0) -> 0 | AC27: =IF(AC$4="Construction",+((Input!AA26+Input!AA35+Input!AA38+Input!AA41+Input!AA44)+(Input!#REF!+Input!#REF!+Input!#REF!+Input!#REF!))/(1+Input!$H$14)^(AC3-(Input!$H$11)),0) -> 0 | AD27: =IF(AD$4="Construction",+((Input!AB26+Input!AB35+Input!AB38+Input!AB41+Input!AB44)+(Input!#REF!+Input!#REF!+Input!#REF!+Input!#REF!))/(1+Input!$H$14)^(AD3-(Input!$H$11)),0) -> 0 | AE27: =IF(AE$4="Construction",+((Input!AC26+Input!AC35+Input!AC38+Input!AC41+Input!AC44)+(Input!#REF!+Input!#REF!+Input!#REF!+Input!#REF!))/(1+Input!$H$14)^(AE3-(Input!$H$11)),0) -> 0 | AF27: =IF(AF$4="Construction",+((Input!AD26+Input!AD35+Input!AD38+Input!AD41+Input!AD44)+(Input!#REF!+Input!#REF!+Input!#REF!+Input!#REF!))/(1+Input!$H$14)^(AF3-(Input!$H$11)),0) -> 0 | AG27: =IF(AG$4="Construction",+((Input!#REF!+Input!#REF!+Input!#REF!+Input!#REF!+Input!#REF!)+(Input!#REF!+Input!#REF!+Input!#REF!+Input!#REF!))/(1+Input!$H$14)^(AG3-(Input!$H$11)),0) -> 0 | AH27: =IF(AH$4="Construction",+((Input!#REF!+Input!#REF!+Input!#REF!+Input!#REF!+Input!#REF!)+(Input!AE26+Input!AE38+Input!AE41+Input!AE44))/(1+Input!$H$14)^(AH3-(Input!$H$11)),0) -> 0 | AI27: =IF(AI$4="Construction",+((Input!#REF!+Input!#REF!+Input!#REF!+Input!#REF!+Input!#REF!)+(Input!#REF!+Input!#REF!+Input!#REF!+Input!#REF!))/(1+Input!$H$14)^(AI3-(Input!$H$11)),0) -> 0 | AJ27: =IF(AJ$4="Construction",+((Input!#REF!+Input!#REF!+Input!#REF!+Input!#REF!+Input!#REF!)+(Input!AF26+Input!AF38+Input!AF41+Input!AF44))/(1+Input!$H$14)^(AJ3-(Input!$H$11)),0) -> 0 | AK27: =IF(AK$4="Construction",+((Input!#REF!+Input!#REF!+Input!#REF!+Input!#REF!+Input!#REF!)+(Input!#REF!+Input!#REF!+Input!#REF!+Input!#REF!))/(1+Input!$H$14)^(AK3-(Input!$H$11)),0) -> 0 | AL27: =IF(AL$4="Construction",+((Input!AE26+Input!AE35+Input!AE38+Input!AE41+Input!AE44)+(Input!AG26+Input!AG38+Input!AG41+Input!AG44))/(1+Input!$H$14)^(AL3-(Input!$H$11)),0) -> 0 | AM27: =IF(AM$4="Construction",+((Input!#REF!+Input!#REF!+Input!#REF!+Input!#REF!+Input!#REF!)+(Input!AH26+Input!AH38+Input!AH41+Input!AH44))/(1+Input!$H$14)^(AM3-(Input!$H$11)),0) -> 0
D28: Cumulative value | E28: Кумулативна стойност | F28: Constant EUR | G28: Постоянни евро | J28: =+J27 ->  | K28: =IF(OR(K$4="Construction",K$4="Operation"),(K27+J28),0) ->  | L28: =IF(OR(L$4="Construction",L$4="Operation"),(L27+K28),0) ->  | W28: 0 | X28: 0 | Y28: 0 | Z28: 0 | AA28: 0 | AB28: 0 | AC28: 0 | AD28: 0 | AE28: 0 | AF28: 0 | AG28: 0 | AH28: 0 | AI28: 0 | AJ28: 0 | AK28: 0 | AL28: 0 | AM28: =IF(OR(AM$4="Construction",AM$4="Operation"),(AM27+AL28),0) -> 0
D29: Annual amortization | E29: Годишна амортизация | F29: Constant EUR | G29: Постоянни евро | J29: =CHOOSE(IF(J$4="Construction",1,IF(J$4="Operation",2,3)),0,IF((J$3-Input!$H$11-Input!$H$12)<Input!$H$61,J28/Input!$H$61,(J28-OFFSET(J28,0,-Input!$H$61))/Input!$H$61),0) -> 0 | K29: =CHOOSE(IF(K$4="Construction",1,IF(K$4="Operation",2,3)),0,IF((K$3-Input!$H$11-Input!$H$12)<Input!$H$61,K28/Input!$H$61,(K28-OFFSET(K28,0,-Input!$H$61))/Input!$H$61),0) -> 0 | L29: =CHOOSE(IF(L$4="Construction",1,IF(L$4="Operation",2,3)),0,IF((L$3-Input!$H$11-Input!$H$12)<Input!$H$61,L28/Input!$H$61,(L28-OFFSET(L28,0,-Input!$H$61))/Input!$H$61),0) -> 0 | M29: =CHOOSE(IF(M$4="Construction",1,IF(M$4="Operation",2,3)),0,IF((M$3-Input!$H$11-Input!$H$12)<Input!$H$61,M28/Input!$H$61,(M28-OFFSET(M28,0,-Input!$H$61))/Input!$H$61),0) ->  | N29: =CHOOSE(IF(N$4="Construction",1,IF(N$4="Operation",2,3)),0,IF((N$3-Input!$H$11-Input!$H$12)<Input!$H$61,N28/Input!$H$61,(N28-OFFSET(N28,0,-Input!$H$61))/Input!$H$61),0) ->  | O29: =CHOOSE(IF(O$4="Construction",1,IF(O$4="Operation",2,3)),0,IF((O$3-Input!$H$11-Input!$H$12)<Input!$H$61,O28/Input!$H$61,(O28-OFFSET(O28,0,-Input!$H$61))/Input!$H$61),0) ->  | P29: =CHOOSE(IF(P$4="Construction",1,IF(P$4="Operation",2,3)),0,IF((P$3-Input!$H$11-Input!$H$12)<Input!$H$61,P28/Input!$H$61,(P28-OFFSET(P28,0,-Input!$H$61))/Input!$H$61),0) ->  | Q29: =CHOOSE(IF(Q$4="Construction",1,IF(Q$4="Operation",2,3)),0,IF((Q$3-Input!$H$11-Input!$H$12)<Input!$H$61,Q28/Input!$H$61,(Q28-OFFSET(Q28,0,-Input!$H$61))/Input!$H$61),0) ->  | R29: =CHOOSE(IF(R$4="Construction",1,IF(R$4="Operation",2,3)),0,IF((R$3-Input!$H$11-Input!$H$12)<Input!$H$61,R28/Input!$H$61,(R28-OFFSET(R28,0,-Input!$H$61))/Input!$H$61),0) ->  | S29: =CHOOSE(IF(S$4="Construction",1,IF(S$4="Operation",2,3)),0,IF((S$3-Input!$H$11-Input!$H$12)<Input!$H$61,S28/Input!$H$61,(S28-OFFSET(S28,0,-Input!$H$61))/Input!$H$61),0) ->  | T29: =CHOOSE(IF(T$4="Construction",1,IF(T$4="Operation",2,3)),0,IF((T$3-Input!$H$11-Input!$H$12)<Input!$H$61,T28/Input!$H$61,(T28-OFFSET(T28,0,-Input!$H$61))/Input!$H$61),0) ->  | U29: =CHOOSE(IF(U$4="Construction",1,IF(U$4="Operation",2,3)),0,IF((U$3-Input!$H$11-Input!$H$12)<Input!$H$61,U28/Input!$H$61,(U28-OFFSET(U28,0,-Input!$H$61))/Input!$H$61),0) ->  | V29: =CHOOSE(IF(V$4="Construction",1,IF(V$4="Operation",2,3)),0,IF((V$3-Input!$H$11-Input!$H$12)<Input!$H$61,V28/Input!$H$61,(V28-OFFSET(V28,0,-Input!$H$61))/Input!$H$61),0) ->  | W29: =CHOOSE(IF(W$4="Construction",1,IF(W$4="Operation",2,3)),0,IF((W$3-Input!$H$11-Input!$H$12)<Input!$H$61,W28/Input!$H$61,(W28-OFFSET(W28,0,-Input!$H$61))/Input!$H$61),0) -> 0 | X29: =CHOOSE(IF(X$4="Construction",1,IF(X$4="Operation",2,3)),0,IF((X$3-Input!$H$11-Input!$H$12)<Input!$H$61,X28/Input!$H$61,(X28-OFFSET(X28,0,-Input!$H$61))/Input!$H$61),0) -> 0 | Y29: =CHOOSE(IF(Y$4="Construction",1,IF(Y$4="Operation",2,3)),0,IF((Y$3-Input!$H$11-Input!$H$12)<Input!$H$61,Y28/Input!$H$61,(Y28-OFFSET(Y28,0,-Input!$H$61))/Input!$H$61),0) -> 0 | Z29: =CHOOSE(IF(Z$4="Construction",1,IF(Z$4="Operation",2,3)),0,IF((Z$3-Input!$H$11-Input!$H$12)<Input!$H$61,Z28/Input!$H$61,(Z28-OFFSET(Z28,0,-Input!$H$61))/Input!$H$61),0) -> 0 | AA29: =CHOOSE(IF(AA$4="Construction",1,IF(AA$4="Operation",2,3)),0,IF((AA$3-Input!$H$11-Input!$H$12)<Input!$H$61,AA28/Input!$H$61,(AA28-OFFSET(AA28,0,-Input!$H$61))/Input!$H$61),0) -> 0 | AB29: =CHOOSE(IF(AB$4="Construction",1,IF(AB$4="Operation",2,3)),0,IF((AB$3-Input!$H$11-Input!$H$12)<Input!$H$61,AB28/Input!$H$61,(AB28-OFFSET(AB28,0,-Input!$H$61))/Input!$H$61),0) -> 0 | AC29: =CHOOSE(IF(AC$4="Construction",1,IF(AC$4="Operation",2,3)),0,IF((AC$3-Input!$H$11-Input!$H$12)<Input!$H$61,AC28/Input!$H$61,(AC28-OFFSET(AC28,0,-Input!$H$61))/Input!$H$61),0) -> 0 | AD29: =CHOOSE(IF(AD$4="Construction",1,IF(AD$4="Operation",2,3)),0,IF((AD$3-Input!$H$11-Input!$H$12)<Input!$H$61,AD28/Input!$H$61,(AD28-OFFSET(AD28,0,-Input!$H$61))/Input!$H$61),0) -> 0 | AE29: =CHOOSE(IF(AE$4="Construction",1,IF(AE$4="Operation",2,3)),0,IF((AE$3-Input!$H$11-Input!$H$12)<Input!$H$61,AE28/Input!$H$61,(AE28-OFFSET(AE28,0,-Input!$H$61))/Input!$H$61),0) -> 0 | AF29: =CHOOSE(IF(AF$4="Construction",1,IF(AF$4="Operation",2,3)),0,IF((AF$3-Input!$H$11-Input!$H$12)<Input!$H$61,AF28/Input!$H$61,(AF28-OFFSET(AF28,0,-Input!$H$61))/Input!$H$61),0) -> 0 | AG29: =CHOOSE(IF(AG$4="Construction",1,IF(AG$4="Operation",2,3)),0,IF((AG$3-Input!$H$11-Input!$H$12)<Input!$H$61,AG28/Input!$H$61,(AG28-OFFSET(AG28,0,-Input!$H$61))/Input!$H$61),0) -> 0 | AH29: =CHOOSE(IF(AH$4="Construction",1,IF(AH$4="Operation",2,3)),0,IF((AH$3-Input!$H$11-Input!$H$12)<Input!$H$61,AH28/Input!$H$61,(AH28-OFFSET(AH28,0,-Input!$H$61))/Input!$H$61),0) -> 0 | AI29: =CHOOSE(IF(AI$4="Construction",1,IF(AI$4="Operation",2,3)),0,IF((AI$3-Input!$H$11-Input!$H$12)<Input!$H$61,AI28/Input!$H$61,(AI28-OFFSET(AI28,0,-Input!$H$61))/Input!$H$61),0) -> 0 | AJ29: =CHOOSE(IF(AJ$4="Construction",1,IF(AJ$4="Operation",2,3)),0,IF((AJ$3-Input!$H$11-Input!$H$12)<Input!$H$61,AJ28/Input!$H$61,(AJ28-OFFSET(AJ28,0,-Input!$H$61))/Input!$H$61),0) -> 0 | AK29: =CHOOSE(IF(AK$4="Construction",1,IF(AK$4="Operation",2,3)),0,IF((AK$3-Input!$H$11-Input!$H$12)<Input!$H$61,AK28/Input!$H$61,(AK28-OFFSET(AK28,0,-Input!$H$61))/Input!$H$61),0) -> 0 | AL29: =CHOOSE(IF(AL$4="Construction",1,IF(AL$4="Operation",2,3)),0,IF((AL$3-Input!$H$11-Input!$H$12)<Input!$H$61,AL28/Input!$H$61,(AL28-OFFSET(AL28,0,-Input!$H$61))/Input!$H$61),0) -> 0 | AM29: =CHOOSE(IF(AM$4="Construction",1,IF(AM$4="Operation",2,3)),0,IF((AM$3-Input!$H$11-Input!$H$12)<Input!$H$61,AM28/Input!$H$61,(AM28-OFFSET(AM28,0,-Input!$H$61))/Input!$H$61),0) -> 0
D30: Book value | E30: Балансова стойност | F30: Constant EUR | G30: Постоянни евро | J30: =+J28-J29 ->  | K30: =+J30+K27-K29 ->  | L30: =+K30+L27-L29 -> 
D32: Asset values - non-depreciating assets (*) | E32: Стойност на активите - неамотризируеми активи (*) | I32: =+TEXT($J$3,"0")&"-"&TEXT($J$3+Input!$H$12-1,"0") -> 2020-2022
D33: Annual investment | E33: Годишна инвестиция | F33: Constant EUR | G33: Постоянни евро | I33: =SUM(OFFSET(J33,0,0,1,Input!$H$12)) -> 0 | J33: 0 | K33: 0 | L33: 0 | M33: 0 | N33: 0 | O33: 0 | P33: 0 | Q33: 0 | R33: 0 | S33: 0 | T33: 0 | U33: 0 | V33: 0 | W33: 0 | X33: 0 | Y33: 0 | Z33: 0 | AA33: 0 | AB33: 0 | AC33: 0 | AD33: 0 | AE33: 0 | AF33: 0 | AG33: 0 | AH33: 0 | AI33: 0 | AJ33: 0 | AK33: 0 | AL33: 0 | AM33: 0
D34: Cumulative value | E34: Кумулативна стойност | F34: Constant EUR | G34: Постоянни евро | J34: =+J33 -> 0 | K34: =IF(OR(K$4="Construction",K$4="Operation"),(K33+J34),0) -> 0 | L34: =IF(OR(L$4="Construction",L$4="Operation"),(L33+K34),0) -> 0 | M34: 0 | N34: 0 | O34: 0 | P34: 0 | Q34: 0 | R34: 0 | S34: 0 | T34: 0 | U34: 0 | V34: 0 | W34: 0 | X34: 0 | Y34: 0 | Z34: 0 | AA34: 0 | AB34: 0 | AC34: 0 | AD34: 0 | AE34: 0 | AF34: 0 | AG34: 0 | AH34: 0 | AI34: 0 | AJ34: 0 | AK34: 0 | AL34: 0 | AM34: =IF(OR(AM$4="Construction",AM$4="Operation"),(AM33+AL34),0) -> 0
D35: Book value | E35: Балансова стойност | F35: Constant EUR | G35: Постоянни евро | J35: =+J34 -> 0 | K35: =+K34 -> 0 | L35: 0 | M35: 0 | N35: 0 | O35: 0 | P35: 0 | Q35: 0 | R35: 0 | S35: 0 | T35: 0 | U35: 0 | V35: 0 | W35: 0 | X35: 0 | Y35: 0 | Z35: 0 | AA35: 0 | AB35: 0 | AC35: 0 | AD35: 0 | AE35: 0 | AF35: 0 | AG35: 0 | AH35: 0 | AI35: 0 | AJ35: 0 | AK35: 0 | AL35: 0 | AM35: =+AM34 -> 0
D37: TOTAL INVESTMENT | E37: ОБЩА ИНВЕСТИЦИЯ | I37: =+TEXT($J$3,"0")&"-"&TEXT($J$3+Input!$H$12-1,"0") -> 2020-2022
D38: Total investment | E38: Обща инвестиция | F38: Constant EUR | G38: Постоянни евро | I38: =SUM(OFFSET(J38,0,0,1,Input!$H$12)) ->  | J38: =+J13+J20+J27+J33 ->  | K38: =+K13+K20+K27+K33 ->  | L38: =+L13+L20+L27+L33 ->  | M38: 0 | N38: 0 | O38: 0 | P38: 0 | Q38: 0 | R38: 0 | S38: 0 | T38: 0 | U38: 0 | V38: 0 | W38: 0 | X38: 0 | Y38: 0 | Z38: 0 | AA38: 0 | AB38: 0 | AC38: 0 | AD38: 0 | AE38: 0 | AF38: 0 | AG38: 0 | AH38: 0 | AI38: 0 | AJ38: 0 | AK38: 0 | AL38: 0 | AM38: =+AM13+AM20+AM27+AM33 -> 0
D39: of which contingencies | E39: от които непредвидени | F39: Constant EUR | G39: Постоянни евро | J39: =FinStat!I38 ->  | K39: =(Input!K35+Input!O35)/(1+Input!$H$14)^(K3-Input!$H$11) ->  | L39: =(Input!L35+Input!P35)/(1+Input!$H$14)^(L3-Input!$H$11) ->  | M39: =IF(M$4="Construction",+(Input!J35+Input!#REF!)/(1+Input!$H$14)^(M3-(Input!$H$11-1)),IF(M$4="Operation",0)) -> 0 | N39: =IF(N$4="Construction",+(Input!K35+Input!#REF!)/(1+Input!$H$14)^(N3-(Input!$H$11-1)),IF(N$4="Operation",0)) -> 0 | O39: =IF(O$4="Construction",+(Input!L35+Input!#REF!)/(1+Input!$H$14)^(O3-(Input!$H$11-1)),IF(O$4="Operation",0)) -> 0 | P39: =IF(P$4="Construction",+(Input!M35+Input!#REF!)/(1+Input!$H$14)^(P3-(Input!$H$11-1)),IF(P$4="Operation",0)) -> 0 | Q39: =IF(Q$4="Construction",+(Input!N35+Input!Q35)/(1+Input!$H$14)^(Q3-(Input!$H$11-1)),IF(Q$4="Operation",0)) -> 0 | R39: =IF(R$4="Construction",+(Input!O35+Input!T35)/(1+Input!$H$14)^(R3-(Input!$H$11-1)),IF(R$4="Operation",0)) -> 0 | S39: =IF(S$4="Construction",+(Input!P35+Input!U35)/(1+Input!$H$14)^(S3-(Input!$H$11-1)),IF(S$4="Operation",0)) -> 0 | T39: =IF(T$4="Construction",+(Input!#REF!+Input!V35)/(1+Input!$H$14)^(T3-(Input!$H$11-1)),IF(T$4="Operation",0)) -> 0 | U39: =IF(U$4="Construction",+(Input!#REF!+Input!W35)/(1+Input!$H$14)^(U3-(Input!$H$11-1)),IF(U$4="Operation",0)) -> 0 | V39: =IF(V$4="Construction",+(Input!#REF!+Input!X35)/(1+Input!$H$14)^(V3-(Input!$H$11-1)),IF(V$4="Operation",0)) -> 0 | W39: =IF(W$4="Construction",+(Input!#REF!+Input!Y35)/(1+Input!$H$14)^(W3-(Input!$H$11-1)),IF(W$4="Operation",0)) -> FALSE | X39: =IF(X$4="Construction",+(Input!Q35+Input!Z35)/(1+Input!$H$14)^(X3-(Input!$H$11-1)),IF(X$4="Operation",0)) -> FALSE | Y39: =IF(Y$4="Construction",+(Input!T35+Input!AA35)/(1+Input!$H$14)^(Y3-(Input!$H$11-1)),IF(Y$4="Operation",0)) -> FALSE | Z39: =IF(Z$4="Construction",+(Input!U35+Input!AB35)/(1+Input!$H$14)^(Z3-(Input!$H$11-1)),IF(Z$4="Operation",0)) -> FALSE | AA39: =IF(AA$4="Construction",+(Input!V35+Input!AC35)/(1+Input!$H$14)^(AA3-(Input!$H$11-1)),IF(AA$4="Operation",0)) -> FALSE | AB39: =IF(AB$4="Construction",+(Input!W35+Input!AD35)/(1+Input!$H$14)^(AB3-(Input!$H$11-1)),IF(AB$4="Operation",0)) -> FALSE | AC39: =IF(AC$4="Construction",+(Input!X35+Input!#REF!)/(1+Input!$H$14)^(AC3-(Input!$H$11-1)),IF(AC$4="Operation",0)) -> FALSE | AD39: =IF(AD$4="Construction",+(Input!Y35+Input!#REF!)/(1+Input!$H$14)^(AD3-(Input!$H$11-1)),IF(AD$4="Operation",0)) -> FALSE | AE39: =IF(AE$4="Construction",+(Input!Z35+Input!#REF!)/(1+Input!$H$14)^(AE3-(Input!$H$11-1)),IF(AE$4="Operation",0)) -> FALSE | AF39: =IF(AF$4="Construction",+(Input!AA35+Input!#REF!)/(1+Input!$H$14)^(AF3-(Input!$H$11-1)),IF(AF$4="Operation",0)) -> FALSE | AG39: =IF(AG$4="Construction",+(Input!AB35+Input!#REF!)/(1+Input!$H$14)^(AG3-(Input!$H$11-1)),IF(AG$4="Operation",0)) -> FALSE | AH39: =IF(AH$4="Construction",+(Input!AC35+Input!AE35)/(1+Input!$H$14)^(AH3-(Input!$H$11-1)),IF(AH$4="Operation",0)) -> FALSE | AI39: =IF(AI$4="Construction",+(Input!AD35+Input!#REF!)/(1+Input!$H$14)^(AI3-(Input!$H$11-1)),IF(AI$4="Operation",0)) -> FALSE | AJ39: =IF(AJ$4="Construction",+(Input!#REF!+Input!AF35)/(1+Input!$H$14)^(AJ3-(Input!$H$11-1)),IF(AJ$4="Operation",0)) -> FALSE | AK39: =IF(AK$4="Construction",+(Input!#REF!+Input!#REF!)/(1+Input!$H$14)^(AK3-(Input!$H$11-1)),IF(AK$4="Operation",0)) -> FALSE | AL39: =IF(AL$4="Construction",+(Input!#REF!+Input!AG35)/(1+Input!$H$14)^(AL3-(Input!$H$11-1)),IF(AL$4="Operation",0)) -> FALSE | AM39: =IF(AM$4="Construction",+(Input!#REF!+Input!AH35)/(1+Input!$H$14)^(AM3-(Input!$H$11-1)),IF(AM$4="Operation",0)) -> FALSE
D40: Cumulative value | E40: Кумулативна стойност | F40: Constant EUR | G40: Постоянни евро | J40: =+J38 ->  | K40: =IF(OR(K$4="Construction",K$4="Operation"),(K38+J40),0) ->  | L40: =IF(OR(L$4="Construction",L$4="Operation"),(L38+K40),0) ->  | M40: =IF(OR(M$4="Construction",M$4="Operation"),(M38+L40),0) ->  | W40: 0 | X40: 0 | Y40: 0 | Z40: 0 | AA40: 0 | AB40: 0 | AC40: 0 | AD40: 0 | AE40: 0 | AF40: 0 | AG40: 0 | AH40: 0 | AI40: 0 | AJ40: 0 | AK40: 0 | AL40: 0 | AM40: 0
D41: Total depreciation and amortization | E41: Общо амортизации | F41: Constant EUR | G41: Постоянни евро | J41: =+J15+J22+J29 -> 0 | K41: 0 | L41: 0 | W41: 0 | X41: 0 | Y41: 0 | Z41: 0 | AA41: 0 | AB41: 0 | AC41: 0 | AD41: 0 | AE41: 0 | AF41: 0 | AG41: 0 | AH41: 0 | AI41: 0 | AJ41: 0 | AK41: 0 | AL41: 0 | AM41: 0
D42: Book value | E42: Балансова стойност | F42: Constant EUR | G42: Постоянни евро | J42: =J38-J41 ->  | K42: =J42+K38-K41 ->  | L42: =K42+L38-L41 ->  | M42: =L42+M38-M41 ->  | S42: =R42+S38-S41 -> 
E43: (*) включително пропорционално непредвидени разходи
D46: FINANCING GAP | E46: ФИНАНСОВ ДЕФИЦИТ
D50: Calculation of Discounted Investment Cost (DIC) | E50: Пресмятане на дисконтираните инвестиционни разходи | I50: =Input!H15 -> 0.04
D51: Total investment, excl.contingencies | E51: Общо инвестиции | F51: Constant EUR | G51: Постоянни евро | I51: =NPV(Input!$H$15,J51:AM51) ->  | J51: =+J38-J39 ->  | K51: =+K38-K39 ->  | L51: =+L38 ->  | M51: 0 | N51: 0 | O51: 0 | P51: 0 | Q51: 0 | R51: 0 | S51: 0 | T51: 0 | U51: 0 | V51: 0 | W51: 0 | X51: 0 | Y51: 0 | Z51: 0 | AA51: 0 | AB51: 0 | AC51: 0 | AD51: 0 | AE51: 0 | AF51: 0 | AG51: 0 | AH51: 0 | AI51: 0 | AJ51: 0 | AK51: 0 | AL51: 0 | AM51: 0
D52: DISCOUNTED INVESTMENT COST (DIC) | E52: ДИСКОНТИРАНИ ИНВЕСТИЦИОННИ РАЗХОДИ | F52: Constant EUR | G52: Постоянни EUR | I52: =NPV(Input!$H$15,J52:AM52) ->  | J52: =+J51 ->  | K52: =+K51 ->  | M52: 0 | N52: 0 | O52: 0 | P52: 0 | Q52: 0 | R52: 0 | S52: 0 | T52: 0 | U52: 0 | V52: 0 | W52: 0 | X52: 0 | Y52: 0 | Z52: 0 | AA52: 0 | AB52: 0 | AC52: 0 | AD52: 0 | AE52: 0 | AF52: 0 | AG52: 0 | AH52: 0 | AI52: 0 | AJ52: 0 | AK52: 0 | AL52: 0 | AM52: =+AM51 -> 0
D54: Calculation of Discounted Net Revenues (DNR) | E54: Изчисляване на Дисконтираните нетни приходи | I54: =I50 -> 0.04
D55: Revenues of project | E55: Приходи от проекта | F55: Constant EUR | G55: Постоянни евро | I55: =NPV($I$54,J55:AM55) ->  | J55: =#REF! ->  | K55: =#REF! ->  | L55: =#REF! ->  | M55: =#REF! ->  | N55: =#REF! ->  | O55: =#REF! ->  | P55: =#REF! ->  | Q55: =#REF! ->  | R55: =#REF! ->  | S55: =#REF! ->  | T55: =#REF! ->  | U55: =#REF! ->  | V55: =#REF! ->  | W55: =#REF! ->  | X55: =#REF! ->  | Y55: =#REF! ->  | Z55: =#REF! ->  | AA55: =#REF! ->  | AB55: =#REF! ->  | AC55: =#REF! ->  | AD55: =#REF! ->  | AE55: =#REF! ->  | AF55: =#REF! ->  | AG55: =#REF! ->  | AH55: =#REF! ->  | AI55: =#REF! ->  | AJ55: =#REF! ->  | AK55: =#REF! ->  | AL55: =#REF! ->  | AM55: =#REF! -> 
D56: O&M costs of project | E56: Разходи за експлоатация и поддръжка на проекта | F56: Constant EUR | G56: Постоянни евро | I56: =NPV($I$54,J56:AM56) ->  | J56: =-Разходи!I36 ->  | K56: =-Разходи!J36 ->  | L56: =-Разходи!K36 ->  | M56: =-Разходи!L36 ->  | N56: =-Разходи!M36 ->  | O56: =-Разходи!N36 ->  | P56: =-Разходи!O36 ->  | Q56: =-Разходи!P36 ->  | R56: =-Разходи!Q36 ->  | S56: =-Разходи!#REF! ->  | T56: =-Разходи!#REF! ->  | U56: =-Разходи!#REF! ->  | V56: =-Разходи!#REF! ->  | W56: =-Разходи!#REF! ->  | X56: =-Разходи!#REF! ->  | Y56: =-Разходи!#REF! ->  | Z56: =-Разходи!#REF! ->  | AA56: =-Разходи!#REF! ->  | AB56: =-Разходи!#REF! ->  | AC56: =-Разходи!#REF! ->  | AD56: =-Разходи!#REF! ->  | AE56: =-Разходи!#REF! ->  | AF56: =-Разходи!#REF! ->  | AG56: =-Разходи!#REF! ->  | AH56: =-Разходи!#REF! ->  | AI56: =-Разходи!#REF! ->  | AJ56: =-Разходи!#REF! ->  | AK56: =-Разходи!#REF! ->  | AL56: =-Разходи!#REF! ->  | AM56: =-Разходи!#REF! -> 
D57: Residual value of investments | E57: Остатъчна стойност на инвестициите | F57: Constant EUR | G57: Постоянни евро | I57: =NPV($I$54,J57:AM57) ->  | J57: 0 | K57: 0 | L57: 0 | M57: 0 | N57: 0 | O57: 0 | P57: 0 | Q57: 0 | R57: 0 | S57: 0 | T57: 0 | U57: 0 | V57: 0 | W57: 0 | X57: 0 | Y57: 0 | Z57: 0 | AA57: 0 | AB57: 0 | AC57: 0 | AD57: 0 | AE57: 0 | AF57: 0 | AG57: 0 | AH57: 0 | AI57: 0 | AJ57: 0 | AK57: 0 | AL57: 0 | AM57: =Разходи!#REF!+Разходи!#REF! -> 
D58: DISCOUNTED NET REVENUES (DNR) | E58: ДИСКОНТИРАНИ НЕТНИ ПРИХОДИ | F58: Constant EUR | G58: Постоянни EUR | I58: =SUM(I55:I57) ->  | J58: =SUM(J55:J57) -> 
D60: ELIGIBLE COST (EC, from project cost table): | E60: ДОПУСТИМИ РАЗХОДИ (ЕК, от таблицата за проектни разходи) | J60: =Input!I53 ->  | K60: =Input!I53-Calculation!J60 ->  | L60: =K60+K66+Input!M47 -> 
L61: =L60+J66+Input!H50=Input!H53 -> 
D62: ELIGIBLE EXPENDITURE (EE = DIC-DNR): | E62: ДОПУСТИМИ РАЗХОДИ ДИСКОНТИРАНИ | J62: =+I52-I58 -> 
D64: FUNDING GAP RATE (R = EE / DIC): | E64: ФИНАНСОВ ДЕФИЦИТ | J64: =IF(J62>I52,100%,J62/I52) ->  | K64: =K60+K66 ->  | L64: .
D66: DECISION AMOUNT (DA = R x EC): | E66: СУМА ПО РЕШЕНИЕТО | J66: =IF(J64>100%,J60,ROUND(J64*J60,0)) ->  | K66: . | L66: local co eligible | M66: .
D68: EU GRANT ( = DA x Max Co-Financing Rate): | E68: ФИНАНСИРАНЕ ОТ ЕС | J68: =+ROUND(J66*Input!H18,0) ->  | L68: national co | M68: =J68/Input!I53 -> 
D71: FRR/C | E71: ФНВ/И
D75: FRR/C (before Community assistance) | E75: ФНВ/И преди помощта от ЕС | I75: =Input!H15 -> 0.04
D76: Investment cost (with contingencies) | E76: Инвестиционни разходи (с непредвидените) | F76: Constant EUR | G76: Постоянни евро | I76: =NPV(Input!$H$15,J76:AM76) ->  | J76: =-J38 ->  | K76: =-K38 ->  | M76: 0 | N76: =-N38 -> 0 | O76: 0 | P76: 0 | Q76: 0 | R76: 0 | S76: 0 | T76: 0 | U76: 0 | V76: 0 | W76: 0 | X76: 0 | Y76: 0 | Z76: 0 | AA76: 0 | AB76: 0 | AC76: 0 | AD76: 0 | AE76: 0 | AF76: 0 | AG76: 0 | AH76: 0 | AI76: 0 | AJ76: 0 | AK76: 0 | AL76: 0 | AM76: =-AM38 -> 0
D77: Increase (decrease) fo WC | E77: Увеличаване (намаляване) на ОК | F77: Constant EUR | G77: Постоянни евро | I77: =NPV(Input!$H$15,J77:AM77) ->  | J77: =-FinStat!I77/(1+Input!$H$14)^(Calculation!J3-Input!$H$11) ->  | K77: =-FinStat!J77/(1+Input!$H$14)^(Calculation!K3-Input!$H$11) ->  | L77: =-FinStat!K77/(1+Input!$H$14)^(Calculation!L3-Input!$H$11) ->  | M77: =-FinStat!L77/(1+Input!$H$14)^(Calculation!M3-Input!$H$11) ->  | N77: =-FinStat!M77/(1+Input!$H$14)^(Calculation!N3-Input!$H$11) ->  | O77: =-FinStat!N77/(1+Input!$H$14)^(Calculation!O3-Input!$H$11) ->  | P77: =-FinStat!O77/(1+Input!$H$14)^(Calculation!P3-Input!$H$11) ->  | Q77: =-FinStat!P77/(1+Input!$H$14)^(Calculation!Q3-Input!$H$11) ->  | R77: =-FinStat!Q77/(1+Input!$H$14)^(Calculation!R3-Input!$H$11) ->  | S77: =-FinStat!R77/(1+Input!$H$14)^(Calculation!S3-Input!$H$11) ->  | T77: =-FinStat!S77/(1+Input!$H$14)^(Calculation!T3-Input!$H$11) ->  | U77: =-FinStat!T77/(1+Input!$H$14)^(Calculation!U3-Input!$H$11) ->  | V77: =-FinStat!U77/(1+Input!$H$14)^(Calculation!V3-Input!$H$11) ->  | W77: =-FinStat!V77/(1+Input!$H$14)^(Calculation!W3-Input!$H$11) ->  | X77: =-FinStat!W77/(1+Input!$H$14)^(Calculation!X3-Input!$H$11) ->  | Y77: =-FinStat!X77/(1+Input!$H$14)^(Calculation!Y3-Input!$H$11) ->  | Z77: =-FinStat!Y77/(1+Input!$H$14)^(Calculation!Z3-Input!$H$11) ->  | AA77: =-FinStat!Z77/(1+Input!$H$14)^(Calculation!AA3-Input!$H$11) ->  | AB77: =-FinStat!AA77/(1+Input!$H$14)^(Calculation!AB3-Input!$H$11) ->  | AC77: =-FinStat!AB77/(1+Input!$H$14)^(Calculation!AC3-Input!$H$11) ->  | AD77: =-FinStat!AC77/(1+Input!$H$14)^(Calculation!AD3-Input!$H$11) ->  | AE77: =-FinStat!AD77/(1+Input!$H$14)^(Calculation!AE3-Input!$H$11) ->  | AF77: =-FinStat!AE77/(1+Input!$H$14)^(Calculation!AF3-Input!$H$11) ->  | AG77: =-FinStat!AF77/(1+Input!$H$14)^(Calculation!AG3-Input!$H$11) ->  | AH77: =-FinStat!AG77/(1+Input!$H$14)^(Calculation!AH3-Input!$H$11) ->  | AI77: =-FinStat!AH77/(1+Input!$H$14)^(Calculation!AI3-Input!$H$11) ->  | AJ77: =-FinStat!AI77/(1+Input!$H$14)^(Calculation!AJ3-Input!$H$11) ->  | AK77: =-FinStat!AJ77/(1+Input!$H$14)^(Calculation!AK3-Input!$H$11) ->  | AL77: =-FinStat!AK77/(1+Input!$H$14)^(Calculation!AL3-Input!$H$11) ->  | AM77: =-FinStat!AL77/(1+Input!$H$14)^(Calculation!AM3-Input!$H$11) -> 
D78: Revenues | E78: Приходи | F78: Constant EUR | G78: Постоянни евро | I78: =NPV(Input!$H$15,J78:AM78) ->  | J78: =+J55 ->  | K78: =+K55 ->  | L78: =+L55 ->  | N78: =+N55 ->  | AM78: =+AM55 -> 
D79: O&M costs | E79: Разходи за експлоатация и поддръжка | F79: Constant EUR | G79: Постоянни евро | I79: =NPV(Input!$H$15,J79:AM79) ->  | J79: =+J56 ->  | K79: =+K56 ->  | L79: =+L56 ->  | M79: =+M56 ->  | N79: =+N56 ->  | O79: =+O56 -> 
D80: Income tax on operations | E80: Корпоративен данък | F80: Constant EUR | G80: Постоянни евро | I80: =NPV(Input!$H$15,J80:AM80) ->  | J80: =FinStat!I58/(1+Input!$H$14)^(Calculation!J3-Input!$H$11) ->  | K80: =FinStat!J58/(1+Input!$H$14)^(Calculation!K3-Input!$H$11) ->  | L80: =FinStat!K58/(1+Input!$H$14)^(Calculation!L3-Input!$H$11) ->  | M80: =FinStat!L58/(1+Input!$H$14)^(Calculation!M3-Input!$H$11) ->  | N80: =FinStat!M58/(1+Input!$H$14)^(Calculation!N3-Input!$H$11) ->  | O80: =FinStat!N58/(1+Input!$H$14)^(Calculation!O3-Input!$H$11) ->  | P80: =FinStat!O58/(1+Input!$H$14)^(Calculation!P3-Input!$H$11) ->  | Q80: =FinStat!P58/(1+Input!$H$14)^(Calculation!Q3-Input!$H$11) ->  | R80: =FinStat!Q58/(1+Input!$H$14)^(Calculation!R3-Input!$H$11) ->  | S80: =FinStat!R58/(1+Input!$H$14)^(Calculation!S3-Input!$H$11) ->  | T80: =FinStat!S58/(1+Input!$H$14)^(Calculation!T3-Input!$H$11) ->  | U80: =FinStat!T58/(1+Input!$H$14)^(Calculation!U3-Input!$H$11) ->  | V80: =FinStat!U58/(1+Input!$H$14)^(Calculation!V3-Input!$H$11) ->  | W80: =FinStat!V58/(1+Input!$H$14)^(Calculation!W3-Input!$H$11) ->  | X80: =FinStat!W58/(1+Input!$H$14)^(Calculation!X3-Input!$H$11) ->  | Y80: =FinStat!X58/(1+Input!$H$14)^(Calculation!Y3-Input!$H$11) ->  | Z80: =FinStat!Y58/(1+Input!$H$14)^(Calculation!Z3-Input!$H$11) ->  | AA80: =FinStat!Z58/(1+Input!$H$14)^(Calculation!AA3-Input!$H$11) ->  | AB80: =FinStat!AA58/(1+Input!$H$14)^(Calculation!AB3-Input!$H$11) ->  | AC80: =FinStat!AB58/(1+Input!$H$14)^(Calculation!AC3-Input!$H$11) ->  | AD80: =FinStat!AC58/(1+Input!$H$14)^(Calculation!AD3-Input!$H$11) ->  | AE80: =FinStat!AD58/(1+Input!$H$14)^(Calculation!AE3-Input!$H$11) ->  | AF80: =FinStat!AE58/(1+Input!$H$14)^(Calculation!AF3-Input!$H$11) ->  | AG80: =FinStat!AF58/(1+Input!$H$14)^(Calculation!AG3-Input!$H$11) ->  | AH80: =FinStat!AG58/(1+Input!$H$14)^(Calculation!AH3-Input!$H$11) ->  | AI80: =FinStat!AH58/(1+Input!$H$14)^(Calculation!AI3-Input!$H$11) ->  | AJ80: =FinStat!AI58/(1+Input!$H$14)^(Calculation!AJ3-Input!$H$11) ->  | AK80: =FinStat!AJ58/(1+Input!$H$14)^(Calculation!AK3-Input!$H$11) ->  | AL80: =FinStat!AK58/(1+Input!$H$14)^(Calculation!AL3-Input!$H$11) ->  | AM80: =FinStat!AL58/(1+Input!$H$14)^(Calculation!AM3-Input!$H$11) -> 
D81: Residual value of investments | E81: Остатъчна стойност на инвестициите | F81: Constant EUR | G81: Постоянни евро | I81: =NPV(Input!$H$15,J81:AM81) ->  | J81: =+J57 -> 0 | K81: 0 | L81: 0 | M81: 0 | N81: 0 | O81: 0 | P81: 0 | Q81: 0 | R81: 0 | S81: 0 | T81: 0 | U81: 0 | V81: 0 | W81: 0 | X81: 0 | Y81: 0 | Z81: 0 | AA81: 0 | AB81: 0 | AC81: 0 | AD81: 0 | AE81: 0 | AF81: 0 | AG81: 0 | AH81: 0 | AI81: 0 | AJ81: 0 | AK81: 0 | AL81: 0
D82: CASH FLOW OF PROJECT | E82: Паричен поток на проекта | F82: Constant EUR | G82: Постоянни евро | I82: =NPV(Input!$H$15,J82:AM82) ->  | J82: =SUM(J76:J81) -> 
D83: CUMULATIVE PROJECT CASH-FLOW | E83: Акумулиран паричен поток на проекта | F83: Constant EUR | G83: Постоянни евро | J83: =J82 ->  | K83: =J83+K82 -> 
D86: FRR/C | E86: ФНВ/И | J86: =IRR(J82:AM82,-0.6) -> 
D88: PBP/C | E88: Период на възвръщаемост на инвестицията | I88: more than | J88: =COUNTIF(J83:AM83,"<0")-Input!H12+1 -> -2
D91: FRR/K | E91: ФНВ/К
D95: FRR/K (after Community assistance) | E95: ФНВ/К преди помощта от ЕС | I95: =I75 -> 0.04
D96: Revenues | E96: Приходи | F96: Constant EUR | G96: Постоянни евро | I96: =NPV(Input!$H$15,J96:AM96) ->  | J96: =J55 -> 
D97: Residual value of investments | E97: Остатъчна стойност на инвестициите | F97: Constant EUR | G97: Постоянни евро | I97: =NPV(Input!$H$15,J97:AM97) ->  | J97: =J81 -> 0 | K97: 0 | L97: 0 | M97: 0 | N97: 0 | O97: 0 | P97: 0 | Q97: 0 | R97: 0 | S97: 0 | T97: 0 | U97: 0 | V97: 0 | W97: 0 | X97: 0 | Y97: 0 | Z97: 0 | AA97: 0 | AB97: 0 | AC97: 0 | AD97: 0 | AE97: 0 | AF97: 0 | AG97: 0 | AH97: 0 | AI97: 0 | AJ97: 0 | AK97: 0 | AL97: 0
D98: O&M costs | E98: Разходи за експлоатация и поддръжка | F98: Constant EUR | G98: Постоянни евро | I98: =NPV(Input!$H$15,J98:AM98) ->  | J98: =J56 -> 
D99: Local Contribution | E99: Местно финансиране | F99: Constant EUR | G99: Постоянни евро | I99: =NPV(Input!$H$15,J99:AM99) -> 0 | J99: 0 | K99: 0 | L99: 0 | M99: 0 | N99: 0 | O99: 0 | P99: 0 | Q99: 0 | R99: 0 | S99: 0 | T99: 0 | U99: 0 | V99: 0 | W99: 0 | X99: 0 | Y99: 0 | Z99: 0 | AA99: 0 | AB99: 0 | AC99: 0 | AD99: 0 | AE99: 0 | AF99: 0 | AG99: 0 | AH99: 0 | AI99: 0 | AJ99: 0 | AK99: 0 | AL99: 0 | AM99: 0
D100: National Contribution | E100: Централно финансиране | F100: Constant EUR | G100: Постоянни евро | I100: =NPV(Input!$H$15,J100:AM100) ->  | J100: =-FinSust!H17*1000/(1+Input!$H$14)^(Calculation!J3-Input!$H$11) ->  | K100: =-FinSust!I17*1000/(1+Input!$H$14)^(Calculation!K3-Input!$H$11) ->  | L100: =-FinSust!J17*1000/(1+Input!$H$14)^(Calculation!L3-Input!$H$11) ->  | M100: =-FinSust!K17*1000/(1+Input!$H$14)^(Calculation!M3-Input!$H$11) ->  | N100: =-FinSust!L17*1000/(1+Input!$H$14)^(Calculation!N3-Input!$H$11) ->  | O100: =-FinSust!M17*1000/(1+Input!$H$14)^(Calculation!O3-Input!$H$11) ->  | P100: =-FinSust!N17*1000/(1+Input!$H$14)^(Calculation!P3-Input!$H$11) ->  | Q100: =-FinSust!O17*1000/(1+Input!$H$14)^(Calculation!Q3-Input!$H$11) ->  | R100: =-FinSust!P17*1000/(1+Input!$H$14)^(Calculation!R3-Input!$H$11) ->  | S100: =-FinSust!Q17*1000/(1+Input!$H$14)^(Calculation!S3-Input!$H$11) ->  | T100: =-FinSust!R17*1000/(1+Input!$H$14)^(Calculation!T3-Input!$H$11) ->  | U100: =-FinSust!S17*1000/(1+Input!$H$14)^(Calculation!U3-Input!$H$11) ->  | V100: =-FinSust!T17*1000/(1+Input!$H$14)^(Calculation!V3-Input!$H$11) ->  | W100: =-FinSust!U17*1000/(1+Input!$H$14)^(Calculation!W3-Input!$H$11) ->  | X100: =-FinSust!V17*1000/(1+Input!$H$14)^(Calculation!X3-Input!$H$11) ->  | Y100: =-FinSust!W17*1000/(1+Input!$H$14)^(Calculation!Y3-Input!$H$11) ->  | Z100: =-FinSust!X17*1000/(1+Input!$H$14)^(Calculation!Z3-Input!$H$11) ->  | AA100: =-FinSust!Y17*1000/(1+Input!$H$14)^(Calculation!AA3-Input!$H$11) ->  | AB100: =-FinSust!Z17*1000/(1+Input!$H$14)^(Calculation!AB3-Input!$H$11) ->  | AC100: =-FinSust!AA17*1000/(1+Input!$H$14)^(Calculation!AC3-Input!$H$11) ->  | AD100: =-FinSust!AB17*1000/(1+Input!$H$14)^(Calculation!AD3-Input!$H$11) ->  | AE100: =-FinSust!AC17*1000/(1+Input!$H$14)^(Calculation!AE3-Input!$H$11) ->  | AF100: =-FinSust!AD17*1000/(1+Input!$H$14)^(Calculation!AF3-Input!$H$11) ->  | AG100: =-FinSust!AE17*1000/(1+Input!$H$14)^(Calculation!AG3-Input!$H$11) ->  | AH100: =-FinSust!AF17*1000/(1+Input!$H$14)^(Calculation!AH3-Input!$H$11) ->  | AI100: =-FinSust!AG17*1000/(1+Input!$H$14)^(Calculation!AI3-Input!$H$11) ->  | AJ100: =-FinSust!AH17*1000/(1+Input!$H$14)^(Calculation!AJ3-Input!$H$11) ->  | AK100: =-FinSust!AI17*1000/(1+Input!$H$14)^(Calculation!AK3-Input!$H$11) ->  | AL100: =-FinSust!AJ17*1000/(1+Input!$H$14)^(Calculation!AL3-Input!$H$11) ->  | AM100: =-FinSust!AK17*1000/(1+Input!$H$14)^(Calculation!AM3-Input!$H$11) -> 
D101: CASH-FLOW after community assistance | E101: Паричен поток на проекта след финансиране от ЕС | F101: Constant EUR | G101: Постоянни евро | I101: =NPV(Input!$H$15,J101:AM101) ->  | J101: =SUM(J96:J100) -> 
D102: CUMULATIVE CASH-FLOW | E102: Акумулиран паричен поток на проекта след финансиране от ЕС | F102: Constant EUR | G102: Постоянни евро | J102: =J101 ->  | K102: =J102+K101 -> 
D104: FRR/K | E104: ФНВ/К след финансиране от ЕС | J104: =IRR(J101:AM101,-0.2) -> 
D106: PBP/K | E106: Период на възвръщаемост на капитала след финансиране от общността | J106: =COUNTIF(J102:AM102,"<0")-Input!H12+1 -> -2
D109: ERR | E109: ИНВ
D113: Economic Benefits (Costs) | E113: Икономически ползи (разходи) | I113: =Input!H16 -> 0.05
D114: =+Input!#REF! ->  | E114: Цена на времето | F114: Constant EUR | G114: Постоянни евро | I114: =NPV(Input!$H$16,J114:AM114) ->  | J114: =IF(OR(J$4="Construction",J$4="Operation"),+Input!#REF!,0) ->  | K114: =IF(OR(K$4="Construction",K$4="Operation"),+Input!#REF!,0) ->  | L114: =IF(OR(L$4="Construction",L$4="Operation"),+Input!#REF!,0) ->  | M114: =IF(OR(M$4="Construction",M$4="Operation"),+Input!#REF!,0) ->  | N114: =IF(OR(N$4="Construction",N$4="Operation"),+Input!#REF!,0) ->  | O114: =IF(OR(O$4="Construction",O$4="Operation"),+Input!#REF!,0) ->  | P114: =IF(OR(P$4="Construction",P$4="Operation"),+Input!#REF!,0) ->  | Q114: =IF(OR(Q$4="Construction",Q$4="Operation"),+Input!#REF!,0) ->  | R114: =IF(OR(R$4="Construction",R$4="Operation"),+Input!#REF!,0) ->  | S114: =IF(OR(S$4="Construction",S$4="Operation"),+Input!#REF!,0) ->  | T114: =IF(OR(T$4="Construction",T$4="Operation"),+Input!#REF!,0) ->  | U114: =IF(OR(U$4="Construction",U$4="Operation"),+Input!#REF!,0) ->  | V114: =IF(OR(V$4="Construction",V$4="Operation"),+Input!#REF!,0) ->  | W114: =IF(OR(W$4="Construction",W$4="Operation"),+Input!#REF!,0) -> 0 | X114: =IF(OR(X$4="Construction",X$4="Operation"),+Input!#REF!,0) -> 0 | Y114: =IF(OR(Y$4="Construction",Y$4="Operation"),+Input!#REF!,0) -> 0 | Z114: =IF(OR(Z$4="Construction",Z$4="Operation"),+Input!#REF!,0) -> 0 | AA114: =IF(OR(AA$4="Construction",AA$4="Operation"),+Input!#REF!,0) -> 0 | AB114: =IF(OR(AB$4="Construction",AB$4="Operation"),+Input!#REF!,0) -> 0 | AC114: =IF(OR(AC$4="Construction",AC$4="Operation"),+Input!#REF!,0) -> 0 | AD114: =IF(OR(AD$4="Construction",AD$4="Operation"),+Input!#REF!,0) -> 0 | AE114: =IF(OR(AE$4="Construction",AE$4="Operation"),+Input!#REF!,0) -> 0 | AF114: =IF(OR(AF$4="Construction",AF$4="Operation"),+Input!#REF!,0) -> 0 | AG114: =IF(OR(AG$4="Construction",AG$4="Operation"),+Input!#REF!,0) -> 0 | AH114: =IF(OR(AH$4="Construction",AH$4="Operation"),+Input!#REF!,0) -> 0 | AI114: =IF(OR(AI$4="Construction",AI$4="Operation"),+Input!#REF!,0) -> 0 | AJ114: =IF(OR(AJ$4="Construction",AJ$4="Operation"),+Input!#REF!,0) -> 0 | AK114: =IF(OR(AK$4="Construction",AK$4="Operation"),+Input!#REF!,0) -> 0 | AL114: =IF(OR(AL$4="Construction",AL$4="Operation"),+Input!#REF!,0) -> 0 | AM114: =IF(OR(AM$4="Construction",AM$4="Operation"),+Input!#REF!,0) -> 0
D115: =+Input!#REF! ->  | E115: Ползи от увеличение икономическата активност | F115: Constant EUR | G115: Постоянни евро | I115: =NPV(Input!$H$16,J115:AM115) -> 0 | J115: =EconomicBenefits!J37 -> 0 | K115: =EconomicBenefits!K37 -> 0 | L115: =EconomicBenefits!L37 -> 0 | M115: =EconomicBenefits!M37 -> 0 | N115: =EconomicBenefits!N37 -> 0 | O115: =EconomicBenefits!O37 -> 0 | P115: =EconomicBenefits!P37 -> 0 | Q115: =EconomicBenefits!Q37 -> 0 | R115: =EconomicBenefits!R37 -> 0 | S115: =EconomicBenefits!S37 -> 0 | T115: =EconomicBenefits!T37 -> 0 | U115: =EconomicBenefits!U37 -> 0 | V115: =EconomicBenefits!V37 -> 0 | W115: =EconomicBenefits!W37 -> 0 | X115: =EconomicBenefits!X37 -> 0 | Y115: =EconomicBenefits!Y37 -> 0 | Z115: =EconomicBenefits!Z37 -> 0 | AA115: =EconomicBenefits!AA37 -> 0 | AB115: =EconomicBenefits!AB37 -> 0 | AC115: =EconomicBenefits!AC37 -> 0 | AD115: =EconomicBenefits!AD37 -> 0 | AE115: =EconomicBenefits!AE37 -> 0 | AF115: =EconomicBenefits!AF37 -> 0 | AG115: =EconomicBenefits!AG37 -> 0 | AH115: =EconomicBenefits!AH37 -> 0 | AI115: =EconomicBenefits!AI37 -> 0 | AJ115: =EconomicBenefits!AJ37 -> 0 | AK115: =EconomicBenefits!AK37 -> 0 | AL115: =EconomicBenefits!AL37 -> 0 | AM115: =EconomicBenefits!AM37 -> 0
D116: =+Input!#REF! ->  | E116: Ползи от намалявенe на емисиите | F116: Constant EUR | G116: Постоянни евро | I116: =NPV(Input!$H$16,J116:AM116) ->  | J116: =IF(OR(J$4="Construction",J$4="Operation"),+Input!#REF!,0) ->  | K116: =IF(OR(K$4="Construction",K$4="Operation"),+Input!#REF!,0) ->  | L116: =IF(OR(L$4="Construction",L$4="Operation"),+Input!#REF!,0) ->  | M116: =IF(OR(M$4="Construction",M$4="Operation"),+Input!#REF!,0) ->  | N116: =IF(OR(N$4="Construction",N$4="Operation"),+Input!#REF!,0) ->  | O116: =IF(OR(O$4="Construction",O$4="Operation"),+Input!#REF!,0) ->  | P116: =IF(OR(P$4="Construction",P$4="Operation"),+Input!#REF!,0) ->  | Q116: =IF(OR(Q$4="Construction",Q$4="Operation"),+Input!#REF!,0) ->  | R116: =IF(OR(R$4="Construction",R$4="Operation"),+Input!#REF!,0) ->  | S116: =IF(OR(S$4="Construction",S$4="Operation"),+Input!#REF!,0) ->  | T116: =IF(OR(T$4="Construction",T$4="Operation"),+Input!#REF!,0) ->  | U116: =IF(OR(U$4="Construction",U$4="Operation"),+Input!#REF!,0) ->  | V116: =IF(OR(V$4="Construction",V$4="Operation"),+Input!#REF!,0) ->  | W116: =IF(OR(W$4="Construction",W$4="Operation"),+Input!#REF!,0) -> 0 | X116: =IF(OR(X$4="Construction",X$4="Operation"),+Input!#REF!,0) -> 0 | Y116: =IF(OR(Y$4="Construction",Y$4="Operation"),+Input!#REF!,0) -> 0 | Z116: =IF(OR(Z$4="Construction",Z$4="Operation"),+Input!#REF!,0) -> 0 | AA116: =IF(OR(AA$4="Construction",AA$4="Operation"),+Input!#REF!,0) -> 0 | AB116: =IF(OR(AB$4="Construction",AB$4="Operation"),+Input!#REF!,0) -> 0 | AC116: =IF(OR(AC$4="Construction",AC$4="Operation"),+Input!#REF!,0) -> 0 | AD116: =IF(OR(AD$4="Construction",AD$4="Operation"),+Input!#REF!,0) -> 0 | AE116: =IF(OR(AE$4="Construction",AE$4="Operation"),+Input!#REF!,0) -> 0 | AF116: =IF(OR(AF$4="Construction",AF$4="Operation"),+Input!#REF!,0) -> 0 | AG116: =IF(OR(AG$4="Construction",AG$4="Operation"),+Input!#REF!,0) -> 0 | AH116: =IF(OR(AH$4="Construction",AH$4="Operation"),+Input!#REF!,0) -> 0 | AI116: =IF(OR(AI$4="Construction",AI$4="Operation"),+Input!#REF!,0) -> 0 | AJ116: =IF(OR(AJ$4="Construction",AJ$4="Operation"),+Input!#REF!,0) -> 0 | AK116: =IF(OR(AK$4="Construction",AK$4="Operation"),+Input!#REF!,0) -> 0 | AL116: =IF(OR(AL$4="Construction",AL$4="Operation"),+Input!#REF!,0) -> 0 | AM116: =IF(OR(AM$4="Construction",AM$4="Operation"),+Input!#REF!,0) -> 0
D117: TOTAL ECONOMIC BENEFITS (COSTS) | E117: ОБЩО ИКОНОМИЧЕСКИ ПОЛЗИ (РАЗХОДИ) | F117: Constant EUR | G117: Постоянни евро | I117: =NPV(Input!$H$16,J117:AM117) ->  | J117: =SUM(J114:J116) ->  | W117: 0 | X117: 0 | Y117: 0 | Z117: 0 | AA117: 0 | AB117: 0 | AC117: 0 | AD117: 0 | AE117: 0 | AF117: 0 | AG117: 0 | AH117: 0 | AI117: 0 | AJ117: 0 | AK117: 0 | AL117: 0 | AM117: 0
D119: Investment Costs Economic | E119: Икономически разходи (Инвестиции) | I119: =I113 -> 0.05
D120: =+Input!#REF! ->  | E120: Търгуеми стоки | F120: Constant EUR | G120: Постоянни евро | I120: =NPV(Input!$H$16,J120:AM120) ->  | J120: =+ROUND(Input!#REF!*(J$76+J$77+J$81)*Input!#REF!,0) ->  | K120: =+ROUND(Input!#REF!*(K$76+K$77+K$81)*Input!#REF!,0) ->  | L120: =+ROUND(Input!#REF!*(L$76+L$77+L$81)*Input!#REF!,0) ->  | M120: =+ROUND(Input!#REF!*(M$76+M$77+M$81)*Input!#REF!,0) ->  | N120: =+ROUND(Input!#REF!*(N$76+N$77+N$81)*Input!#REF!,0) ->  | O120: =+ROUND(Input!#REF!*(O$76+O$77+O$81)*Input!#REF!,0) ->  | P120: =+ROUND(Input!#REF!*(P$76+P$77+P$81)*Input!#REF!,0) ->  | Q120: =+ROUND(Input!#REF!*(Q$76+Q$77+Q$81)*Input!#REF!,0) ->  | R120: =+ROUND(Input!#REF!*(R$76+R$77+R$81)*Input!#REF!,0) ->  | S120: =+ROUND(Input!#REF!*(S$76+S$77+S$81)*Input!#REF!,0) ->  | T120: =+ROUND(Input!#REF!*(T$76+T$77+T$81)*Input!#REF!,0) ->  | U120: =+ROUND(Input!#REF!*(U$76+U$77+U$81)*Input!#REF!,0) ->  | V120: =+ROUND(Input!#REF!*(V$76+V$77+V$81)*Input!#REF!,0) ->  | W120: =+ROUND(Input!#REF!*(W$76+W$77+W$81)*Input!#REF!,0) ->  | X120: =+ROUND(Input!#REF!*(X$76+X$77+X$81)*Input!#REF!,0) ->  | Y120: =+ROUND(Input!#REF!*(Y$76+Y$77+Y$81)*Input!#REF!,0) ->  | Z120: =+ROUND(Input!#REF!*(Z$76+Z$77+Z$81)*Input!#REF!,0) ->  | AA120: =+ROUND(Input!#REF!*(AA$76+AA$77+AA$81)*Input!#REF!,0) ->  | AB120: =+ROUND(Input!#REF!*(AB$76+AB$77+AB$81)*Input!#REF!,0) ->  | AC120: =+ROUND(Input!#REF!*(AC$76+AC$77+AC$81)*Input!#REF!,0) ->  | AD120: =+ROUND(Input!#REF!*(AD$76+AD$77+AD$81)*Input!#REF!,0) ->  | AE120: =+ROUND(Input!#REF!*(AE$76+AE$77+AE$81)*Input!#REF!,0) ->  | AF120: =+ROUND(Input!#REF!*(AF$76+AF$77+AF$81)*Input!#REF!,0) ->  | AG120: =+ROUND(Input!#REF!*(AG$76+AG$77+AG$81)*Input!#REF!,0) ->  | AH120: =+ROUND(Input!#REF!*(AH$76+AH$77+AH$81)*Input!#REF!,0) ->  | AI120: =+ROUND(Input!#REF!*(AI$76+AI$77+AI$81)*Input!#REF!,0) ->  | AJ120: =+ROUND(Input!#REF!*(AJ$76+AJ$77+AJ$81)*Input!#REF!,0) ->  | AK120: =+ROUND(Input!#REF!*(AK$76+AK$77+AK$81)*Input!#REF!,0) ->  | AL120: =+ROUND(Input!#REF!*(AL$76+AL$77+AL$81)*Input!#REF!,0) ->  | AM120: =+ROUND(Input!#REF!*(AM$76+AM$77+AM$81)*Input!#REF!,0) -> 
D121: =+Input!#REF! ->  | E121: Нетъргуеми стоки | F121: Constant EUR | G121: Постоянни евро | I121: =NPV(Input!$H$16,J121:AM121) ->  | J121: =+ROUND(Input!#REF!*(J$76+J$77+J$81)*Input!#REF!,0) ->  | K121: =+ROUND(Input!#REF!*(K$76+K$77+K$81)*Input!#REF!,0) ->  | L121: =+ROUND(Input!#REF!*(L$76+L$77+L$81)*Input!#REF!,0) ->  | M121: =+ROUND(Input!#REF!*(M$76+M$77+M$81)*Input!#REF!,0) ->  | N121: =+ROUND(Input!#REF!*(N$76+N$77+N$81)*Input!#REF!,0) ->  | O121: =+ROUND(Input!#REF!*(O$76+O$77+O$81)*Input!#REF!,0) ->  | P121: =+ROUND(Input!#REF!*(P$76+P$77+P$81)*Input!#REF!,0) ->  | Q121: =+ROUND(Input!#REF!*(Q$76+Q$77+Q$81)*Input!#REF!,0) ->  | R121: =+ROUND(Input!#REF!*(R$76+R$77+R$81)*Input!#REF!,0) ->  | S121: =+ROUND(Input!#REF!*(S$76+S$77+S$81)*Input!#REF!,0) ->  | T121: =+ROUND(Input!#REF!*(T$76+T$77+T$81)*Input!#REF!,0) ->  | U121: =+ROUND(Input!#REF!*(U$76+U$77+U$81)*Input!#REF!,0) ->  | V121: =+ROUND(Input!#REF!*(V$76+V$77+V$81)*Input!#REF!,0) ->  | W121: =+ROUND(Input!#REF!*(W$76+W$77+W$81)*Input!#REF!,0) ->  | X121: =+ROUND(Input!#REF!*(X$76+X$77+X$81)*Input!#REF!,0) ->  | Y121: =+ROUND(Input!#REF!*(Y$76+Y$77+Y$81)*Input!#REF!,0) ->  | Z121: =+ROUND(Input!#REF!*(Z$76+Z$77+Z$81)*Input!#REF!,0) ->  | AA121: =+ROUND(Input!#REF!*(AA$76+AA$77+AA$81)*Input!#REF!,0) ->  | AB121: =+ROUND(Input!#REF!*(AB$76+AB$77+AB$81)*Input!#REF!,0) ->  | AC121: =+ROUND(Input!#REF!*(AC$76+AC$77+AC$81)*Input!#REF!,0) ->  | AD121: =+ROUND(Input!#REF!*(AD$76+AD$77+AD$81)*Input!#REF!,0) ->  | AE121: =+ROUND(Input!#REF!*(AE$76+AE$77+AE$81)*Input!#REF!,0) ->  | AF121: =+ROUND(Input!#REF!*(AF$76+AF$77+AF$81)*Input!#REF!,0) ->  | AG121: =+ROUND(Input!#REF!*(AG$76+AG$77+AG$81)*Input!#REF!,0) ->  | AH121: =+ROUND(Input!#REF!*(AH$76+AH$77+AH$81)*Input!#REF!,0) ->  | AI121: =+ROUND(Input!#REF!*(AI$76+AI$77+AI$81)*Input!#REF!,0) ->  | AJ121: =+ROUND(Input!#REF!*(AJ$76+AJ$77+AJ$81)*Input!#REF!,0) ->  | AK121: =+ROUND(Input!#REF!*(AK$76+AK$77+AK$81)*Input!#REF!,0) ->  | AL121: =+ROUND(Input!#REF!*(AL$76+AL$77+AL$81)*Input!#REF!,0) ->  | AM121: =+ROUND(Input!#REF!*(AM$76+AM$77+AM$81)*Input!#REF!,0) -> 
D122: =+Input!#REF! ->  | E122: Квалифициран труд | F122: Constant EUR | G122: Постоянни евро | I122: =NPV(Input!$H$16,J122:AM122) ->  | J122: =+ROUND(Input!#REF!*(J$76+J$77+J$81)*Input!#REF!,0) ->  | K122: =+ROUND(Input!#REF!*(K$76+K$77+K$81)*Input!#REF!,0) ->  | L122: =+ROUND(Input!#REF!*(L$76+L$77+L$81)*Input!#REF!,0) ->  | M122: =+ROUND(Input!#REF!*(M$76+M$77+M$81)*Input!#REF!,0) ->  | N122: =+ROUND(Input!#REF!*(N$76+N$77+N$81)*Input!#REF!,0) ->  | O122: =+ROUND(Input!#REF!*(O$76+O$77+O$81)*Input!#REF!,0) ->  | P122: =+ROUND(Input!#REF!*(P$76+P$77+P$81)*Input!#REF!,0) ->  | Q122: =+ROUND(Input!#REF!*(Q$76+Q$77+Q$81)*Input!#REF!,0) ->  | R122: =+ROUND(Input!#REF!*(R$76+R$77+R$81)*Input!#REF!,0) ->  | S122: =+ROUND(Input!#REF!*(S$76+S$77+S$81)*Input!#REF!,0) ->  | T122: =+ROUND(Input!#REF!*(T$76+T$77+T$81)*Input!#REF!,0) ->  | U122: =+ROUND(Input!#REF!*(U$76+U$77+U$81)*Input!#REF!,0) ->  | V122: =+ROUND(Input!#REF!*(V$76+V$77+V$81)*Input!#REF!,0) ->  | W122: =+ROUND(Input!#REF!*(W$76+W$77+W$81)*Input!#REF!,0) ->  | X122: =+ROUND(Input!#REF!*(X$76+X$77+X$81)*Input!#REF!,0) ->  | Y122: =+ROUND(Input!#REF!*(Y$76+Y$77+Y$81)*Input!#REF!,0) ->  | Z122: =+ROUND(Input!#REF!*(Z$76+Z$77+Z$81)*Input!#REF!,0) ->  | AA122: =+ROUND(Input!#REF!*(AA$76+AA$77+AA$81)*Input!#REF!,0) ->  | AB122: =+ROUND(Input!#REF!*(AB$76+AB$77+AB$81)*Input!#REF!,0) ->  | AC122: =+ROUND(Input!#REF!*(AC$76+AC$77+AC$81)*Input!#REF!,0) ->  | AD122: =+ROUND(Input!#REF!*(AD$76+AD$77+AD$81)*Input!#REF!,0) ->  | AE122: =+ROUND(Input!#REF!*(AE$76+AE$77+AE$81)*Input!#REF!,0) ->  | AF122: =+ROUND(Input!#REF!*(AF$76+AF$77+AF$81)*Input!#REF!,0) ->  | AG122: =+ROUND(Input!#REF!*(AG$76+AG$77+AG$81)*Input!#REF!,0) ->  | AH122: =+ROUND(Input!#REF!*(AH$76+AH$77+AH$81)*Input!#REF!,0) ->  | AI122: =+ROUND(Input!#REF!*(AI$76+AI$77+AI$81)*Input!#REF!,0) ->  | AJ122: =+ROUND(Input!#REF!*(AJ$76+AJ$77+AJ$81)*Input!#REF!,0) ->  | AK122: =+ROUND(Input!#REF!*(AK$76+AK$77+AK$81)*Input!#REF!,0) ->  | AL122: =+ROUND(Input!#REF!*(AL$76+AL$77+AL$81)*Input!#REF!,0) ->  | AM122: =+ROUND(Input!#REF!*(AM$76+AM$77+AM$81)*Input!#REF!,0) -> 
D123: =+Input!#REF! ->  | E123: Неквалифициран труд | F123: Constant EUR | G123: Постоянни евро | I123: =NPV(Input!$H$16,J123:AM123) ->  | J123: =+ROUND(Input!#REF!*(J$76+J$77+J$81)*Input!#REF!,0) ->  | K123: =+ROUND(Input!#REF!*(K$76+K$77+K$81)*Input!#REF!,0) ->  | L123: =+ROUND(Input!#REF!*(L$76+L$77+L$81)*Input!#REF!,0) ->  | M123: =+ROUND(Input!#REF!*(M$76+M$77+M$81)*Input!#REF!,0) ->  | N123: =+ROUND(Input!#REF!*(N$76+N$77+N$81)*Input!#REF!,0) ->  | O123: =+ROUND(Input!#REF!*(O$76+O$77+O$81)*Input!#REF!,0) ->  | P123: =+ROUND(Input!#REF!*(P$76+P$77+P$81)*Input!#REF!,0) ->  | Q123: =+ROUND(Input!#REF!*(Q$76+Q$77+Q$81)*Input!#REF!,0) ->  | R123: =+ROUND(Input!#REF!*(R$76+R$77+R$81)*Input!#REF!,0) ->  | S123: =+ROUND(Input!#REF!*(S$76+S$77+S$81)*Input!#REF!,0) ->  | T123: =+ROUND(Input!#REF!*(T$76+T$77+T$81)*Input!#REF!,0) ->  | U123: =+ROUND(Input!#REF!*(U$76+U$77+U$81)*Input!#REF!,0) ->  | V123: =+ROUND(Input!#REF!*(V$76+V$77+V$81)*Input!#REF!,0) ->  | W123: =+ROUND(Input!#REF!*(W$76+W$77+W$81)*Input!#REF!,0) ->  | X123: =+ROUND(Input!#REF!*(X$76+X$77+X$81)*Input!#REF!,0) ->  | Y123: =+ROUND(Input!#REF!*(Y$76+Y$77+Y$81)*Input!#REF!,0) ->  | Z123: =+ROUND(Input!#REF!*(Z$76+Z$77+Z$81)*Input!#REF!,0) ->  | AA123: =+ROUND(Input!#REF!*(AA$76+AA$77+AA$81)*Input!#REF!,0) ->  | AB123: =+ROUND(Input!#REF!*(AB$76+AB$77+AB$81)*Input!#REF!,0) ->  | AC123: =+ROUND(Input!#REF!*(AC$76+AC$77+AC$81)*Input!#REF!,0) ->  | AD123: =+ROUND(Input!#REF!*(AD$76+AD$77+AD$81)*Input!#REF!,0) ->  | AE123: =+ROUND(Input!#REF!*(AE$76+AE$77+AE$81)*Input!#REF!,0) ->  | AF123: =+ROUND(Input!#REF!*(AF$76+AF$77+AF$81)*Input!#REF!,0) ->  | AG123: =+ROUND(Input!#REF!*(AG$76+AG$77+AG$81)*Input!#REF!,0) ->  | AH123: =+ROUND(Input!#REF!*(AH$76+AH$77+AH$81)*Input!#REF!,0) ->  | AI123: =+ROUND(Input!#REF!*(AI$76+AI$77+AI$81)*Input!#REF!,0) ->  | AJ123: =+ROUND(Input!#REF!*(AJ$76+AJ$77+AJ$81)*Input!#REF!,0) ->  | AK123: =+ROUND(Input!#REF!*(AK$76+AK$77+AK$81)*Input!#REF!,0) ->  | AL123: =+ROUND(Input!#REF!*(AL$76+AL$77+AL$81)*Input!#REF!,0) ->  | AM123: =+ROUND(Input!#REF!*(AM$76+AM$77+AM$81)*Input!#REF!,0) -> 
D124: INVESTMENT COSTS ECONOMIC | E124: ИКОНОМИЧЕСКИ РАЗХОДИ (ИНВЕСТИЦИИ) | F124: Constant EUR | G124: Постоянни евро | I124: =NPV(Input!$H$16,J124:AM124) ->  | J124: =SUM(J119:J123) -> 
D126: O&M Costs Economic | E126: Икономически разходи (Експлоатация и поддръжка) | I126: =I119 -> 0.05
D127: =+Input!#REF! ->  | E127: Търгуеми стоки | F127: Constant EUR | G127: Постоянни евро | I127: =NPV(Input!$H$16,J127:AM127) ->  | J127: =+ROUND(Input!#REF!*(J$79)*Input!#REF!,0) ->  | K127: =+ROUND(Input!#REF!*(K$79)*Input!#REF!,0) ->  | L127: =+ROUND(Input!#REF!*(L$79)*Input!#REF!,0) ->  | M127: =+ROUND(Input!#REF!*(M$79)*Input!#REF!,0) ->  | N127: =+ROUND(Input!#REF!*(N$79)*Input!#REF!,0) ->  | O127: =+ROUND(Input!#REF!*(O$79)*Input!#REF!,0) ->  | P127: =+ROUND(Input!#REF!*(P$79)*Input!#REF!,0) ->  | Q127: =+ROUND(Input!#REF!*(Q$79)*Input!#REF!,0) ->  | R127: =+ROUND(Input!#REF!*(R$79)*Input!#REF!,0) ->  | S127: =+ROUND(Input!#REF!*(S$79)*Input!#REF!,0) ->  | T127: =+ROUND(Input!#REF!*(T$79)*Input!#REF!,0) ->  | U127: =+ROUND(Input!#REF!*(U$79)*Input!#REF!,0) ->  | V127: =+ROUND(Input!#REF!*(V$79)*Input!#REF!,0) ->  | W127: =+ROUND(Input!#REF!*(W$79)*Input!#REF!,0) ->  | X127: =+ROUND(Input!#REF!*(X$79)*Input!#REF!,0) ->  | Y127: =+ROUND(Input!#REF!*(Y$79)*Input!#REF!,0) ->  | Z127: =+ROUND(Input!#REF!*(Z$79)*Input!#REF!,0) ->  | AA127: =+ROUND(Input!#REF!*(AA$79)*Input!#REF!,0) ->  | AB127: =+ROUND(Input!#REF!*(AB$79)*Input!#REF!,0) ->  | AC127: =+ROUND(Input!#REF!*(AC$79)*Input!#REF!,0) ->  | AD127: =+ROUND(Input!#REF!*(AD$79)*Input!#REF!,0) ->  | AE127: =+ROUND(Input!#REF!*(AE$79)*Input!#REF!,0) ->  | AF127: =+ROUND(Input!#REF!*(AF$79)*Input!#REF!,0) ->  | AG127: =+ROUND(Input!#REF!*(AG$79)*Input!#REF!,0) ->  | AH127: =+ROUND(Input!#REF!*(AH$79)*Input!#REF!,0) ->  | AI127: =+ROUND(Input!#REF!*(AI$79)*Input!#REF!,0) ->  | AJ127: =+ROUND(Input!#REF!*(AJ$79)*Input!#REF!,0) ->  | AK127: =+ROUND(Input!#REF!*(AK$79)*Input!#REF!,0) ->  | AL127: =+ROUND(Input!#REF!*(AL$79)*Input!#REF!,0) ->  | AM127: =+ROUND(Input!#REF!*(AM$79)*Input!#REF!,0) -> 
D128: =+Input!#REF! ->  | E128: Нетъргуеми стоки | F128: Constant EUR | G128: Постоянни евро | I128: =NPV(Input!$H$16,J128:AM128) ->  | J128: =+ROUND(Input!#REF!*(J$79)*Input!#REF!,0) ->  | K128: =+ROUND(Input!#REF!*(K$79)*Input!#REF!,0) ->  | L128: =+ROUND(Input!#REF!*(L$79)*Input!#REF!,0) ->  | M128: =+ROUND(Input!#REF!*(M$79)*Input!#REF!,0) ->  | N128: =+ROUND(Input!#REF!*(N$79)*Input!#REF!,0) ->  | O128: =+ROUND(Input!#REF!*(O$79)*Input!#REF!,0) ->  | P128: =+ROUND(Input!#REF!*(P$79)*Input!#REF!,0) ->  | Q128: =+ROUND(Input!#REF!*(Q$79)*Input!#REF!,0) ->  | R128: =+ROUND(Input!#REF!*(R$79)*Input!#REF!,0) ->  | S128: =+ROUND(Input!#REF!*(S$79)*Input!#REF!,0) ->  | T128: =+ROUND(Input!#REF!*(T$79)*Input!#REF!,0) ->  | U128: =+ROUND(Input!#REF!*(U$79)*Input!#REF!,0) ->  | V128: =+ROUND(Input!#REF!*(V$79)*Input!#REF!,0) ->  | W128: =+ROUND(Input!#REF!*(W$79)*Input!#REF!,0) ->  | X128: =+ROUND(Input!#REF!*(X$79)*Input!#REF!,0) ->  | Y128: =+ROUND(Input!#REF!*(Y$79)*Input!#REF!,0) ->  | Z128: =+ROUND(Input!#REF!*(Z$79)*Input!#REF!,0) ->  | AA128: =+ROUND(Input!#REF!*(AA$79)*Input!#REF!,0) ->  | AB128: =+ROUND(Input!#REF!*(AB$79)*Input!#REF!,0) ->  | AC128: =+ROUND(Input!#REF!*(AC$79)*Input!#REF!,0) ->  | AD128: =+ROUND(Input!#REF!*(AD$79)*Input!#REF!,0) ->  | AE128: =+ROUND(Input!#REF!*(AE$79)*Input!#REF!,0) ->  | AF128: =+ROUND(Input!#REF!*(AF$79)*Input!#REF!,0) ->  | AG128: =+ROUND(Input!#REF!*(AG$79)*Input!#REF!,0) ->  | AH128: =+ROUND(Input!#REF!*(AH$79)*Input!#REF!,0) ->  | AI128: =+ROUND(Input!#REF!*(AI$79)*Input!#REF!,0) ->  | AJ128: =+ROUND(Input!#REF!*(AJ$79)*Input!#REF!,0) ->  | AK128: =+ROUND(Input!#REF!*(AK$79)*Input!#REF!,0) ->  | AL128: =+ROUND(Input!#REF!*(AL$79)*Input!#REF!,0) ->  | AM128: =+ROUND(Input!#REF!*(AM$79)*Input!#REF!,0) -> 
D129: =+Input!#REF! ->  | E129: Квалифициран труд | F129: Constant EUR | G129: Постоянни евро | I129: =NPV(Input!$H$16,J129:AM129) ->  | J129: =+ROUND(Input!#REF!*(J$79)*Input!#REF!,0) ->  | K129: =+ROUND(Input!#REF!*(K$79)*Input!#REF!,0) ->  | L129: =+ROUND(Input!#REF!*(L$79)*Input!#REF!,0) ->  | M129: =+ROUND(Input!#REF!*(M$79)*Input!#REF!,0) ->  | N129: =+ROUND(Input!#REF!*(N$79)*Input!#REF!,0) ->  | O129: =+ROUND(Input!#REF!*(O$79)*Input!#REF!,0) ->  | P129: =+ROUND(Input!#REF!*(P$79)*Input!#REF!,0) ->  | Q129: =+ROUND(Input!#REF!*(Q$79)*Input!#REF!,0) ->  | R129: =+ROUND(Input!#REF!*(R$79)*Input!#REF!,0) ->  | S129: =+ROUND(Input!#REF!*(S$79)*Input!#REF!,0) ->  | T129: =+ROUND(Input!#REF!*(T$79)*Input!#REF!,0) ->  | U129: =+ROUND(Input!#REF!*(U$79)*Input!#REF!,0) ->  | V129: =+ROUND(Input!#REF!*(V$79)*Input!#REF!,0) ->  | W129: =+ROUND(Input!#REF!*(W$79)*Input!#REF!,0) ->  | X129: =+ROUND(Input!#REF!*(X$79)*Input!#REF!,0) ->  | Y129: =+ROUND(Input!#REF!*(Y$79)*Input!#REF!,0) ->  | Z129: =+ROUND(Input!#REF!*(Z$79)*Input!#REF!,0) ->  | AA129: =+ROUND(Input!#REF!*(AA$79)*Input!#REF!,0) ->  | AB129: =+ROUND(Input!#REF!*(AB$79)*Input!#REF!,0) ->  | AC129: =+ROUND(Input!#REF!*(AC$79)*Input!#REF!,0) ->  | AD129: =+ROUND(Input!#REF!*(AD$79)*Input!#REF!,0) ->  | AE129: =+ROUND(Input!#REF!*(AE$79)*Input!#REF!,0) ->  | AF129: =+ROUND(Input!#REF!*(AF$79)*Input!#REF!,0) ->  | AG129: =+ROUND(Input!#REF!*(AG$79)*Input!#REF!,0) ->  | AH129: =+ROUND(Input!#REF!*(AH$79)*Input!#REF!,0) ->  | AI129: =+ROUND(Input!#REF!*(AI$79)*Input!#REF!,0) ->  | AJ129: =+ROUND(Input!#REF!*(AJ$79)*Input!#REF!,0) ->  | AK129: =+ROUND(Input!#REF!*(AK$79)*Input!#REF!,0) ->  | AL129: =+ROUND(Input!#REF!*(AL$79)*Input!#REF!,0) ->  | AM129: =+ROUND(Input!#REF!*(AM$79)*Input!#REF!,0) -> 
D130: =+Input!#REF! ->  | E130: Неквалифициран труд | F130: Constant EUR | G130: Постоянни евро | I130: =NPV(Input!$H$16,J130:AM130) ->  | J130: =+ROUND(Input!#REF!*(J$79)*Input!#REF!,0) ->  | K130: =+ROUND(Input!#REF!*(K$79)*Input!#REF!,0) ->  | L130: =+ROUND(Input!#REF!*(L$79)*Input!#REF!,0) ->  | M130: =+ROUND(Input!#REF!*(M$79)*Input!#REF!,0) ->  | N130: =+ROUND(Input!#REF!*(N$79)*Input!#REF!,0) ->  | O130: =+ROUND(Input!#REF!*(O$79)*Input!#REF!,0) ->  | P130: =+ROUND(Input!#REF!*(P$79)*Input!#REF!,0) ->  | Q130: =+ROUND(Input!#REF!*(Q$79)*Input!#REF!,0) ->  | R130: =+ROUND(Input!#REF!*(R$79)*Input!#REF!,0) ->  | S130: =+ROUND(Input!#REF!*(S$79)*Input!#REF!,0) ->  | T130: =+ROUND(Input!#REF!*(T$79)*Input!#REF!,0) ->  | U130: =+ROUND(Input!#REF!*(U$79)*Input!#REF!,0) ->  | V130: =+ROUND(Input!#REF!*(V$79)*Input!#REF!,0) ->  | W130: =+ROUND(Input!#REF!*(W$79)*Input!#REF!,0) ->  | X130: =+ROUND(Input!#REF!*(X$79)*Input!#REF!,0) ->  | Y130: =+ROUND(Input!#REF!*(Y$79)*Input!#REF!,0) ->  | Z130: =+ROUND(Input!#REF!*(Z$79)*Input!#REF!,0) ->  | AA130: =+ROUND(Input!#REF!*(AA$79)*Input!#REF!,0) ->  | AB130: =+ROUND(Input!#REF!*(AB$79)*Input!#REF!,0) ->  | AC130: =+ROUND(Input!#REF!*(AC$79)*Input!#REF!,0) ->  | AD130: =+ROUND(Input!#REF!*(AD$79)*Input!#REF!,0) ->  | AE130: =+ROUND(Input!#REF!*(AE$79)*Input!#REF!,0) ->  | AF130: =+ROUND(Input!#REF!*(AF$79)*Input!#REF!,0) ->  | AG130: =+ROUND(Input!#REF!*(AG$79)*Input!#REF!,0) ->  | AH130: =+ROUND(Input!#REF!*(AH$79)*Input!#REF!,0) ->  | AI130: =+ROUND(Input!#REF!*(AI$79)*Input!#REF!,0) ->  | AJ130: =+ROUND(Input!#REF!*(AJ$79)*Input!#REF!,0) ->  | AK130: =+ROUND(Input!#REF!*(AK$79)*Input!#REF!,0) ->  | AL130: =+ROUND(Input!#REF!*(AL$79)*Input!#REF!,0) ->  | AM130: =+ROUND(Input!#REF!*(AM$79)*Input!#REF!,0) -> 
D131: O&M COSTS ECONOMIC | E131: ИКОНОМИЧЕСКИ РАЗХОДИ (ЕКСПЛОАТАЦИЯ И ПОДДРЪЖКА) | F131: Constant EUR | G131: Постоянни евро | I131: =NPV(Input!$H$16,J131:AM131) ->  | J131: =SUM(J127:J130) -> 
D133: NET ECONOMIC BENEFITS (COSTS) | E133: НЕТНИ ИКОНОМИЧЕСКИ ПОЛЗИ (РАЗХОДИ) | F133: Constant EUR | G133: Постоянни евро | I133: =NPV(Input!$H$16,J133:AM133) ->  | J133: =+J117+J124+J131 ->  | K133: =+K117+K124+K131 -> 
D134: CUMULATIVE NET ECONOMIC BENEFITS (COSTS) | E134: АКУМУЛИРАНИ НЕТНИ ИКОНОМИЧЕСКИ ПОЛЗИ (РАЗХОДИ) | F134: Constant EUR | G134: Постоянни евро | J134: =J133 ->  | K134: =J134+K133 -> 
I135: = | L135: =L131+L124 -> 
D136: ERR | E136: ИНВ | J136: =IRR(J133:AM133,0) ->  | M136: =I127/$I$135 -> 
L137: =I121/$I$135 ->  | M137: =I128/$I$135 -> 
D138: EPBP | E138: Икономически срок на откупуване | J138: =COUNTIF(J134:AM134,"<0") -> 0 | L138: =I122/$I$135 ->  | M138: =I129/$I$135 -> 
L139: =I123/$I$135 ->  | M139: =I130/$I$135 -> 
D140: B/C RATIO | E140: ОТНОШЕНИЕ П/Р | J140: =(I114+I115)/-(I116+baseEcoCostsA+baseEcoCostsB) ->  | L140: =#REF!/$I$135 -> 
M141: =I132/$I$135 -> 
L143: =SUM(L136:L141) ->  | M143: =SUM(M136:M141) -> 

Sheet EconomicBenefits (hidden)
D1: Annex 10 | E1: Приложение 10
D2: Project | E2: Проект | K2: Blue cells contain NON-MONETARY input data
D3: =#REF! ->  | E3: =VOC!E3 -> РЕКОНСТРУКЦИЯ НА ГАРОВИ КОМПЛЕКСИ „СТАРА ЗАГОРА“ И „НОВА ЗАГОРА“ | K3: Green cells contain MONETARY input data in current terms
K4: Yelow cells contain MONETARY input data in real terms of base year
K5: White cells contain calculated data
D9: General parameters | E9: Основни параметри
D11: First year of projection | E11: Първа година от проекта | F11: Year | G11: година | H11: 2013
D12: Implementation period | E12: Период на изграждане/строителство | F12: Years | G12: години | H12: 2
D13: Reference period (i.e.: economic life of project) | E13: Период на проекта (икономически живот на проекта) | F13: Years | G13: години | H13: 30
D16: VOC of Diverted traffic | E16: Оперативни разходи на привлечения трафик
J17: 2009 | K17: =+J17+1 -> 2010 | L17: 2011 | M17: 2012 | N17: 2013 | O17: 2014 | P17: 2015 | Q17: 2016 | R17: 2017 | S17: 2018 | T17: 2019 | U17: 2020 | V17: 2021 | W17: 2022 | X17: 2023 | Y17: 2024 | Z17: 2025 | AA17: 2026 | AB17: 2027 | AC17: 2028 | AD17: 2029 | AE17: 2030 | AF17: 2031 | AG17: 2032 | AH17: 2033 | AI17: 2034 | AJ17: 2035 | AK17: 2036 | AL17: 2037 | AM17: =+AL17+1 -> 2038
D18: Benefit (Cost) | E18: Ползи (Разходи) | F18: EUR | G18: евро | J18: =VOC!H46 -> 0 | K18: =VOC!I46 -> 0 | L18: =VOC!J46 -> 0
D22: Value of Time | E22: Цена на времето
J23: 2013 | K23: =+J23+1 -> 2014 | L23: 2015 | M23: 2016 | N23: 2017 | O23: 2018 | P23: 2019 | Q23: 2020 | R23: 2021 | S23: 2022 | T23: 2023 | U23: 2024 | V23: 2025 | W23: 2026 | X23: 2027 | Y23: 2028 | Z23: 2029 | AA23: 2030 | AB23: 2031 | AC23: 2032 | AD23: 2033 | AE23: 2034 | AF23: 2035 | AG23: 2036 | AH23: 2037 | AI23: 2038 | AJ23: 2039 | AK23: 2040 | AL23: 2041 | AM23: 2042
D24: Option WO | E24: Вариант Без проект | F24: EUR | G24: евро | J24: =VOT!L96 -> 0 | K24: =VOT!M96 -> 0 | L24: =VOT!N96 -> 0 | M24: =VOT!O96 -> 0 | N24: =VOT!P96 -> 0 | O24: =VOT!Q96 -> 0 | P24: =VOT!R96 -> 0 | Q24: =VOT!S96 -> 0 | R24: =VOT!T96 -> 0 | S24: =VOT!U96 -> 0 | T24: =VOT!V96 -> 0 | U24: =VOT!W96 -> 0 | V24: =VOT!X96 -> 0 | W24: =VOT!Y96 -> 0 | X24: =VOT!Z96 -> 0 | Y24: =VOT!AA96 -> 0 | Z24: =VOT!AB96 -> 0 | AA24: =VOT!AC96 -> 0 | AB24: =VOT!AD96 -> 0 | AC24: =VOT!AE96 -> 0 | AD24: =VOT!AF96 -> 0 | AE24: =VOT!AG96 -> 0 | AF24: =VOT!AH96 -> 0 | AG24: =VOT!AI96 -> 0 | AH24: =VOT!AJ96 -> 0 | AI24: =VOT!AK96 -> 0 | AJ24: =VOT!AL96 -> 0 | AK24: =VOT!AM96 -> 0 | AL24: =VOT!AN96 -> 0 | AM24: =VOT!AO96 -> 0
D25: Option WP | E25: Вариант С проект | F25: EUR | G25: евро | J25: =VOT!L144 -> 0 | K25: =VOT!M144 -> 0 | L25: =VOT!N144 -> 0 | M25: =VOT!O144 -> 0 | N25: =VOT!P144 -> 0 | O25: =VOT!Q144 -> 0 | P25: =VOT!R144 -> 0 | Q25: =VOT!S144 -> 0 | R25: =VOT!T144 -> 0 | S25: =VOT!U144 -> 0 | T25: =VOT!V144 -> 0 | U25: =VOT!W144 -> 0 | V25: =VOT!X144 -> 0 | W25: =VOT!Y144 -> 0 | X25: =VOT!Z144 -> 0 | Y25: =VOT!AA144 -> 0 | Z25: =VOT!AB144 -> 0 | AA25: =VOT!AC144 -> 0 | AB25: =VOT!AD144 -> 0 | AC25: =VOT!AE144 -> 0 | AD25: =VOT!AF144 -> 0 | AE25: =VOT!AG144 -> 0 | AF25: =VOT!AH144 -> 0 | AG25: =VOT!AI144 -> 0 | AH25: =VOT!AJ144 -> 0 | AI25: =VOT!AK144 -> 0 | AJ25: =VOT!AL144 -> 0 | AK25: =VOT!AM144 -> 0 | AL25: =VOT!AN144 -> 0 | AM25: =VOT!AO144 -> 0
D27: Benefit (Cost) | E27: Ползи (Разходи) | F27: EUR | G27: евро | J27: =J24-J25 -> 0 | K27: =K24-K25 -> 0 | L27: =L24-L25 -> 0 | M27: 0 | N27: 0 | O27: 0 | P27: 0 | Q27: 0 | R27: 0 | S27: 0 | T27: 0 | U27: 0 | V27: 0 | W27: 0 | X27: 0 | Y27: 0 | Z27: 0 | AA27: 0 | AB27: 0 | AC27: 0 | AD27: 0 | AE27: 0 | AF27: 0 | AG27: 0 | AH27: 0 | AI27: 0 | AJ27: 0 | AK27: 0 | AL27: 0 | AM27: 0
D30: Emissions CO2 | E30: Емисии CO2
J31: 2013 | K31: =+J31+1 -> 2014 | L31: 2015 | M31: 2016 | N31: 2017 | O31: 2018 | P31: 2019 | Q31: 2020 | R31: 2021 | S31: 2022 | T31: 2023 | U31: 2024 | V31: 2025 | W31: 2026 | X31: 2027 | Y31: 2028 | Z31: 2029 | AA31: 2030 | AB31: 2031 | AC31: 2032 | AD31: 2033 | AE31: 2034 | AF31: 2035 | AG31: 2036 | AH31: 2037 | AI31: 2038 | AJ31: 2039 | AK31: 2040 | AL31: 2041 | AM31: 2042
D32: Benefit (Cost) | E32: Ползи (Разходи) | F32: EUR | G32: евро | J32: =-'Emission CO2'!K52 -> 0 | K32: =-'Emission CO2'!L52 -> 0 | L32: =-'Emission CO2'!M52 -> 0 | M32: =-'Emission CO2'!N52 -> 0 | N32: =-'Emission CO2'!O52 -> 0 | O32: =-'Emission CO2'!P52 -> 0 | P32: =-'Emission CO2'!Q52 -> 0 | Q32: =-'Emission CO2'!R52 -> 0 | R32: =-'Emission CO2'!S52 -> 0 | S32: =-'Emission CO2'!T52 -> 0 | T32: =-'Emission CO2'!U52 -> 0 | U32: =-'Emission CO2'!V52 -> 0 | V32: =-'Emission CO2'!W52 -> 0 | W32: =-'Emission CO2'!X52 -> 0 | X32: =-'Emission CO2'!Y52 -> 0 | Y32: =-'Emission CO2'!Z52 -> 0 | Z32: =-'Emission CO2'!AA52 -> 0 | AA32: =-'Emission CO2'!AB52 -> 0 | AB32: =-'Emission CO2'!AC52 -> 0 | AC32: =-'Emission CO2'!AD52 -> 0 | AD32: =-'Emission CO2'!AE52 -> 0 | AE32: =-'Emission CO2'!AF52 -> 0 | AF32: =-'Emission CO2'!AG52 -> 0 | AG32: =-'Emission CO2'!AH52 -> 0 | AH32: =-'Emission CO2'!AI52 -> 0 | AI32: =-'Emission CO2'!AJ52 -> 0 | AJ32: =-'Emission CO2'!AK52 -> 0 | AK32: =-'Emission CO2'!AL52 -> 0 | AL32: =-'Emission CO2'!AM52 -> 0 | AM32: =-'Emission CO2'!AN52 -> 0
D35: Emissions CO | E35: Увеличаване на икономическата активност
J36: 2013 | K36: =+J36+1 -> 2014 | L36: 2015 | M36: 2016 | N36: 2017 | O36: 2018 | P36: 2019 | Q36: 2020 | R36: 2021 | S36: 2022 | T36: 2023 | U36: 2024 | V36: 2025 | W36: 2026 | X36: 2027 | Y36: 2028 | Z36: 2029 | AA36: 2030 | AB36: 2031 | AC36: 2032 | AD36: 2033 | AE36: 2034 | AF36: 2035 | AG36: 2036 | AH36: 2037 | AI36: 2038 | AJ36: 2039 | AK36: 2040 | AL36: 2041 | AM36: 2042
D37: Benefit (Cost) | E37: Ползи (Разходи) | F37: EUR | G37: евро | J37: ='Emission CO'!G33 -> 0 | K37: ='Emission CO'!H33 -> 0
D40: Emissions NOx
J41: 2009 | K41: =+J41+1 -> 2010 | L41: 2011 | M41: 2012 | N41: 2013 | O41: 2014 | P41: 2015 | Q41: 2016 | R41: 2017 | S41: 2018 | T41: 2019 | U41: 2020 | V41: 2021 | W41: 2022 | X41: 2023 | Y41: 2024 | Z41: 2025 | AA41: 2026 | AB41: 2027 | AC41: 2028 | AD41: 2029 | AE41: 2030 | AF41: 2031 | AG41: 2032 | AH41: 2033 | AI41: 2034 | AJ41: 2035 | AK41: 2036 | AL41: 2037 | AM41: 2038
D42: Benefit (Cost) | E42: Ползи (Разходи) | F42: EUR | G42: евро
D45: Emissions PM10
J46: 2009 | K46: =+J46+1 -> 2010 | L46: 2011 | M46: 2012 | N46: 2013 | O46: 2014 | P46: 2015 | Q46: 2016 | R46: 2017 | S46: 2018 | T46: 2019 | U46: 2020 | V46: 2021 | W46: 2022 | X46: 2023 | Y46: 2024 | Z46: 2025 | AA46: 2026 | AB46: 2027 | AC46: 2028 | AD46: 2029 | AE46: 2030 | AF46: 2031 | AG46: 2032 | AH46: 2033 | AI46: 2034 | AJ46: 2035 | AK46: 2036 | AL46: 2037 | AM46: 2038
D47: Benefit (Cost) | E47: Ползи (Разходи) | F47: EUR | G47: евро
D51: TOTAL ECONOMIC BENEFITS (COSTS) | E51: ОБЩО ИКОНОМИЧЕСКИ ПОЛЗИ (РАЗХОДИ)
D53: Summary of economic benefits | E53: Икономически ползи | J53: =J36 -> 2013 | K53: =K36 -> 2014 | L53: 2015 | M53: 2016 | N53: 2017 | O53: 2018 | P53: 2019 | Q53: 2020 | R53: 2021 | S53: 2022 | T53: 2023 | U53: 2024 | V53: 2025 | W53: 2026 | X53: 2027 | Y53: 2028 | Z53: 2029 | AA53: 2030 | AB53: 2031 | AC53: 2032 | AD53: 2033 | AE53: 2034 | AF53: 2035 | AG53: 2036 | AH53: 2037 | AI53: 2038 | AJ53: 2039 | AK53: 2040 | AL53: 2041 | AM53: 2042
D54: Total Value of Time | E54: Общо Цена на времето | F54: EUR | G54: евро | J54: =J27 -> 0 | K54: =K27 -> 0 | L54: =L27 -> 0 | M54: =M27 -> 0 | N54: 0 | O54: 0 | P54: 0 | Q54: 0 | R54: 0 | S54: 0 | T54: 0 | U54: 0 | V54: 0 | W54: 0 | X54: 0 | Y54: 0 | Z54: 0 | AA54: 0 | AB54: 0 | AC54: 0 | AD54: 0 | AE54: 0 | AF54: 0 | AG54: 0 | AH54: 0 | AI54: 0 | AJ54: 0 | AK54: 0 | AL54: 0 | AM54: 0
D55: Tota Decrease of Accidents | E55: Общо увеличаване на икономическата активност | F55: EUR | G55: евро | J55: =J37 -> 0 | K55: =K37 -> 0 | L55: 0 | M55: 0 | N55: 0 | O55: 0 | P55: 0 | Q55: 0 | R55: 0 | S55: 0 | T55: 0 | U55: 0 | V55: 0 | W55: 0 | X55: 0 | Y55: 0 | Z55: 0 | AA55: 0 | AB55: 0 | AC55: 0 | AD55: 0 | AE55: 0 | AF55: 0 | AG55: 0 | AH55: 0 | AI55: 0 | AJ55: 0 | AK55: 0 | AL55: 0 | AM55: 0
D56: Total Decrease of Emission Costs | E56: Общо намаляване на разходите за емисии | F56: EUR | G56: евро | J56: =J42+J47+J32 -> 0 | K56: =K42+K47+K32 -> 0 | L56: =L42+L47+L32 -> 0 | M56: 0 | N56: 0 | O56: 0 | P56: 0 | Q56: 0 | R56: 0 | S56: 0 | T56: 0 | U56: 0 | V56: 0 | W56: 0 | X56: 0 | Y56: 0 | Z56: 0 | AA56: 0 | AB56: 0 | AC56: 0 | AD56: 0 | AE56: 0 | AF56: 0 | AG56: 0 | AH56: 0 | AI56: 0 | AJ56: 0 | AK56: 0 | AL56: 0 | AM56: 0
D57: TOTAL ECONOMIC BENEFITS | E57: ОБЩО ИКОНОМИЧЕСКИ ПОЛЗИ | F57: EUR | G57: евро | J57: =SUM(J54:J56) -> 0 | K57: =SUM(K54:K56) -> 0 | L57: =SUM(L54:L56) -> 0 | M57: 0 | N57: 0 | O57: 0 | P57: 0 | Q57: 0 | R57: 0 | S57: 0 | T57: 0 | U57: 0 | V57: 0 | W57: 0 | X57: 0 | Y57: 0 | Z57: 0 | AA57: 0 | AB57: 0 | AC57: 0 | AD57: 0 | AE57: 0 | AF57: 0 | AG57: 0 | AH57: 0 | AI57: 0 | AJ57: 0 | AK57: 0 | AL57: 0 | AM57: 0
D120: =#REF! ->  | F120: =Calculation!#REF! -> 
D121: =D54 -> Total Value of Time | F121: =Calculation!I114 -> 
D122: =D55 -> Tota Decrease of Accidents | F122: =Calculation!I115 -> 0
D123: Общо спестяване на разходи за ресурси | F123: =F120 -> 
D124: Общо намаляване на неприятните ефекти и здравните рискове | F124: =F121 -> 
D125: Общо намаляване на емисиите парникови газове | F125: =F122 -> 0
D126: =D56 -> Total Decrease of Emission Costs | F126: =[15]Calculation!I156 -> 0

Sheet VOT (hidden)
D1: Annex 11 | E1: Приложение 11
D2: =Input!D2 -> Project | E2: =Input!E2 -> Проект
D3: =Input!D3 -> Rehabilitation of Railway Station Complexes Sofia, Bourgas and Pazardzhik | E3: =Input!E3 -> РЕКОНСТРУКЦИЯ НА ГАРОВИ КОМПЛЕКСИ „СТАРА ЗАГОРА“ И „НОВА ЗАГОРА“
D7: Value of Time | E7: Цена на времето
D9: Year | E9: Година | F9: 2017 | G9: =F9+1 -> 2018 | H9: =G9+1 -> 2019 | I9: =H9+1 -> 2020 | J9: =I9+1 -> 2021 | K9: 2022 | L9: 2023 | M9: 2024 | N9: 2025 | O9: 2026 | P9: 2027 | Q9: 2028 | R9: 2029 | S9: 2030 | T9: 2031 | U9: 2032 | V9: 2033 | W9: 2034 | X9: 2035 | Y9: 2036 | Z9: 2037 | AA9: 2038 | AB9: 2039 | AC9: 2040 | AD9: 2041 | AE9: 2042 | AF9: 2043 | AG9: 2044 | AH9: 2045 | AI9: 2046 | AJ9: 2047 | AK9: 2048 | AL9: 2049 | AM9: =AL9+1 -> 2050 | AN9: =AM9+1 -> 2051 | AO9: =AN9+1 -> 2052
D10: Macroeconomic data | E10: Макроикономически показатели
D11: GDP growth | E11: БВП ръст | G11: 0.06 | H11: -0.049 | I11: 0.005 | J11: =#REF! ->  | K11: =#REF! ->  | L11: =#REF! ->  | M11: =#REF! ->  | N11: =#REF! ->  | O11: =#REF! ->  | P11: =#REF! ->  | Q11: =#REF! ->  | R11: =#REF! ->  | S11: =#REF! ->  | T11: =#REF! ->  | U11: =#REF! ->  | V11: =#REF! ->  | W11: =#REF! ->  | X11: =#REF! ->  | Y11: =#REF! ->  | Z11: =#REF! ->  | AA11: =#REF! ->  | AB11: =#REF! ->  | AC11: =#REF! ->  | AD11: =#REF! ->  | AE11: =#REF! ->  | AF11: =#REF! ->  | AG11: =#REF! ->  | AH11: =#REF! ->  | AI11: =#REF! ->  | AJ11: =#REF! ->  | AK11: =#REF! ->  | AL11: =#REF! ->  | AM11: =#REF! ->  | AN11: =#REF! ->  | AO11: =#REF! -> 
D12: GDP Index | E12: БВП коефициент на нарастване | F12: 100 | G12: =F12*(1+G11) -> 106 | H12: =G12*(1+H11) -> 100.806 | I12: =H12*(1+I11) -> 101.31003 | J12: =I12*(1+J11) ->  | K12: =J12*(1+K11) ->  | L12: =K12*(1+L11) ->  | AM12: =AL12*(1+AM11) ->  | AN12: =AM12*(1+AN11) ->  | AO12: =AN12*(1+AO11) -> 
D13: Population growth | E13: Ръст на населението | G13: -0.0048 | H13: -0.0051 | I13: -0.0051 | J13: -0.0049 | K13: -0.0048 | L13: -0.0048 | M13: -0.0048 | N13: -0.005 | O13: -0.005 | P13: -0.0053 | Q13: -0.0053 | R13: -0.0054 | S13: -0.0056 | T13: -0.005 | U13: =T13 -> -0.005 | V13: =U13 -> -0.005 | W13: -0.005 | X13: -0.005 | Y13: -0.005 | Z13: -0.005 | AA13: -0.005 | AB13: -0.005 | AC13: -0.005 | AD13: -0.005 | AE13: -0.005 | AF13: -0.005 | AG13: -0.005 | AH13: -0.005 | AI13: -0.005 | AJ13: -0.005 | AK13: -0.005 | AL13: -0.005 | AM13: =AL13 -> -0.005 | AN13: =AM13 -> -0.005 | AO13: =AN13 -> -0.005
D14: Population index | E14: Население коеф.на ръста | F14: 100 | G14: =F14*(1+G13) -> 99.52 | H14: =G14*(1+H13) -> 99.012448 | I14: 98.50748452 | J14: 98.02479784 | K14: 97.55427881 | L14: 97.08601827 | M14: 96.62000539 | N14: 96.13690536 | O14: 95.65622083 | P14: 95.14924286 | Q14: 94.64495187 | R14: 94.13386913 | S14: 93.60671947 | T14: 93.13868587 | U14: 92.67299244 | V14: 92.20962748 | W14: 91.74857934 | X14: 91.28983644 | Y14: 90.83338726 | Z14: 90.37922033 | AA14: 89.92732422 | AB14: 89.4776876 | AC14: 89.03029916 | AD14: 88.58514767 | AE14: 88.14222193 | AF14: 87.70151082 | AG14: 87.26300327 | AH14: 86.82668825 | AI14: 86.39255481 | AJ14: 85.96059204 | AK14: 85.53078907 | AL14: 85.10313513 | AM14: =AL14*(1+AM13) -> 84.67761945 | AN14: =AM14*(1+AN13) -> 84.25423136 | AO14: =AN14*(1+AO13) -> 83.8329602
D15: GDP per capita growth | E15: БВП на глава от населението | F15: =F12/F14 -> 1 | G15: =G12/G14 -> 1.06511254 | H15: =H12/H14 -> 1.018114409 | I15: 1.028450077 | O15: =O12/O14 ->  | AM15: =AM12/AM14 ->  | AN15: =AN12/AN14 ->  | AO15: =AO12/AO14 -> 
D16: Elasticity to GDP | E16: Еластичност към БВП | F16: 0.7 | G16: =F16 -> 0.7 | H16: =G16 -> 0.7 | I16: 0.7 | J16: 0.7 | K16: 0.7 | L16: 0.7 | M16: 0.7 | N16: 0.7 | O16: 0.7 | P16: 0.7 | Q16: 0.7 | R16: 0.7 | S16: 0.7 | T16: 0.7 | U16: 0.7 | V16: 0.7 | W16: 0.7 | X16: 0.7 | Y16: 0.7 | Z16: 0.7 | AA16: 0.7 | AB16: 0.7 | AC16: 0.7 | AD16: 0.7 | AE16: 0.7 | AF16: 0.7 | AG16: 0.7 | AH16: 0.7 | AI16: 0.7 | AJ16: 0.7 | AK16: 0.7 | AL16: 0.7 | AM16: =AL16 -> 0.7 | AN16: =AM16 -> 0.7 | AO16: =AN16 -> 0.7
D17: VOT growth | E17: Цена на времето ръст | G17: =((G15-1)*G16)+1 -> 1.045578778 | H17: =((H15-1)*H16)+1 -> 1.012680086 | I17: =((I15-1)*I16)+1 -> 1.019915054 | J17: =((J15-1)*J16)+1 ->  | N17: =((N15-1)*N16)+1 ->  | AM17: =((AM15-1)*AM16)+1 ->  | AN17: =((AN15-1)*AN16)+1 ->  | AO17: =((AO15-1)*AO16)+1 -> 
D18: % traffic growth | I18: 1 | J18: =#REF! ->  | K18: =#REF! ->  | L18: =#REF! ->  | M18: =#REF! ->  | N18: =#REF! ->  | O18: =#REF! ->  | P18: =#REF! ->  | Q18: =#REF! ->  | R18: =#REF! ->  | S18: =#REF! ->  | T18: =#REF! ->  | U18: =#REF! ->  | V18: =#REF! ->  | W18: =#REF! ->  | X18: =#REF! ->  | Y18: =#REF! ->  | Z18: =#REF! ->  | AA18: =#REF! ->  | AB18: =#REF! ->  | AC18: =#REF! ->  | AD18: =#REF! ->  | AE18: =#REF! ->  | AF18: =#REF! ->  | AG18: =#REF! ->  | AH18: =#REF! ->  | AI18: =#REF! ->  | AJ18: =#REF! ->  | AK18: =#REF! ->  | AL18: =#REF! ->  | AM18: =#REF! ->  | AN18: =#REF! ->  | AO18: =#REF! -> 
D19: % of spread for 2020-2030; 2030-2040 | S19: =#REF! ->  | T19: =#REF! ->  | U19: =#REF! ->  | V19: =#REF! ->  | W19: =#REF! ->  | X19: =#REF! ->  | Y19: =#REF! ->  | Z19: =#REF! ->  | AA19: =#REF! ->  | AB19: =#REF! ->  | AC19: =#REF! ->  | AD19: =#REF! ->  | AE19: =#REF! ->  | AF19: =#REF! ->  | AG19: =#REF! ->  | AH19: =#REF! ->  | AI19: =#REF! ->  | AJ19: =#REF! ->  | AK19: =#REF! ->  | AL19: =#REF! ->  | AM19: =#REF! -> 
D20: Value ot Time, EUR/person/h | E20: Цена на време за пътуване, EUR/човек/ч
D21: Business | E21: служебни
D22: Leisure | E22: неслужебни
D23: Commuting | E23: от-до работа
F24: БП | G24: СП
D25: Type of transport | E25: Начин на закупуване | F25: % | G25: %
D26: Metro | E26: каса | F26: 1 | G26: 0.6
D27: Bus | E27: автомат | F27: 0 | G27: =1-G26 -> 0.4
D28: Purpose Split Trips | E28: Цел на пътуване разпределение
D29: Business | E29: служебни | F29: 0.04
D30: Leisure | E30: неслужебни | F30: 0.7
D31: Commuting | E31: от-до работа | F31: 0.26
D32: Purpose Split Trips | E32: Време за обслужване | F32: сек.
D33: Commuting | E33: каса | F33: 0
D34: Other | E34: автомат | F34: 0
D36: Time spent before departure, min | E36: Престой на гарата преди отпътуване | F36: Business | G36: Leisure | H36: Commuting
D37: WO | E37: БП | F37: 14.79 | G37: 17.1 | H37: 15.3
D38: Expected time saving Sofia | E38: Очаквано спестено време | F38: 6.41 | G38: 6.51 | H38: 6.86
D39: WP Sofia | E39: СП | F39: =F37-F38 -> 8.38 | G39: =G37-G38 -> 10.59 | H39: =H37-H38 -> 8.44
D40: Expected time saving Bourgas&Pazardzhik | F40: =F38/2 -> 3.205 | G40: =G38/2 -> 3.255 | H40: =H38/2 -> 3.43
D41: WP Bourgas&Pazardzhik | F41: =F37-F40 -> 11.585 | G41: =G37-G40 -> 13.845 | H41: =H37-H40 -> 11.87
D43: Time spent after arrival, min | E43: Време за напускане на гарата след пристигане | F43: Business | G43: Leisure | H43: Commuting
D44: WO | E44: БП | F44: 7.95 | G44: 8.29 | H44: 7.29
D45: Expected time saving Sofia | E45: Очаквано спестено време | F45: 4.9 | G45: 4.88 | H45: 4.76
D46: WP Sofia | E46: СП | F46: =F44-F45 -> 3.05 | G46: =G44-G45 -> 3.41 | H46: =H44-H45 -> 2.53
D47: Expected time saving Bourgas&Pazardzhik | F47: =F45/2 -> 2.45 | G47: =G45/2 -> 2.44 | H47: =H45/2 -> 2.38
D48: WP Bourgas&Pazardzhik | F48: =F44-F47 -> 5.5 | G48: =G44-G47 -> 5.85 | H48: =H44-H47 -> 4.91
D51: VOT without Project | E51: Време и цена Без Проект
D52: Time spent WO | E52: Време БП
D53: Railway existing traffic | E53: жп- съществуващ трафик | F53: year | J53: 2011 | K53: =1+J53 -> 2012 | L53: 2013 | M53: 2014 | N53: 2015 | O53: 2016 | P53: 2017 | Q53: 2018 | R53: 2019 | S53: 2020 | T53: 2021 | U53: 2022 | V53: 2023 | W53: 2024 | X53: 2025 | Y53: 2026 | Z53: 2027 | AA53: 2028 | AB53: 2029 | AC53: 2030 | AD53: 2031 | AE53: 2032 | AF53: 2033 | AG53: 2034 | AH53: 2035 | AI53: 2036 | AJ53: 2037 | AK53: 2038 | AL53: 2039 | AM53: =1+AL53 -> 2040 | AN53: =1+AM53 -> 2041 | AO53: =1+AN53 -> 2042
D54: Departing | E54: Отпътували
D55: Business | E55: Служебни | F55: h
D56: Sofia | E56: София | F56: h
D57: Bourgas | E57: Бургас | F57: h
D58: Pazardzhik | E58: Пазарджик | F58: h
D59: Leisure | E59: Неслужебни | F59: h
D60: Sofia | E60: София | F60: h
D61: Bourgas | E61: Бургас | F61: h
D62: Pazardzhik | E62: Пазарджик | F62: h
D63: Commuting | E63: От-до работа | F63: h
D64: Sofia | E64: София | F64: h
D65: Bourgas | E65: Бургас | F65: h
D66: Pazardzhik | E66: Пазарджик | F66: h
D67: Total time spent before departure | E67: Общо отпътували | F67: h
D68: Arriving | E68: Пристигнали
D69: Business | E69: Служебни | F69: h
D70: Sofia | E70: София | F70: h
D71: Bourgas | E71: Бургас | F71: h
D72: Pazardzhik | E72: Пазарджик | F72: h
D73: Leisure | E73: Неслужебни | F73: h
D74: Sofia | E74: София | F74: h
D75: Bourgas | E75: Бургас | F75: h
D76: Pazardzhik | E76: Пазарджик | F76: h
D77: Commuting | E77: От-до работа | F77: h
D78: Sofia | E78: София | F78: h
D79: Bourgas | E79: Бургас | F79: h
D80: Pazardzhik | E80: Пазарджик | F80: h
D81: Total time spent after arrival | E81: Общо пристигнали | F81: h
D82: Total spent time | E82: Общо отпътували и пристигнали | F82: h
D83: VOT WO | E83: Цена на времето БП
D84: Business | E84: Служебни | F84: EUR
D85: Sofia | E85: София | F85: EUR
D86: Bourgas | E86: Бургас | F86: EUR
D87: Pazardzhik | E87: Пазарджик | F87: EUR
D88: Leisure | E88: Неслужебни | F88: EUR
D89: Sofia | E89: София | F89: EUR
D90: Bourgas | E90: Бургас | F90: EUR
D91: Pazardzhik | E91: Пазарджик | F91: EUR
D92: Commuting | E92: От-до работа | F92: EUR
D93: Sofia | E93: София | F93: EUR
D94: Bourgas | E94: Бургас | F94: EUR
D95: Pazardzhik | E95: Пазарджик | F95: EUR
D96: TOTAL VOT WO | E96: ОБЩО цена на времето БП | F96: EUR
D99: VOT with Project (WP) | E99: Време и цена С Проект (СП)
D100: Time spent WP | E100: Време СП | O100: =O82-O130 -> 0 | P100: =O100/365 -> 0
F101: year | J101: 2011 | K101: =1+J101 -> 2012 | L101: 2013 | M101: 2014 | N101: 2015 | O101: 2016 | P101: 2017 | Q101: 2018 | R101: 2019 | S101: 2020 | T101: 2021 | U101: 2022 | V101: 2023 | W101: 2024 | X101: 2025 | Y101: 2026 | Z101: 2027 | AA101: 2028 | AB101: 2029 | AC101: 2030 | AD101: 2031 | AE101: 2032 | AF101: 2033 | AG101: 2034 | AH101: 2035 | AI101: 2036 | AJ101: 2037 | AK101: 2038 | AL101: 2039 | AM101: =1+AL101 -> 2040 | AN101: =1+AM101 -> 2041 | AO101: =1+AN101 -> 2042
D102: Departing | E102: Отпътували
D103: Business | E103: Служебни | F103: h
D104: Sofia | E104: София | F104: h
D105: Bourgas | E105: Бургас | F105: h
D106: Pazardzhik | E106: Пазарджик | F106: h
D107: Leisure | E107: Неслужебни | F107: h
D108: Sofia | E108: София | F108: h
D109: Bourgas | E109: Бургас | F109: h
D110: Pazardzhik | E110: Пазарджик | F110: h
D111: Commuting | E111: От-до работа | F111: h
D112: Sofia | E112: София | F112: h
D113: Bourgas | E113: Бургас | F113: h
D114: Pazardzhik | E114: Пазарджик | F114: h
D115: Total | E115: Общо отпътували | F115: h
D116: Arriving | E116: Пристигнали
D117: Business | E117: Служебни | F117: h
D118: Sofia | E118: София | F118: h
D119: Bourgas | E119: Бургас | F119: h
D120: Pazardzhik | E120: Пазарджик | F120: h
D121: Leisure | E121: Неслужебни | F121: h
D122: Sofia | E122: София | F122: h
D123: Bourgas | E123: Бургас | F123: h
D124: Pazardzhik | E124: Пазарджик | F124: h
D125: Commuting | E125: От-до работа | F125: h
D126: Sofia | E126: София | F126: h
D127: Bourgas | E127: Бургас | F127: h
D128: Pazardzhik | E128: Пазарджик | F128: h
D129: Total time | E129: Общо пристигнали | F129: h
D130: Total spent time | E130: Общо отпътували и пристигнали | F130: h
D131: VOT WP | E131: Цена на времето СП
D132: Business | E132: Служебни | F132: EUR
D133: Sofia | E133: София | F133: EUR
D134: Bourgas | E134: Бургас | F134: EUR
D135: Pazardzhik | E135: Пазарджик | F135: EUR
D136: Leisure | E136: Неслужебни | F136: EUR
D137: Sofia | E137: София | F137: EUR
D138: Bourgas | E138: Бургас | F138: EUR
D139: Pazardzhik | E139: Пазарджик | F139: EUR
D140: Commuting | E140: От-до работа | F140: EUR
D141: Sofia | E141: София | F141: EUR
D142: Bourgas | E142: Бургас | F142: EUR
D143: Pazardzhik | E143: Пазарджик | F143: EUR
D144: TOTAL VOT WP | E144: ОБЩО цена на времето БП | F144: EUR
D145: VOT Incremental | E145: Цена на времето инкрементална | F145: EUR
D146: NPV, EUR | E146: ННС, евро | F146: =NPV(5.5%,N145:AO145) -> 0

Sheet VOC (hidden)
D1: Annex 10 | E1: Приложение 10
D2: =Input!D2 -> Project | E2: =Input!E2 -> Проект
D3: =Input!D3 -> Rehabilitation of Railway Station Complexes Sofia, Bourgas and Pazardzhik | E3: =Input!E3 -> РЕКОНСТРУКЦИЯ НА ГАРОВИ КОМПЛЕКСИ „СТАРА ЗАГОРА“ И „НОВА ЗАГОРА“
D7: Parameters | E7: Parameters
D8: Public transport | E8: Градскси транспорт
D9: Category of Public Transport | E9: Категория Градски транспорт | F9: Cost per trip EUR/trip 2009 | G9: Cost per trip EUR/trip 2010
D11: Bus | E11: автобус | F11: =(87891079 + 9927586)/235451434/1.95583 -> 0.2124170084 | G11: =(87891079 + 9927586)/235451434/1.95583 -> 0.2124170084
D12: Tram | E12: трамвай | F12: 0.19 | G12: =F12*(1+#REF!) -> 
D13: Trolleybus | E13: тролейбус | F13: 0.22 | G13: =F13*(1+#REF!) -> 
D14: Car Fuel Costs | E14: Разходи за гориво
D15: Category of Vehicle | E15: Тип превозно средство | G15: Parameters | I15: L = (a + b.v + c.v2 + d.v3)/v
G16: a | H16: b | I16: c | J16: d
D17: Parameters as of 2002 | E17: параметри към 2002 | F17: l/km | G17: 0.9574479 | H17: 0.04782644 | I17: -0.00012946 | J17: 2.53734e-06
D18: Parameters as of 2010 | E18: параметри към 2010 | F18: l/km | G18: =G17*(1+3.07%)*(1+2.52%)*(1+2.03%)*(1+3.05%)*(1+2.99%)*(1+2.97%)*(1+2.94%)*(1+1.45%) -> 1.178077587 | H18: =H17*(1+3.07%)*(1+2.52%)*(1+2.03%)*(1+3.05%)*(1+2.99%)*(1+2.97%)*(1+2.94%)*(1+1.45%) -> 0.05884733468 | I18: =I17*(1+3.07%)*(1+2.52%)*(1+2.03%)*(1+3.05%)*(1+2.99%)*(1+2.97%)*(1+2.94%)*(1+1.45%) -> -0.0001592921394 | J18: =J17*(1+3.07%)*(1+2.52%)*(1+2.03%)*(1+3.05%)*(1+2.99%)*(1+2.97%)*(1+2.94%)*(1+1.45%) -> 3.122032419e-06
D19: Average speed | E19: Средна скорост | F19: km/h | G19: =VOT!#REF! -> 
D20: Average Fuel Consumption l/km as of 2010 | E20: Средна консумация на гориво л/км към 2010 | F20: l/km | G20: =($G$18+$H$18*G19+$I$18*G19^2+$J$18*G19^3)/$G$19 -> 
D21: Average distance | E21: Средно транспортно разстояние | F21: km | G21: =VOT!#REF! -> 
D22: Occupancy rate | E22: Запълняемост | F22: km | G22: ='Emission CO2'!#REF! -> 
D23: Fuel price, EUR/l | E23: Цена на горива, евро/л
D24: Oil | E24: Бензин | G24: =(1.92/1.2/1.95583)*(1-0.4031) -> 0.4883041982
D25: Disel | E25: Дизел | G25: =(1.7/1.2/1.95583)*(1-0.3841) -> 0.4461149486
H26: 2009 | I26: =H26+1 -> 2010 | J26: =I26+1 -> 2011 | K26: 2012 | L26: 2013 | M26: 2014 | N26: 2015 | O26: 2016 | P26: 2017 | Q26: 2018 | R26: 2019 | S26: 2020 | T26: 2021 | U26: 2022 | V26: 2023 | W26: 2024 | X26: 2025 | Y26: 2026 | Z26: 2027 | AA26: 2028 | AB26: 2029 | AC26: 2030 | AD26: 2031 | AE26: 2032 | AF26: 2033 | AG26: 2034 | AH26: 2035 | AI26: 2036 | AJ26: 2037 | AK26: 2038 | AL26: 2039 | AM26: =AL26+1 -> 2040 | AN26: =AM26+1 -> 2041 | AO26: =AN26+1 -> 2042 | AP26: =AO26+1 -> 2043 | AQ26: =AP26+1 -> 2044
D27: Share Diesel-Oil | E27: Дял Дизел-Бензин | F27: % | H27: 0.374 | I27: 0.396 | J27: =I27+1.58% -> 0.4118 | K27: =J27+1.58% -> 0.4276 | L27: =K27+1.58% -> 0.4434 | M27: =L27+1.58% -> 0.4592 | N27: =M27+1.58% -> 0.475 | O27: =N27+0.76% -> 0.4826 | P27: =O27+0.76% -> 0.4902 | Q27: =P27+0.76% -> 0.4978 | R27: =Q27+0.76% -> 0.5054 | S27: =R27+0.76% -> 0.513 | T27: =S27+0.32% -> 0.5162 | U27: =T27+0.32% -> 0.5194 | V27: =U27+0.32% -> 0.5226 | W27: =V27+0.32% -> 0.5258 | X27: =W27+0.32% -> 0.529 | Y27: =X27 -> 0.529 | Z27: =Y27 -> 0.529 | AA27: 0.529 | AB27: 0.529 | AC27: 0.529 | AD27: 0.529 | AE27: 0.529 | AF27: 0.529 | AG27: 0.529 | AH27: 0.529 | AI27: 0.529 | AJ27: 0.529 | AK27: 0.529 | AL27: 0.529 | AM27: 0.529 | AN27: 0.529 | AO27: 0.529 | AP27: =AO27 -> 0.529 | AQ27: =AP27 -> 0.529
